Workbook

Sheet Control Panel (hidden)
B3: Open workbook | C3: Rehab Offer Calculator TRIAL TEMPLATE.xlsx | D3: fixed value, user input values entered into pale yellow cells
B4: Copy no | C4: 3 | D4: To create Template save your latest Trial version and rename
B6: Password | C6: test123 | D6: Maximum 32 characters, the more the better
B8: Maximum uses | C8: 10 | D8: Enter a value into one of the two cells
B9: Number of days | C9: 10 | D9: Value defaults to maximum use of 1, if set, days takes precedence over usage
B11: Save as | C11: Rehab Offer Calculator TRIAL Version 5.4 | D11: binary format, for use with Excel 2007+
D12: Open the Save As file with the ext "- Copy no" to see tesults of copy
B13: Purchase link | C13: http://www.realestatespreadsheet.com/buy-now/
B15: Trial version On Open message | C15: ="Welcome to the Trial Version of the Rehab Offer Calculator. This limited use version of the workbook is provided for evaluation purposes." & " Please note that while all features are enabled- the number of saves and days used is limited. Once you reach either limit, the workbook will lock. To unlock this workbook permanently, please visit: "& PurchaseLink -> Welcome to the Trial Version of the Rehab Offer Calculator. This limited use version of the workbook is provided for evaluation purposes. Please note that while all features are enabled- the number of saves and days used is limited. Once you reach either limit, the workbook will lock. To unlock this workbook permanently, please visit: http://www.realestatespreadsheet.com/buy-now/ | D15: Do not edit out the [USAGE} [USES DAYS] and [PURCHASE LINK] fields. These are placeholders for those parameters for your entered values within the Contol Panel. <----Keep this sentence intact.
C16: ="This workbook was provided for evaluation purposes only. You have exceeded your usage limit. To purchase a registration key that will permanently unlock the workbook, please visit: " & PurchaseLink & " Would you like to purchase the registration key?" -> This workbook was provided for evaluation purposes only. You have exceeded your usage limit. To purchase a registration key that will permanently unlock the workbook, please visit: http://www.realestatespreadsheet.com/buy-now/ Would you like to purchase the registration key? | D16: Do not edit out [PURCHASE LINK] field.
B17: Trial version On Save message | C17: ="As a trial version, any changes that you may have made can only be saved during the number of saves that you are allowed. To purchase a registration key that can be used to remove the save limitation and unlock the workbook permanently, please visit: "&PurchaseLink&" Would you like to purchase the full featured version?" -> As a trial version, any changes that you may have made can only be saved during the number of saves that you are allowed. To purchase a registration key that can be used to remove the save limitation and unlock the workbook permanently, please visit: http://www.realestatespreadsheet.com/buy-now/ Would you like to purchase the full featured version? | D17: Do not edit out [PURCHASE LINK] field.
B28: This version hides Usage sheet

Sheet Instructions
A1: overview
A2: The Rehab Offer Calculator is designed to calculate the maximum offer price for any bank owned or fixer upper property based on the amount of repairs, the estimated amount of rent the property will generate, your desired monthly cash flow and the interest rate on the permanent financing (a refinance for 100% of the project cost after all repairs to the property are completed is assumed). It also allows you to input the amount of profit you'd like to make for a flip and see the estimated proceeds of a sale after you complete the repairs. The Rehab Offer Calculator also automatically completes a materials list, list of repairs by contractor and list of repairs by room. Estimated labor and materials costs are provided but can be changed. Materials costs are based primarily on Home Depot retail pricing for medium grade materials.
A13: the basics
A14: Start by Printing out the Inspection Sheet and then going room to room in the property you are considering and entering repair data in the room page. (alternatively you can bring a laptop or Windows/Excel enabled tablet with this workbook loaded) The Rehab Offer Calculator is designed to make this process quick and simple by requiring only a few measurements and relying on checkbox repair entries. Working room to room and entering all the data for a 1200 sq ft house can be done in 30 minutes or less. Be sure to answer all questions and input "0" for square footage in places that aren't applicable to the property you are evaluating to assure an accurate estimate. Note that most data entry fields in the Rehab Offer Calculator are checkboxes. The checkboxes to the right of the line item indicate that you want that repair cost considered in the overall estimate. Checking any of the yellow boxes to the left of each line item indicate that you plan on doing the labor yourself ("DIY") and will result in the labor cost being removed from the total cost. Once you have entered all data, take a look at the "Budget by Room" list and make sure every line item looks reasonable there before continuing. Next enter property data in the Offer Calculator - this is the data you want the maximum offer price to be based on - property tax, estimated rent, insurance, etc. The Rebab Offer Calculator will immediately generate the maximum price that you should pay for the property. It also allows you to see the effect of offering a price higher or lower than the maximum offer price by just entering that price and an estimated after repaired market value for the property.
A34: materials and labor costs
A35: Materials Costs: Two sets of Materials costs are included in the Rehab Offer Calculator - Premium Grade and Builders Grade. You make the choice as to which set is used for cost estimates by choosing one in the upper left hand corner of the Materials costs sheet. Note that all & descriptions can be easily changed. The descriptions on the far left side are the descriptions that appear on each room page. If there is a green check mark next to the description, you can change it and the description that you enter will appear on each room page. Make sure that you also change any related labor cost. Labor costs: You can change any labor cost and the change will be reflected on every room entry page. NOTE: If you change the baseline costs to costs that equal your area costs - don’t forget to change the Regional Cost Adjustment (Offer Calculator Tab) to "Zero Adjustment" or an unexpected adjustment may be made to Labor and Materials costs. The "Adj Cost" reflects the Regional Cost Adjustment selected and is the actual figure used in calculations. Also remember that the Regional Cost Adjustment is applied to both Materials and Labor costs.
A41: other features
A42: The Materials List can be used as your shopping list at Home Depot or any other building supply store. Note although many items are automatically populated based on the original data entry you did, some have areas for additional data entry to make your shopping trip easier. For example, the interior paint area allows you to enter a color for each room. The Budget by Room list can be used to confirm that your total budget is being spent appropriately (which often means a high % in the kitchen and bathrooms) and also to determine where you might be able to make cuts if necessary.
A58: help
A59: The Rehab Offer Calculator has been designed to be very straightforward and easy to use but if you need any help at all with the product, contact the InvestWell via our contact form that's located at http://www.realestatespreadsheet.com/contact-us/. Please include your contact information (daytime phone number and email is best) and as much detail as you can regarding your problem. We strive to respond to all support inquiries within one to two business days.

Sheet Print Reports
A2: Auto print to PDF file | C2: Yes
A3: View PDF after printing | C3: Yes
A5: Print These Rooms for This Address | C5: my address, my city, my state
A6: Living Room
A7: Dining Room
A8: Kitchen
A9: Family Room
A10: Bathroom 1
A11: Bathroom 2 | C11: Status
A12: Bathroom 3 | C12: Printing done.
A13: Bathroom 4
A14: Bedroom 1 | C14: Reports available
A15: Bedroom 2 | C15: my address, my city, my state 2018-10-25.pdf
A16: Bedroom 3 | C16: For Contractors my address, my city, my state 2014-12-2.pdf
A17: Bedroom 4 | C17: All Contractors 2014-12-2.xls
A18: Bedroom 5 | C18: Windows and Doors.xls
A19: Basement Utility | C19: Flooring.xls
A20: Exterior Mechanicals | C20: General.xls
C21: na.xls
A22: Note: | C22: General Kitchen.xls
A23: Before printing to PDF format, ensure PDF Reader/;Acrobat is not open | C23: General Bath.xls
C24: Demolition.xls
A27: Note:
A28: When printing in PDF format, an incomplete PDF icon in task bar indicates user needs to confirm file name on save.
A32: Note:
A33: To disable print view unclick Print View in Printer Properties

Sheet ARVC
B1: AFTER REPAIRED VALUE CALCULATOR
B2: Value Indicated by Comparable Method | D2: =AVERAGE(E6,G6,I6) -> 245871 | G2: =D10/D17 -> 105.5813953
G3: =F10/F17 -> 91.80952381
B4: Value Indicated by Price per Sq Ft | D4: =(AVERAGE(G2:G4))*C17 -> 228850.6806 | G4: =H10/H17 -> 110.2040816
D6: ADJUSTED SALE $ | E6: =D10+E8 -> 265820 | F6: ADJUSTED SALE | G6: =F10+G8 -> 244118 | H6: ADJUSTED SALE | I6: =H10+I8 -> 227675
B7: FEATURE | C7: SUBJECT | D7: COMPARABLE SALE #1 | E7: ADJUSTMENTS | F7: COMPARABLE SALE #2 | G7: ADJUSTMENTS | H7: COMPARABLE SALE #3 | I7: ADJUSTMENTS
B8: ADDRESS | C8: 1234 Main Street, Anywhere, USA | D8: 6789 Elm Street, Anywhere, USA | E8: =SUM(E12:E28) -> 38820 | F8: 1122 Maple Avenue, Anywhere, USA | G8: =SUM(G12:G28) -> 3118 | H8: 8956 Main Street, Anywhere, USA | I8: =SUM(I12:I28) -> -42325
B9: TAX ID | C9: 1234-6789
B10: SALES PRICE | D10: 227000 | F10: 241000 | H10: 270000
B11: DATE OF SALE | D11: 2014-09-12 | F11: 2014-05-01 | H11: 2014-07-31
B12: LOCATION | D12: SAME/GOOD | E12: =(VLOOKUP(D12,$B$33:$C$35,2))*D10*(IF(D12="SUPERIOR",-1,1)) -> 0 | F12: SAME/GOOD | G12: =(VLOOKUP(F12,$B$33:$C$35,2))*F10*(IF(F12="SUPERIOR",-1,1)) -> 0 | H12: SAME/GOOD | I12: =(VLOOKUP(H12,$B$33:$C$35,2))*H10*(IF(H12="SUPERIOR",-1,1)) -> 0
B13: LOT SIZE (SQ FT) | C13: 15054 | D13: 14285 | E13: =IF($C$13<D13,IF(($C$13*$E36)>(D13-$C$13),0,(($C$13-D13+$C$13*$E$36)*$C$36)),0)+IF($C$13>D13,IF(($C$13*$E$36)>($C$13-D13),0,(($C$13-D13-$C$13*$E$36)*$C$36)),0) -> 0 | F13: 15594 | G13: =IF($C$13<F13,IF(($C$13*$E36)>(F13-$C$13),0,(($C$13-F13+$C$13*$E$36)*$C$36)),0)+IF($C$13>F13,IF(($C$13*$E$36)>($C$13-F13),0,(($C$13-F13-$C$13*$E$36)*$C$36)),0) -> 0 | H13: 15681 | I13: =IF($C$13<H13,IF(($C$13*$E36)>(H13-$C$13),0,(($C$13-H13+$C$13*$E$36)*$C$36)),0)+IF($C$13>H13,IF(($C$13*$E$36)>($C$13-H13),0,(($C$13-H13-$C$13*$E$36)*$C$36)),0) -> 0
B14: CURB APPEAL | D14: INFERIOR | E14: =(VLOOKUP(D14,$B$38:$C$40,2))*D10*(IF(D14="SUPERIOR",-1,1)) -> 22700 | F14: SAME/GOOD | G14: =(VLOOKUP(F14,$B$38:$C$40,2))*F10*(IF(F14="SUPERIOR",-1,1)) -> 0 | H14: SAME/GOOD | I14: =(VLOOKUP(H14,$B$38:$C$40,2))*H10*(IF(H14="SUPERIOR",-1,1)) -> 0
B15: AGE | C15: 1972 | D15: 1965 | F15: 1982
B16: CONDITION | D16: INFERIOR | F16: INFERIOR | G16: 10000 | H16: SAME/GOOD | I16: 0
B17: SQUARE FT | C17: 2232 | D17: 2150 | E17: =IF($C$17<D17,IF(($C$17*$E$46)>(D17-$C$17),0,(($C$17-D17+$C$17*$E$46)*$C$46)),0)+IF($C$17>D17,IF(($C$17*$E$46)>($C$17-D17),0,(($C$17-D17-$C$17*$E$46)*$C$46)),0) -> 0 | F17: 2625 | G17: =IF($C$17<F17,IF(($C$17*$E$46)>(F17-$C$17),0,(($C$17-F17+$C$17*$E$46)*$C$46)),0)+IF($C$17>F17,IF(($C$17*$E$46)>($C$17-F17),0,(($C$17-F17-$C$17*$E$46)*$C$46)),0) -> -6792 | H17: 2450 | I17: =IF($C$17<H17,IF(($C$17*$E$46)>(H17-$C$17),0,(($C$17-H17+$C$17*$E$46)*$C$46)),0)+IF($C$17>H17,IF(($C$17*$E$46)>($C$17-H17),0,(($C$17-H17-$C$17*$E$46)*$C$46)),0) -> 0
B18: BEDROOMS | C18: 4 | D18: 4 | E18: =($C$18-D18)*(D10*$C$47) -> 0 | F18: 4 | G18: =($C$18-F18)*(F10*$C$47) -> 0 | H18: 5 | I18: =($C$18-H18)*(H10*$C$47) -> -27000
B19: BATHROOMS | C19: 2.5 | D19: 2.5 | E19: =($C$19-D19)*(D10*$C$48) -> 0 | F19: 2.5 | G19: =($C$19-F19)*(F10*$C$48) -> 0 | H19: 3 | I19: =($C$19-H19)*(H10*$C$48) -> -10125
B20: BASEMENT | C20: UNFINISHED | D20: SUBJECT FINISHED/COMP UNFINISHED | E20: =(VLOOKUP(D20,$H$45:$I$53,2))*D10 -> 11350 | F20: SUBJECT FINISHED/COMP FINISHED | G20: =(VLOOKUP(F20,$H$45:$I$53,2))*F10 -> 0 | H20: SUBJECT FINISHED/COMP FINISHED | I20: =(VLOOKUP(H20,$H$45:$I$53,2))*H10 -> 0
B21: GARAGE | C21: 1 | D21: 0 | E21: =($C$21-D21)*$C$53 -> 2500 | F21: 2 | G21: =($C$21-F21)*$C$53 -> -2500 | H21: 2 | I21: =($C$21-H21)*$C$53 -> -2500
B22: HEAT | C22: STANDARD HEAT | D22: SUBJECT NON STANDARD/COMP NON STANDARD | E22: =VLOOKUP(D22,$H$55:$I$59,2) -> 0 | F22: SUBJECT STANDARD/COMP STANDARD | G22: =VLOOKUP(F22,$H$55:$I$59,2) -> 0 | H22: SUBJECT NON STANDARD/COMP NON STANDARD | I22: =VLOOKUP(H22,$H$55:$I$59,2) -> 0
B23: AIR CONDITIONING | C23: YES | D23: YES | E23: =IF($C$23=D23,0,IF($C$23="YES",$C$56,-$C$56)) -> 0 | F23: YES | G23: =IF($C$23=F23,0,IF($C$23="YES",$C$56,-$C$56)) -> 0 | H23: YES | I23: =IF($C$23=H23,0,IF($C$23="YES",$C$56,-$C$56)) -> 0
B24: COVERED CONCRETE OR STONE PATIO | C24: NO | D24: NO | E24: =IF($C$24=$D$24,0,IF($C$24="YES",$C$58*D10,-$C$58*D10)) -> 0 | F24: NO | G24: =IF($C$24=$F$24,0,IF($C$24="YES",$C$58*F10,-$C$58*F10)) -> 0 | H24: NO | I24: =IF($C$24=$H$24,0,IF($C$24="YES",$C$58*H10,-$C$58*H10)) -> 0
B25: WOOD DECK | C25: YES | D25: NO | E25: =IF($C$25=$D$25,0,IF($C$25="YES",$C$59*D10,-$C$58*D10)) -> 2270 | F25: NO | G25: =IF($C$25=$F$25,0,IF($C$25="YES",$C$59*F10,-$C$58*F10)) -> 2410 | H25: YES | I25: =IF($C$25=$H$25,0,IF($C$25="YES",$C$59*H10,-$C$58*H10)) -> 0
B26: ENCLOSED PORCH | C26: NO | D26: NO | E26: =IF($C$26=$D$26,0,IF($C$26="YES",$C$59*D10,-$C$59*D10)) -> 0 | F26: NO | G26: =IF($C$26=$F$26,0,IF($C$26="YES",$C$59*F10,-$C$59*F10)) -> 0 | H26: YES | I26: =IF($C$26=$H$26,0,IF($C$26="YES",$C$59*H10,-$C$59*H10)) -> -2700
B27: FIREPLACE | C27: YES | D27: YES | E27: =IF($C$27=$D$27,0,IF($C$27="YES",$C$61,-$C$61)) -> 0 | F27: YES | G27: =IF($C$27=$F$27,0,IF($C$27="YES",$C$61,-$C$61)) -> 0 | H27: YES | I27: =IF($C$27=$H$27,0,IF($C$27="YES",$C$61,-$C$61)) -> 0
B28: POOL/SPA/OTHER | C28: NO | D28: NO | E28: =IF($C$28=$D$28,0,IF($C$28="YES",$C$62,-$C$62)) -> 0 | F28: NO | G28: =IF($C$28=F28,0,IF($C$28="YES",$C$62,-$C$62)) -> 0 | H28: NO | I28: =IF($C$28=$H$28,0,IF($C$28="YES",$C$62,-$C$62)) -> 0
B31: ADJUSTMENT VARIABLES
B32: LOCATION
B33: INFERIOR | C33: 0.05
B34: SAME/GOOD | C34: 0
B35: SUPERIOR | C35: 0.075
B36: LOT SIZE | C36: 2.5 | D36: Per sq ft if > or < | E36: 0.15 | F36: as compared to subject
B37: CURB APPEAL
B38: INFERIOR | C38: 0.1
B39: SAME/GOOD | C39: 0
B40: SUPERIOR | C40: 0.1
B41: AGE
B42: CONDITION
B43: INFERIOR
B44: SAME/GOOD | H44: BASEMENT
B45: SUPERIOR | H45: SUBJECT FINISHED/COMP FINISHED | I45: 0
B46: SQ FT | C46: 40 | D46: Per sq ft if > or < | E46: 0.1 | F46: as compared to subject | H46: SUBJECT FINISHED/COMP NONE | I46: =C50 -> 0.1
B47: BEDROOMS | C47: 0.1 | D47: Per additional bdrm | H47: SUBJECT FINISHED/COMP UNFINISHED | I47: =C50-C51 -> 0.05
B48: BATHROOMS | C48: 0.075 | D48: Per additional bath | H48: SUBJECT NONE/COMP FINISHED | I48: =-C50 -> -0.1
B49: BASEMENT | H49: SUBJECT NONE/COMP NONE | I49: =C52 -> 0
B50: FINISHED | C50: 0.1 | H50: SUBJECT NONE/COMP UNFINISHED | I50: =-C51 -> -0.05
B51: UNFINISHED | C51: 0.05 | H51: SUBJECT UNFINISHED/COMP FINISHED | I51: =-(C50-C51) -> -0.05
B52: NONE | C52: 0 | H52: SUBJECT UNFINISHED/COMP NONE | I52: =C50-C51 -> 0.05
B53: GARAGE | C53: 2500 | D53: Per garage unit | H53: SUBJECT UNFINISHED/COMP UNFINISHED | I53: =C52 -> 0
B54: HVAC
B55: NON STANDARD HEAT | C55: 5000 | H55: SUBJECT NON STANDARD/COMP NON STANDARD | I55: 0
B56: AIR CONDITIONING | C56: 3000
B57: PORCH PATIO | H57: SUBJECT NON STANDARD/COMP STANDARD | I57: =-C55 -> -5000
B58: COVERED CONCRETE OR STONE | C58: 0.015 | H58: SUBJECT STANDARD/COMP NON STANDARD | I58: =C55 -> 5000
B59: WOOD DECK | C59: 0.01 | H59: SUBJECT STANDARD/COMP STANDARD | I59: 0
B60: ENCLOSED | C60: 0.03
B61: FIREPLACE | C61: 2500
B62: POOL/HOT TUB/OTHER | C62: 10000
C64: YES
C65: NO
C66: STANDARD HEAT
C67: NON STANDARD HEAT

Sheet Offer Calculator
T1: Maximum Offer Price Calculator | AN1: =LOOKUP(I6,AL3:AL102,AN3:AN102) -> 100 | AO1: 0 | AP1: 1 | AR1: 1 | AS1: =AR1*$O$8 -> 110000
AN2: 100 | AO2: 0.005 | AP2: 2 | AR2: 0.95 | AS2: =AR2*$O$8 -> 104500
AH3: ESTIMATED PROFIT | AL3: Alabama: Entire State | AM3: 0 | AN3: 100 | AO3: 0.01 | AP3: 3 | AR3: 0.9 | AS3: 99000 | AT3: 1
I4: Select Regional Cost Adjustment | Z4: MAXIMUM OFFER PRICE | AH4: =O8-(Z20+Z23+AH20+P33+Z7) -> 16500 | AL4: Alaska: Entire State | AM4: 0.2 | AN4: 120 | AO4: 0.015 | AP4: 4 | AR4: 0.85 | AS4: 93500 | AT4: 2
AL5: Arizona Mesa Phoenix Yuma | AM5: 0 | AN5: 100 | AO5: 0.02 | AP5: 5 | AR5: 0.8 | AS5: 88000 | AT5: 3
I6: Ohio: Entire State | P6: =LOOKUP(I6,AL3:AL102,AM3:AM102) -> 0 | AH6: PROFIT MARGIN | AL6: Arizona Prescott Tucson Flagstaff | AM6: -0.05 | AN6: 95 | AO6: 0.025 | AP6: 6 | AR6: 0.75 | AS6: 82500 | AT6: 4
I7: AFTER REPAIRED VALUE | Z7: =O8-((O8*U11)+Z20+Z23+AH20+P33) -> 74685 | AH7: =AH4/O8 -> 0.15 | AL7: Arkansas | AM7: 0 | AN7: 100 | AO7: 0.03 | AP7: 7 | AR7: 0.7 | AS7: 77000 | AT7: 5
O8: 110000 | U8: DESIRED PROFIT | AL8: California Los Angeles Orange County | AM8: 0.1 | AN8: 110 | AO8: 0.035 | AP8: 8 | AR8: 0.65 | AS8: 71500 | AT8: 6
AL9: California Oakland San Francisco | AM9: 0.25 | AN9: 125 | AO9: 0.04 | AP9: 9 | AR9: 0.6 | AS9: 66000 | AT9: 7
AL10: California Sacramento | AM10: 0.05 | AN10: 105 | AO10: 0.045 | AP10: 10 | AR10: 0.55 | AS10: 60500 | AT10: 8
I11: Enter Purchasing Costs | U11: 0.15 | AH11: ESTIMATED PROFIT | AL11: California San Diego | AM11: 0.05 | AN11: 105 | AO11: 0.05 | AP11: 15 | AR11: 0.5 | AS11: 55000 | AT11: 9
Z12: YOUR OFFER OR FINAL PRICE | AH12: =O8-AH23-P33 -> 16185 | AL12: Colorado: Entire State | AM12: 0 | AN12: 100 | AO12: 0.055 | AP12: 20 | AR12: 0.45 | AS12: 49500 | AT12: 10
I13: Closing Costs | N13: 0.025 | P13: =N13*Z15 -> 1875 | AL13: Connecticut: Entire State | AM13: 0 | AN13: 100 | AO13: 0.06 | AP13: 25 | AR13: 0.4 | AS13: 44000 | AT13: 11
I14: Lender Fees | N14: 0.03 | P14: =N19*N14 -> 1500 | AH14: PROFIT MARGIN | AL14: Delaware: Entire State | AM14: 0 | AN14: 100 | AO14: 0.065 | AP14: 30 | AR14: 0.35 | AS14: 38500 | AT14: 12
I15: Inspections, Misc Costs | P15: 0 | Z15: 75000 | AH15: =AH12/O8 -> 0.1471363636 | AL15: District of Columbia | AM15: 0.1 | AN15: 110 | AO15: 0.07 | AP15: 35 | AR15: 0.3 | AS15: 33000 | AT15: 13
M16: Total | P16: =SUM(P13:Q15) -> 3375 | AL16: Florida: Daytona Beach, Fort Pierce, Orlando, Ocala | AM16: -0.1 | AN16: 90 | AO16: 0.075 | AP16: 40 | AT16: 14
I17: Enter Holding Costs | AL17: Florida: Jacksonville, Tallahassee, Pensacola | AM17: -0.05 | AN17: 95 | AO17: 0.08 | AT17: 15
AL18: Florida: Miami, Fort Lauderdale,Naples | AM18: 0 | AN18: 100 | AO18: 0.085 | AT18: 16
I19: Amount Financed | N19: 50000 | Z19: TOTAL REPAIR COSTS | AH19: PURCHASE/HOLDING COSTS | AL19: Florida: Tampa, St Petersburg | AM19: -0.05 | AN19: 95 | AO19: 0.09 | AQ19: =Z33 -> 0.06 | AR19: =AE33 -> 30 | AS19: =-(PMT(AQ19,AR19,AC30))/12 -> 302.7037979 | AT19: 17
I20: Anticipated Holding Time | N20: 6 | P20: months | U20: STANDARD CONTINGENCY | Z20: ='Budget by Room'!X31 -> 0 | AH20: =P27+P16 -> 8665 | AL20: Georgia: Atlanta | AM20: 0.1 | AN20: 110 | AO20: 0.095 | AR20: tax | AS20: =N22/12 -> 116.6666667 | AT20: 18
I21: Financing Interest Rate | N21: 0.1 | P21: =((N19*N21)/12)*N20 -> 2500 | AL21: Georgia: Entire State Except Atlanta | AM21: -0.05 | AN21: 95 | AO21: 0.1 | AR21: insurance | AS21: =N25/12 -> 41.66666667
I22: Annual Taxes | N22: 1400 | P22: =(N22/12)*N20 -> 700 | Z22: CONTINGENCY | AH22: TOTAL INVESTED IN HOUSE | AL22: Hawaii: Entire State | AM22: 0.25 | AN22: 125 | AO22: 0.105 | AR22: water | AS22: =N23 -> 80
I23: Monthly Water Sewer | N23: 80 | P23: =N23*N20 -> 480 | U23: 0.1 | Z23: ='Living Room'!AY56+'Dining Room'!AY56+Kitchen!AY75+'Family Room'!AY56+'Bathroom 1'!AY72+'Bathroom 2'!AY76+'Bathroom 3'!AY76+'Bathroom 4'!AY76+'Bedroom 1'!AY44+'Bedroom 2'!AY44+'Bedroom 3'!$AY$44+'Bedroom 4'!AY44+'Bedroom 5'!AY44+'Basement Utility'!AY54+'Exterior Mechanicals'!AY53 -> 0 | AH23: =Z15+Z20+Z23+AH20 -> 83665 | AL23: Idaho: Entire State | AM23: -0.05 | AN23: 95 | AO23: 0.11 | AR23: vacancy | AS23: =U33*0.05 -> 62.5
I24: Monthly Electric Gas | N24: 210 | P24: =N24*N20 -> 1260 | AL24: Illinois: Chicago | AM24: 0.15 | AN24: 115 | AO24: 0.115 | AS24: =SUM(AS19:AS23) -> 603.5371312
I25: Annual Insurance | N25: 500 | P25: =(N25/12)*N20 -> 250 | AL25: Illinois: Entire State Except Chicago | AM25: 0 | AN25: 100 | AO25: 0.12
I26: Misc Monthly Costs | P26: 100 | AL26: Indiana: Evansville | AM26: 0.1 | AN26: 110 | AO26: 0.125
L27: Total | P27: =SUM(P21:Q26) -> 5290 | AL27: Indiana: Gary | AM27: 0 | AN27: 100 | AO27: 0.13
I28: Enter Selling Costs | AL28: Indiana: Indianapolis | AM28: 0.15 | AN28: 115 | AO28: 0.135
U29: Buy & Hold Analysis | AC29: AMOUNT FINANCED | AH29: MONTHLY CASH FLOW | AL29: Iowa: Entire State | AM29: -0.05 | AN29: 95 | AO29: 0.14
I30: Commissions | N30: 0.06 | P30: =O8*N30 -> 6600 | AC30: 50000 | AH30: =U33-AS24 -> 646.4628688 | AL30: Kansas: Entire State | AM30: -0.05 | AN30: 95 | AO30: 0.145
I31: Seller Closing Costs | N31: 0.03 | P31: =O8*N31 -> 3300 | AL31: Kentucky: Entire State | AM31: 0 | AN31: 100 | AO31: 0.15
I32: Inspections, Misc. | P32: 250 | U32: MONTHLY RENT | Z32: INTEREST RATE | AE32: TERM (YR) | AH32: RETURN ON INVESTMENT | AL32: Louisiana: Baton Rouge, Lafayette, New Orleans | AM32: 0.1 | AN32: 110 | AO32: 0.2
L33: Total | P33: =SUM(P30:Q32) -> 10150 | U33: 1250 | Z33: 0.06 | AE33: 30 | AH33: =(AH30*12)/AH23 -> 0.09272162105 | AL33: Louisiana: Rest of State | AM33: 0 | AN33: 100 | AO33: 0.25
AL34: Maine: Entire State | AM34: -0.05 | AN34: 95 | AO34: 0.3
AL35: Maryland: Baltimore,Bethesda | AM35: 0.1 | AN35: 110 | AO35: 0.35
AL36: Maryland: Rest of State | AM36: 0.05 | AN36: 105 | AO36: 0.4
AL37: Massachusetts: Boston, Cambridge | AM37: 0.3 | AN37: 130 | AO37: 0.45
AL38: Massachusetts: Rest of State | AM38: 0.1 | AN38: 110 | AO38: 0.5
AL39: Michigan: Detroit | AM39: 0.1 | AN39: 110
AL40: Michigan: Rest of State | AM40: 0 | AN40: 100
AL41: Minnesota: Minneapolis, St Paul | AM41: 0.1 | AN41: 110
AL42: Minnesota: Rest of State | AM42: 0 | AN42: 100
AL43: Mississippi: Entire State | AM43: -0.05 | AN43: 95
AL44: Missouri: Entire State | AM44: -0.05 | AN44: 95
AL45: Montana: Entire State | AM45: 0 | AN45: 100
AL46: Nebraska: Entire State | AM46: -0.05 | AN46: 95
AL47: Nevada: Entire State | AM47: 0.05 | AN47: 110
AL48: New Hampshire: Entire State | AM48: 0 | AN48: 100
AL49: New Jersey: Entire State | AM49: 0.15 | AN49: 115
AL50: New Mexico: Albuquerque | AM50: 0 | AN50: 100
AL51: New Mexico: Rest of State | AM51: -0.1 | AN51: 90
AL52: New York: Albany | AM52: 0.05 | AN52: 105
AL53: New York: Buffalo | AM53: 0 | AN53: 100
AL54: New York: Greater New York City Area | AM54: 0.3 | AN54: 130
AL55: New York: Rochester, Syracuse | AM55: 0 | AN55: 100
AL56: North Carolina: Entire State | AM56: 0 | AN56: 100
AL57: North Dakota: Entire State | AM57: 0 | AN57: 100
AL58: Ohio: Entire State | AM58: 0 | AN58: 100
AL59: Oklahoma: Entire State | AM59: -0.05 | AN59: 95
AL60: Oregon: Portland | AM60: 0.1 | AN60: 110
AL61: Oregon: Rest of State | AM61: 0 | AN61: 100
AL62: Pennsylvania: Erie | AM62: 0 | AN62: 100
AL63: Pennsylvania: Philadelphia | AM63: 0.15 | AN63: 115
AL64: Pennsylvania: Pittsburgh | AM64: 0.05 | AN64: 105
AL65: Rhode Island: Entire State | AM65: 0.05 | AN65: 105
AL66: South Carolina: Entire State | AM66: -0.05 | AN66: 95
AL67: South Dakota: Entire State | AM67: -0.05 | AN67: 95
AL68: Tennessee: Entire State | AM68: 0 | AN68: 100
AL69: Texas: Amarillo | AM69: 0 | AN69: 100
AL70: Texas: Dallas Fort Worth | AM70: 0 | AN70: 100
AL71: Texas: Houston | AM71: 0.1 | AN71: 110
AL72: Texas: Rest of State | AM72: -0.05 | AN72: 95
AL73: Utah: Entire State | AM73: 0 | AN73: 100
AL74: Vermont: Entire State | AM74: 0 | AN74: 100
AL75: Virginia: Entire State | AM75: 0 | AN75: 100
AL76: Washington: Rest of State | AM76: 0 | AN76: 100
AL77: Washington: Seattle | AM77: 0.1 | AN77: 110
AL78: West Virginia: Entire State | AM78: -0.05 | AN78: 95
AL79: Wisconsin: Milwaukee | AM79: 0.05 | AN79: 105
AL80: Wisconsin: Rest of State | AM80: 0 | AN80: 100
AL81: Wyoming | AM81: 0 | AN81: 100
AL82: Zero Adjust for Area | AM82: 0 | AN82: 100

Sheet Living Room
P1: Living Room | AS1: Each | AU1: Extended | AW1: Region Adjustment | AY1: Total
D2: Estimated Labor & Material Costs | AM2: Include? | AN2: Category | AO2: Contractor | AP2: Description | AQ2: Amount | AR2: Measure | AS2: Material | AT2: Labor | AU2: Material | AV2: Labor | AW2: Material | AX2: Labor | AY2: Material | AZ2: Labor | BA2: DIY
P3: Contingency for This Room | AY3: =SUM(AW5:AW55) -> 0 | AZ3: =SUM(AX5:AX55) -> 0
E4: Windows | L4: =SUM(AW5:AW11)+SUM(AX5:AX11)+AW12+AX12 -> 0 | Q4: Standard | S4: or | T4: $ | U4: 0 | W4: Room dimensions (ft): | AD4: Width | AF4: 0 | AG4: Depth | AI4: 0 | AM4: 1 | AN4: Windows & Doors | BA4: FALSE
AM5: =IF($AM$4=1,TRUE,FALSE) -> TRUE | AN5: Windows & Doors | AP5: No Windows | AQ5: =$X$7 -> 0 | AS5: 0 | AT5: 0 | AU5: =IF(AM5,AQ5*AS5,0) -> 0 | AW5: =ROUND(AU5*(COL/100),2) -> 0 | AX5: =IF(BA5,0,ROUND(AV5*(COL/100),2)) -> 0 | BA5: =IF($BA$4,TRUE,FALSE) -> FALSE
E6: Blinds | L6: =SUM(AW29:AW31)+SUM(AX29:AX31)+AW32+AX32 -> 0 | P6: DIY | Q6: Replace Windows | AA6: DIY | AB6: Replace Blinds | AM6: =IF($AM$4=2,TRUE,FALSE) -> FALSE | AN6: Windows & Doors | AO6: Windows & Doors | AP6: ='Materials Costs'!C100 -> 28 x 38 Double Hung | AQ6: 0 | AS6: ='Materials Costs'!O100 -> 124 | AT6: ='Labor Costs'!$F$44 -> 125 | AU6: 0 | AV6: =IF(AM6,AQ6*AT6,0) -> 0 | AW6: 0 | AX6: 0 | BA6: =IF($BA$4,TRUE,FALSE) -> FALSE
X7: 0 | AI7: 0 | AM7: =IF($AM$4=3,TRUE,FALSE) -> FALSE | AN7: Windows & Doors | AO7: Windows & Doors | AP7: ='Materials Costs'!C101 -> 28 x 54 Double Hung | AQ7: 0 | AS7: ='Materials Costs'!N101 -> 134 | AT7: ='Labor Costs'!$F$44 -> 125 | AU7: 0 | AV7: 0 | AW7: 0 | AX7: 0 | BA7: FALSE
E8: Walls | L8: =SUM(AW13:AW16)+SUM(AX13:AX16) -> 0 | AM8: =IF($AM$4=4,TRUE,FALSE) -> FALSE | AN8: Windows & Doors | AO8: Windows & Doors | AP8: ='Materials Costs'!C102 -> 32 x 38 Double Hung | AQ8: 0 | AS8: ='Materials Costs'!N102 -> 147 | AT8: ='Labor Costs'!$F$44 -> 125 | AU8: 0 | AV8: 0 | AW8: 0 | AX8: 0 | BA8: FALSE
Q9: Picture Window | AB9: Picture Window | AM9: =IF($AM$4=5,TRUE,FALSE) -> FALSE | AN9: Windows & Doors | AO9: Windows & Doors | AP9: ='Materials Costs'!C103 -> 32 x 54 Double Hung | AQ9: 0 | AS9: ='Materials Costs'!N103 -> 155 | AT9: ='Labor Costs'!$F$44 -> 125 | AU9: 0 | AV9: 0 | AW9: 0 | AX9: 0 | BA9: FALSE
E10: Floors | L10: =SUM(AW17:AW22)+SUM(AX17:AX22) -> 0 | AM10: =IF($AM$4=6,TRUE,FALSE) -> FALSE | AN10: Windows & Doors | AO10: Windows & Doors | AP10: ='Materials Costs'!C104 -> 36 x 38 Double Hung | AQ10: 0 | AS10: ='Materials Costs'!N104 -> 134 | AT10: ='Labor Costs'!$F$44 -> 125 | AU10: 0 | AV10: 0 | AW10: 0 | AX10: 0 | BA10: FALSE
AM11: =IF($AM$4=7,TRUE,FALSE) -> FALSE | AN11: Windows & Doors | AO11: Windows & Doors | AP11: ='Materials Costs'!C105 -> 36 x 54 Double Hung | AQ11: 0 | AS11: ='Materials Costs'!N105 -> 167 | AT11: ='Labor Costs'!$F$44 -> 125 | AU11: 0 | AV11: 0 | AW11: 0 | AX11: 0 | BA11: FALSE
E12: Door | L12: =SUM(AW34:AW38)+SUM(AX34:AX38)+AW44+AX44+AW48+AX48+SUM(AW41:AW43)+SUM(AX41:AX43) -> 0 | P12: DIY | Q12: Walls & Floors | AA12: DIY | AB12: Doors & Closet | AM12: FALSE | AN12: Windows & Doors | AO12: Windows & Doors | AP12: ='Materials Costs'!C106 -> Picture Window | AQ12: 1 | AS12: ='Materials Costs'!N106 -> 790.7 | AT12: ='Labor Costs'!F45 -> 200 | AU12: 0 | AV12: 0 | AW12: 0 | AX12: 0 | BA12: FALSE
Q13: =AP13 -> Hang & Finish Drywall | AB13: Replace Entry Door (Front Door) | AM13: FALSE | AN13: Drywall | AO13: Drywall | AP13: Hang & Finish Drywall | AQ13: =(8*$AF$4)*2+(8*$AI$4)*2 -> 0 | AR13: sq ft | AS13: ='Materials Costs'!N5+'Materials Costs'!N6 -> 0.348825 | AT13: ='Labor Costs'!F5+'Labor Costs'!F6 -> 2.45 | AU13: =IF(AM13,AQ13*AS13,0) -> 0 | AV13: =IF(AM13,AQ13*AT13,0) -> 0 | AW13: 0 | AX13: 0 | BA13: FALSE
E14: Closet | L14: =SUM(AW45:AW47)+SUM(AX45:AX47) -> 0 | Q14: =AP14 -> Remove Wallpaper | AM14: FALSE | AN14: General | AO14: General | AP14: Remove Wallpaper | AQ14: =(8*$AF$4)*2+(8*$AI$4)*2 -> 0 | AR14: sq ft | AS14: 0 | AT14: ='Labor Costs'!F7 -> 1 | AU14: =IF(AM14,AQ14*AS14,0) -> 0 | AV14: =IF(AM14,AQ14*AT14,0) -> 0 | AW14: =ROUND(AU14*(COL/100),2) -> 0 | AX14: 0 | BA14: FALSE
Q15: =AP15 -> Prime Walls | AM15: FALSE | AN15: Painter | AO15: Painter | AP15: Prime Walls | AQ15: =(8*$AF$4)*2+(8*$AI$4)*2 -> 0 | AR15: sq ft | AS15: ='Materials Costs'!N9 -> 0.04245 | AT15: ='Labor Costs'!F9 -> 0.4 | AU15: =IF(AM15,AQ15*AS15,0) -> 0 | AV15: =IF(AM15,AQ15*AT15,0) -> 0 | AW15: =ROUND(AU15*(COL/100),2) -> 0 | AX15: 0 | BA15: FALSE
E16: Add Circuit | L16: =AW49+AX49 -> 0 | Q16: =AP16 -> Paint Walls | AB16: Replace Storm Door (Front Door) | AM16: FALSE | AN16: Painter | AO16: Painter | AP16: Paint Walls | AQ16: =(8*$AF$4)*2+(8*$AI$4)*2 -> 0 | AR16: sq ft | AS16: ='Materials Costs'!N8 -> 0.11485 | AT16: ='Labor Costs'!F8 -> 0.65 | AU16: =IF(AM16,AQ16*AS16,0) -> 0 | AV16: =IF(AM16,AQ16*AT16,0) -> 0 | AW16: 0 | AX16: 0 | BA16: FALSE
Q17: Carpet
E18: Ceiling Fan & Light Fixture | L18: =AW50+AX50+AW51+AX51 -> 0 | Q18: Install Engineered Hardwood | AM18: FALSE | AN18: General | AO18: General | AP18: Replace and Paint Baseboards | AQ18: =(AF4*2)+(AI4*2) -> 0 | AR18: ln ft | AS18: ='Materials Costs'!N19+'Materials Costs'!N20 -> 0.216175 | AT18: ='Labor Costs'!F17 -> 2.77 | AU18: =IF(AM18,AQ18*AS18,0) -> 0 | AV18: =IF(AM18,AQ18*AT18,0) -> 0 | AW18: 0 | AX18: 0 | BA18: FALSE
Q19: Refinish Hardwood | AB19: =AP44 -> Exterior Door Lockset | AM19: FALSE | AN19: Flooring | AO19: Flooring | AP19: Engineered Hardwood Flooring | AQ19: =AF4*AI4 -> 0 | AR19: sq ft | AS19: ='Materials Costs'!N16 -> 2.89 | AT19: ='Labor Costs'!F18 -> 3 | AU19: =IF(AM19,AQ19*AS19,0) -> 0 | AV19: =IF(AM19,AQ19*AT19,0) -> 0 | AW19: 0 | AX19: 0 | BA19: FALSE
E20: Cable Outlet | L20: =AW52+AX52 -> 0 | Q20: =AP18 -> Replace and Paint Baseboards | AB20: =AP45 -> Single Closet Door | AM20: FALSE | AN20: Flooring | AO20: Flooring | AP20: Carpet | AQ20: =((AF4*AI4)*1.15)/9 -> 0 | AR20: yards | AS20: ='Materials Costs'!N17+'Materials Costs'!N18 -> 18 | AT20: ='Labor Costs'!F19 -> 5 | AU20: =IF(AM20,AQ20*AS20,0) -> 0 | AV20: =IF(AM20,AQ20*AT20,0) -> 0 | AW20: 0 | AX20: 0 | BA20: FALSE
AB21: =AP46 -> Double Closet Door | AM21: FALSE | AN21: Flooring | AO21: Flooring | AP21: Refinish Hardwood Floor | AQ21: =AF4*AI4 -> 0 | AR21: sq ft | AS21: 0 | AT21: ='Labor Costs'!F20 -> 3.5 | AU21: =IF(AM21,AQ21*AS21,0) -> 0 | AV21: =IF(AM21,AQ21*AT21,0) -> 0 | AW21: 0 | AX21: 0 | BA21: FALSE
E22: Outlets and Switches | L22: =AW53+AX53+AW54+AX54 -> 0 | Q22: =AP22 -> Replace Rotted Floor | X22: 0 | AB22: =AP47 -> Paint Closet | AM22: =IF(AU22>0,TRUE,FALSE) -> FALSE | AN22: Flooring | AO22: Flooring | AP22: Replace Rotted Floor | AQ22: =X22 -> 0 | AR22: sq ft | AS22: ='Materials Costs'!N21 -> 0.7671875 | AT22: ='Labor Costs'!F21 -> 2.5 | AU22: =AQ22*AS22 -> 0 | AV22: =AQ22*AT22 -> 0 | AW22: 0 | AX22: 0 | BA22: FALSE
AB23: =AP48 -> Replace Window & Door Moulding | AM23: FALSE | AN23: Fireplace | AO23: Fireplace | AP23: ='Labor Costs'!D60 -> Inspect and Clean Chimney | AQ23: 1 | AS23: 0 | AT23: ='Labor Costs'!F60 -> 150 | AU23: =IF(AM23,AS23*AQ23,0) -> 0 | AV23: =IF(AM23,AT23*AQ23,0) -> 0 | AW23: 0 | AX23: 0 | BA23: FALSE
E24: Demolition | L24: =AX55 -> 0 | AM24: FALSE | AN24: Fireplace | AO24: Fireplace | AP24: Gas Insert and Logs | AQ24: 1 | AS24: ='Materials Costs'!N94+'Materials Costs'!N95 -> 552.78 | AT24: ='Labor Costs'!F61 -> 85 | AU24: 0 | AV24: 0 | AW24: 0 | AX24: 0 | BA24: FALSE
AM25: FALSE | AN25: Fireplace | AO25: Fireplace | AP25: ='Materials Costs'!C96 -> Fireplace Screen | AQ25: 1 | AS25: ='Materials Costs'!N96 -> 77.25 | AT25: 0 | AU25: 0 | AV25: 0 | AW25: 0 | AX25: 0 | BA25: FALSE
E26: Fireplace | L26: =SUM(AW23:AW26)+SUM(AX23:AX26) -> 0 | Q26: Fireplace | AA26: DIY | AB26: Electrical & Demolition | AM26: FALSE | AN26: Fireplace | AO26: Fireplace | AP26: ='Materials Costs'!C97 -> Fireplace Mantel | AQ26: 1 | AS26: ='Materials Costs'!N97 -> 281.31 | AT26: ='Labor Costs'!F62 -> 175 | AU26: 0 | AV26: 0 | AW26: 0 | AX26: 0 | BA26: FALSE
P27: DIY | AB27: =AP49 -> Add Circuit | AM27: 1 | AN27: General | AU27: 0 | AV27: 0 | AW27: 0 | AX27: 0
Q28: =AP23 -> Inspect and Clean Chimney | AB28: =AP50 -> Ceiling Fan | AM28: =IF($AM$27=1,TRUE,FALSE) -> TRUE | AN28: General | AP28: No Blinds | AQ28: =$AI$7 -> 0 | AU28: 0 | AV28: 0 | AW28: 0 | AX28: 0 | BA28: FALSE
E29: Contingency Applied to This Room | L29: =AY56 -> 0 | Q29: =AP24 -> Gas Insert and Logs | AB29: =AP51 -> Lighting Fixture | AM29: =IF($AM$27=2,TRUE,FALSE) -> FALSE | AN29: General | AO29: General | AP29: ='Materials Costs'!C108 -> 28 inch wide blinds | AQ29: =$AI$7 -> 0 | AS29: ='Materials Costs'!N108 -> 6.97 | AT29: ='Labor Costs'!$F$47 -> 45 | AU29: =IF(AM29,AS29*AQ29,0) -> 0 | AV29: =IF(AM29,AT29*AQ29,0) -> 0 | AW29: 0 | AX29: 0 | BA29: =IF(BA28,TRUE,FALSE) -> FALSE
E30: Estimated Total Labor Cost This Room | L30: =AZ3 -> 0 | Q30: =AP25 -> Fireplace Screen | AB30: =AP52 -> Wire Cable Outlet | AM30: =IF($AM$27=3,TRUE,FALSE) -> FALSE | AN30: General | AO30: General | AP30: ='Materials Costs'!C109 -> 32 inch wide blinds | AQ30: =$AI$7 -> 0 | AS30: ='Materials Costs'!N109 -> 8.47 | AT30: ='Labor Costs'!$F$47 -> 45 | AU30: =IF(AM30,AS30*AQ30,0) -> 0 | AV30: =IF(AM30,AT30*AQ30,0) -> 0 | AW30: 0 | AX30: 0 | BA30: =IF(BA29,TRUE,FALSE) -> FALSE
E31: Estimated Total Material Cost This Room | L31: =AY3 -> 0 | Q31: =AP26 -> Fireplace Mantel | AB31: =AP53 -> Grounded Outlet | AI31: 0 | AM31: =IF($AM$27=4,TRUE,FALSE) -> FALSE | AN31: General | AO31: General | AP31: ='Materials Costs'!C110 -> 36 inch wide blinds | AQ31: =$AI$7 -> 0 | AS31: ='Materials Costs'!N110 -> 9.97 | AT31: ='Labor Costs'!$F$47 -> 45 | AU31: =IF(AM31,AS31*AQ31,0) -> 0 | AV31: =IF(AM31,AT31*AQ31,0) -> 0 | AW31: 0 | AX31: 0 | BA31: =IF(BA30,TRUE,FALSE) -> FALSE
E32: Total Estimated Room Repair Cost | L32: =SUM(L29:M31) -> 0 | AM32: FALSE | AN32: General | AO32: General | AP32: ='Materials Costs'!C111 -> Picture Window Blinds | AQ32: 1 | AS32: ='Materials Costs'!N111 -> 53.97 | AT32: ='Labor Costs'!F48 -> 50 | AU32: =IF(AM32,AS32*AQ32,0) -> 0 | AV32: =IF(AM32,AT32*AQ32,0) -> 0 | AW32: 0 | AX32: 0 | BA32: FALSE
AB33: =AP54 -> Wall Switch | AI33: 0 | AM33: 1 | AN33: Windows & Doors | AU33: =IF(AM33,AS33,0) -> 0 | AV33: =IF(AM33,AT33,0) -> 0 | AW33: 0 | AX33: 0
AM34: =IF(AM33=1,TRUE,FALSE) -> TRUE | AN34: Windows & Doors | AP34: No Doors | AS34: 0 | AT34: 0 | AU34: 0 | AV34: 0 | AW34: 0 | AX34: 0 | BA34: FALSE
E35: Total Estimated Costs for Entire House | L35: ='Offer Calculator'!Z20+'Offer Calculator'!Z23 -> 0 | AM35: =IF(AM33=2,TRUE,FALSE) -> FALSE | AN35: Windows & Doors | AO35: Windows & Doors | AP35: ='Materials Costs'!C78 -> 30 inch front entry door | AS35: ='Materials Costs'!N78 -> 494.58 | AT35: ='Labor Costs'!$F$49 -> 200 | AU35: 0 | AV35: 0 | AW35: 0 | AX35: 0 | BA35: =IF($BA$34,TRUE,FALSE) -> FALSE
AB36: =AP55 -> Demolition Hours | AI36: 0 | AM36: =IF(AM33=3,TRUE,FALSE) -> FALSE | AN36: Windows & Doors | AO36: Windows & Doors | AP36: ='Materials Costs'!C79 -> 32 inch front entry door | AS36: ='Materials Costs'!N79 -> 329 | AT36: ='Labor Costs'!$F$49 -> 200 | AU36: 0 | AV36: 0 | AW36: 0 | AX36: 0 | BA36: =IF($BA$34,TRUE,FALSE) -> FALSE
AM37: =IF(AM33=4,TRUE,FALSE) -> FALSE | AN37: Windows & Doors | AO37: Windows & Doors | AP37: ='Materials Costs'!C80 -> 36 inch front entry door | AS37: ='Materials Costs'!N80 -> 345 | AT37: ='Labor Costs'!$F$49 -> 200 | AU37: 0 | AV37: 0 | AW37: 0 | AX37: 0 | BA37: =IF($BA$34,TRUE,FALSE) -> FALSE
AM38: =IF(AM33=5,TRUE,FALSE) -> FALSE | AN38: Windows & Doors | AO38: Windows & Doors | AP38: ='Materials Costs'!C81 -> 60 inch total width including side lites | AS38: ='Materials Costs'!N81 -> 1126.82 | AT38: ='Labor Costs'!F50 -> 250 | AU38: 0 | AV38: 0 | AW38: 0 | AX38: 0 | BA38: =IF($BA$34,TRUE,FALSE) -> FALSE
AM39: 1 | AN39: Windows & Doors | BA39: FALSE
E40: TYPE | J40: MATERIALS | L40: LABOR | AM40: =IF($AM$39=1,TRUE,FALSE) -> TRUE | AN40: Windows & Doors | AP40: No Storm Door | AS40: 0 | AT40: 0 | AU40: 0 | AV40: 0 | AW40: 0 | AX40: 0 | BA40: =IF($BA$39,TRUE,FALSE) -> FALSE
E41: DEMOLITION | L41: =AX55 -> 0 | X41: 0 | AM41: =IF($AM$39=2,TRUE,FALSE) -> FALSE | AN41: Windows & Doors | AO41: Windows & Doors | AP41: ='Materials Costs'!C82 -> 30 inch Storm Door | AS41: ='Materials Costs'!N82 -> 318.99 | AT41: ='Labor Costs'!$F$53 -> 100 | AU41: 0 | AV41: 0 | AW41: 0 | AX41: 0 | BA41: =IF($BA$39,TRUE,FALSE) -> FALSE
E42: DRYWALL | J42: =AW13 -> 0 | L42: =AX13 -> 0 | X42: 1 | AM42: =IF($AM$39=3,TRUE,FALSE) -> FALSE | AN42: Windows & Doors | AO42: Windows & Doors | AP42: ='Materials Costs'!C83 -> 32 inch Storm Door | AS42: ='Materials Costs'!N83 -> 99.98 | AT42: ='Labor Costs'!$F$53 -> 100 | AU42: 0 | AV42: 0 | AW42: 0 | AX42: 0 | BA42: =IF($BA$39,TRUE,FALSE) -> FALSE
E43: ELECTRICIAN | J43: =SUM(AW49:AW54) -> 0 | L43: =SUM(AX49:AX54) -> 0 | X43: 2 | AM43: =IF($AM$39=4,TRUE,FALSE) -> FALSE | AN43: Windows & Doors | AO43: Windows & Doors | AP43: ='Materials Costs'!C84 -> 36 inch Storm Door | AS43: ='Materials Costs'!N84 -> 154 | AT43: ='Labor Costs'!$F$53 -> 100 | AU43: 0 | AV43: 0 | AW43: 0 | AX43: 0 | BA43: =IF($BA$39,TRUE,FALSE) -> FALSE
E44: FIREPLACE | J44: =SUM(AW23:AW26) -> 0 | L44: =SUM(AX23:AX26) -> 0 | X44: 3 | AM44: FALSE | AN44: General | AO44: General | AP44: ='Materials Costs'!C88 -> Exterior Door Lockset | AS44: ='Materials Costs'!N88 -> 82 | AT44: ='Labor Costs'!F51 -> 25 | AU44: 0 | AV44: 0 | AW44: 0 | AX44: 0 | BA44: FALSE
E45: FLOORING | J45: =SUM(AW19:AW22) -> 0 | L45: =SUM(AX19:AX22) -> 0 | X45: 4 | AM45: FALSE | AN45: General | AO45: General | AP45: ='Materials Costs'!C74 -> Single Closet Door | AS45: ='Materials Costs'!N74 -> 165.2 | AT45: ='Labor Costs'!F54 -> 100 | AU45: 0 | AV45: 0 | AW45: 0 | AX45: 0 | BA45: FALSE
E46: GENERAL | J46: =AW14+SUM(AW28:AW32)+SUM(AW44:AW46)+AW48 -> 0 | L46: =AX14+SUM(AX28:AX32)+SUM(AX44:AX46)+AX48 -> 0 | X46: 5 | AM46: FALSE | AN46: General | AO46: General | AP46: ='Materials Costs'!C75 -> Double Closet Door | AS46: ='Materials Costs'!N75 -> 109 | AT46: ='Labor Costs'!F55 -> 150 | AU46: 0 | AV46: 0 | AW46: 0 | AX46: 0 | BA46: FALSE
E47: PAINTER | J47: =SUM(AW15:AW16)+AW47 -> 0 | L47: =SUM(AX15:AX16)+AX47 -> 0 | X47: 6 | AM47: FALSE | AN47: Painter | AO47: Painter | AP47: Paint Closet | AS47: ='Materials Costs'!N76 -> 22.97 | AT47: ='Labor Costs'!F56 -> 125 | AU47: 0 | AV47: 0 | AW47: 0 | AX47: 0 | BA47: FALSE
E48: WINDOWS & DOORS | J48: =SUM(AW5:AW12)+SUM(AW34:AW43) -> 0 | L48: =SUM(AX5:AX12)+SUM(AX33:AX43) -> 0 | X48: 7 | AM48: FALSE | AN48: General | AO48: General | AP48: Replace Window & Door Moulding | AQ48: =36 -> 36 | AR48: ln ft | AS48: ='Materials Costs'!N77 -> 0.4725 | AT48: ='Labor Costs'!F58 -> 2.77 | AU48: =IF(AM48,AS48*AQ48,0) -> 0 | AV48: =IF(AM48,AT48*AQ48,0) -> 0 | AW48: 0 | AX48: 0 | BA48: FALSE
X49: 8 | AM49: FALSE | AN49: Electrician | AO49: Electrician | AP49: ='Labor Costs'!D64 -> Add Circuit | AS49: ='Materials Costs'!N59 -> 15.98 | AT49: ='Labor Costs'!F64 -> 150 | AU49: =IF(AM49,AS49,0) -> 0 | AV49: =IF(AM49,AT49,0) -> 0 | AW49: 0 | AX49: 0 | BA49: FALSE
X50: 9 | AM50: FALSE | AN50: Electrician | AO50: Electrician | AP50: ='Materials Costs'!C62 -> Ceiling Fan | AS50: ='Materials Costs'!N62 -> 44.97 | AT50: ='Labor Costs'!F65 -> 125 | AU50: =IF(AM50,AS50,0) -> 0 | AV50: =IF(AM50,AT50,0) -> 0 | AW50: 0 | AX50: 0 | BA50: FALSE
AM51: FALSE | AN51: Electrician | AO51: Electrician | AP51: ='Materials Costs'!C63 -> Lighting Fixture | AS51: ='Materials Costs'!N63 -> 24.97 | AT51: ='Labor Costs'!F66 -> 95 | AU51: =IF(AM51,AS51,0) -> 0 | AV51: =IF(AM51,AT51,0) -> 0 | AW51: 0 | AX51: 0 | BA51: FALSE
AM52: FALSE | AN52: Electrician | AO52: Electrician | AP52: ='Materials Costs'!C64 -> Wire Cable Outlet | AS52: ='Materials Costs'!N64 -> 29.97 | AT52: ='Labor Costs'!F67 -> 100 | AU52: =IF(AM52,AS52,0) -> 0 | AV52: =IF(AM52,AT52,0) -> 0 | AW52: 0 | AX52: 0 | BA52: FALSE
AM53: =IF(AQ53>0,TRUE,FALSE) -> FALSE | AN53: Electrician | AO53: Electrician | AP53: ='Materials Costs'!C65 -> Grounded Outlet | AQ53: =AI31 -> 0 | AS53: ='Materials Costs'!N65 -> 1.19 | AT53: ='Labor Costs'!F68 -> 50 | AU53: =AQ53*AS53 -> 0 | AV53: =AQ53*AT53 -> 0 | AW53: 0 | AX53: 0 | BA53: FALSE
AM54: =IF(AQ54>0,TRUE,FALSE) -> FALSE | AN54: Electrician | AO54: Electrician | AP54: ='Materials Costs'!C66 -> Wall Switch | AQ54: =AI33 -> 0 | AS54: ='Materials Costs'!N66 -> 1.29 | AT54: ='Labor Costs'!F69 -> 50 | AU54: =AQ54*AS54 -> 0 | AV54: =AQ54*AT54 -> 0 | AW54: 0 | AX54: 0 | BA54: FALSE
AM55: =IF(AQ55>0,TRUE,FALSE) -> FALSE | AN55: Demolition | AO55: Demolition | AP55: ='Labor Costs'!D114 -> Demolition Hours | AQ55: =AI36 -> 0 | AT55: ='Labor Costs'!F114 -> 20 | AU55: 0 | AV55: =AQ55*AT55 -> 0 | AW55: 0 | AX55: 0 | BA55: FALSE
AM56: TRUE | AO56: Contingency | AP56: Contingency | AW56: =AY56*0.5 -> 0 | AX56: =AY56*0.5 -> 0 | AY56: =IF(AM57,(AY3+AZ3)*'Offer Calculator'!U23,U4) -> 0
AM57: TRUE
AK65: TRUE

Sheet Dining Room
P1: Dining Room | AS1: Each | AU1: Extended | AW1: Region Adjustment | AY1: Total
D2: Estimated Labor & Material Costs | AM2: Include? | AN2: Category | AO2: Contractor | AP2: Description | AQ2: Amount | AR2: Measure | AS2: Material | AT2: Labor | AU2: Material | AV2: Labor | AW2: Material | AX2: Labor | AY2: Material | AZ2: Labor | BA2: DIY
P3: Contingency for This Room | AY3: =SUM(AW5:AW55) -> 0 | AZ3: =SUM(AX5:AX55) -> 0
E4: Windows | L4: =SUM(AW5:AW11)+SUM(AX5:AX11)+AW12+AX12 -> 0 | Q4: Standard | S4: or | T4: $ | U4: 0 | W4: Room dimensions (ft): | AD4: Width | AF4: 0 | AG4: Depth | AI4: 0 | AM4: 1 | AN4: Windows & Doors | BA4: FALSE
AM5: =IF($AM$4=1,TRUE,FALSE) -> TRUE | AN5: Windows & Doors | AP5: No Windows | AQ5: =$X$7 -> 0 | AS5: 0 | AT5: 0 | AU5: =IF(AM5,AQ5*AS5,0) -> 0 | AW5: =ROUND(AU5*(COL/100),2) -> 0 | AX5: =IF(BA5,0,ROUND(AV5*(COL/100),2)) -> 0 | BA5: =IF($BA$4,TRUE,FALSE) -> FALSE
E6: Blinds | L6: =SUM(AW29:AW31)+SUM(AX29:AX31)+AW32+AX32 -> 0 | P6: DIY | Q6: Replace Windows | AA6: DIY | AB6: Replace Blinds | AM6: =IF($AM$4=2,TRUE,FALSE) -> FALSE | AN6: Windows & Doors | AO6: Windows & Doors | AP6: ='Materials Costs'!C100 -> 28 x 38 Double Hung | AQ6: 0 | AS6: ='Materials Costs'!N100 -> 124 | AT6: ='Labor Costs'!$F$44 -> 125 | AU6: 0 | AV6: =IF(AM6,AQ6*AT6,0) -> 0 | AW6: 0 | AX6: 0 | BA6: =IF($BA$4,TRUE,FALSE) -> FALSE
X7: 0 | AI7: 0 | AM7: =IF($AM$4=3,TRUE,FALSE) -> FALSE | AN7: Windows & Doors | AO7: Windows & Doors | AP7: ='Materials Costs'!C101 -> 28 x 54 Double Hung | AQ7: 0 | AS7: ='Materials Costs'!N101 -> 134 | AT7: ='Labor Costs'!$F$44 -> 125 | AU7: 0 | AV7: 0 | AW7: 0 | AX7: 0 | BA7: FALSE
E8: Walls | L8: =SUM(AW13:AW16)+SUM(AX13:AX16) -> 0 | AM8: =IF($AM$4=4,TRUE,FALSE) -> FALSE | AN8: Windows & Doors | AO8: Windows & Doors | AP8: ='Materials Costs'!C102 -> 32 x 38 Double Hung | AQ8: 0 | AS8: ='Materials Costs'!N102 -> 147 | AT8: ='Labor Costs'!$F$44 -> 125 | AU8: 0 | AV8: 0 | AW8: 0 | AX8: 0 | BA8: FALSE
Q9: Picture Window | AB9: Picture Window Blind | AM9: =IF($AM$4=5,TRUE,FALSE) -> FALSE | AN9: Windows & Doors | AO9: Windows & Doors | AP9: ='Materials Costs'!C103 -> 32 x 54 Double Hung | AQ9: 0 | AS9: ='Materials Costs'!N103 -> 155 | AT9: ='Labor Costs'!$F$44 -> 125 | AU9: 0 | AV9: 0 | AW9: 0 | AX9: 0 | BA9: FALSE
E10: Floors | L10: =SUM(AW17:AW22)+SUM(AX17:AX22) -> 0 | AM10: =IF($AM$4=6,TRUE,FALSE) -> FALSE | AN10: Windows & Doors | AO10: Windows & Doors | AP10: ='Materials Costs'!C104 -> 36 x 38 Double Hung | AQ10: 0 | AS10: ='Materials Costs'!N104 -> 134 | AT10: ='Labor Costs'!$F$44 -> 125 | AU10: 0 | AV10: 0 | AW10: 0 | AX10: 0 | BA10: FALSE
AM11: =IF($AM$4=7,TRUE,FALSE) -> FALSE | AN11: Windows & Doors | AO11: Windows & Doors | AP11: ='Materials Costs'!C105 -> 36 x 54 Double Hung | AQ11: 0 | AS11: ='Materials Costs'!N105 -> 167 | AT11: ='Labor Costs'!$F$44 -> 125 | AU11: 0 | AV11: 0 | AW11: 0 | AX11: 0 | BA11: FALSE
E12: Door | L12: =SUM(AW34:AW38)+SUM(AX34:AX38)+AW44+AX44+AW48+AX48+SUM(AW41:AW43)+SUM(AX41:AX43) -> 0 | P12: DIY | Q12: Walls & Floors | AA12: DIY | AB12: Doors & Closet | AM12: FALSE | AN12: Windows & Doors | AO12: Windows & Doors | AP12: ='Materials Costs'!C106 -> Picture Window | AQ12: 1 | AS12: ='Materials Costs'!N106 -> 790.7 | AT12: ='Labor Costs'!F45 -> 200 | AU12: 0 | AV12: 0 | AW12: 0 | AX12: 0 | BA12: FALSE
Q13: =AP13 -> Hang & Finish Drywall | AB13: Replace Patio Doors | AM13: FALSE | AN13: Drywall | AO13: Drywall | AP13: Hang & Finish Drywall | AQ13: =(8*$AF$4)*2+(8*$AI$4)*2 -> 0 | AR13: sq ft | AS13: ='Materials Costs'!N5+'Materials Costs'!N6 -> 0.348825 | AT13: ='Labor Costs'!F5+'Labor Costs'!F6 -> 2.45 | AU13: =IF(AM13,AQ13*AS13,0) -> 0 | AV13: =IF(AM13,AQ13*AT13,0) -> 0 | AW13: 0 | AX13: 0 | BA13: FALSE
E14: Closet | L14: =SUM(AW45:AW47)+SUM(AX45:AX47) -> 0 | Q14: =AP14 -> Remove Wallpaper | AM14: FALSE | AN14: General | AO14: General | AP14: Remove Wallpaper | AQ14: =(8*$AF$4)*2+(8*$AI$4)*2 -> 0 | AR14: sq ft | AS14: 0 | AT14: ='Labor Costs'!F7 -> 1 | AU14: =IF(AM14,AQ14*AS14,0) -> 0 | AV14: =IF(AM14,AQ14*AT14,0) -> 0 | AW14: =ROUND(AU14*(COL/100),2) -> 0 | AX14: 0 | BA14: FALSE
Q15: =AP15 -> Prime Walls | AB15: (use Picture Window Blind if needed) | AM15: FALSE | AN15: Painter | AO15: Painter | AP15: Prime Walls | AQ15: =(8*$AF$4)*2+(8*$AI$4)*2 -> 0 | AR15: sq ft | AS15: ='Materials Costs'!N9 -> 0.04245 | AT15: ='Labor Costs'!F9 -> 0.4 | AU15: =IF(AM15,AQ15*AS15,0) -> 0 | AV15: =IF(AM15,AQ15*AT15,0) -> 0 | AW15: =ROUND(AU15*(COL/100),2) -> 0 | AX15: 0 | BA15: FALSE
E16: Add Circuit | L16: =AW49+AX49 -> 0 | Q16: =AP16 -> Paint Walls | AM16: FALSE | AN16: Painter | AO16: Painter | AP16: Paint Walls | AQ16: =(8*$AF$4)*2+(8*$AI$4)*2 -> 0 | AR16: sq ft | AS16: ='Materials Costs'!N8 -> 0.11485 | AT16: ='Labor Costs'!F8 -> 0.65 | AU16: =IF(AM16,AQ16*AS16,0) -> 0 | AV16: =IF(AM16,AQ16*AT16,0) -> 0 | AW16: 0 | AX16: 0 | BA16: FALSE
Q17: Carpet | AB17: =AP44 -> Exterior Door Lockset
E18: Ceiling Fan & Light Fixture | L18: =AW50+AX50+AW51+AX51 -> 0 | Q18: Install Engineered Hardwood | AB18: =AP45 -> Single Closet Door | AM18: FALSE | AN18: General | AO18: General | AP18: Replace and Paint Baseboards | AQ18: =(AF4*2)+(AI4*2) -> 0 | AR18: ln ft | AS18: ='Materials Costs'!N19+'Materials Costs'!N20 -> 0.216175 | AT18: ='Labor Costs'!F17 -> 2.77 | AU18: =IF(AM18,AQ18*AS18,0) -> 0 | AV18: =IF(AM18,AQ18*AT18,0) -> 0 | AW18: 0 | AX18: 0 | BA18: FALSE
Q19: Refinish Hardwood | AB19: =AP46 -> Double Closet Door | AM19: FALSE | AN19: Flooring | AO19: Flooring | AP19: Engineered Hardwood Flooring | AQ19: =AF4*AI4 -> 0 | AR19: sq ft | AS19: ='Materials Costs'!N16 -> 2.89 | AT19: ='Labor Costs'!F18 -> 3 | AU19: =IF(AM19,AQ19*AS19,0) -> 0 | AV19: =IF(AM19,AQ19*AT19,0) -> 0 | AW19: 0 | AX19: 0 | BA19: FALSE
E20: Cable Outlet | L20: =AW52+AX52 -> 0 | Q20: =AP18 -> Replace and Paint Baseboards | AB20: =AP47 -> Paint Closet | AM20: FALSE | AN20: Flooring | AO20: Flooring | AP20: Carpet | AQ20: =((AF4*AI4)*1.15)/9 -> 0 | AR20: yards | AS20: ='Materials Costs'!N17+'Materials Costs'!N18 -> 18 | AT20: ='Labor Costs'!F19 -> 5 | AU20: =IF(AM20,AQ20*AS20,0) -> 0 | AV20: =IF(AM20,AQ20*AT20,0) -> 0 | AW20: 0 | AX20: 0 | BA20: FALSE
AB21: =AP48 -> Replace Window & Door Moulding | AM21: FALSE | AN21: Flooring | AO21: Flooring | AP21: Refinish Hardwood Floor | AQ21: =AF4*AI4 -> 0 | AR21: sq ft | AS21: 0 | AT21: ='Labor Costs'!F20 -> 3.5 | AU21: =IF(AM21,AQ21*AS21,0) -> 0 | AV21: =IF(AM21,AQ21*AT21,0) -> 0 | AW21: 0 | AX21: 0 | BA21: FALSE
E22: Outlets and Switches | L22: =AW53+AX53+AW54+AX54 -> 0 | Q22: =AP22 -> Replace Rotted Floor | X22: 0 | AM22: =IF(AU22>0,TRUE,FALSE) -> FALSE | AN22: Flooring | AO22: Flooring | AP22: Replace Rotted Floor | AQ22: =X22 -> 0 | AR22: sq ft | AS22: ='Materials Costs'!N21 -> 0.7671875 | AT22: ='Labor Costs'!F21 -> 2.5 | AU22: =AQ22*AS22 -> 0 | AV22: =AQ22*AT22 -> 0 | AW22: 0 | AX22: 0 | BA22: FALSE
AM23: FALSE | AN23: Fireplace | AO23: Fireplace | AP23: ='Labor Costs'!D60 -> Inspect and Clean Chimney | AQ23: 1 | AS23: 0 | AT23: ='Labor Costs'!F60 -> 150 | AU23: =IF(AM23,AS23*AQ23,0) -> 0 | AV23: =IF(AM23,AT23*AQ23,0) -> 0 | AW23: 0 | AX23: 0 | BA23: FALSE
E24: Demolition | L24: =AX55 -> 0 | AM24: FALSE | AN24: Fireplace | AO24: Fireplace | AP24: Gas Insert and Logs | AQ24: 1 | AS24: ='Materials Costs'!N94+'Materials Costs'!N95 -> 552.78 | AT24: ='Labor Costs'!F61 -> 85 | AU24: 0 | AV24: 0 | AW24: 0 | AX24: 0 | BA24: FALSE
AM25: FALSE | AN25: Fireplace | AO25: Fireplace | AP25: ='Materials Costs'!C96 -> Fireplace Screen | AQ25: 1 | AS25: ='Materials Costs'!N96 -> 77.25 | AT25: 0 | AU25: 0 | AV25: 0 | AW25: 0 | AX25: 0 | BA25: FALSE
E26: Fireplace | L26: =SUM(AW23:AW26)+SUM(AX23:AX26) -> 0 | AA26: DIY | AB26: Electrical & Demolition | AM26: FALSE | AN26: Fireplace | AO26: Fireplace | AP26: ='Materials Costs'!C97 -> Fireplace Mantel | AQ26: 1 | AS26: ='Materials Costs'!N97 -> 281.31 | AT26: ='Labor Costs'!F62 -> 175 | AU26: 0 | AV26: 0 | AW26: 0 | AX26: 0 | BA26: FALSE
AB27: =AP49 -> Add Circuit | AM27: 1 | AN27: General | AU27: 0 | AV27: 0 | AW27: 0 | AX27: 0
AB28: =AP50 -> Ceiling Fan | AM28: =IF($AM$27=1,TRUE,FALSE) -> TRUE | AN28: General | AP28: No Blinds | AQ28: =$AI$7 -> 0 | AU28: 0 | AV28: 0 | AW28: 0 | AX28: 0 | BA28: FALSE
E29: Contingency Applied to This Room | L29: =AY56 -> 0 | AB29: =AP51 -> Dining Room Chandelier | AM29: =IF($AM$27=2,TRUE,FALSE) -> FALSE | AN29: General | AO29: General | AP29: ='Materials Costs'!C108 -> 28 inch wide blinds | AQ29: =$AI$7 -> 0 | AS29: ='Materials Costs'!N108 -> 6.97 | AT29: ='Labor Costs'!$F$47 -> 45 | AU29: =IF(AM29,AS29*AQ29,0) -> 0 | AV29: =IF(AM29,AT29*AQ29,0) -> 0 | AW29: 0 | AX29: 0 | BA29: =IF(BA28,TRUE,FALSE) -> FALSE
E30: Estimated Total Labor Cost This Room | L30: =AZ3 -> 0 | AB30: =AP52 -> Wire Cable Outlet | AM30: =IF($AM$27=3,TRUE,FALSE) -> FALSE | AN30: General | AO30: General | AP30: ='Materials Costs'!C109 -> 32 inch wide blinds | AQ30: =$AI$7 -> 0 | AS30: ='Materials Costs'!N109 -> 8.47 | AT30: ='Labor Costs'!$F$47 -> 45 | AU30: =IF(AM30,AS30*AQ30,0) -> 0 | AV30: =IF(AM30,AT30*AQ30,0) -> 0 | AW30: 0 | AX30: 0 | BA30: =IF(BA29,TRUE,FALSE) -> FALSE
E31: Estimated Total Material Cost This Room | L31: =AY3 -> 0 | AB31: =AP53 -> Grounded Outlet | AI31: 0 | AM31: =IF($AM$27=4,TRUE,FALSE) -> FALSE | AN31: General | AO31: General | AP31: ='Materials Costs'!C110 -> 36 inch wide blinds | AQ31: =$AI$7 -> 0 | AS31: ='Materials Costs'!N110 -> 9.97 | AT31: ='Labor Costs'!$F$47 -> 45 | AU31: =IF(AM31,AS31*AQ31,0) -> 0 | AV31: =IF(AM31,AT31*AQ31,0) -> 0 | AW31: 0 | AX31: 0 | BA31: =IF(BA30,TRUE,FALSE) -> FALSE
E32: Total Estimated Room Repair Cost | L32: =SUM(L29:M31) -> 0 | AM32: FALSE | AN32: General | AO32: General | AP32: ='Materials Costs'!C111 -> Picture Window Blinds | AQ32: 1 | AS32: ='Materials Costs'!N111 -> 53.97 | AT32: ='Labor Costs'!F48 -> 50 | AU32: =IF(AM32,AS32*AQ32,0) -> 0 | AV32: =IF(AM32,AT32*AQ32,0) -> 0 | AW32: 0 | AX32: 0 | BA32: FALSE
AB33: =AP54 -> Wall Switch | AI33: 0 | AM33: 1 | AN33: Windows & Doors | AU33: =IF(AM33,AS33,0) -> 0 | AV33: =IF(AM33,AT33,0) -> 0 | AW33: 0 | AX33: 0
AM34: =IF(AM33=1,TRUE,FALSE) -> TRUE | AN34: Windows & Doors | AP34: No Doors | AS34: 0 | AT34: 0 | AU34: 0 | AV34: 0 | AW34: 0 | AX34: 0 | BA34: FALSE
E35: Total Estimated Costs for Entire House | L35: ='Offer Calculator'!Z20+'Offer Calculator'!Z23 -> 0 | AM35: =IF(AM33=2,TRUE,FALSE) -> FALSE | AN35: Windows & Doors | AO35: Windows & Doors | AP35: ='Materials Costs'!C89 -> 60 inch Sliding Patio Doors | AS35: ='Materials Costs'!N89 -> 760 | AT35: ='Labor Costs'!$F$49 -> 200 | AU35: 0 | AV35: 0 | AW35: 0 | AX35: 0 | BA35: =IF($BA$34,TRUE,FALSE) -> FALSE
AB36: =AP55 -> Demolition Hours | AI36: 0 | AM36: =IF(AM33=3,TRUE,FALSE) -> FALSE | AN36: Windows & Doors | AO36: Windows & Doors | AP36: ='Materials Costs'!C90 -> 72 inch Sliding Patio Doors | AS36: ='Materials Costs'!N90 -> 578 | AT36: ='Labor Costs'!$F$49 -> 200 | AU36: 0 | AV36: 0 | AW36: 0 | AX36: 0 | BA36: =IF($BA$34,TRUE,FALSE) -> FALSE
AM37: =IF(AM33=4,TRUE,FALSE) -> FALSE | AN37: Windows & Doors | AO37: Windows & Doors | AP37: ='Materials Costs'!C91 -> 60 inch French Door | AS37: ='Materials Costs'!N91 -> 877.09 | AT37: ='Labor Costs'!$F$49 -> 200 | AU37: 0 | AV37: 0 | AW37: 0 | AX37: 0 | BA37: =IF($BA$34,TRUE,FALSE) -> FALSE
AM38: =IF(AM33=5,TRUE,FALSE) -> FALSE | AN38: Windows & Doors | AO38: Windows & Doors | AP38: ='Materials Costs'!C92 -> 72 inch French Door | AS38: ='Materials Costs'!N92 -> 877.09 | AT38: ='Labor Costs'!F50 -> 250 | AU38: 0 | AV38: 0 | AW38: 0 | AX38: 0 | BA38: =IF($BA$34,TRUE,FALSE) -> FALSE
AM39: 1 | AN39: Windows & Doors | BA39: FALSE
E40: TYPE | J40: MATERIALS | L40: LABOR | AM40: =IF($AM$39=1,TRUE,FALSE) -> TRUE | AN40: Windows & Doors | AP40: No Patio Door | AS40: 0 | AT40: 0 | AU40: 0 | AV40: 0 | AW40: 0 | AX40: 0 | BA40: =IF($BA$39,TRUE,FALSE) -> FALSE
E41: DEMOLITION | L41: =AX55 -> 0 | X41: 0 | AM41: =IF($AM$39=2,TRUE,FALSE) -> FALSE | AN41: Windows & Doors | AO41: Windows & Doors | AP41: ='Materials Costs'!C82 -> 30 inch Storm Door | AS41: ='Materials Costs'!N82 -> 318.99 | AT41: ='Labor Costs'!$F$53 -> 100 | AU41: 0 | AV41: 0 | AW41: 0 | AX41: 0 | BA41: =IF($BA$39,TRUE,FALSE) -> FALSE
E42: DRYWALL | J42: =AW13 -> 0 | L42: =AX13 -> 0 | X42: 1 | AM42: =IF($AM$39=3,TRUE,FALSE) -> FALSE | AN42: Windows & Doors | AO42: Windows & Doors | AP42: ='Materials Costs'!C83 -> 32 inch Storm Door | AS42: ='Materials Costs'!N83 -> 99.98 | AT42: ='Labor Costs'!$F$53 -> 100 | AU42: 0 | AV42: 0 | AW42: 0 | AX42: 0 | BA42: =IF($BA$39,TRUE,FALSE) -> FALSE
E43: ELECTRICIAN | J43: =SUM(AW49:AW54) -> 0 | L43: =SUM(AX49:AX54) -> 0 | X43: 2 | AM43: =IF($AM$39=4,TRUE,FALSE) -> FALSE | AN43: Windows & Doors | AO43: Windows & Doors | AP43: ='Materials Costs'!C84 -> 36 inch Storm Door | AS43: ='Materials Costs'!N84 -> 154 | AT43: ='Labor Costs'!$F$53 -> 100 | AU43: 0 | AV43: 0 | AW43: 0 | AX43: 0 | BA43: =IF($BA$39,TRUE,FALSE) -> FALSE
E44: FIREPLACE | J44: =SUM(AW23:AW26) -> 0 | L44: =SUM(AX23:AX26) -> 0 | X44: 3 | AM44: FALSE | AN44: General | AO44: General | AP44: ='Materials Costs'!C88 -> Exterior Door Lockset | AS44: ='Materials Costs'!N88 -> 82 | AT44: ='Labor Costs'!F51 -> 25 | AU44: 0 | AV44: 0 | AW44: 0 | AX44: 0 | BA44: FALSE
E45: FLOORING | J45: =SUM(AW19:AW22) -> 0 | L45: =SUM(AX19:AX22) -> 0 | X45: 4 | AM45: FALSE | AN45: General | AO45: General | AP45: ='Materials Costs'!C74 -> Single Closet Door | AS45: ='Materials Costs'!N74 -> 165.2 | AT45: ='Labor Costs'!F54 -> 100 | AU45: 0 | AV45: 0 | AW45: 0 | AX45: 0 | BA45: FALSE
E46: GENERAL | J46: =AW14+SUM(AW28:AW32)+SUM(AW44:AW46)+AW48 -> 0 | L46: =AX14+SUM(AX28:AX32)+SUM(AX44:AX46)+AX48 -> 0 | X46: 5 | AM46: FALSE | AN46: General | AO46: General | AP46: ='Materials Costs'!C75 -> Double Closet Door | AS46: ='Materials Costs'!N75 -> 109 | AT46: ='Labor Costs'!F55 -> 150 | AU46: 0 | AV46: 0 | AW46: 0 | AX46: 0 | BA46: FALSE
E47: PAINTER | J47: =SUM(AW15:AW16)+AW47 -> 0 | L47: =SUM(AX15:AX16)+AX47 -> 0 | X47: 6 | AM47: FALSE | AN47: Painter | AO47: Painter | AP47: Paint Closet | AS47: ='Materials Costs'!N76 -> 22.97 | AT47: ='Labor Costs'!F56 -> 125 | AU47: 0 | AV47: 0 | AW47: 0 | AX47: 0 | BA47: FALSE
E48: WINDOWS & DOORS | J48: =SUM(AW5:AW12)+SUM(AW34:AW43) -> 0 | L48: =SUM(AX5:AX12)+SUM(AX33:AX43) -> 0 | X48: 7 | AM48: FALSE | AN48: General | AO48: General | AP48: Replace Window & Door Moulding | AQ48: =36 -> 36 | AR48: ln ft | AS48: ='Materials Costs'!N77 -> 0.4725 | AT48: ='Labor Costs'!F58 -> 2.77 | AU48: =IF(AM48,AS48*AQ48,0) -> 0 | AV48: =IF(AM48,AT48*AQ48,0) -> 0 | AW48: 0 | AX48: 0 | BA48: FALSE
X49: 8 | AM49: FALSE | AN49: Electrician | AO49: Electrician | AP49: ='Labor Costs'!D64 -> Add Circuit | AS49: ='Materials Costs'!N59 -> 15.98 | AT49: ='Labor Costs'!F64 -> 150 | AU49: =IF(AM49,AS49,0) -> 0 | AV49: =IF(AM49,AT49,0) -> 0 | AW49: 0 | AX49: 0 | BA49: FALSE
X50: 9 | AM50: FALSE | AN50: Electrician | AO50: Electrician | AP50: ='Materials Costs'!C62 -> Ceiling Fan | AS50: ='Materials Costs'!N62 -> 44.97 | AT50: ='Labor Costs'!F65 -> 125 | AU50: =IF(AM50,AS50,0) -> 0 | AV50: =IF(AM50,AT50,0) -> 0 | AW50: 0 | AX50: 0 | BA50: FALSE
AM51: FALSE | AN51: Electrician | AO51: Electrician | AP51: ='Materials Costs'!C67 -> Dining Room Chandelier | AS51: ='Materials Costs'!N67 -> 134 | AT51: ='Labor Costs'!F66 -> 95 | AU51: =IF(AM51,AS51,0) -> 0 | AV51: =IF(AM51,AT51,0) -> 0 | AW51: 0 | AX51: 0 | BA51: FALSE
AM52: FALSE | AN52: Electrician | AO52: Electrician | AP52: ='Materials Costs'!C64 -> Wire Cable Outlet | AS52: ='Materials Costs'!N64 -> 29.97 | AT52: ='Labor Costs'!F67 -> 100 | AU52: =IF(AM52,AS52,0) -> 0 | AV52: =IF(AM52,AT52,0) -> 0 | AW52: 0 | AX52: 0 | BA52: FALSE
AM53: =IF(AQ53>0,TRUE,FALSE) -> FALSE | AN53: Electrician | AO53: Electrician | AP53: ='Materials Costs'!C65 -> Grounded Outlet | AQ53: =AI31 -> 0 | AS53: ='Materials Costs'!N65 -> 1.19 | AT53: ='Labor Costs'!F68 -> 50 | AU53: =AQ53*AS53 -> 0 | AV53: =AQ53*AT53 -> 0 | AW53: 0 | AX53: 0 | BA53: FALSE
AM54: =IF(AQ54>0,TRUE,FALSE) -> FALSE | AN54: Electrician | AO54: Electrician | AP54: ='Materials Costs'!C66 -> Wall Switch | AQ54: =AI33 -> 0 | AS54: ='Materials Costs'!N66 -> 1.29 | AT54: ='Labor Costs'!F69 -> 50 | AU54: =AQ54*AS54 -> 0 | AV54: =AQ54*AT54 -> 0 | AW54: 0 | AX54: 0 | BA54: FALSE
AM55: =IF(AQ55>0,TRUE,FALSE) -> FALSE | AN55: Demolition | AO55: Demolition | AP55: ='Labor Costs'!D114 -> Demolition Hours | AQ55: =AI36 -> 0 | AT55: ='Labor Costs'!F114 -> 20 | AU55: 0 | AV55: =AQ55*AT55 -> 0 | AW55: 0 | AX55: 0 | BA55: TRUE
AM56: TRUE | AN56: Contingency | AO56: Contingency | AP56: Contingency | AW56: =AY56*0.5 -> 0 | AX56: =AY56*0.5 -> 0 | AY56: =IF(AM57,(AZ3+AY3)*'Offer Calculator'!U23,U4) -> 0
AM57: TRUE
AK65: TRUE

Sheet Kitchen
P1: Kitchen | AS1: Each | AU1: Extended | AW1: Region Adjustment | AY1: Total
D2: Estimated Labor & Material Costs | AM2: Include? | AN2: Category | AO2: Contractor | AP2: Description | AQ2: Amount | AR2: Measure | AS2: Material | AT2: Labor | AU2: Material | AV2: Labor | AW2: Material | AX2: Labor | AY2: Material | AZ2: Labor | BA2: DIY
P3: Contingency for This Room | AY3: =SUM(AW5:AW74) -> 0 | AZ3: =SUM(AX5:AX74) -> 0
E4: Windows | L4: =SUM(AW5:AW11)+SUM(AX5:AX11)+AW12+AX12 -> 0 | Q4: Standard | S4: or | T4: $ | U4: 0 | W4: Room dimensions (ft): | AD4: Width | AF4: 0 | AG4: Depth | AI4: 0 | AM4: 7 | AN4: Windows & Doors | BA4: FALSE
AM5: =IF($AM$4=1,TRUE,FALSE) -> FALSE | AN5: Windows & Doors | AP5: No Windows | AQ5: =$X$7 -> 0 | AS5: 0 | AT5: 0 | AU5: =IF(AM5,AQ5*AS5,0) -> 0 | AW5: =ROUND(AU5*(COL/100),2) -> 0 | AX5: =IF(BA5,0,ROUND(AV5*(COL/100),2)) -> 0 | BA5: =IF($BA$4,TRUE,FALSE) -> FALSE
E6: Blinds | L6: =SUM(AW43:AW45)+SUM(AX43:AX45)+AW46+AX46 -> 0 | P6: DIY | Q6: Replace Windows | AA6: DIY | AB6: Replace Blinds | AM6: =IF($AM$4=2,TRUE,FALSE) -> FALSE | AN6: Windows & Doors | AO6: Windows & Doors | AP6: ='Materials Costs'!C100 -> 28 x 38 Double Hung | AQ6: 0 | AS6: ='Materials Costs'!N100 -> 124 | AT6: ='Labor Costs'!$F$44 -> 125 | AU6: 0 | AV6: =IF(AM6,AQ6*AT6,0) -> 0 | AW6: 0 | AX6: 0 | BA6: =IF($BA$4,TRUE,FALSE) -> FALSE
X7: 0 | AI7: 0 | AM7: =IF($AM$4=3,TRUE,FALSE) -> FALSE | AN7: Windows & Doors | AO7: Windows & Doors | AP7: ='Materials Costs'!C101 -> 28 x 54 Double Hung | AQ7: 0 | AS7: ='Materials Costs'!N101 -> 134 | AT7: ='Labor Costs'!$F$44 -> 125 | AU7: 0 | AV7: 0 | AW7: 0 | AX7: 0 | BA7: FALSE
E8: Walls | L8: =SUM(AW13:AW16)+SUM(AX13:AX16) -> 0 | AM8: =IF($AM$4=4,TRUE,FALSE) -> FALSE | AN8: Windows & Doors | AO8: Windows & Doors | AP8: ='Materials Costs'!C102 -> 32 x 38 Double Hung | AQ8: 0 | AS8: ='Materials Costs'!N102 -> 147 | AT8: ='Labor Costs'!$F$44 -> 125 | AU8: 0 | AV8: 0 | AW8: 0 | AX8: 0 | BA8: FALSE
Q9: Picture Window | AB9: Picture Window | AM9: =IF($AM$4=5,TRUE,FALSE) -> FALSE | AN9: Windows & Doors | AO9: Windows & Doors | AP9: ='Materials Costs'!C103 -> 32 x 54 Double Hung | AQ9: 0 | AS9: ='Materials Costs'!N103 -> 155 | AT9: ='Labor Costs'!$F$44 -> 125 | AU9: 0 | AV9: 0 | AW9: 0 | AX9: 0 | BA9: FALSE
E10: Floors | L10: =SUM(AW17:AW23)+SUM(AX17:AX23) -> 0 | AM10: =IF($AM$4=6,TRUE,FALSE) -> FALSE | AN10: Windows & Doors | AO10: Windows & Doors | AP10: ='Materials Costs'!C104 -> 36 x 38 Double Hung | AQ10: 0 | AS10: ='Materials Costs'!N104 -> 134 | AT10: ='Labor Costs'!$F$44 -> 125 | AU10: 0 | AV10: 0 | AW10: 0 | AX10: 0 | BA10: FALSE
Q11: Walls & Floors | AA11: DIY | AB11: Doors, Pantry, Appliances | AM11: =IF($AM$4=7,TRUE,FALSE) -> TRUE | AN11: Windows & Doors | AO11: Windows & Doors | AP11: ='Materials Costs'!C105 -> 36 x 54 Double Hung | AQ11: 0 | AS11: ='Materials Costs'!N105 -> 167 | AT11: ='Labor Costs'!$F$44 -> 125 | AU11: 0 | AV11: 0 | AW11: 0 | AX11: 0 | BA11: FALSE
E12: Patio or French Door | L12: =SUM(AW48:AW52)+SUM(AX48:AX52) -> 0 | P12: DIY | AB12: Replace Patio or French Door | AM12: FALSE | AN12: Windows & Doors | AO12: Windows & Doors | AP12: ='Materials Costs'!C106 -> Picture Window | AQ12: 1 | AS12: ='Materials Costs'!N106 -> 790.7 | AT12: ='Labor Costs'!F45 -> 200 | AU12: 0 | AV12: 0 | AW12: 0 | AX12: 0 | BA12: FALSE
Q13: =AP13 -> Hang & Finish Drywall | AM13: FALSE | AN13: Drywall | AO13: Drywall | AP13: Hang & Finish Drywall | AQ13: =(8*$AF$4)*2+(8*$AI$4)*2 -> 0 | AR13: sq ft | AS13: ='Materials Costs'!N5+'Materials Costs'!N6 -> 0.348825 | AT13: ='Labor Costs'!F5+'Labor Costs'!F6 -> 2.45 | AU13: =IF(AM13,AQ13*AS13,0) -> 0 | AV13: =IF(AM13,AQ13*AT13,0) -> 0 | AW13: 0 | AX13: 0 | BA13: FALSE
E14: Appliances | L14: =SUM(AW53:AW60) -> 0 | Q14: =AP14 -> Remove Wallpaper | AB14: =AP53 -> Range | AM14: FALSE | AN14: General Kitchen | AO14: General Kitchen | AP14: Remove Wallpaper | AQ14: =(8*$AF$4)*2+(8*$AI$4)*2 -> 0 | AR14: sq ft | AS14: 0 | AT14: ='Labor Costs'!F7 -> 1 | AU14: 0 | AV14: 0 | AW14: =ROUND(AU14*(COL/100),2) -> 0 | AX14: 0 | BA14: FALSE
Q15: =AP15 -> Prime Walls | AB15: Built In Oven | AM15: FALSE | AN15: Painter | AO15: Painter | AP15: Prime Walls | AQ15: =(8*$AF$4)*2+(8*$AI$4)*2 -> 0 | AR15: sq ft | AS15: ='Materials Costs'!N9 -> 0.04245 | AT15: ='Labor Costs'!F9 -> 0.4 | AU15: 0 | AV15: 0 | AW15: =ROUND(AU15*(COL/100),2) -> 0 | AX15: 0 | BA15: FALSE
E16: Pantry and Moulding | L16: =SUM(AW61:AW62)+SUM(AX61:AX62) -> 0 | Q16: =AP16 -> Paint Walls | AB16: Cooktop | AM16: FALSE | AN16: Painter | AO16: Painter | AP16: Paint Walls | AQ16: =(8*$AF$4)*2+(8*$AI$4)*2 -> 0 | AR16: sq ft | AS16: ='Materials Costs'!N8 -> 0.11485 | AT16: ='Labor Costs'!F8 -> 0.65 | AU16: 0 | AV16: 0 | AW16: 0 | AX16: 0 | BA16: FALSE
Q17: =AP20 -> Ceramic Tile | AB17: Built In Microwave | AM17: FALSE | AN17: Flooring | AO17: Flooring | AP17: ='Materials Costs'!C13 -> Subfloor (luan) | AQ17: =AF4*AI4 -> 0 | AR17: sq ft | AS17: ='Materials Costs'!O13 -> 0.436875 | AT17: ='Labor Costs'!G12 -> 0.4 | AU17: 0 | AV17: 0 | AW17: 0 | AX17: 0 | BA17: FALSE
E18: Cabinets | L18: =AW36+AW37+AX36+AX37+AW38+AX38+AW39+AX39+AW40+AX40 -> 0 | Q18: Install Engineered Hardwood | AB18: Refrigerator | AM18: FALSE | AN18: General Kitchen | AO18: General Kitchen | AP18: Replace and Paint Baseboards | AQ18: =(AF4*2)+(AI4*2) -> 0 | AR18: ln ft | AS18: ='Materials Costs'!N19+'Materials Costs'!N20 -> 0.216175 | AT18: ='Labor Costs'!F17 -> 2.77 | AU18: 0 | AV18: 0 | AW18: 0 | AX18: 0 | BA18: FALSE
Q19: Refinish Hardwood | AB19: Dishwasher | AM19: FALSE | AN19: Flooring | AO19: Flooring | AP19: Engineered Hardwood Flooring | AQ19: =AF4*AI4 -> 0 | AR19: sq ft | AS19: ='Materials Costs'!N16 -> 2.89 | AT19: ='Labor Costs'!F18 -> 3 | AU19: 0 | AV19: 0 | AW19: 0 | AX19: 0 | BA19: FALSE
E20: Countertops and Backsplash | L20: =SUM(AW26:AW29)+SUM(AX26:AX29)+SUM(AW32:AW35)+SUM(AX32:AX35) -> 0 | Q20: =AP22 -> Vinyl Flooring | AB20: Wine Cooler | AM20: FALSE | AN20: Flooring | AO20: Flooring | AP20: ='Materials Costs'!C14 -> Ceramic Tile | AQ20: =AF4*AI4 -> 0 | AR20: sq ft | AS20: ='Materials Costs'!N14+'Materials Costs'!N13 -> 2.296875 | AT20: ='Labor Costs'!F13+'Labor Costs'!F12 -> 3.9 | AU20: 0 | AV20: 0 | AW20: 0 | AX20: 0 | BA20: FALSE
Q21: =AP18 -> Replace and Paint Baseboards | AB21: Ice Maker | AM21: FALSE | AN21: Flooring | AO21: Flooring | AP21: Refinish Hardwood Floor | AQ21: =AF4*AI4 -> 0 | AR21: sq ft | AS21: 0 | AT21: ='Labor Costs'!F20 -> 3.5 | AU21: 0 | AV21: 0 | AW21: 0 | AX21: 0 | BA21: FALSE
E22: Electrical | L22: =SUM(AW63:AX69) -> 0 | R22: =AP17 -> Subfloor (luan) | AB22: Paint Pantry | AM22: FALSE | AN22: Flooring | AO22: Flooring | AP22: ='Materials Costs'!C15 -> Vinyl Flooring | AQ22: =AF4*AI4 -> 0 | AR22: sq ft | AS22: ='Materials Costs'!N15 -> 1.69 | AT22: ='Labor Costs'!F15 -> 1.25 | AU22: 0 | AV22: 0 | AW22: 0 | AX22: 0 | BA22: FALSE
Q23: =AP23 -> Replace Rotted Floor | X23: 0 | AB23: Replace Window & Door Moulding | AM23: =IF(AU23>0,TRUE,FALSE) -> FALSE | AN23: Flooring | AO23: Flooring | AP23: Replace Rotted Floor | AQ23: =X23 -> 0 | AR23: sq ft | AS23: ='Materials Costs'!N21 -> 0.7671875 | AT23: ='Labor Costs'!F21 -> 2.5 | AU23: =AQ23*AS23 -> 0 | AV23: =AQ23*AT23 -> 0 | AW23: 0 | AX23: 0 | BA23: FALSE
E24: Demolition | L24: =AX74 -> 0 | AM24: 5 | AN24: General Kitchen | AU24: =IF(AM24,AS24*AQ24,0) -> 0 | AV24: =IF(AM24,AT24*AQ24,0) -> 0 | AW24: 0 | AX24: 0 | BA24: FALSE
P25: DIY | Q25: Cabinets and Countertops | AA25: DIY | AB25: Electrical Plumbing & Demolition | AM25: =IF($AM$24=1,TRUE,FALSE) -> FALSE | AN25: General Kitchen | AP25: Don’t Replace Countertops | AU25: =IF(AM25,AS25*AQ25,0) -> 0 | AV25: =IF(AM25,AT25*AQ25,0) -> 0 | AW25: 0 | AX25: 0 | BA25: FALSE
E26: Plumbing | L26: =SUM(AW70:AX73) -> 0 | AB26: =AP63 -> Add Circuit | AM26: =IF($AM$24=2,TRUE,FALSE) -> FALSE | AN26: General Kitchen | AO26: General Kitchen | AP26: ='Materials Costs'!C122 -> Granite Countertops | AQ26: =$X$27 -> 0 | AR26: sq ft | AS26: ='Materials Costs'!N122 -> 45 | AT26: ='Labor Costs'!F72 -> 7 | AU26: =IF(AM26,AS26*AQ26,0) -> 0 | AV26: =IF(AM26,AT26*AQ26,0) -> 0 | AW26: 0 | AX26: 0 | BA26: =$BA$25 -> FALSE
X27: 0 | AB27: Ceiling Fan | AM27: =IF($AM$24=3,TRUE,FALSE) -> FALSE | AN27: General Kitchen | AO27: General Kitchen | AP27: ='Materials Costs'!C123 -> Corian Countertops | AQ27: =$X$27 -> 0 | AR27: sq ft | AS27: ='Materials Costs'!N123 -> 35 | AT27: ='Labor Costs'!F73 -> 6 | AU27: =IF(AM27,AS27*AQ27,0) -> 0 | AV27: =IF(AM27,AT27*AQ27,0) -> 0 | AW27: 0 | AX27: 0 | BA27: =$BA$25 -> FALSE
X28: 0 | AB28: Lighting Fixture | AM28: =IF($AM$24=4,TRUE,FALSE) -> FALSE | AN28: General Kitchen | AO28: General Kitchen | AP28: ='Materials Costs'!C124 -> Formica Countertops | AQ28: =$X$27 -> 0 | AR28: sq ft | AS28: ='Materials Costs'!N124 -> 12 | AT28: ='Labor Costs'!F74 -> 5 | AU28: =IF(AM28,AS28*AQ28,0) -> 0 | AV28: =IF(AM28,AT28*AQ28,0) -> 0 | AW28: 0 | AX28: 0 | BA28: =$BA$25 -> FALSE
E29: Contingency Applied to This Room | L29: =AY75 -> 0 | AB29: Wire Cable Outlet | AM29: =IF($AM$24=5,TRUE,FALSE) -> TRUE | AN29: General Kitchen | AO29: General Kitchen | AP29: ='Materials Costs'!C125 -> Tile Countertops | AQ29: =$X$27 -> 0 | AR29: sq ft | AS29: ='Materials Costs'!N125 -> 6.99 | AT29: ='Labor Costs'!F75 -> 5 | AU29: 0 | AV29: 0 | AW29: 0 | AX29: 0 | BA29: =$BA$25 -> FALSE
E30: Estimated Total Labor Cost This Room | L30: =AZ3 -> 0 | Q30: Upper Cabinets | X30: 0 | AB30: Grounded Outlet | AI30: 0 | AM30: 5 | AN30: General Kitchen | AU30: 0 | AV30: 0 | AW30: 0 | AX30: 0
E31: Estimated Total Material Cost This Room | L31: =AY3 -> 0 | Q31: Lower Cabinets | X31: 0 | AB31: Wall Switch | AI31: 0 | AM31: =IF($AM$30=1,TRUE,FALSE) -> FALSE | AN31: General Kitchen | AP31: No Backsplash | AU31: 0 | AV31: 0 | AW31: 0 | AX31: 0 | BA31: FALSE
E32: Total Estimated Room Repair Cost | L32: =SUM(L29:M31) -> 0 | AB32: Add Range Outlet | AM32: =IF($AM$30=2,TRUE,FALSE) -> FALSE | AN32: General Kitchen | AO32: General Kitchen | AP32: ='Materials Costs'!C126 -> Granite Backsplash | AQ32: =$X$28 -> 0 | AR32: sq ft | AS32: ='Materials Costs'!N126 -> 45 | AT32: ='Labor Costs'!$F$76 -> 6 | AU32: 0 | AV32: 0 | AW32: 0 | AX32: 0 | BA32: =$BA$31 -> FALSE
Q33: Cabinet Handles | X33: 0 | AB33: Sink | AM33: =IF($AM$30=3,TRUE,FALSE) -> FALSE | AN33: General Kitchen | AO33: General Kitchen | AP33: ='Materials Costs'!C127 -> Corian Backsplash | AQ33: =$X$28 -> 0 | AR33: sq ft | AS33: ='Materials Costs'!N127 -> 35 | AT33: ='Labor Costs'!$F$76 -> 6 | AU33: 0 | AV33: 0 | AW33: 0 | AX33: 0 | BA33: =$BA$31 -> FALSE
Q34: Paint Cabinets | X34: 0 | AB34: Faucet | AM34: =IF($AM$30=4,TRUE,FALSE) -> FALSE | AN34: General Kitchen | AO34: General Kitchen | AP34: ='Materials Costs'!C128 -> Formica Backsplash | AQ34: =$X$28 -> 0 | AR34: sq ft | AS34: ='Materials Costs'!N128 -> 12 | AT34: ='Labor Costs'!$F$76 -> 6 | AU34: 0 | AV34: 0 | AW34: 0 | AX34: 0 | BA34: =$BA$31 -> FALSE
E35: Total Estimated Costs for Entire House | L35: ='Offer Calculator'!Z20+'Offer Calculator'!Z23 -> 0 | AB35: Replumb Supply Lines and Drains | AM35: =IF($AM$30=5,TRUE,FALSE) -> TRUE | AN35: General Kitchen | AO35: General Kitchen | AP35: ='Materials Costs'!C129 -> Tile Backsplash | AQ35: =$X$28 -> 0 | AR35: sq ft | AS35: ='Materials Costs'!N129 -> 10.97 | AT35: ='Labor Costs'!$F$76 -> 6 | AU35: 0 | AV35: 0 | AW35: 0 | AX35: 0 | BA35: =$BA$31 -> FALSE
Q36: Range Hood | AB36: Disposal | AM36: =IF(AQ36>0,TRUE,FALSE) -> FALSE | AN36: General Kitchen | AO36: General Kitchen | AP36: Upper Cabinets | AQ36: =X30 -> 0 | AR36: ln ft | AS36: ='Materials Costs'!$N$130 -> 85 | AT36: ='Labor Costs'!$F$77 -> 50 | AU36: 0 | AV36: 0 | AW36: 0 | AX36: 0 | BA36: FALSE
AB37: =AP74 -> Demolition Hours | AI37: 0 | AM37: =IF(AQ37>0,TRUE,FALSE) -> FALSE | AN37: General Kitchen | AO37: General Kitchen | AP37: Lower Cabinets | AQ37: =X31 -> 0 | AR37: ln ft | AS37: ='Materials Costs'!$N$130 -> 85 | AT37: ='Labor Costs'!$F$77 -> 50 | AU37: 0 | AV37: 0 | AW37: 0 | AX37: 0 | BA37: FALSE
AM38: =IF(AQ38>0,TRUE,FALSE) -> FALSE | AN38: General Kitchen | AO38: General Kitchen | AP38: Cabinet Handles | AQ38: =X33 -> 0 | AS38: ='Materials Costs'!N131 -> 3.12 | AT38: ='Labor Costs'!F78 -> 10 | AU38: 0 | AV38: 0 | AW38: 0 | AX38: 0 | BA38: FALSE
AM39: =IF(AQ39>0,TRUE,FALSE) -> FALSE | AN39: Painter | AO39: Painter | AP39: Paint Cabinets | AQ39: =X34 -> 0 | AS39: ='Materials Costs'!N132 -> 10 | AT39: ='Labor Costs'!F79 -> 40 | AU39: 0 | AV39: 0 | AW39: 0 | AX39: 0 | BA39: FALSE
E40: TYPE | J40: MATERIALS | L40: LABOR | AM40: FALSE | AN40: General Kitchen | AO40: General Kitchen | AP40: Range Hood | AQ40: 1 | AS40: ='Materials Costs'!N133 -> 76.22 | AT40: ='Labor Costs'!F80 -> 50 | AU40: 0 | AV40: 0 | AW40: 0 | AX40: 0 | BA40: FALSE
E41: APPLIANCES | J41: =SUM(AW53:AW60) -> 0 | X41: 0 | AM41: 4 | AN41: General Kitchen | AU41: =IF(AM41,AS41*AQ41,0) -> 0 | AV41: =IF(AM41,AT41*AQ41,0) -> 0 | AW41: 0 | AX41: 0
E42: DEMOLITION | L42: =AX74 -> 0 | X42: 1 | AM42: =IF($AM$41=1,TRUE,FALSE) -> FALSE | AN42: General Kitchen | AP42: No Blinds | AQ42: =$AI$7 -> 0 | AU42: 0 | AV42: 0 | AW42: 0 | AX42: 0 | BA42: FALSE
E43: DRYWALL | J43: =AW13 -> 0 | L43: =AX13 -> 0 | X43: 2 | AM43: =IF($AM$41=2,TRUE,FALSE) -> FALSE | AN43: General Kitchen | AO43: General Kitchen | AP43: ='Materials Costs'!C108 -> 28 inch wide blinds | AQ43: =$AI$7 -> 0 | AS43: ='Materials Costs'!N108 -> 6.97 | AT43: ='Labor Costs'!$F$47 -> 45 | AU43: 0 | AV43: 0 | AW43: 0 | AX43: 0 | BA43: =IF(BA42,TRUE,FALSE) -> FALSE
E44: ELECTRICIAN | J44: =SUM(AW63:AW69) -> 0 | L44: =SUM(AX63:AX69) -> 0 | X44: 3 | AM44: =IF($AM$41=3,TRUE,FALSE) -> FALSE | AN44: General Kitchen | AO44: General Kitchen | AP44: ='Materials Costs'!C109 -> 32 inch wide blinds | AQ44: =$AI$7 -> 0 | AS44: ='Materials Costs'!N109 -> 8.47 | AT44: ='Labor Costs'!$F$47 -> 45 | AU44: 0 | AV44: 0 | AW44: 0 | AX44: 0 | BA44: =IF(BA43,TRUE,FALSE) -> FALSE
E45: FLOORING | J45: =SUM(AW19:AW23) -> 0 | L45: =SUM(AX19:AX23) -> 0 | X45: 4 | AM45: =IF($AM$41=4,TRUE,FALSE) -> TRUE | AN45: General Kitchen | AO45: General Kitchen | AP45: ='Materials Costs'!C110 -> 36 inch wide blinds | AQ45: =$AI$7 -> 0 | AS45: ='Materials Costs'!N110 -> 9.97 | AT45: ='Labor Costs'!$F$47 -> 45 | AU45: 0 | AV45: 0 | AW45: 0 | AX45: 0 | BA45: =IF(BA44,TRUE,FALSE) -> FALSE
E46: GENERAL KITCHEN | J46: =AW14+AW18+SUM(AW24:AW38)+SUM(AW40:AW46)+AW62+AW70 -> 0 | L46: =AX14+AX18+SUM(AX24:AX38)+SUM(AX40:AX46)+AX62+AX70 -> 0 | X46: 5 | AM46: FALSE | AN46: General Kitchen | AO46: General Kitchen | AP46: ='Materials Costs'!C111 -> Picture Window Blinds | AQ46: 1 | AS46: ='Materials Costs'!N111 -> 53.97 | AT46: ='Labor Costs'!F48 -> 50 | AU46: 0 | AV46: 0 | AW46: 0 | AX46: 0 | BA46: FALSE
E47: PAINTER | J47: =SUM(AW15:AW16)+AW39 -> 0 | L47: =SUM(AX15:AX16)+AX39 -> 0 | X47: 6 | AM47: 1 | AN47: Windows & Doors | AU47: =IF(AM47,AS47,0) -> 0 | AV47: =IF(AM47,AT47,0) -> 0 | AW47: 0 | AX47: 0
E48: PLUMBER | J48: =SUM(AW71:AW73) -> 0 | L48: =SUM(AX71:AX73) -> 0 | X48: 7 | AM48: =IF(AM47=1,TRUE,FALSE) -> TRUE | AN48: Windows & Doors | AP48: No Doors | AS48: 0 | AT48: 0 | AU48: 0 | AV48: 0 | AW48: 0 | AX48: 0 | BA48: FALSE
E49: WINDOWS & DOORS | J49: =SUM(AW5:AW12)+SUM(AW47:AW52) -> 0 | L49: =SUM(AX5:AX12)+SUM(AX47:AX52) -> 0 | X49: 8 | AM49: =IF(AM47=2,TRUE,FALSE) -> FALSE | AN49: Windows & Doors | AO49: Windows & Doors | AP49: ='Materials Costs'!C89 -> 60 inch Sliding Patio Doors | AS49: ='Materials Costs'!N89 -> 760 | AT49: ='Labor Costs'!$F$49 -> 200 | AU49: 0 | AV49: 0 | AW49: 0 | AX49: 0 | BA49: =IF($BA$48,TRUE,FALSE) -> FALSE
X50: 9 | AM50: =IF(AM47=3,TRUE,FALSE) -> FALSE | AN50: Windows & Doors | AO50: Windows & Doors | AP50: ='Materials Costs'!C90 -> 72 inch Sliding Patio Doors | AS50: ='Materials Costs'!N90 -> 578 | AT50: ='Labor Costs'!$F$49 -> 200 | AU50: 0 | AV50: 0 | AW50: 0 | AX50: 0 | BA50: =IF($BA$48,TRUE,FALSE) -> FALSE
X51: 10 | AM51: =IF(AM47=4,TRUE,FALSE) -> FALSE | AN51: Windows & Doors | AO51: Windows & Doors | AP51: ='Materials Costs'!C91 -> 60 inch French Door | AS51: ='Materials Costs'!N91 -> 877.09 | AT51: ='Labor Costs'!$F$49 -> 200 | AU51: 0 | AV51: 0 | AW51: 0 | AX51: 0 | BA51: =IF($BA$48,TRUE,FALSE) -> FALSE
X52: 11 | AM52: =IF(AM47=5,TRUE,FALSE) -> FALSE | AN52: Windows & Doors | AO52: Windows & Doors | AP52: ='Materials Costs'!C92 -> 72 inch French Door | AS52: ='Materials Costs'!N92 -> 877.09 | AT52: ='Labor Costs'!$F$50 -> 250 | AU52: 0 | AV52: 0 | AW52: 0 | AX52: 0 | BA52: =IF($BA$48,TRUE,FALSE) -> FALSE
X53: 12 | AM53: FALSE | AN53: Appliances | AP53: ='Materials Costs'!C113 -> Range | AS53: ='Materials Costs'!N113 -> 599 | AT53: 0 | AU53: 0 | AV53: 0 | AW53: 0 | AX53: 0
X54: 13 | AM54: FALSE | AN54: Appliances | AP54: ='Materials Costs'!C114 -> Built In Oven | AS54: ='Materials Costs'!N114 -> 999 | AT54: 0 | AU54: 0 | AV54: 0 | AW54: 0 | AX54: 0
X55: 14 | AM55: FALSE | AN55: Appliances | AP55: ='Materials Costs'!C115 -> Cooktop | AS55: ='Materials Costs'!N115 -> 599 | AT55: 0 | AU55: 0 | AV55: 0 | AW55: 0 | AX55: 0
X56: 15 | AM56: FALSE | AN56: Appliances | AP56: ='Materials Costs'!C116 -> Built In Microwave | AS56: ='Materials Costs'!N116 -> 329.99 | AT56: 0 | AU56: 0 | AV56: 0 | AW56: 0 | AX56: 0
X57: 16 | AM57: FALSE | AN57: Appliances | AP57: ='Materials Costs'!C117 -> Refrigerator | AS57: ='Materials Costs'!N117 -> 554.99 | AT57: 0 | AU57: 0 | AV57: 0 | AW57: 0 | AX57: 0
X58: 17 | AM58: FALSE | AN58: Appliances | AP58: ='Materials Costs'!C118 -> Dishwasher | AS58: ='Materials Costs'!N118 -> 339.99 | AT58: 0 | AU58: 0 | AV58: 0 | AW58: 0 | AX58: 0
X59: 18 | AM59: FALSE | AN59: Appliances | AP59: ='Materials Costs'!C119 -> Wine Cooler | AS59: ='Materials Costs'!N119 -> 399.99 | AT59: 0 | AU59: 0 | AV59: 0 | AW59: 0 | AX59: 0
X60: 19 | AM60: FALSE | AN60: Appliances | AP60: ='Materials Costs'!C120 -> Ice Maker | AS60: ='Materials Costs'!N120 -> 499.99 | AT60: 0 | AU60: 0 | AV60: 0 | AW60: 0 | AX60: 0 | BA60: FALSE
X61: 20 | AM61: FALSE | AN61: Painter | AP61: Paint Pantry | AS61: ='Materials Costs'!N76 -> 22.97 | AT61: ='Labor Costs'!F56 -> 125 | AU61: 0 | AV61: 0 | AW61: 0 | AX61: 0 | BA61: FALSE
X62: 21 | AM62: FALSE | AN62: General Kitchen | AO62: General Kitchen | AP62: Replace Window & Door Moulding | AQ62: =36 -> 36 | AR62: ln ft | AS62: ='Materials Costs'!N77 -> 0.4725 | AT62: ='Labor Costs'!F58 -> 2.77 | AU62: =IF(AM62,AS62*AQ62,0) -> 0 | AV62: =IF(AM62,AT62*AQ62,0) -> 0 | AW62: 0 | AX62: 0 | BA62: FALSE
X63: 22 | AM63: FALSE | AN63: Electrician | AO63: Electrician | AP63: ='Labor Costs'!D64 -> Add Circuit | AS63: ='Materials Costs'!N59 -> 15.98 | AT63: ='Labor Costs'!F64 -> 150 | AU63: =IF(AM63,AS63,0) -> 0 | AV63: =IF(AM63,AT63,0) -> 0 | AW63: 0 | AX63: 0 | BA63: FALSE
X64: 23 | AM64: FALSE | AN64: Electrician | AO64: Electrician | AP64: ='Materials Costs'!C62 -> Ceiling Fan | AS64: ='Materials Costs'!N62 -> 44.97 | AT64: ='Labor Costs'!F65 -> 125 | AU64: =IF(AM64,AS64,0) -> 0 | AV64: =IF(AM64,AT64,0) -> 0 | AW64: 0 | AX64: 0 | BA64: FALSE
X65: 24 | AK65: TRUE | AM65: FALSE | AN65: Electrician | AO65: Electrician | AP65: ='Materials Costs'!C63 -> Lighting Fixture | AS65: ='Materials Costs'!N63 -> 24.97 | AT65: ='Labor Costs'!F66 -> 95 | AU65: =IF(AM65,AS65,0) -> 0 | AV65: =IF(AM65,AT65,0) -> 0 | AW65: 0 | AX65: 0 | BA65: FALSE
X66: 25 | AM66: FALSE | AN66: Electrician | AO66: Electrician | AP66: ='Materials Costs'!C64 -> Wire Cable Outlet | AS66: ='Materials Costs'!N64 -> 29.97 | AT66: ='Labor Costs'!F67 -> 100 | AU66: =IF(AM66,AS66,0) -> 0 | AV66: =IF(AM66,AT66,0) -> 0 | AW66: 0 | AX66: 0 | BA66: FALSE
AM67: =IF(AQ67>0,TRUE,FALSE) -> FALSE | AN67: Electrician | AO67: Electrician | AP67: ='Materials Costs'!C65 -> Grounded Outlet | AQ67: =AI30 -> 0 | AS67: ='Materials Costs'!N65 -> 1.19 | AT67: ='Labor Costs'!F68 -> 50 | AU67: =AQ67*AS67 -> 0 | AV67: =AQ67*AT67 -> 0 | AW67: 0 | AX67: 0 | BA67: FALSE
AM68: =IF(AQ68>0,TRUE,FALSE) -> FALSE | AN68: Electrician | AO68: Electrician | AP68: ='Materials Costs'!C66 -> Wall Switch | AQ68: =AI31 -> 0 | AS68: ='Materials Costs'!N66 -> 1.29 | AT68: ='Labor Costs'!F69 -> 50 | AU68: =AQ68*AS68 -> 0 | AV68: =AQ68*AT68 -> 0 | AW68: 0 | AX68: 0 | BA68: FALSE
AM69: FALSE | AN69: Electrician | AO69: Electrician | AP69: Add Range Outlet | AQ69: 1 | AS69: ='Materials Costs'!N68 -> 6.39 | AT69: ='Labor Costs'!F81 -> 125 | AU69: =IF(AM69,AQ69*AS69,0) -> 0 | AV69: =IF(AM69,AQ69*AT69,0) -> 0 | AW69: 0 | AX69: 0 | BA69: FALSE
AM70: FALSE | AN70: General Kitchen | AO70: General Kitchen | AP70: Sink | AS70: ='Materials Costs'!N134 -> 175.99 | AT70: ='Labor Costs'!F82 -> 100 | AU70: =IF(AM70,AS70,0) -> 0 | AV70: =IF(AM70,AT70,0) -> 0 | AW70: 0 | AX70: 0 | BA70: FALSE
AM71: FALSE | AN71: Plumber | AO71: Plumber | AP71: Faucet | AS71: ='Materials Costs'!N135 -> 37.14 | AT71: ='Labor Costs'!F83 -> 95 | AU71: =IF(AM71,AS71,0) -> 0 | AV71: =IF(AM71,AT71,0) -> 0 | AW71: 0 | AX71: 0 | BA71: FALSE
AM72: FALSE | AN72: Plumber | AO72: Plumber | AP72: Replumb Supply and Drain Lines | AS72: 0 | AT72: ='Labor Costs'!F40 -> 210 | AU72: =IF(AM72,AS72,0) -> 0 | AV72: =IF(AM72,AT72,0) -> 0 | AW72: 0 | AX72: 0 | BA72: FALSE
AM73: FALSE | AN73: Plumber | AO73: Plumber | AP73: Disposal | AS73: ='Materials Costs'!N136 -> 98.96 | AT73: ='Labor Costs'!F84 -> 125 | AU73: =IF(AM73,AS73,0) -> 0 | AV73: =IF(AM73,AT73,0) -> 0 | AW73: 0 | AX73: 0 | BA73: FALSE
AM74: =IF(AQ74>0,TRUE,FALSE) -> FALSE | AN74: Demolition | AO74: Demolition | AP74: ='Labor Costs'!D114 -> Demolition Hours | AQ74: =AI37 -> 0 | AT74: ='Labor Costs'!F114 -> 20 | AU74: 0 | AV74: =AQ74*AT74 -> 0 | AW74: 0 | AX74: 0 | BA74: FALSE
AM75: TRUE | AN75: Contingency | AO75: Contingency | AP75: Contingency | AW75: =AY75*0.5 -> 0 | AX75: =AY75*0.5 -> 0 | AY75: =IF(AM76,(AY3+AZ3)*'Offer Calculator'!U23,U4) -> 0
AM76: TRUE

Sheet Family Room
P1: Family Room | AS1: Each | AU1: Extended | AW1: Region Adjustment | AY1: Total
D2: Estimated Labor & Material Costs | AM2: Include? | AN2: Category | AO2: Contractor | AP2: Description | AQ2: Amount | AR2: Measure | AS2: Material | AT2: Labor | AU2: Material | AV2: Labor | AW2: Material | AX2: Labor | AY2: Material | AZ2: Labor | BA2: DIY
P3: Contingency for This Room | AY3: =SUM(AW5:AW55) -> 0 | AZ3: =SUM(AX5:AX55) -> 0
E4: Windows | L4: =SUM(AW5:AW11)+SUM(AX5:AX11)+AW12+AX12 -> 0 | Q4: Standard | S4: or | T4: $ | U4: 0 | W4: Room dimensions (ft): | AD4: Width | AF4: 10 | AG4: Depth | AI4: 10 | AM4: 7 | AN4: Windows & Doors | BA4: FALSE
AM5: =IF($AM$4=1,TRUE,FALSE) -> FALSE | AN5: Windows & Doors | AP5: No Windows | AQ5: =$X$7 -> 0 | AS5: 0 | AT5: 0 | AU5: =IF(AM5,AQ5*AS5,0) -> 0 | AW5: =ROUND(AU5*(COL/100),2) -> 0 | AX5: =IF(BA5,0,ROUND(AV5*(COL/100),2)) -> 0 | BA5: =IF($BA$4,TRUE,FALSE) -> FALSE
E6: Blinds | L6: =SUM(AW29:AW31)+SUM(AX29:AX31)+AW32+AX32 -> 0 | P6: DIY | Q6: Replace Windows | AA6: DIY | AB6: Replace Blinds | AM6: =IF($AM$4=2,TRUE,FALSE) -> FALSE | AN6: Windows & Doors | AO6: Windows & Doors | AP6: ='Materials Costs'!C100 -> 28 x 38 Double Hung | AQ6: 0 | AS6: ='Materials Costs'!O100 -> 124 | AT6: ='Labor Costs'!$F$44 -> 125 | AU6: 0 | AV6: =IF(AM6,AQ6*AT6,0) -> 0 | AW6: 0 | AX6: 0 | BA6: =IF($BA$4,TRUE,FALSE) -> FALSE
X7: 0 | AI7: 0 | AM7: =IF($AM$4=3,TRUE,FALSE) -> FALSE | AN7: Windows & Doors | AO7: Windows & Doors | AP7: ='Materials Costs'!C101 -> 28 x 54 Double Hung | AQ7: 0 | AS7: ='Materials Costs'!N101 -> 134 | AT7: ='Labor Costs'!$F$44 -> 125 | AU7: 0 | AV7: 0 | AW7: 0 | AX7: 0 | BA7: FALSE
E8: Walls | L8: =SUM(AW13:AW16)+SUM(AX13:AX16) -> 0 | AM8: =IF($AM$4=4,TRUE,FALSE) -> FALSE | AN8: Windows & Doors | AO8: Windows & Doors | AP8: ='Materials Costs'!C102 -> 32 x 38 Double Hung | AQ8: 0 | AS8: ='Materials Costs'!N102 -> 147 | AT8: ='Labor Costs'!$F$44 -> 125 | AU8: 0 | AV8: 0 | AW8: 0 | AX8: 0 | BA8: FALSE
Q9: Picture Window | AB9: Picture Window Blind | AM9: =IF($AM$4=5,TRUE,FALSE) -> FALSE | AN9: Windows & Doors | AO9: Windows & Doors | AP9: ='Materials Costs'!C103 -> 32 x 54 Double Hung | AQ9: 0 | AS9: ='Materials Costs'!N103 -> 155 | AT9: ='Labor Costs'!$F$44 -> 125 | AU9: 0 | AV9: 0 | AW9: 0 | AX9: 0 | BA9: FALSE
E10: Floors | L10: =SUM(AW17:AW22)+SUM(AX17:AX22) -> 0 | AM10: =IF($AM$4=6,TRUE,FALSE) -> FALSE | AN10: Windows & Doors | AO10: Windows & Doors | AP10: ='Materials Costs'!C104 -> 36 x 38 Double Hung | AQ10: 0 | AS10: ='Materials Costs'!N104 -> 134 | AT10: ='Labor Costs'!$F$44 -> 125 | AU10: 0 | AV10: 0 | AW10: 0 | AX10: 0 | BA10: FALSE
AM11: =IF($AM$4=7,TRUE,FALSE) -> TRUE | AN11: Windows & Doors | AO11: Windows & Doors | AP11: ='Materials Costs'!C105 -> 36 x 54 Double Hung | AQ11: 0 | AS11: ='Materials Costs'!N105 -> 167 | AT11: ='Labor Costs'!$F$44 -> 125 | AU11: 0 | AV11: 0 | AW11: 0 | AX11: 0 | BA11: FALSE
E12: Door | L12: =SUM(AW34:AW38)+SUM(AX34:AX38)+AW44+AX44+AW48+AX48+SUM(AW41:AW43)+SUM(AX41:AX43) -> 0 | P12: DIY | Q12: Walls & Floors | AA12: DIY | AB12: Doors & Closet | AM12: FALSE | AN12: Windows & Doors | AO12: Windows & Doors | AP12: ='Materials Costs'!C106 -> Picture Window | AQ12: 1 | AS12: ='Materials Costs'!N106 -> 790.7 | AT12: ='Labor Costs'!F45 -> 200 | AU12: 0 | AV12: 0 | AW12: 0 | AX12: 0 | BA12: FALSE
Q13: =AP13 -> Hang & Finish Drywall | AB13: Replace Patio Doors | AM13: FALSE | AN13: Drywall | AO13: Drywall | AP13: Hang & Finish Drywall | AQ13: =(8*$AF$4)*2+(8*$AI$4)*2 -> 320 | AR13: sq ft | AS13: ='Materials Costs'!N5+'Materials Costs'!N6 -> 0.348825 | AT13: ='Labor Costs'!F5+'Labor Costs'!F6 -> 2.45 | AU13: =IF(AM13,AQ13*AS13,0) -> 0 | AV13: =IF(AM13,AQ13*AT13,0) -> 0 | AW13: 0 | AX13: 0 | BA13: FALSE
E14: Closet | L14: =SUM(AW45:AW47)+SUM(AX45:AX47) -> 0 | Q14: =AP14 -> Remove Wallpaper | AM14: FALSE | AN14: General | AO14: General | AP14: Remove Wallpaper | AQ14: =(8*$AF$4)*2+(8*$AI$4)*2 -> 320 | AR14: sq ft | AS14: 0 | AT14: ='Labor Costs'!F7 -> 1 | AU14: =IF(AM14,AQ14*AS14,0) -> 0 | AV14: =IF(AM14,AQ14*AT14,0) -> 0 | AW14: =ROUND(AU14*(COL/100),2) -> 0 | AX14: 0 | BA14: FALSE
Q15: =AP15 -> Prime Walls | AB15: (use Picture Window Blind if needed) | AM15: FALSE | AN15: Painter | AO15: Painter | AP15: Prime Walls | AQ15: =(8*$AF$4)*2+(8*$AI$4)*2 -> 320 | AR15: sq ft | AS15: ='Materials Costs'!N9 -> 0.04245 | AT15: ='Labor Costs'!F9 -> 0.4 | AU15: =IF(AM15,AQ15*AS15,0) -> 0 | AV15: =IF(AM15,AQ15*AT15,0) -> 0 | AW15: =ROUND(AU15*(COL/100),2) -> 0 | AX15: 0 | BA15: FALSE
E16: Add Circuit | L16: =AW49+AX49 -> 0 | Q16: =AP16 -> Paint Walls | AM16: FALSE | AN16: Painter | AO16: Painter | AP16: Paint Walls | AQ16: =(8*$AF$4)*2+(8*$AI$4)*2 -> 320 | AR16: sq ft | AS16: ='Materials Costs'!N8 -> 0.11485 | AT16: ='Labor Costs'!F8 -> 0.65 | AU16: =IF(AM16,AQ16*AS16,0) -> 0 | AV16: =IF(AM16,AQ16*AT16,0) -> 0 | AW16: 0 | AX16: 0 | BA16: FALSE
Q17: Carpet | AB17: =AP44 -> Exterior Door Lockset
E18: Ceiling Fan & Light Fixture | L18: =AW50+AX50+AW51+AX51 -> 0 | Q18: Install Engineered Hardwood | AB18: =AP45 -> Single Closet Door | AM18: FALSE | AN18: General | AO18: General | AP18: Replace and Paint Baseboards | AQ18: =(AF4*2)+(AI4*2) -> 40 | AR18: ln ft | AS18: ='Materials Costs'!N19+'Materials Costs'!N20 -> 0.216175 | AT18: ='Labor Costs'!F17 -> 2.77 | AU18: =IF(AM18,AQ18*AS18,0) -> 0 | AV18: =IF(AM18,AQ18*AT18,0) -> 0 | AW18: 0 | AX18: 0 | BA18: FALSE
Q19: Refinish Hardwood | AB19: =AP46 -> Double Closet Door | AM19: FALSE | AN19: Flooring | AO19: Flooring | AP19: Engineered Hardwood Flooring | AQ19: =AF4*AI4 -> 100 | AR19: sq ft | AS19: ='Materials Costs'!N16 -> 2.89 | AT19: ='Labor Costs'!F18 -> 3 | AU19: =IF(AM19,AQ19*AS19,0) -> 0 | AV19: =IF(AM19,AQ19*AT19,0) -> 0 | AW19: 0 | AX19: 0 | BA19: FALSE
E20: Cable Outlet | L20: =AW52+AX52 -> 0 | Q20: =AP18 -> Replace and Paint Baseboards | AB20: =AP47 -> Paint Closet | AM20: FALSE | AN20: Flooring | AO20: Flooring | AP20: Carpet | AQ20: =((AF4*AI4)*1.15)/9 -> 12.77777778 | AR20: yards | AS20: ='Materials Costs'!N17+'Materials Costs'!N18 -> 18 | AT20: ='Labor Costs'!F19 -> 5 | AU20: =IF(AM20,AQ20*AS20,0) -> 0 | AV20: =IF(AM20,AQ20*AT20,0) -> 0 | AW20: 0 | AX20: 0 | BA20: FALSE
AB21: =AP48 -> Replace Window & Door Moulding | AM21: FALSE | AN21: Flooring | AO21: Flooring | AP21: Refinish Hardwood Floor | AQ21: =AF4*AI4 -> 100 | AR21: sq ft | AS21: 0 | AT21: ='Labor Costs'!F20 -> 3.5 | AU21: =IF(AM21,AQ21*AS21,0) -> 0 | AV21: =IF(AM21,AQ21*AT21,0) -> 0 | AW21: 0 | AX21: 0 | BA21: FALSE
E22: Outlets and Switches | L22: =AW53+AX53+AW54+AX54 -> 0 | Q22: =AP22 -> Replace Rotted Floor | X22: 0 | AM22: =IF(AU22>0,TRUE,FALSE) -> FALSE | AN22: Flooring | AO22: Flooring | AP22: Replace Rotted Floor | AQ22: =X22 -> 0 | AR22: sq ft | AS22: ='Materials Costs'!N21 -> 0.7671875 | AT22: ='Labor Costs'!F21 -> 2.5 | AU22: =AQ22*AS22 -> 0 | AV22: =AQ22*AT22 -> 0 | AW22: 0 | AX22: 0 | BA22: FALSE
AM23: FALSE | AN23: Fireplace | AO23: Fireplace | AP23: ='Labor Costs'!D60 -> Inspect and Clean Chimney | AQ23: 1 | AS23: 0 | AT23: ='Labor Costs'!F60 -> 150 | AU23: =IF(AM23,AS23*AQ23,0) -> 0 | AV23: =IF(AM23,AT23*AQ23,0) -> 0 | AW23: 0 | AX23: 0 | BA23: FALSE
E24: Demolition | L24: =AX55 -> 0 | AM24: FALSE | AN24: Fireplace | AO24: Fireplace | AP24: Gas Insert and Logs | AQ24: 1 | AS24: ='Materials Costs'!N94+'Materials Costs'!N95 -> 552.78 | AT24: ='Labor Costs'!F61 -> 85 | AU24: 0 | AV24: 0 | AW24: 0 | AX24: 0 | BA24: FALSE
AM25: FALSE | AN25: Fireplace | AO25: Fireplace | AP25: ='Materials Costs'!C96 -> Fireplace Screen | AQ25: 1 | AS25: ='Materials Costs'!N96 -> 77.25 | AT25: 0 | AU25: 0 | AV25: 0 | AW25: 0 | AX25: 0 | BA25: FALSE
E26: Fireplace | L26: =SUM(AW23:AW26)+SUM(AX23:AX26) -> 0 | Q26: Fireplace | AA26: DIY | AB26: Electrical & Demolition | AM26: FALSE | AN26: Fireplace | AO26: Fireplace | AP26: ='Materials Costs'!C97 -> Fireplace Mantel | AQ26: 1 | AS26: ='Materials Costs'!N97 -> 281.31 | AT26: ='Labor Costs'!F62 -> 175 | AU26: 0 | AV26: 0 | AW26: 0 | AX26: 0 | BA26: FALSE
P27: DIY | AB27: =AP49 -> Add Circuit | AM27: 4 | AN27: General | AU27: 0 | AV27: 0 | AW27: 0 | AX27: 0
Q28: =AP23 -> Inspect and Clean Chimney | AB28: =AP50 -> Ceiling Fan | AM28: =IF($AM$27=1,TRUE,FALSE) -> FALSE | AN28: General | AP28: No Blinds | AQ28: =$AI$7 -> 0 | AU28: 0 | AV28: 0 | AW28: 0 | AX28: 0 | BA28: FALSE
E29: Contingency Applied to This Room | L29: =AY56 -> 0 | Q29: =AP24 -> Gas Insert and Logs | AB29: =AP51 -> Lighting Fixture | AM29: =IF($AM$27=2,TRUE,FALSE) -> FALSE | AN29: General | AO29: General | AP29: ='Materials Costs'!C108 -> 28 inch wide blinds | AQ29: =$AI$7 -> 0 | AS29: ='Materials Costs'!N108 -> 6.97 | AT29: ='Labor Costs'!$F$47 -> 45 | AU29: =IF(AM29,AS29*AQ29,0) -> 0 | AV29: =IF(AM29,AT29*AQ29,0) -> 0 | AW29: 0 | AX29: 0 | BA29: =IF(BA28,TRUE,FALSE) -> FALSE
E30: Estimated Total Labor Cost This Room | L30: =AZ3 -> 0 | Q30: =AP25 -> Fireplace Screen | AB30: =AP52 -> Wire Cable Outlet | AM30: =IF($AM$27=3,TRUE,FALSE) -> FALSE | AN30: General | AO30: General | AP30: ='Materials Costs'!C109 -> 32 inch wide blinds | AQ30: =$AI$7 -> 0 | AS30: ='Materials Costs'!N109 -> 8.47 | AT30: ='Labor Costs'!$F$47 -> 45 | AU30: =IF(AM30,AS30*AQ30,0) -> 0 | AV30: =IF(AM30,AT30*AQ30,0) -> 0 | AW30: 0 | AX30: 0 | BA30: =IF(BA29,TRUE,FALSE) -> FALSE
E31: Estimated Total Material Cost This Room | L31: =AY3 -> 0 | Q31: =AP26 -> Fireplace Mantel | AB31: =AP53 -> Grounded Outlet | AI31: 0 | AM31: =IF($AM$27=4,TRUE,FALSE) -> TRUE | AN31: General | AO31: General | AP31: ='Materials Costs'!C110 -> 36 inch wide blinds | AQ31: =$AI$7 -> 0 | AS31: ='Materials Costs'!N110 -> 9.97 | AT31: ='Labor Costs'!$F$47 -> 45 | AU31: =IF(AM31,AS31*AQ31,0) -> 0 | AV31: =IF(AM31,AT31*AQ31,0) -> 0 | AW31: 0 | AX31: 0 | BA31: =IF(BA30,TRUE,FALSE) -> FALSE
E32: Total Estimated Room Repair Cost | L32: =SUM(L29:M31) -> 0 | AM32: FALSE | AN32: General | AO32: General | AP32: ='Materials Costs'!C111 -> Picture Window Blinds | AQ32: 1 | AS32: ='Materials Costs'!N111 -> 53.97 | AT32: ='Labor Costs'!F48 -> 50 | AU32: =IF(AM32,AS32*AQ32,0) -> 0 | AV32: =IF(AM32,AT32*AQ32,0) -> 0 | AW32: 0 | AX32: 0 | BA32: FALSE
AB33: =AP54 -> Wall Switch | AI33: 0 | AM33: 1 | AN33: Windows & Doors | AU33: =IF(AM33,AS33,0) -> 0 | AV33: =IF(AM33,AT33,0) -> 0 | AW33: 0 | AX33: 0
AM34: =IF(AM33=1,TRUE,FALSE) -> TRUE | AN34: Windows & Doors | AP34: No Doors | AS34: 0 | AT34: 0 | AU34: 0 | AV34: 0 | AW34: 0 | AX34: 0 | BA34: FALSE
E35: Total Estimated Costs for Entire House | L35: ='Offer Calculator'!Z20+'Offer Calculator'!Z23 -> 0 | AM35: =IF(AM33=2,TRUE,FALSE) -> FALSE | AN35: Windows & Doors | AO35: Windows & Doors | AP35: ='Materials Costs'!C89 -> 60 inch Sliding Patio Doors | AS35: ='Materials Costs'!N89 -> 760 | AT35: ='Labor Costs'!$F$49 -> 200 | AU35: 0 | AV35: 0 | AW35: 0 | AX35: 0 | BA35: =IF($BA$34,TRUE,FALSE) -> FALSE
AB36: =AP55 -> Demolition Hours | AI36: 0 | AM36: =IF(AM33=3,TRUE,FALSE) -> FALSE | AN36: Windows & Doors | AO36: Windows & Doors | AP36: ='Materials Costs'!C90 -> 72 inch Sliding Patio Doors | AS36: ='Materials Costs'!N90 -> 578 | AT36: ='Labor Costs'!$F$49 -> 200 | AU36: 0 | AV36: 0 | AW36: 0 | AX36: 0 | BA36: =IF($BA$34,TRUE,FALSE) -> FALSE
AM37: =IF(AM33=4,TRUE,FALSE) -> FALSE | AN37: Windows & Doors | AO37: Windows & Doors | AP37: ='Materials Costs'!C91 -> 60 inch French Door | AS37: ='Materials Costs'!N91 -> 877.09 | AT37: ='Labor Costs'!$F$49 -> 200 | AU37: 0 | AV37: 0 | AW37: 0 | AX37: 0 | BA37: =IF($BA$34,TRUE,FALSE) -> FALSE
AM38: =IF(AM33=5,TRUE,FALSE) -> FALSE | AN38: Windows & Doors | AO38: Windows & Doors | AP38: ='Materials Costs'!C92 -> 72 inch French Door | AS38: ='Materials Costs'!N92 -> 877.09 | AT38: ='Labor Costs'!F50 -> 250 | AU38: 0 | AV38: 0 | AW38: 0 | AX38: 0 | BA38: =IF($BA$34,TRUE,FALSE) -> FALSE
AM39: 1 | AN39: Windows & Doors | BA39: FALSE
E40: TYPE | J40: MATERIALS | L40: LABOR | AM40: =IF($AM$39=1,TRUE,FALSE) -> TRUE | AN40: Windows & Doors | AP40: No Patio Door | AS40: 0 | AT40: 0 | AU40: 0 | AV40: 0 | AW40: 0 | AX40: 0 | BA40: =IF($BA$39,TRUE,FALSE) -> FALSE
E41: DEMOLITION | L41: =AX55 -> 0 | X41: 0 | AM41: =IF($AM$39=2,TRUE,FALSE) -> FALSE | AN41: Windows & Doors | AO41: Windows & Doors | AP41: ='Materials Costs'!C82 -> 30 inch Storm Door | AS41: ='Materials Costs'!N82 -> 318.99 | AT41: ='Labor Costs'!$F$53 -> 100 | AU41: 0 | AV41: 0 | AW41: 0 | AX41: 0 | BA41: =IF($BA$39,TRUE,FALSE) -> FALSE
E42: DRYWALL | J42: =AW13 -> 0 | L42: =AX13 -> 0 | X42: 1 | AM42: =IF($AM$39=3,TRUE,FALSE) -> FALSE | AN42: Windows & Doors | AO42: Windows & Doors | AP42: ='Materials Costs'!C83 -> 32 inch Storm Door | AS42: ='Materials Costs'!N83 -> 99.98 | AT42: ='Labor Costs'!$F$53 -> 100 | AU42: 0 | AV42: 0 | AW42: 0 | AX42: 0 | BA42: =IF($BA$39,TRUE,FALSE) -> FALSE
E43: ELECTRICIAN | J43: =SUM(AW49:AW54) -> 0 | L43: =SUM(AX49:AX54) -> 0 | X43: 2 | AM43: =IF($AM$39=4,TRUE,FALSE) -> FALSE | AN43: Windows & Doors | AO43: Windows & Doors | AP43: ='Materials Costs'!C84 -> 36 inch Storm Door | AS43: ='Materials Costs'!N84 -> 154 | AT43: ='Labor Costs'!$F$53 -> 100 | AU43: 0 | AV43: 0 | AW43: 0 | AX43: 0 | BA43: =IF($BA$39,TRUE,FALSE) -> FALSE
E44: FIREPLACE | J44: =SUM(AW23:AW26) -> 0 | L44: =SUM(AX23:AX26) -> 0 | X44: 3 | AM44: FALSE | AN44: General | AO44: General | AP44: ='Materials Costs'!C88 -> Exterior Door Lockset | AS44: ='Materials Costs'!N88 -> 82 | AT44: ='Labor Costs'!F51 -> 25 | AU44: 0 | AV44: 0 | AW44: 0 | AX44: 0 | BA44: FALSE
E45: FLOORING | J45: =SUM(AW19:AW22) -> 0 | L45: =SUM(AX19:AX22) -> 0 | X45: 4 | AM45: FALSE | AN45: General | AO45: General | AP45: ='Materials Costs'!C74 -> Single Closet Door | AS45: ='Materials Costs'!N74 -> 165.2 | AT45: ='Labor Costs'!F54 -> 100 | AU45: 0 | AV45: 0 | AW45: 0 | AX45: 0 | BA45: FALSE
E46: GENERAL | J46: =AW14+SUM(AW28:AW32)+SUM(AW44:AW46)+AW48 -> 0 | L46: =AX14+SUM(AX28:AX32)+SUM(AX44:AX46)+AX48 -> 0 | X46: 5 | AM46: FALSE | AN46: General | AO46: General | AP46: ='Materials Costs'!C75 -> Double Closet Door | AS46: ='Materials Costs'!N75 -> 109 | AT46: ='Labor Costs'!F55 -> 150 | AU46: 0 | AV46: 0 | AW46: 0 | AX46: 0 | BA46: FALSE
E47: PAINTER | J47: =SUM(AW15:AW16)+AW47 -> 0 | L47: =SUM(AX15:AX16)+AX47 -> 0 | X47: 6 | AM47: FALSE | AN47: Painter | AO47: Painter | AP47: Paint Closet | AS47: ='Materials Costs'!N76 -> 22.97 | AT47: ='Labor Costs'!F56 -> 125 | AU47: 0 | AV47: 0 | AW47: 0 | AX47: 0 | BA47: FALSE
E48: WINDOWS & DOORS | J48: =SUM(AW5:AW12)+SUM(AW34:AW43) -> 0 | L48: =SUM(AX5:AX12)+SUM(AX33:AX43) -> 0 | X48: 7 | AM48: FALSE | AN48: General | AO48: General | AP48: Replace Window & Door Moulding | AQ48: =36 -> 36 | AR48: ln ft | AS48: ='Materials Costs'!N77 -> 0.4725 | AT48: ='Labor Costs'!F58 -> 2.77 | AU48: =IF(AM48,AS48*AQ48,0) -> 0 | AV48: =IF(AM48,AT48*AQ48,0) -> 0 | AW48: 0 | AX48: 0 | BA48: FALSE
X49: 8 | AM49: FALSE | AN49: Electrician | AO49: Electrician | AP49: ='Labor Costs'!D64 -> Add Circuit | AS49: ='Materials Costs'!N59 -> 15.98 | AT49: ='Labor Costs'!F64 -> 150 | AU49: =IF(AM49,AS49,0) -> 0 | AV49: =IF(AM49,AT49,0) -> 0 | AW49: 0 | AX49: 0 | BA49: FALSE
X50: 9 | AM50: FALSE | AN50: Electrician | AO50: Electrician | AP50: ='Materials Costs'!C62 -> Ceiling Fan | AS50: ='Materials Costs'!N62 -> 44.97 | AT50: ='Labor Costs'!F65 -> 125 | AU50: =IF(AM50,AS50,0) -> 0 | AV50: =IF(AM50,AT50,0) -> 0 | AW50: 0 | AX50: 0 | BA50: FALSE
AM51: FALSE | AN51: Electrician | AO51: Electrician | AP51: ='Materials Costs'!C63 -> Lighting Fixture | AS51: ='Materials Costs'!N63 -> 24.97 | AT51: ='Labor Costs'!F66 -> 95 | AU51: =IF(AM51,AS51,0) -> 0 | AV51: =IF(AM51,AT51,0) -> 0 | AW51: 0 | AX51: 0 | BA51: FALSE
AM52: FALSE | AN52: Electrician | AO52: Electrician | AP52: ='Materials Costs'!C64 -> Wire Cable Outlet | AS52: ='Materials Costs'!N64 -> 29.97 | AT52: ='Labor Costs'!F67 -> 100 | AU52: =IF(AM52,AS52,0) -> 0 | AV52: =IF(AM52,AT52,0) -> 0 | AW52: 0 | AX52: 0 | BA52: FALSE
AM53: =IF(AQ53>0,TRUE,FALSE) -> FALSE | AN53: Electrician | AO53: Electrician | AP53: ='Materials Costs'!C65 -> Grounded Outlet | AQ53: =AI31 -> 0 | AS53: ='Materials Costs'!N65 -> 1.19 | AT53: ='Labor Costs'!F68 -> 50 | AU53: =AQ53*AS53 -> 0 | AV53: =AQ53*AT53 -> 0 | AW53: 0 | AX53: 0 | BA53: FALSE
AM54: =IF(AQ54>0,TRUE,FALSE) -> FALSE | AN54: Electrician | AO54: Electrician | AP54: ='Materials Costs'!C66 -> Wall Switch | AQ54: =AI33 -> 0 | AS54: ='Materials Costs'!N66 -> 1.29 | AT54: ='Labor Costs'!F69 -> 50 | AU54: =AQ54*AS54 -> 0 | AV54: =AQ54*AT54 -> 0 | AW54: 0 | AX54: 0 | BA54: FALSE
AM55: =IF(AQ55>0,TRUE,FALSE) -> FALSE | AN55: Demolition | AO55: Demolition | AP55: ='Labor Costs'!D114 -> Demolition Hours | AQ55: =AI36 -> 0 | AT55: ='Labor Costs'!F114 -> 20 | AU55: 0 | AV55: =AQ55*AT55 -> 0 | AW55: 0 | AX55: 0 | BA55: FALSE
AM56: TRUE | AN56: Contingency | AO56: Contingency | AP56: Contingency | AW56: =AY56*0.5 -> 0 | AX56: =AY56*0.5 -> 0 | AY56: =IF(AM57,(AZ3+AY3)*'Offer Calculator'!U23,U4) -> 0
AM57: TRUE
AK65: TRUE

Sheet Bathroom 1
N1: Bathroom 1 Repair | AS1: Each | AU1: Extended | AW1: Region Adjustment | AY1: Total | BA1: DIY
B2: Estimated Labor & Material Costs | AM2: Include? | AN2: Category | AO2: Contractor | AP2: Description | AQ2: Amount | AR2: Measure | AS2: Material | AT2: Labor | AU2: Material | AV2: Labor | AW2: Material | AX2: Labor | AY2: Material | AZ2: Labor
N3: Contingency for This Room | AM3: 9 | AN3: General Bath | AY3: =SUM(AW4:AW71) -> 0 | AZ3: =SUM(AX4:AX71) -> 0 | BA3: FALSE
C4: Vanity | J4: =SUM(AW4:AW12)+SUM(AX4:AX12) -> 0 | O4: Standard | Q4: or | R4: $ | S4: 0 | U4: Room dimensions (ft): | AB4: Width | AD4: 0 | AE4: Depth | AG4: 0 | AM4: =IF($AM$3=1,TRUE,FALSE) -> FALSE | AN4: General Bath | AO4: General Bath | AP4: ='Materials Costs'!C30 -> Pedestal Sink | AS4: ='Materials Costs'!N30 -> 99 | AT4: ='Labor Costs'!$F$31 -> 100 | AU4: =IF(AM4,AS4,0) -> 0 | AV4: =IF(AM4,AT4,0) -> 0 | AW4: =ROUND(AU4*(COL/100),2) -> 0 | AX4: =IF($BA$3,0,ROUND(AV4*(COL/100),2)) -> 0
AM5: =IF($AM$3=2,TRUE,FALSE) -> FALSE | AN5: General Bath | AO5: General Bath | AP5: ='Materials Costs'!C31 -> 60 x 22 x 34 Double Bowl Vanity | AS5: ='Materials Costs'!N31 -> 799 | AT5: ='Labor Costs'!$F$31 -> 100 | AU5: =IF(AM5,AS5,0) -> 0 | AV5: =IF(AM5,AT5,0) -> 0 | AW5: 0 | AX5: 0
C6: Vanity Top | J6: =SUM(AW14:AW20)+SUM(AX14:AX20) -> 0 | N6: DIY | O6: Vanity | AM6: =IF($AM$3=3,TRUE,FALSE) -> FALSE | AN6: General Bath | AO6: General Bath | AP6: ='Materials Costs'!C32 -> 48 x 22 x 34 Single Bowl Vanity | AS6: ='Materials Costs'!N32 -> 549 | AT6: ='Labor Costs'!$F$31 -> 100 | AU6: 0 | AV6: 0 | AW6: 0 | AX6: 0
Y7: DIY | Z7: Medicine Cabinet | AM7: =IF($AM$3=4,TRUE,FALSE) -> FALSE | AN7: General Bath | AO7: General Bath | AP7: ='Materials Costs'!C33 -> 36 x 22 x 34 Single Bowl Vanity | AS7: ='Materials Costs'!N33 -> 449 | AT7: ='Labor Costs'!$F$31 -> 100 | AU7: 0 | AV7: 0 | AW7: 0 | AX7: 0
C8: Walls | J8: =SUM(AW21:AW24)+SUM(AX21:AX24) -> 0 | AM8: =IF($AM$3=5,TRUE,FALSE) -> FALSE | AN8: General Bath | AO8: General Bath | AP8: ='Materials Costs'!C34 -> 30 x 22 x 34 Single Bowl Vanity | AS8: ='Materials Costs'!N34 -> 349 | AT8: ='Labor Costs'!$F$31 -> 100 | AU8: 0 | AV8: 0 | AW8: 0 | AX8: 0
AM9: =IF($AM$3=6,TRUE,FALSE) -> FALSE | AN9: General Bath | AO9: General Bath | AP9: ='Materials Costs'!C35 -> 24 x 21 x 34 Single Bowl Vanity | AS9: ='Materials Costs'!N35 -> 499 | AT9: ='Labor Costs'!$F$31 -> 100 | AU9: 0 | AV9: 0 | AW9: 0 | AX9: 0
C10: Floors | J10: =SUM(AW25:AW29)+SUM(AX25:AX29) -> 0 | AM10: =IF($AM$3=7,TRUE,FALSE) -> FALSE | AN10: General Bath | AO10: General Bath | AP10: ='Materials Costs'!C36 -> 18 x 21 x 34 Single Bowl Vanity WITH TOP | AS10: ='Materials Costs'!N36 -> 149 | AT10: ='Labor Costs'!$F$31 -> 100 | AU10: 0 | AV10: 0 | AW10: 0 | AX10: 0
AM11: =IF($AM$3=8,TRUE,FALSE) -> FALSE | AN11: General Bath | AO11: General Bath | AP11: ='Materials Costs'!C37 -> 18 x 16 x 34 Single Bowl Vanity | AS11: ='Materials Costs'!N37 -> 90.06 | AT11: ='Labor Costs'!$F$31 -> 100 | AU11: 0 | AV11: 0 | AW11: 0 | AX11: 0
C12: Sink & Toilet | J12: =SUM(AW30:AW31)+SUM(AX30:AX31)+AW33+AX33 -> 0 | N12: DIY | O12: Walls & Floors | Y12: DIY | Z12: Tub & Shower | AM12: =IF($AM$3=9,TRUE,FALSE) -> TRUE | AN12: General Bath | AO12: General Bath | AP12: No Vanity | AS12: 0 | AT12: 0 | AU12: 0 | AV12: 0 | AW12: 0 | AX12: 0
O13: =AP21 -> Hang & Finish Drywall | Z13: =AP45 -> Replace Bathtub | AM13: 7 | AN13: General Bath | AS13: 0 | AT13: 0 | AU13: 0 | AV13: 0 | AW13: =ROUND(AU13*(COL/100),2) -> 0 | AX13: =ROUND(AV13*(COL/100),2) -> 0 | BA13: FALSE
C14: Mirror, Accessories, Storage Cabinet | J14: =AW32+AW34+AW35+AX32+AX34+AX35 -> 0 | O14: Remove Wallpaper | Z14: Replace Shower Pan | AM14: =IF($AM$13=1,TRUE,FALSE) -> FALSE | AN14: General Bath | AO14: General Bath | AP14: ='Materials Costs'!C39 -> 61 x 22 Double Bowl | AS14: ='Materials Costs'!N39 -> 540 | AT14: ='Labor Costs'!$F$32 -> 50 | AU14: 0 | AV14: 0 | AW14: =ROUND(AU14*(COL/100),2) -> 0 | AX14: =IF($BA$13,0,ROUND(AV14*(COL/100),2)) -> 0
O15: Prime Walls | Z15: Replace Tub Surround | AM15: =IF($AM$13=2,TRUE,FALSE) -> FALSE | AN15: General Bath | AO15: General Bath | AP15: ='Materials Costs'!C40 -> 49 x 22 Single Bowl | AS15: ='Materials Costs'!N40 -> 229 | AT15: ='Labor Costs'!$F$32 -> 50 | AU15: 0 | AV15: 0 | AW15: 0 | AX15: 0
C16: Medicine Cabinet | J16: =SUM(AW40:AW44)+SUM(AX40:AX44) -> 0 | O16: Paint Walls | Z16: Bathtub Faucet Kit | AM16: =IF($AM$13=3,TRUE,FALSE) -> FALSE | AN16: General Bath | AO16: General Bath | AP16: ='Materials Costs'!C41 -> 37 x 22 Single Bowl | AS16: ='Materials Costs'!N41 -> 317 | AT16: ='Labor Costs'!$F$32 -> 50 | AU16: 0 | AV16: 0 | AW16: 0 | AX16: 0
O17: Subfloor (luan) | Z17: Replumb Bathtub Supply and Drain | AM17: =IF($AM$13=4,TRUE,FALSE) -> FALSE | AN17: General Bath | AO17: General Bath | AP17: ='Materials Costs'!C42 -> 31 x 22 Single Bowl | AS17: ='Materials Costs'!N42 -> 169 | AT17: ='Labor Costs'!$F$32 -> 50 | AU17: 0 | AV17: 0 | AW17: 0 | AX17: 0
C18: Bathtub, Plumbing, Surround | J18: =AW45+AX45+AW48+AX48+AW49+AX49+AW47+AX47 -> 0 | O18: Ceramic Tile | Z18: Double Sliding Shower Doors | AM18: =IF($AM$13=5,TRUE,FALSE) -> FALSE | AN18: General Bath | AO18: General Bath | AP18: ='Materials Costs'!C43 -> 25 x 22 Single Bowl | AS18: ='Materials Costs'!N43 -> 227.22 | AT18: ='Labor Costs'!$F$32 -> 50 | AU18: 0 | AV18: 0 | AW18: 0 | AX18: 0
O19: Vinyl Flooring | Z19: One piece shower enclosure | AM19: =IF($AM$13=6,TRUE,FALSE) -> FALSE | AN19: General Bath | AO19: General Bath | AP19: ='Materials Costs'!C44 -> 18 x 16 Single Bowl | AS19: ='Materials Costs'!N44 -> 57.39 | AT19: ='Labor Costs'!$F$32 -> 50 | AU19: 0 | AV19: 0 | AW19: 0 | AX19: 0
C20: Shower, Plumbing | J20: =AW46+AX46+AW50+AX50+AW51+AX51 -> 0 | O20: Replace and Paint Baseboards | AM20: =IF($AM$13=7,TRUE,FALSE) -> TRUE | AN20: General Bath | AO20: General Bath | AP20: No Vanity Top | AU20: 0 | AV20: 0 | AW20: 0 | AX20: 0
AM21: FALSE | AN21: Drywall | AO21: Drywall | AP21: Hang & Finish Drywall | AQ21: =(8*$AD$4)*2+(8*$AG$4)*2 -> 0 | AR21: sq ft | AS21: ='Materials Costs'!N5+'Materials Costs'!N6 -> 0.348825 | AT21: ='Labor Costs'!F5+'Labor Costs'!F6 -> 2.45 | AU21: =IF(AM21,AQ21*AS21,0) -> 0 | AV21: =IF(AM21,AQ21*AT21,0) -> 0 | AW21: 0 | AX21: =IF(BA21,0,ROUND(AV21*(COL/100),2)) -> 0 | BA21: FALSE
C22: Shower and Wall Tile | J22: =AW52+AX52 -> 0 | O22: =AP29 -> Replace Rotted Floor | V22: 0 | Z22: =AP52 -> Shower/Wall Tile | AG22: 0 | AM22: FALSE | AN22: General Bath | AO22: General Bath | AP22: Remove Wallpaper | AQ22: =(8*$AD$4)*2+(8*$AG$4)*2 -> 0 | AR22: sq ft | AS22: 0 | AT22: ='Labor Costs'!F7 -> 1 | AU22: 0 | AV22: 0 | AW22: 0 | AX22: =IF($BA$22,0,ROUND(AV22*(COL/100),2)) -> 0 | BA22: FALSE
AM23: FALSE | AN23: Painter | AO23: Painter | AP23: Prime Walls | AQ23: =(8*$AD$4)*2+(8*$AG$4)*2 -> 0 | AR23: sq ft | AS23: ='Materials Costs'!N9 -> 0.04245 | AT23: ='Labor Costs'!F9 -> 0.4 | AU23: 0 | AV23: 0 | AW23: 0 | AX23: =IF(BA23,0,ROUND(AV23*(COL/100),2)) -> 0 | BA23: FALSE
C24: GFI Circuit, Fan, Light | J24: =AW53+AX53+AW54+AX54+AW55+AX55 -> 0 | AM24: FALSE | AN24: Painter | AO24: Painter | AP24: Paint Walls | AQ24: =(8*$AD$4)*2+(8*$AG$4)*2 -> 0 | AR24: sq ft | AS24: ='Materials Costs'!N8 -> 0.11485 | AT24: ='Labor Costs'!F8 -> 0.65 | AU24: 0 | AV24: 0 | AW24: 0 | AX24: 0 | BA24: FALSE
AM25: FALSE | AN25: Flooring | AO25: Flooring | AP25: ='Materials Costs'!C13 -> Subfloor (luan) | AQ25: =$AD$4*$AG$4 -> 0 | AR25: sq ft | AS25: ='Materials Costs'!N13 -> 0.436875 | AT25: ='Labor Costs'!F12 -> 0.4 | AU25: 0 | AV25: 0 | AW25: 0 | AX25: 0 | BA25: FALSE
C26: Windows and Doors | J26: =AW56+AX56+AW57+AX57+SUM(AW66:AW71)+SUM(AX66:AX71)+AW63+AX63 -> 0 | N26: DIY | O26: Sink & Toilet | Y26: DIY | Z26: Electrical, Windows & Misc | AM26: FALSE | AN26: Flooring | AO26: Flooring | AP26: ='Materials Costs'!C14 -> Ceramic Tile | AQ26: =$AD$4*$AG$4 -> 0 | AR26: sq ft | AS26: ='Materials Costs'!N14 -> 1.86 | AT26: ='Labor Costs'!F13 -> 3.5 | AU26: 0 | AV26: 0 | AW26: 0 | AX26: 0 | BA26: FALSE
O27: =AP30 -> Sink Faucet | Z27: =AP53 -> Install GFI Circuit | AM27: FALSE | AN27: Flooring | AO27: Flooring | AP27: ='Materials Costs'!C15 -> Vinyl Flooring | AQ27: =$AD$4*$AG$4 -> 0 | AR27: sq ft | AS27: ='Materials Costs'!N15 -> 1.69 | AT27: ='Labor Costs'!F15 -> 1.25 | AU27: 0 | AV27: 0 | AW27: 0 | AX27: 0 | BA27: FALSE
C28: Door and Moulding | J28: =SUM(AW58:AW61)+SUM(AX58:AX61)+AW62+AX62 -> 0 | O28: =AP31 -> Replumb Sink Supply and Drain | Z28: =AP54 -> Exhaust Fan | AM28: FALSE | AN28: General Bath | AO28: General Bath | AP28: Replace and Paint Baseboards | AQ28: =(AD4*2)+(AG4*2) -> 0 | AR28: ln ft | AS28: ='Materials Costs'!N19+'Materials Costs'!N20 -> 0.216175 | AT28: ='Labor Costs'!F17 -> 2.77 | AU28: 0 | AV28: 0 | AW28: 0 | AX28: 0 | BA28: FALSE
O29: =AP34 -> Bath Accessories Kit | Z29: =AP55 -> Bath Light (wall mount) | AM29: =IF(AU29>0,TRUE,FALSE) -> FALSE | AN29: Flooring | AO29: Flooring | AP29: Replace Rotted Floor | AQ29: =V22 -> 0 | AR29: sq ft | AS29: ='Materials Costs'!N21 -> 0.7671875 | AT29: ='Labor Costs'!F21 -> 2.5 | AU29: =AQ29*AS29 -> 0 | AV29: =AQ29*AT29 -> 0 | AW29: =ROUND(AU29*(COL/100),2) -> 0 | AX29: 0 | BA29: FALSE
C30: Demolition | J30: =AX38 -> 0 | O30: =AP35 -> White Cabinet with Glass Doors | Z30: =AP56 -> New Glass Block Window | AM30: FALSE | AN30: Plumber | AO30: Plumber | AP30: ='Materials Costs'!C24 -> Sink Faucet | AS30: ='Materials Costs'!N24 -> 49 | AT30: ='Labor Costs'!F24 -> 95 | AU30: =IF(AM30,AS30,0) -> 0 | AV30: =IF(AM30,AT30,0) -> 0 | AW30: 0 | AX30: 0 | BA30: FALSE
O31: =AP32 -> Mirror | Z31: Entry Door | AM31: FALSE | AN31: Plumber | AO31: Plumber | AP31: ='Labor Costs'!D25 -> Replumb Sink Supply and Drain | AT31: ='Labor Costs'!F25 -> 125 | AU31: 0 | AV31: 0 | AW31: 0 | AX31: 0 | BA31: FALSE
C32: Contingency Applied to This Room | J32: =AY72 -> 0 | O32: =AP33 -> Replace Toilet | AM32: FALSE | AN32: General Bath | AO32: General Bath | AP32: ='Materials Costs'!C25 -> Mirror | AS32: ='Materials Costs'!N25 -> 69 | AT32: ='Labor Costs'!F29 -> 35 | AU32: 0 | AV32: 0 | AW32: 0 | AX32: 0 | BA32: FALSE
C33: Estimated Total Labor Cost This Room | J33: =AZ3 -> 0 | Z33: =AP62 -> Replace Window & Door Moulding | AM33: FALSE | AN33: Plumber | AO33: Plumber | AP33: Replace Toilet | AS33: ='Materials Costs'!N26 -> 99 | AT33: ='Labor Costs'!F26 -> 125 | AU33: 0 | AV33: 0 | AW33: 0 | AX33: 0 | BA33: FALSE
C34: Estimated Total Material Cost This Room | J34: =AY3 -> 0 | Z34: =AP63 -> Interior Door Lockset | AM34: FALSE | AN34: General Bath | AO34: General Bath | AP34: ='Materials Costs'!C27 -> Bath Accessories Kit | AS34: ='Materials Costs'!N27 -> 29.98 | AT34: ='Labor Costs'!F27 -> 35 | AU34: 0 | AV34: 0 | AW34: 0 | AX34: 0 | BA34: FALSE
C35: Total Estimated Room Repair Cost | J35: =J32+J33+J34 -> 0 | AB35: Replacement Windows | AG35: # | AM35: FALSE | AN35: General Bath | AO35: General Bath | AP35: ='Materials Costs'!C28 -> White Cabinet with Glass Doors | AS35: ='Materials Costs'!N28 -> 69 | AT35: ='Labor Costs'!F28 -> 70 | AU35: 0 | AV35: 0 | AW35: 0 | AX35: 0 | BA35: FALSE
O36: =AP38 -> Demolition Hours | V36: 0 | AG36: 0 | AM36: =Z9 -> 0 | AN36: General Bath | AU36: =AS36*$O$5*$R$5 -> 0 | AV36: =AT36*$O$5*$R$5 -> 0 | AW36: 0 | AX36: 0
C37: Total Estimated Costs for Entire House | J37: ='Offer Calculator'!Z20+'Offer Calculator'!Z23 -> 0 | AM37: =Z10 -> 0 | AN37: General Bath | AU37: =AS37*$O$5*$R$5 -> 0 | AV37: =AT37*$O$5*$R$5 -> 0 | AW37: 0 | AX37: 0
AM38: =IF(AQ38>0,TRUE,FALSE) -> FALSE | AN38: Demolition | AO38: Demolition | AP38: ='Labor Costs'!D114 -> Demolition Hours | AQ38: =V36 -> 0 | AT38: ='Labor Costs'!F114 -> 20 | AU38: 0 | AV38: =AQ38*AT38 -> 0 | AW38: 0 | AX38: 0 | BA38: FALSE
B39: 15 | AH39: 15 | AI39: 15 | AM39: 5 | AN39: General Bath | BA39: FALSE
E40: TYPE | J40: MATERIALS | L40: LABOR | AG40: 0 | AM40: =IF(AM39=1,TRUE,FALSE) -> FALSE | AN40: General Bath | AO40: General Bath | AP40: ='Materials Costs'!C46 -> 36 in Medicine Cabinet | AS40: ='Materials Costs'!N46 -> 119 | AT40: ='Labor Costs'!$F$33 -> 50 | AU40: =IF(AM40,AS40,0) -> 0 | AV40: =IF(AM40,AT40,0) -> 0 | AW40: =ROUND(AU40*(COL/100),2) -> 0 | AX40: =IF($BA$39,0,ROUND(AV40*(COL/100),2)) -> 0
E41: DEMOLITION | L41: =AX38 -> 0 | AG41: 1 | AM41: =IF($AM$39=2,TRUE,FALSE) -> FALSE | AN41: General Bath | AO41: General Bath | AP41: ='Materials Costs'!C47 -> 30 in Medicine Cabinet | AS41: ='Materials Costs'!N47 -> 99 | AT41: ='Labor Costs'!$F$33 -> 50 | AU41: =IF(AM41,AS41,0) -> 0 | AV41: =IF(AM41,AT41,0) -> 0 | AW41: 0 | AX41: =IF($BA$39,0,ROUND(AV41*(COL/100),2)) -> 0
E42: DRYWALL | J42: =AW21 -> 0 | L42: =AX21 -> 0 | AG42: 2 | AM42: =IF($AM$39=3,TRUE,FALSE) -> FALSE | AN42: General Bath | AO42: General Bath | AP42: ='Materials Costs'!C48 -> 24 in Medicine Cabinet | AS42: ='Materials Costs'!N48 -> 99 | AT42: ='Labor Costs'!$F$33 -> 50 | AU42: 0 | AV42: 0 | AW42: 0 | AX42: =IF($BA$39,0,ROUND(AV42*(COL/100),2)) -> 0
E43: ELECTRICIAN | J43: =SUM(AW53:AW55) -> 0 | L43: =SUM(AX53:AX55) -> 0 | AG43: 3 | AM43: =IF($AM$39=4,TRUE,FALSE) -> FALSE | AN43: General Bath | AO43: General Bath | AP43: ='Materials Costs'!C49 -> 16 in Medicine Cabinet | AS43: ='Materials Costs'!N49 -> 37.97 | AT43: ='Labor Costs'!$F$33 -> 50 | AU43: 0 | AV43: 0 | AW43: 0 | AX43: =IF($BA$39,0,ROUND(AV43*(COL/100),2)) -> 0
E44: FLOORING | J44: =SUM(AW25:AW27)+AW29+AW52 -> 0 | L44: =SUM(AX25:AX27)+AX29+AX52 -> 0 | AG44: 4 | AM44: =IF($AM$39=5,TRUE,FALSE) -> TRUE | AN44: General Bath | AO44: General Bath | AP44: No Medicine Cabinet | AS44: 0 | AT44: 0 | AU44: 0 | AV44: 0 | AW44: 0 | AX44: =IF($BA$39,0,ROUND(AV44*(COL/100),2)) -> 0
E45: GENERAL BATH | J45: =AW22+AW28+SUM(AW4:AW20)+SUM(AW34:AW35)+SUM(AW40:AW47)+AW50+AW51+SUM(AW58:AW62) -> 0 | L45: =AX22+AX28+SUM(AX4:AX20)+SUM(AX34:AX35)+SUM(AX40:AX47)+AX50+AX51+SUM(AX58:AX62) -> 0 | AG45: 5 | AM45: FALSE | AN45: General Bath | AO45: General Bath | AP45: Replace Bathtub | AS45: ='Materials Costs'!N51 -> 193 | AT45: ='Labor Costs'!F35 -> 225 | AU45: 0 | AV45: 0 | AW45: 0 | AX45: =IF(BA45,0,ROUND(AV45*(COL/100),2)) -> 0 | BA45: FALSE
E46: PAINTER | J46: =SUM(AW23:AW24) -> 0 | L46: =SUM(AX23:AX24) -> 0 | AG46: 6 | AM46: FALSE | AN46: General Bath | AO46: General Bath | AP46: Replace Shower Pan | AS46: ='Materials Costs'!N52 -> 189 | AT46: ='Labor Costs'!F36 -> 200 | AU46: 0 | AV46: 0 | AW46: 0 | AX46: 0 | BA46: FALSE
E47: PLUMBER | J47: =SUM(AW30:AW31)+AW33+SUM(AW48:AW49) -> 0 | L47: =SUM(AX30:AX31)+AX33+SUM(AX48:AX49) -> 0 | AG47: 7 | AM47: FALSE | AN47: General Bath | AO47: General Bath | AP47: Replace Tub Surround | AS47: ='Materials Costs'!N53 -> 95 | AT47: ='Labor Costs'!F37 -> 150 | AU47: 0 | AV47: 0 | AW47: 0 | AX47: 0 | BA47: FALSE
E48: WINDOWS & DOORS | J48: =AW56+SUM(AW65:AW71) -> 0 | L48: =AX56+SUM(AX65:AX71) -> 0 | AG48: 8 | AM48: FALSE | AN48: Plumber | AO48: Plumber | AP48: Bathtub Faucet Kit | AS48: ='Materials Costs'!N54 -> 131 | AT48: ='Labor Costs'!F38 -> 80 | AU48: 0 | AV48: 0 | AW48: 0 | AX48: 0 | BA48: FALSE
AG49: 9 | AM49: FALSE | AN49: Plumber | AO49: Plumber | AP49: ='Labor Costs'!D40 -> Replumb Bathtub Supply and Drain | AS49: 0 | AT49: ='Labor Costs'!F40 -> 210 | AU49: 0 | AV49: 0 | AW49: 0 | AX49: 0 | BA49: FALSE
AG50: 10 | AM50: FALSE | AN50: General Bath | AO50: General | AP50: ='Materials Costs'!C55 -> Double Sliding Shower Doors | AS50: ='Materials Costs'!N55 -> 129 | AT50: ='Labor Costs'!F41 -> 100 | AU50: 0 | AV50: 0 | AW50: 0 | AX50: 0 | BA50: FALSE
AG51: 11 | AM51: FALSE | AN51: General Bath | AO51: General | AP51: ='Materials Costs'!C56 -> One piece shower enclosure | AS51: ='Materials Costs'!N56 -> 379 | AT51: ='Labor Costs'!F42 -> 150 | AU51: 0 | AV51: 0 | AW51: 0 | AX51: 0 | BA51: FALSE
AG52: 12 | AM52: =IF(AU52>0,TRUE,FALSE) -> FALSE | AN52: Flooring | AO52: Flooring | AP52: Shower/Wall Tile | AQ52: =AG22 -> 0 | AR52: sq ft | AS52: ='Materials Costs'!N57+'Materials Costs'!N7 -> 3.491333333 | AT52: =('Labor Costs'!F13+'Labor Costs'!F5) -> 4.45 | AU52: =AS52*AQ52 -> 0 | AV52: =AT52*AQ52 -> 0 | AW52: 0 | AX52: 0 | BA52: FALSE
AM53: FALSE | AN53: Electrician | AO53: Electrician | AP53: Install GFI Circuit | AS53: ='Materials Costs'!N59 -> 15.98 | AT53: ='Labor Costs'!F64 -> 150 | AU53: =IF(AM53,AS53,0) -> 0 | AV53: =IF(AM53,AT53,0) -> 0 | AW53: 0 | AX53: 0 | BA53: FALSE
AM54: FALSE | AN54: Electrician | AO54: Electrician | AP54: Exhaust Fan | AS54: ='Materials Costs'!N60 -> 108 | AT54: ='Labor Costs'!F65 -> 125 | AU54: 0 | AV54: 0 | AW54: 0 | AX54: 0 | BA54: FALSE
AM55: FALSE | AN55: Electrician | AO55: Electrician | AP55: Bath Light (wall mount) | AS55: ='Materials Costs'!N61 -> 59.97 | AT55: ='Labor Costs'!F66 -> 95 | AU55: 0 | AV55: 0 | AW55: 0 | AX55: 0 | BA55: FALSE
AM56: FALSE | AN56: Windows & Doors | AO56: Windows & Doors | AP56: New Glass Block Window | AS56: ='Materials Costs'!N107 -> 124.33 | AT56: ='Labor Costs'!F46 -> 85 | AU56: 0 | AV56: 0 | AW56: 0 | AX56: 0 | BA56: FALSE
AM57: 1 | AN57: General Bath | AW57: 0 | AX57: 0 | BA57: FALSE
AM58: =IF($AM$57=1,TRUE,FALSE) -> TRUE | AN58: General Bath | AO58: General Bath | AP58: No Door | AS58: 0 | AT58: 0 | AU58: 0 | AV58: 0 | AW58: 0 | AX58: 0 | BA58: =IF($BA$57,TRUE,FALSE) -> FALSE
AM59: =IF($AM$57=2,TRUE,FALSE) -> FALSE | AN59: General Bath | AO59: General Bath | AP59: ='Materials Costs'!C70 -> 28 x 80 Prehung Interior Door | AS59: ='Materials Costs'!N70 -> 76.79 | AT59: ='Labor Costs'!$F$52 -> 150 | AU59: 0 | AV59: 0 | AW59: 0 | AX59: 0 | BA59: =IF($BA$57,TRUE,FALSE) -> FALSE
AM60: =IF($AM$57=3,TRUE,FALSE) -> FALSE | AN60: General Bath | AO60: General Bath | AP60: ='Materials Costs'!C71 -> 30 x 80 Prehung Interior Door | AS60: ='Materials Costs'!N71 -> 76.79 | AT60: ='Labor Costs'!$F$52 -> 150 | AU60: 0 | AV60: 0 | AW60: 0 | AX60: 0 | BA60: =IF($BA$57,TRUE,FALSE) -> FALSE
AM61: =IF($AM$57=4,TRUE,FALSE) -> FALSE | AN61: General Bath | AO61: General Bath | AP61: ='Materials Costs'!C72 -> 32 X 80 Prehung Interior Door | AS61: ='Materials Costs'!N72 -> 96.14 | AT61: ='Labor Costs'!$F$52 -> 150 | AU61: 0 | AV61: 0 | AW61: 0 | AX61: 0 | BA61: =IF($BA$57,TRUE,FALSE) -> FALSE
AM62: FALSE | AN62: General Bath | AO62: General Bath | AP62: Replace Window & Door Moulding | AQ62: =36 -> 36 | AR62: ln ft | AS62: ='Materials Costs'!N66 -> 1.29 | AT62: ='Labor Costs'!F58 -> 2.77 | AU62: =IF(AM62,AS62*AQ62,0) -> 0 | AV62: =IF(AM62,AT62*AQ62,0) -> 0 | AW62: 0 | AX62: 0 | BA62: FALSE
AM63: FALSE | AN63: General Bath | AO63: Windows & Doors | AP63: ='Materials Costs'!C73 -> Interior Door Lockset | AS63: ='Materials Costs'!O73 -> 8.97 | AT63: ='Labor Costs'!G51 -> 25 | AU63: =IF(AM63,AS63,0) -> 0 | AV63: =IF(AM63,AT63,0) -> 0 | AW63: 0 | AX63: 0 | BA63: FALSE
AM64: 1 | AN64: Windows & Doors | AQ64: =$AG$36 -> 0 | AU64: =IF(AM64,AS64*AQ64,0) -> 0 | AV64: =IF(AM64,AT64*AQ64,0) -> 0 | AW64: 0 | AX64: 0
AM65: =IF($AM$64=1,TRUE,FALSE) -> TRUE | AN65: Windows & Doors | AO65: Windows & Doors | AP65: No Window | AQ65: 0 | AS65: 0 | AT65: 0 | AU65: 0 | AV65: 0 | AW65: 0 | AX65: 0 | BA65: FALSE
AM66: =IF($AM$64=2,TRUE,FALSE) -> FALSE | AN66: Windows & Doors | AO66: Windows & Doors | AP66: ='Materials Costs'!C100 -> 28 x 38 Double Hung | AQ66: 0 | AS66: ='Materials Costs'!N100 -> 124 | AT66: ='Labor Costs'!$F$44 -> 125 | AU66: 0 | AV66: 0 | AW66: 0 | AX66: 0 | BA66: =IF(BA65,TRUE,FALSE) -> FALSE
AM67: =IF($AM$64=3,TRUE,FALSE) -> FALSE | AN67: Windows & Doors | AO67: Windows & Doors | AP67: ='Materials Costs'!C101 -> 28 x 54 Double Hung | AQ67: 0 | AS67: ='Materials Costs'!N101 -> 134 | AT67: ='Labor Costs'!$F$44 -> 125 | AU67: 0 | AV67: 0 | AW67: 0 | AX67: 0 | BA67: FALSE
AM68: =IF($AM$64=4,TRUE,FALSE) -> FALSE | AN68: Windows & Doors | AO68: Windows & Doors | AP68: ='Materials Costs'!C102 -> 32 x 38 Double Hung | AQ68: 0 | AS68: ='Materials Costs'!N102 -> 147 | AT68: ='Labor Costs'!$F$44 -> 125 | AU68: 0 | AV68: 0 | AW68: 0 | AX68: 0 | BA68: FALSE
AM69: =IF($AM$64=5,TRUE,FALSE) -> FALSE | AN69: Windows & Doors | AO69: Windows & Doors | AP69: ='Materials Costs'!C103 -> 32 x 54 Double Hung | AQ69: 0 | AS69: ='Materials Costs'!N103 -> 155 | AT69: ='Labor Costs'!$F$44 -> 125 | AU69: 0 | AV69: 0 | AW69: 0 | AX69: 0 | BA69: FALSE
AM70: =IF($AM$64=6,TRUE,FALSE) -> FALSE | AN70: Windows & Doors | AO70: Windows & Doors | AP70: ='Materials Costs'!C104 -> 36 x 38 Double Hung | AQ70: 0 | AS70: ='Materials Costs'!N104 -> 134 | AT70: ='Labor Costs'!$F$44 -> 125 | AU70: 0 | AV70: 0 | AW70: 0 | AX70: 0 | BA70: FALSE
AM71: =IF($AM$64=7,TRUE,FALSE) -> FALSE | AN71: Windows & Doors | AO71: Windows & Doors | AP71: ='Materials Costs'!C105 -> 36 x 54 Double Hung | AQ71: 0 | AS71: ='Materials Costs'!N105 -> 167 | AT71: ='Labor Costs'!$F$44 -> 125 | AU71: 0 | AV71: 0 | AW71: 0 | AX71: 0 | BA71: FALSE
AM72: TRUE | AN72: Contingency | AO72: Contingency | AP72: Contingency | AW72: =AY72*0.5 -> 0 | AX72: =0.5*AY72 -> 0 | AY72: =IF(AM73,(AY3+AZ3)*'Offer Calculator'!U23,S4) -> 0
AM73: TRUE | AW73: =ROUND(AU73*(COL/100),2) -> 0 | AX73: =ROUND(AV73*(COL/100),2) -> 0
AW74: 0 | AX74: 0
AW75: 0 | AX75: 0
AW76: 0 | AX76: 0
AW77: 0 | AX77: 0
AW78: 0 | AX78: 0
AW79: 0 | AX79: 0
AW80: 0 | AX80: 0
AW81: 0 | AX81: 0
AW82: 0 | AX82: 0
AW83: 0 | AX83: 0

Sheet Bathroom 2
N1: Bathroom 2 Repair | AL1: 24 | AS1: Each | AU1: Extended | AW1: Region Adjustment | AY1: Total | BA1: DIY
B2: Estimated Labor & Material Costs | AL2: 24 | AM2: Include? | AN2: Category | AO2: Contractor | AP2: Description | AQ2: Amount | AR2: Measure | AS2: Material | AT2: Labor | AU2: Material | AV2: Labor | AW2: Material | AX2: Labor | AY2: Material | AZ2: Labor
N3: Contingency for This Room | AL3: 20 | AM3: 9 | AN3: General Bath | AY3: =SUM(AW4:AW75) -> 0 | AZ3: =SUM(AX4:AX75) -> 0 | BA3: FALSE
C4: Vanity | J4: =SUM(AW4:AW12)+SUM(AX4:AX12) -> 0 | O4: Standard | Q4: or | R4: $ | S4: 0 | U4: Room dimensions (ft): | AB4: Width | AD4: 0 | AE4: Depth | AG4: 0 | AL4: 20 | AM4: =IF($AM$3=1,TRUE,FALSE) -> FALSE | AN4: General Bath | AO4: General Bath | AP4: ='Materials Costs'!C30 -> Pedestal Sink | AS4: ='Materials Costs'!N30 -> 99 | AT4: ='Labor Costs'!$F$31 -> 100 | AU4: =IF(AM4,AS4,0) -> 0 | AV4: =IF(AM4,AT4,0) -> 0 | AW4: =ROUND(AU4*(COL/100),2) -> 0 | AX4: =IF($BA$3,0,ROUND(AV4*(COL/100),2)) -> 0
AL5: 20 | AM5: =IF($AM$3=2,TRUE,FALSE) -> FALSE | AN5: General Bath | AO5: General Bath | AP5: ='Materials Costs'!C31 -> 60 x 22 x 34 Double Bowl Vanity | AS5: ='Materials Costs'!N31 -> 799 | AT5: ='Labor Costs'!$F$31 -> 100 | AU5: =IF(AM5,AS5,0) -> 0 | AV5: =IF(AM5,AT5,0) -> 0 | AW5: 0 | AX5: 0
C6: Vanity Top | J6: =SUM(AW14:AW20)+SUM(AX14:AX20) -> 0 | N6: DIY | O6: Vanity | AL6: 20 | AM6: =IF($AM$3=3,TRUE,FALSE) -> FALSE | AN6: General Bath | AO6: General Bath | AP6: ='Materials Costs'!C32 -> 48 x 22 x 34 Single Bowl Vanity | AS6: ='Materials Costs'!N32 -> 549 | AT6: ='Labor Costs'!$F$31 -> 100 | AU6: 0 | AV6: 0 | AW6: 0 | AX6: 0
Y7: DIY | Z7: Medicine Cabinet | AL7: 20 | AM7: =IF($AM$3=4,TRUE,FALSE) -> FALSE | AN7: General Bath | AO7: General Bath | AP7: ='Materials Costs'!C33 -> 36 x 22 x 34 Single Bowl Vanity | AS7: ='Materials Costs'!N33 -> 449 | AT7: ='Labor Costs'!$F$31 -> 100 | AU7: 0 | AV7: 0 | AW7: 0 | AX7: 0
C8: Walls | J8: =SUM(AW21:AW24)+SUM(AX21:AX24) -> 0 | AL8: 20 | AM8: =IF($AM$3=5,TRUE,FALSE) -> FALSE | AN8: General Bath | AO8: General Bath | AP8: ='Materials Costs'!C34 -> 30 x 22 x 34 Single Bowl Vanity | AS8: ='Materials Costs'!N34 -> 349 | AT8: ='Labor Costs'!$F$31 -> 100 | AU8: 0 | AV8: 0 | AW8: 0 | AX8: 0
AL9: 20 | AM9: =IF($AM$3=6,TRUE,FALSE) -> FALSE | AN9: General Bath | AO9: General Bath | AP9: ='Materials Costs'!C35 -> 24 x 21 x 34 Single Bowl Vanity | AS9: ='Materials Costs'!N35 -> 499 | AT9: ='Labor Costs'!$F$31 -> 100 | AU9: 0 | AV9: 0 | AW9: 0 | AX9: 0
C10: Floors | J10: =SUM(AW25:AW33)+SUM(AX25:AX33) -> 0 | AL10: 20 | AM10: =IF($AM$3=7,TRUE,FALSE) -> FALSE | AN10: General Bath | AO10: General Bath | AP10: ='Materials Costs'!C36 -> 18 x 21 x 34 Single Bowl Vanity WITH TOP | AS10: ='Materials Costs'!N36 -> 149 | AT10: ='Labor Costs'!$F$31 -> 100 | AU10: 0 | AV10: 0 | AW10: 0 | AX10: 0
AM11: =IF($AM$3=8,TRUE,FALSE) -> FALSE | AN11: General Bath | AO11: General Bath | AP11: ='Materials Costs'!C37 -> 18 x 16 x 34 Single Bowl Vanity | AS11: ='Materials Costs'!N37 -> 90.06 | AT11: ='Labor Costs'!$F$31 -> 100 | AU11: 0 | AV11: 0 | AW11: 0 | AX11: 0
C12: Sink & Toilet | J12: =SUM(AW34:AW35)+SUM(AX34:AX35)+AW37+AX37 -> 0 | N12: DIY | O12: Walls & Floors | Y12: DIY | Z12: Tub & Shower | AL12: 20 | AM12: =IF($AM$3=9,TRUE,FALSE) -> TRUE | AN12: General Bath | AP12: No Vanity | AS12: 0 | AT12: 0 | AU12: 0 | AV12: 0 | AW12: 0 | AX12: 0
O13: =AP21 -> Hang & Finish Drywall | Z13: =AP49 -> Replace Bathtub | AL13: 20 | AM13: 7 | AN13: General Bath | AS13: 0 | AT13: 0 | AU13: 0 | AV13: 0 | AW13: =ROUND(AU13*(COL/100),2) -> 0 | AX13: =ROUND(AV13*(COL/100),2) -> 0 | BA13: FALSE
C14: Mirror, Accessories, Storage Cabinet | J14: =AW36+AW38+AW39+AX36+AX38+AX39 -> 0 | O14: Remove Wallpaper | Z14: Replace Shower Pan | AL14: 20 | AM14: =IF($AM$13=1,TRUE,FALSE) -> FALSE | AN14: General Bath | AO14: General Bath | AP14: ='Materials Costs'!C39 -> 61 x 22 Double Bowl | AS14: ='Materials Costs'!N39 -> 540 | AT14: ='Labor Costs'!$F$32 -> 50 | AU14: 0 | AV14: 0 | AW14: =ROUND(AU14*(COL/100),2) -> 0 | AX14: =IF($BA$13,0,ROUND(AV14*(COL/100),2)) -> 0
O15: Prime Walls | Z15: Replace Tub Surround | AM15: =IF($AM$13=2,TRUE,FALSE) -> FALSE | AN15: General Bath | AO15: General Bath | AP15: ='Materials Costs'!C40 -> 49 x 22 Single Bowl | AS15: ='Materials Costs'!N40 -> 229 | AT15: ='Labor Costs'!$F$32 -> 50 | AU15: 0 | AV15: 0 | AW15: 0 | AX15: 0
C16: Medicine Cabinet | J16: =SUM(AW44:AW48)+SUM(AX44:AX48) -> 0 | O16: Paint Walls | Z16: Bathtub Faucet Kit | AL16: 20 | AM16: =IF($AM$13=3,TRUE,FALSE) -> FALSE | AN16: General Bath | AO16: General Bath | AP16: ='Materials Costs'!C41 -> 37 x 22 Single Bowl | AS16: ='Materials Costs'!N41 -> 317 | AT16: ='Labor Costs'!$F$32 -> 50 | AU16: 0 | AV16: 0 | AW16: 0 | AX16: 0
O17: Subfloor (luan) | Z17: Replumb Bathtub Supply and Drain | AL17: 20 | AM17: =IF($AM$13=4,TRUE,FALSE) -> FALSE | AN17: General Bath | AO17: General Bath | AP17: ='Materials Costs'!C42 -> 31 x 22 Single Bowl | AS17: ='Materials Costs'!N42 -> 169 | AT17: ='Labor Costs'!$F$32 -> 50 | AU17: 0 | AV17: 0 | AW17: 0 | AX17: 0
C18: Bathtub, Plumbing, Surround | J18: =AW49+AX49+AW52+AX52+AW53+AX53+AW51+AX51 -> 0 | O18: Ceramic Tile | Z18: Double Sliding Shower Doors | AM18: =IF($AM$13=5,TRUE,FALSE) -> FALSE | AN18: General Bath | AO18: General Bath | AP18: ='Materials Costs'!C43 -> 25 x 22 Single Bowl | AS18: ='Materials Costs'!N43 -> 227.22 | AT18: ='Labor Costs'!$F$32 -> 50 | AU18: 0 | AV18: 0 | AW18: 0 | AX18: 0
O19: Vinyl Flooring | Z19: One piece shower enclosure | AM19: =IF($AM$13=6,TRUE,FALSE) -> FALSE | AN19: General Bath | AO19: General Bath | AP19: ='Materials Costs'!C44 -> 18 x 16 Single Bowl | AS19: ='Materials Costs'!N44 -> 57.39 | AT19: ='Labor Costs'!$F$32 -> 50 | AU19: 0 | AV19: 0 | AW19: 0 | AX19: 0
C20: Shower, Plumbing | J20: =AW50+AX50+AW54+AX54+AW55+AX55 -> 0 | O20: Replace and Paint Baseboards | AL20: 20 | AM20: =IF($AM$13=7,TRUE,FALSE) -> TRUE | AN20: General Bath | AO20: General Bath | AP20: No Vanity Top | AU20: 0 | AV20: 0 | AW20: 0 | AX20: 0
AL21: 20 | AM21: FALSE | AN21: Drywall | AO21: Drywall | AP21: Hang & Finish Drywall | AQ21: =(8*$AD$4)*2+(8*$AG$4)*2 -> 0 | AR21: sq ft | AS21: ='Materials Costs'!N5+'Materials Costs'!N6 -> 0.348825 | AT21: ='Labor Costs'!F5+'Labor Costs'!F6 -> 2.45 | AU21: =IF(AM21,AQ21*AS21,0) -> 0 | AV21: =IF(AM21,AQ21*AT21,0) -> 0 | AW21: 0 | AX21: =IF(BA21,0,ROUND(AV21*(COL/100),2)) -> 0 | BA21: FALSE
C22: Shower and Wall Tile | J22: =AW56+AX56 -> 0 | O22: =AP33 -> Replace Rotted Floor | V22: 0 | Z22: =AP56 -> Shower/Wall Tile | AG22: 0 | AL22: 20 | AM22: FALSE | AN22: General Bath | AO22: General Bath | AP22: Remove Wallpaper | AQ22: =(8*$AD$4)*2+(8*$AG$4)*2 -> 0 | AR22: sq ft | AS22: 0 | AT22: ='Labor Costs'!F7 -> 1 | AU22: =IF(AM22,AQ22*AS22,0) -> 0 | AV22: =IF(AM22,AQ22*AT22,0) -> 0 | AW22: 0 | AX22: =IF($BA$22,0,ROUND(AV22*(COL/100),2)) -> 0 | BA22: FALSE
AL23: 20 | AM23: FALSE | AN23: Painter | AO23: Painter | AP23: Prime Walls | AQ23: =(8*$AD$4)*2+(8*$AG$4)*2 -> 0 | AR23: sq ft | AS23: ='Materials Costs'!N9 -> 0.04245 | AT23: ='Labor Costs'!F9 -> 0.4 | AU23: =IF(AM23,AQ23*AS23,0) -> 0 | AV23: =IF(AM23,AQ23*AT23,0) -> 0 | AW23: 0 | AX23: =IF(BA23,0,ROUND(AV23*(COL/100),2)) -> 0 | BA23: FALSE
C24: GFI Circuit, Fan, Light | J24: =AW57+AX57+AW58+AX58+AW59+AX59 -> 0 | AL24: 20 | AM24: FALSE | AN24: Painter | AO24: Painter | AP24: Paint Walls | AQ24: =(8*$AD$4)*2+(8*$AG$4)*2 -> 0 | AR24: sq ft | AS24: ='Materials Costs'!N8 -> 0.11485 | AT24: ='Labor Costs'!F8 -> 0.65 | AU24: =IF(AM24,AQ24*AS24,0) -> 0 | AV24: =IF(AM24,AQ24*AT24,0) -> 0 | AW24: 0 | AX24: 0 | BA24: FALSE
AL25: 20 | AM25: FALSE | AN25: Flooring | AO25: Flooring | AP25: ='Materials Costs'!C13 -> Subfloor (luan) | AQ25: =$AD$4*$AG$4 -> 0 | AR25: sq ft | AS25: ='Materials Costs'!N13 -> 0.436875 | AT25: ='Labor Costs'!F12 -> 0.4 | AU25: =IF(AM25,AQ25*AS25,0) -> 0 | AV25: =IF(AM25,AQ25*AT25,0) -> 0 | AW25: 0 | AX25: 0 | BA25: FALSE
C26: Windows and Doors | J26: =AW60+AX60+AW61+AX61+SUM(AW70:AW75)+SUM(AX70:AX75)+AW67+AX67 -> 0 | N26: DIY | O26: Sink & Toilet | Y26: DIY | Z26: Electrical, Windows & Misc | AL26: 20 | AM26: FALSE | AN26: Flooring | AO26: Flooring | AP26: ='Materials Costs'!C14 -> Ceramic Tile | AQ26: =$AD$4*$AG$4 -> 0 | AR26: sq ft | AS26: ='Materials Costs'!N14 -> 1.86 | AT26: ='Labor Costs'!F13 -> 3.5 | AU26: 0 | AV26: 0 | AW26: 0 | AX26: 0 | BA26: FALSE
O27: =AP34 -> Sink Faucet | Z27: =AP57 -> Install GFI Circuit | AL27: 20 | AM27: FALSE | AN27: Flooring | AO27: Flooring | AP27: ='Materials Costs'!C15 -> Vinyl Flooring | AQ27: =$AD$4*$AG$4 -> 0 | AR27: sq ft | AS27: ='Materials Costs'!N15 -> 1.69 | AT27: ='Labor Costs'!F15 -> 1.25 | AU27: 0 | AV27: 0 | AW27: 0 | AX27: 0 | BA27: FALSE
C28: Door and Moulding | J28: =SUM(AW62:AW65)+SUM(AX62:AX65)+AW66+AX66 -> 0 | O28: =AP35 -> Replumb Sink Supply and Drain | Z28: =AP58 -> Exhaust Fan | AL28: 20 | AM28: FALSE | AN28: General Bath | AO28: General Bath | AP28: Replace and Paint Baseboards | AQ28: =(AD4*2)+(AG4*2) -> 0 | AR28: ln ft | AS28: ='Materials Costs'!N19+'Materials Costs'!N20 -> 0.216175 | AT28: ='Labor Costs'!F17 -> 2.77 | AU28: 0 | AV28: 0 | AW28: 0 | AX28: 0 | BA28: FALSE
O29: =AP38 -> Bath Accessories Kit | Z29: =AP59 -> Bath Light (wall mount) | AL29: 20 | AM29: =Q13 -> 0 | AN29: Flooring | AO29: Flooring | AP29: Engineered Hardwood Flooring | AR29: sq ft | AU29: 0 | AV29: 0 | AW29: 0 | AX29: 0
C30: Demolition | J30: =AX42 -> 0 | O30: =AP39 -> White Cabinet with Glass Doors | Z30: =AP60 -> New Glass Block Window | AL30: 20 | AM30: =Q14 -> 0 | AN30: Flooring | AO30: Flooring | AP30: Carpet | AR30: yards | AU30: 0 | AV30: 0 | AW30: 0 | AX30: 0
O31: =AP36 -> Mirror | Z31: Entry Door | AL31: 20 | AM31: =Q15 -> 0 | AN31: Flooring | AO31: Flooring | AP31: Refinish Hardwood Floor | AR31: sq ft | AU31: =AS31 -> 0 | AV31: =AT31 -> 0 | AW31: 0 | AX31: 0
C32: Contingency Applied to This Room | J32: =AY76 -> 0 | O32: =AP37 -> Replace Toilet | AL32: 20 | AN32: Flooring | AU32: 0 | AV32: 0 | AW32: 0 | AX32: 0
C33: Estimated Total Labor Cost This Room | J33: =AZ3 -> 0 | Z33: =AP66 -> Replace Window & Door Moulding | AL33: 20 | AM33: =IF(AU33>0,TRUE,FALSE) -> FALSE | AN33: Flooring | AO33: Flooring | AP33: Replace Rotted Floor | AQ33: =V22 -> 0 | AR33: sq ft | AS33: ='Materials Costs'!N21 -> 0.7671875 | AT33: ='Labor Costs'!F21 -> 2.5 | AU33: =AQ33*AS33 -> 0 | AV33: =AQ33*AT33 -> 0 | AW33: =ROUND(AU33*(COL/100),2) -> 0 | AX33: 0 | BA33: FALSE
C34: Estimated Total Material Cost This Room | J34: =AY3 -> 0 | Z34: =AP67 -> Interior Door Lockset | AL34: 20 | AM34: FALSE | AN34: Plumber | AO34: Plumber | AP34: ='Materials Costs'!C24 -> Sink Faucet | AS34: ='Materials Costs'!N24 -> 49 | AT34: ='Labor Costs'!F24 -> 95 | AU34: =IF(AM34,AS34,0) -> 0 | AV34: =IF(AM34,AT34,0) -> 0 | AW34: 0 | AX34: 0 | BA34: FALSE
C35: Total Estimated Room Repair Cost | J35: =J32+J33+J34 -> 0 | AB35: Replacement Windows | AG35: # | AL35: 20 | AM35: FALSE | AN35: Plumber | AO35: Plumber | AP35: ='Labor Costs'!D25 -> Replumb Sink Supply and Drain | AT35: ='Labor Costs'!F25 -> 125 | AU35: 0 | AV35: 0 | AW35: 0 | AX35: 0 | BA35: FALSE
O36: =AP42 -> Demolition Hours | V36: 0 | AG36: 0 | AL36: 20 | AM36: FALSE | AN36: General Bath | AO36: General Bath | AP36: ='Materials Costs'!C25 -> Mirror | AS36: ='Materials Costs'!N25 -> 69 | AT36: ='Labor Costs'!F29 -> 35 | AU36: 0 | AV36: 0 | AW36: 0 | AX36: 0 | BA36: FALSE
C37: Total Estimated Costs for Entire House | J37: ='Offer Calculator'!Z20+'Offer Calculator'!Z23 -> 0 | AL37: 20 | AM37: FALSE | AN37: Plumber | AO37: Plumber | AP37: Replace Toilet | AS37: ='Materials Costs'!N26 -> 99 | AT37: ='Labor Costs'!F26 -> 125 | AU37: 0 | AV37: 0 | AW37: 0 | AX37: 0 | BA37: FALSE
AL38: 20 | AM38: FALSE | AN38: General Bath | AO38: General Bath | AP38: ='Materials Costs'!C27 -> Bath Accessories Kit | AS38: ='Materials Costs'!N27 -> 29.98 | AT38: ='Labor Costs'!F27 -> 35 | AU38: 0 | AV38: 0 | AW38: 0 | AX38: 0 | BA38: FALSE
AL39: 20 | AM39: FALSE | AN39: General Bath | AO39: General Bath | AP39: ='Materials Costs'!C28 -> White Cabinet with Glass Doors | AS39: ='Materials Costs'!N28 -> 69 | AT39: ='Labor Costs'!F28 -> 70 | AU39: 0 | AV39: 0 | AW39: 0 | AX39: 0 | BA39: FALSE
E40: TYPE | J40: MATERIALS | L40: LABOR | AG40: 0 | AL40: 20 | AM40: =Z9 -> 0 | AN40: General Bath | AU40: =AS40*$O$5*$R$5 -> 0 | AV40: =AT40*$O$5*$R$5 -> 0 | AW40: 0 | AX40: 0
E41: DEMOLITION | L41: =AX42 -> 0 | AG41: 1 | AL41: 20 | AM41: =Z10 -> 0 | AN41: General Bath | AU41: =AS41*$O$5*$R$5 -> 0 | AV41: =AT41*$O$5*$R$5 -> 0 | AW41: 0 | AX41: 0
E42: DRYWALL | J42: =AW21 -> 0 | L42: =AX21 -> 0 | AG42: 2 | AL42: 20 | AM42: =IF(AQ42>0,TRUE,FALSE) -> FALSE | AN42: Demolition | AO42: Demolition | AP42: ='Labor Costs'!D114 -> Demolition Hours | AQ42: =V36 -> 0 | AT42: ='Labor Costs'!F114 -> 20 | AU42: 0 | AV42: =AQ42*AT42 -> 0 | AW42: 0 | AX42: 0 | BA42: FALSE
E43: ELECTRICIAN | J43: =SUM(AW57:AW59) -> 0 | L43: =SUM(AX57:AX59) -> 0 | AG43: 3 | AL43: =SUM(B39:AI39) -> 0 | AM43: 5 | AN43: General Bath | BA43: FALSE
E44: FLOORING | J44: =SUM(AW25:AW27)+AW33+AW56 -> 0 | L44: =SUM(AX25:AX27)+AX33+AX56 -> 0 | AG44: 4 | AM44: =IF(AM43=1,TRUE,FALSE) -> FALSE | AN44: General Bath | AO44: General Bath | AP44: ='Materials Costs'!C46 -> 36 in Medicine Cabinet | AS44: ='Materials Costs'!N46 -> 119 | AT44: ='Labor Costs'!$F$33 -> 50 | AU44: =IF(AM44,AS44,0) -> 0 | AV44: =IF(AM44,AT44,0) -> 0 | AW44: =ROUND(AU44*(COL/100),2) -> 0 | AX44: =IF($BA$43,0,ROUND(AV44*(COL/100),2)) -> 0
E45: GENERAL BATH | J45: =AW22+AW28+SUM(AW4:AW20)+AW36+SUM(AW38:AW39)+SUM(AW44:AW51)+AW54+AW55+SUM(AW63:AW67) -> 0 | L45: =AX22+AX28+SUM(AX4:AX20)+AX36+SUM(AX38:AX39)+SUM(AX44:AX51)+AX54+AX55+SUM(AX63:AX67) -> 0 | AG45: 5 | AM45: =IF($AM$43=2,TRUE,FALSE) -> FALSE | AN45: General Bath | AO45: General Bath | AP45: ='Materials Costs'!C47 -> 30 in Medicine Cabinet | AS45: ='Materials Costs'!N47 -> 99 | AT45: ='Labor Costs'!$F$33 -> 50 | AU45: =IF(AM45,AS45,0) -> 0 | AV45: =IF(AM45,AT45,0) -> 0 | AW45: 0 | AX45: =IF($BA$43,0,ROUND(AV45*(COL/100),2)) -> 0
E46: PAINTER | J46: =SUM(AW23:AW24) -> 0 | L46: =SUM(AX23:AX24) -> 0 | AG46: 6 | AM46: =IF($AM$43=3,TRUE,FALSE) -> FALSE | AN46: General Bath | AO46: General Bath | AP46: ='Materials Costs'!C48 -> 24 in Medicine Cabinet | AS46: ='Materials Costs'!N48 -> 99 | AT46: ='Labor Costs'!$F$33 -> 50 | AU46: 0 | AV46: 0 | AW46: 0 | AX46: =IF($BA$43,0,ROUND(AV46*(COL/100),2)) -> 0
E47: PLUMBER | J47: =SUM(AW34:AW35)+AW37+SUM(AW52:AW53) -> 0 | L47: =SUM(AX34:AX35)+AX37+SUM(AX52:AX53) -> 0 | AG47: 7 | AM47: =IF($AM$43=4,TRUE,FALSE) -> FALSE | AN47: General Bath | AO47: General Bath | AP47: ='Materials Costs'!C49 -> 16 in Medicine Cabinet | AS47: ='Materials Costs'!N49 -> 37.97 | AT47: ='Labor Costs'!$F$33 -> 50 | AU47: 0 | AV47: 0 | AW47: 0 | AX47: =IF($BA$43,0,ROUND(AV47*(COL/100),2)) -> 0
E48: WINDOWS & DOORS | J48: =AW60+SUM(AW69:AW75) -> 0 | L48: =AX60+SUM(AX69:AX75) -> 0 | AG48: 8 | AM48: =IF($AM$43=5,TRUE,FALSE) -> TRUE | AN48: General Bath | AO48: General Bath | AP48: No Medicine Cabinet | AS48: 0 | AT48: 0 | AU48: 0 | AV48: 0 | AW48: 0 | AX48: =IF($BA$43,0,ROUND(AV48*(COL/100),2)) -> 0
AG49: 9 | AM49: FALSE | AN49: General Bath | AO49: General Bath | AP49: Replace Bathtub | AS49: ='Materials Costs'!N51 -> 193 | AT49: ='Labor Costs'!F35 -> 225 | AU49: 0 | AV49: 0 | AW49: 0 | AX49: =IF(BA49,0,ROUND(AV49*(COL/100),2)) -> 0 | BA49: FALSE
AG50: 10 | AM50: FALSE | AN50: General Bath | AO50: General Bath | AP50: Replace Shower Pan | AS50: ='Materials Costs'!N52 -> 189 | AT50: ='Labor Costs'!F36 -> 200 | AU50: 0 | AV50: 0 | AW50: 0 | AX50: 0 | BA50: FALSE
AG51: 11 | AM51: FALSE | AN51: General Bath | AO51: General Bath | AP51: Replace Tub Surround | AS51: ='Materials Costs'!N53 -> 95 | AT51: ='Labor Costs'!F37 -> 150 | AU51: 0 | AV51: 0 | AW51: 0 | AX51: 0 | BA51: FALSE
AG52: 12 | AM52: FALSE | AN52: Plumber | AO52: Plumber | AP52: Bathtub Faucet Kit | AS52: ='Materials Costs'!N54 -> 131 | AT52: ='Labor Costs'!F38 -> 80 | AU52: 0 | AV52: 0 | AW52: 0 | AX52: 0 | BA52: FALSE
AM53: FALSE | AN53: Plumber | AO53: Plumber | AP53: ='Labor Costs'!D40 -> Replumb Bathtub Supply and Drain | AS53: 0 | AT53: ='Labor Costs'!F40 -> 210 | AU53: 0 | AV53: 0 | AW53: 0 | AX53: 0 | BA53: FALSE
AM54: FALSE | AN54: General Bath | AO54: General | AP54: ='Materials Costs'!C55 -> Double Sliding Shower Doors | AS54: ='Materials Costs'!N55 -> 129 | AT54: ='Labor Costs'!F41 -> 100 | AU54: 0 | AV54: 0 | AW54: 0 | AX54: 0 | BA54: FALSE
AM55: FALSE | AN55: General Bath | AO55: General | AP55: ='Materials Costs'!C56 -> One piece shower enclosure | AS55: ='Materials Costs'!N56 -> 379 | AT55: ='Labor Costs'!F42 -> 150 | AU55: 0 | AV55: 0 | AW55: 0 | AX55: 0 | BA55: FALSE
AM56: =IF(AU56>0,TRUE,FALSE) -> FALSE | AN56: Flooring | AO56: Flooring | AP56: Shower/Wall Tile | AQ56: =AG22 -> 0 | AR56: sq ft | AS56: ='Materials Costs'!N57+'Materials Costs'!N7 -> 3.491333333 | AT56: =('Labor Costs'!F13+'Labor Costs'!F5) -> 4.45 | AU56: =AS56*AQ56 -> 0 | AV56: =AT56*AQ56 -> 0 | AW56: 0 | AX56: 0 | BA56: FALSE
AM57: FALSE | AN57: Electrician | AO57: Electrician | AP57: Install GFI Circuit | AS57: ='Materials Costs'!N59 -> 15.98 | AT57: ='Labor Costs'!F64 -> 150 | AU57: =IF(AM57,AS57,0) -> 0 | AV57: =IF(AM57,AT57,0) -> 0 | AW57: 0 | AX57: 0 | BA57: FALSE
AM58: FALSE | AN58: Electrician | AO58: Electrician | AP58: Exhaust Fan | AS58: ='Materials Costs'!N60 -> 108 | AT58: ='Labor Costs'!F65 -> 125 | AU58: 0 | AV58: 0 | AW58: 0 | AX58: 0 | BA58: FALSE
AM59: FALSE | AN59: Electrician | AO59: Electrician | AP59: Bath Light (wall mount) | AS59: ='Materials Costs'!N61 -> 59.97 | AT59: ='Labor Costs'!F66 -> 95 | AU59: 0 | AV59: 0 | AW59: 0 | AX59: 0 | BA59: FALSE
AM60: FALSE | AN60: Windows & Doors | AO60: Windows & Doors | AP60: New Glass Block Window | AS60: ='Materials Costs'!N107 -> 124.33 | AT60: ='Labor Costs'!F46 -> 85 | AU60: 0 | AV60: 0 | AW60: 0 | AX60: 0 | BA60: FALSE
AM61: 1 | AN61: Electrician | AW61: 0 | AX61: 0 | BA61: FALSE
AM62: =IF($AM$61=1,TRUE,FALSE) -> TRUE | AN62: General Bath | AP62: No Door | AS62: 0 | AT62: 0 | AU62: 0 | AV62: 0 | AW62: 0 | AX62: 0 | BA62: =IF($BA$61,TRUE,FALSE) -> FALSE
AM63: =IF($AM$61=2,TRUE,FALSE) -> FALSE | AN63: General Bath | AO63: General Bath | AP63: ='Materials Costs'!C70 -> 28 x 80 Prehung Interior Door | AS63: ='Materials Costs'!N70 -> 76.79 | AT63: ='Labor Costs'!$F$52 -> 150 | AU63: 0 | AV63: 0 | AW63: 0 | AX63: 0 | BA63: =IF($BA$61,TRUE,FALSE) -> FALSE
AM64: =IF($AM$61=3,TRUE,FALSE) -> FALSE | AN64: General Bath | AO64: General Bath | AP64: ='Materials Costs'!C71 -> 30 x 80 Prehung Interior Door | AS64: ='Materials Costs'!N71 -> 76.79 | AT64: ='Labor Costs'!$F$52 -> 150 | AU64: 0 | AV64: 0 | AW64: 0 | AX64: 0 | BA64: =IF($BA$61,TRUE,FALSE) -> FALSE
AM65: =IF($AM$61=4,TRUE,FALSE) -> FALSE | AN65: General Bath | AO65: General Bath | AP65: ='Materials Costs'!C72 -> 32 X 80 Prehung Interior Door | AS65: ='Materials Costs'!N72 -> 96.14 | AT65: ='Labor Costs'!$F$52 -> 150 | AU65: 0 | AV65: 0 | AW65: 0 | AX65: 0 | BA65: =IF($BA$61,TRUE,FALSE) -> FALSE
AM66: FALSE | AN66: General Bath | AO66: General Bath | AP66: Replace Window & Door Moulding | AQ66: =36 -> 36 | AR66: ln ft | AS66: ='Materials Costs'!N66 -> 1.29 | AT66: ='Labor Costs'!F58 -> 2.77 | AU66: =IF(AM66,AS66*AQ66,0) -> 0 | AV66: =IF(AM66,AT66*AQ66,0) -> 0 | AW66: 0 | AX66: 0 | BA66: FALSE
AM67: FALSE | AN67: General Bath | AO67: General Bath | AP67: ='Materials Costs'!C73 -> Interior Door Lockset | AS67: ='Materials Costs'!O73 -> 8.97 | AT67: ='Labor Costs'!G51 -> 25 | AU67: =IF(AM67,AS67,0) -> 0 | AV67: =IF(AM67,AT67,0) -> 0 | AW67: 0 | AX67: 0 | BA67: FALSE
AM68: 1 | AN68: Windows & Doors | AQ68: =$AG$36 -> 0 | AU68: =IF(AM68,AS68*AQ68,0) -> 0 | AV68: =IF(AM68,AT68*AQ68,0) -> 0 | AW68: 0 | AX68: 0
AM69: =IF($AM$68=1,TRUE,FALSE) -> TRUE | AN69: Windows & Doors | AP69: No Window | AQ69: 0 | AS69: 0 | AT69: 0 | AU69: 0 | AV69: 0 | AW69: 0 | AX69: 0 | BA69: FALSE
AM70: =IF($AM$68=2,TRUE,FALSE) -> FALSE | AN70: Windows & Doors | AO70: Windows & Doors | AP70: ='Materials Costs'!C100 -> 28 x 38 Double Hung | AQ70: 0 | AS70: ='Materials Costs'!N100 -> 124 | AT70: ='Labor Costs'!$F$44 -> 125 | AU70: 0 | AV70: 0 | AW70: 0 | AX70: 0 | BA70: =IF(BA69,TRUE,FALSE) -> FALSE
AM71: =IF($AM$68=3,TRUE,FALSE) -> FALSE | AN71: Windows & Doors | AO71: Windows & Doors | AP71: ='Materials Costs'!C101 -> 28 x 54 Double Hung | AQ71: 0 | AS71: ='Materials Costs'!N101 -> 134 | AT71: ='Labor Costs'!$F$44 -> 125 | AU71: 0 | AV71: 0 | AW71: 0 | AX71: 0 | BA71: FALSE
AM72: =IF($AM$68=4,TRUE,FALSE) -> FALSE | AN72: Windows & Doors | AO72: Windows & Doors | AP72: ='Materials Costs'!C102 -> 32 x 38 Double Hung | AQ72: 0 | AS72: ='Materials Costs'!N102 -> 147 | AT72: ='Labor Costs'!$F$44 -> 125 | AU72: 0 | AV72: 0 | AW72: 0 | AX72: 0 | BA72: FALSE
AM73: =IF($AM$68=5,TRUE,FALSE) -> FALSE | AN73: Windows & Doors | AO73: Windows & Doors | AP73: ='Materials Costs'!C103 -> 32 x 54 Double Hung | AQ73: 0 | AS73: ='Materials Costs'!N103 -> 155 | AT73: ='Labor Costs'!$F$44 -> 125 | AU73: 0 | AV73: 0 | AW73: 0 | AX73: 0 | BA73: FALSE
AM74: =IF($AM$68=6,TRUE,FALSE) -> FALSE | AN74: Windows & Doors | AO74: Windows & Doors | AP74: ='Materials Costs'!C104 -> 36 x 38 Double Hung | AQ74: 0 | AS74: ='Materials Costs'!N104 -> 134 | AT74: ='Labor Costs'!$F$44 -> 125 | AU74: 0 | AV74: 0 | AW74: 0 | AX74: 0 | BA74: FALSE
AM75: =IF($AM$68=7,TRUE,FALSE) -> FALSE | AN75: Windows & Doors | AO75: Windows & Doors | AP75: ='Materials Costs'!C105 -> 36 x 54 Double Hung | AQ75: 0 | AS75: ='Materials Costs'!N105 -> 167 | AT75: ='Labor Costs'!$F$44 -> 125 | AU75: 0 | AV75: 0 | AW75: 0 | AX75: 0 | BA75: FALSE
AM76: TRUE | AN76: Contingency | AO76: Contingency | AP76: Contingency | AW76: =0.5*AY76 -> 0 | AX76: =0.5*AY76 -> 0 | AY76: =IF(AM77,(AY3+AZ3)*'Offer Calculator'!U23,S4) -> 0
AM77: TRUE | AW77: =ROUND(AU77*(COL/100),2) -> 0 | AX77: =ROUND(AV77*(COL/100),2) -> 0
AW78: 0 | AX78: 0
AW79: 0 | AX79: 0
AW80: 0 | AX80: 0
AW81: 0 | AX81: 0
AW82: 0 | AX82: 0
AW83: 0 | AX83: 0
AW84: 0 | AX84: 0
AW85: 0 | AX85: 0
AW86: 0 | AX86: 0
AW87: 0 | AX87: 0
AS90: FALSE | AT90: enter sq ft | AU90: 400 | AV90: sq ft
AS92: TRUE | AT92: enter square ft | AU92: 210 | AV92: sq ft
AS94: TRUE | AT94: enter square ft | AU94: 164 | AV94: sq ft
AS96: TRUE | AT96: enter room sq ft (not sq yards, the number you enter is converted to sq yds) | AU96: 75 | AV96: sq yd
AS98: FALSE | AT98: enter square ft | AU98: 0 | AV98: sq ft
AS100: 0 | AT100: each
AS102: 0 | AT102: each
AS104: 0 | AT104: each
AS106: 0 | AT106: each
AS108: 252.99 | AT108: linear ft
AS110: 202 | AT110: linear ft
AS112: 53 | AT112: linear ft

Sheet Bathroom 3
N1: Bathroom 3 Repair | AL1: 24 | AS1: Each | AU1: Extended | AW1: Region Adjustment | AY1: Total | BA1: DIY
B2: Estimated Labor & Material Costs | AL2: 24 | AM2: Include? | AN2: Category | AO2: Contractor | AP2: Description | AQ2: Amount | AR2: Measure | AS2: Material | AT2: Labor | AU2: Material | AV2: Labor | AW2: Material | AX2: Labor | AY2: Material | AZ2: Labor
N3: Contingency for This Room | AL3: 20 | AM3: 9 | AN3: General Bath | AY3: =SUM(AW4:AW75) -> 0 | AZ3: =SUM(AX4:AX75) -> 0 | BA3: FALSE
C4: Vanity | J4: =SUM(AW4:AW12)+SUM(AX4:AX12) -> 0 | O4: Standard | Q4: or | R4: $ | S4: 0 | U4: Room dimensions (ft): | AB4: Width | AD4: 0 | AE4: Depth | AG4: 0 | AL4: 20 | AM4: =IF($AM$3=1,TRUE,FALSE) -> FALSE | AN4: General Bath | AO4: General Bath | AP4: ='Materials Costs'!C30 -> Pedestal Sink | AS4: ='Materials Costs'!N30 -> 99 | AT4: ='Labor Costs'!$F$31 -> 100 | AU4: =IF(AM4,AS4,0) -> 0 | AV4: =IF(AM4,AT4,0) -> 0 | AW4: =ROUND(AU4*(COL/100),2) -> 0 | AX4: =IF($BA$3,0,ROUND(AV4*(COL/100),2)) -> 0
AL5: 20 | AM5: =IF($AM$3=2,TRUE,FALSE) -> FALSE | AN5: General Bath | AO5: General Bath | AP5: ='Materials Costs'!C31 -> 60 x 22 x 34 Double Bowl Vanity | AS5: ='Materials Costs'!N31 -> 799 | AT5: ='Labor Costs'!$F$31 -> 100 | AU5: =IF(AM5,AS5,0) -> 0 | AV5: =IF(AM5,AT5,0) -> 0 | AW5: 0 | AX5: 0
C6: Vanity Top | J6: =SUM(AW14:AW20)+SUM(AX14:AX20) -> 0 | N6: DIY | O6: Vanity | AL6: 20 | AM6: =IF($AM$3=3,TRUE,FALSE) -> FALSE | AN6: General Bath | AO6: General Bath | AP6: ='Materials Costs'!C32 -> 48 x 22 x 34 Single Bowl Vanity | AS6: ='Materials Costs'!N32 -> 549 | AT6: ='Labor Costs'!$F$31 -> 100 | AU6: 0 | AV6: 0 | AW6: 0 | AX6: 0
Y7: DIY | Z7: Medicine Cabinet | AL7: 20 | AM7: =IF($AM$3=4,TRUE,FALSE) -> FALSE | AN7: General Bath | AO7: General Bath | AP7: ='Materials Costs'!C33 -> 36 x 22 x 34 Single Bowl Vanity | AS7: ='Materials Costs'!N33 -> 449 | AT7: ='Labor Costs'!$F$31 -> 100 | AU7: 0 | AV7: 0 | AW7: 0 | AX7: 0
C8: Walls | J8: =SUM(AW21:AW24)+SUM(AX21:AX24) -> 0 | AL8: 20 | AM8: =IF($AM$3=5,TRUE,FALSE) -> FALSE | AN8: General Bath | AO8: General Bath | AP8: ='Materials Costs'!C34 -> 30 x 22 x 34 Single Bowl Vanity | AS8: ='Materials Costs'!N34 -> 349 | AT8: ='Labor Costs'!$F$31 -> 100 | AU8: 0 | AV8: 0 | AW8: 0 | AX8: 0
AL9: 20 | AM9: =IF($AM$3=6,TRUE,FALSE) -> FALSE | AN9: General Bath | AO9: General Bath | AP9: ='Materials Costs'!C35 -> 24 x 21 x 34 Single Bowl Vanity | AS9: ='Materials Costs'!N35 -> 499 | AT9: ='Labor Costs'!$F$31 -> 100 | AU9: 0 | AV9: 0 | AW9: 0 | AX9: 0
C10: Floors | J10: =SUM(AW25:AW33)+SUM(AX25:AX33) -> 0 | AL10: 20 | AM10: =IF($AM$3=7,TRUE,FALSE) -> FALSE | AN10: General Bath | AO10: General Bath | AP10: ='Materials Costs'!C36 -> 18 x 21 x 34 Single Bowl Vanity WITH TOP | AS10: ='Materials Costs'!N36 -> 149 | AT10: ='Labor Costs'!$F$31 -> 100 | AU10: 0 | AV10: 0 | AW10: 0 | AX10: 0
AM11: =IF($AM$3=8,TRUE,FALSE) -> FALSE | AN11: General Bath | AO11: General Bath | AP11: ='Materials Costs'!C37 -> 18 x 16 x 34 Single Bowl Vanity | AS11: ='Materials Costs'!N37 -> 90.06 | AT11: ='Labor Costs'!$F$31 -> 100 | AU11: 0 | AV11: 0 | AW11: 0 | AX11: 0
C12: Sink & Toilet | J12: =SUM(AW34:AW35)+SUM(AX34:AX35)+AW37+AX37 -> 0 | N12: DIY | O12: Walls & Floors | Y12: DIY | Z12: Tub & Shower | AL12: 20 | AM12: =IF($AM$3=9,TRUE,FALSE) -> TRUE | AN12: General Bath | AO12: General Bath | AP12: No Vanity | AS12: 0 | AT12: 0 | AU12: 0 | AV12: 0 | AW12: 0 | AX12: 0
O13: =AP21 -> Hang & Finish Drywall | Z13: =AP49 -> Replace Bathtub | AL13: 20 | AM13: 7 | AN13: General Bath | AS13: 0 | AT13: 0 | AU13: 0 | AV13: 0 | AW13: =ROUND(AU13*(COL/100),2) -> 0 | AX13: =ROUND(AV13*(COL/100),2) -> 0 | BA13: FALSE
C14: Mirror, Accessories, Storage Cabinet | J14: =AW36+AW38+AW39+AX36+AX38+AX39 -> 0 | O14: Remove Wallpaper | Z14: Replace Shower Pan | AL14: 20 | AM14: =IF($AM$13=1,TRUE,FALSE) -> FALSE | AN14: General Bath | AO14: General Bath | AP14: ='Materials Costs'!C39 -> 61 x 22 Double Bowl | AS14: ='Materials Costs'!N39 -> 540 | AT14: ='Labor Costs'!$F$32 -> 50 | AU14: 0 | AV14: 0 | AW14: =ROUND(AU14*(COL/100),2) -> 0 | AX14: =IF($BA$13,0,ROUND(AV14*(COL/100),2)) -> 0
O15: Prime Walls | Z15: Replace Tub Surround | AM15: =IF($AM$13=2,TRUE,FALSE) -> FALSE | AN15: General Bath | AO15: General Bath | AP15: ='Materials Costs'!C40 -> 49 x 22 Single Bowl | AS15: ='Materials Costs'!N40 -> 229 | AT15: ='Labor Costs'!$F$32 -> 50 | AU15: 0 | AV15: 0 | AW15: 0 | AX15: 0
C16: Medicine Cabinet | J16: =SUM(AW44:AW48)+SUM(AX44:AX48) -> 0 | O16: Paint Walls | Z16: Bathtub Faucet Kit | AL16: 20 | AM16: =IF($AM$13=3,TRUE,FALSE) -> FALSE | AN16: General Bath | AO16: General Bath | AP16: ='Materials Costs'!C41 -> 37 x 22 Single Bowl | AS16: ='Materials Costs'!N41 -> 317 | AT16: ='Labor Costs'!$F$32 -> 50 | AU16: 0 | AV16: 0 | AW16: 0 | AX16: 0
O17: Subfloor (luan) | Z17: Replumb Bathtub Supply and Drain | AL17: 20 | AM17: =IF($AM$13=4,TRUE,FALSE) -> FALSE | AN17: General Bath | AO17: General Bath | AP17: ='Materials Costs'!C42 -> 31 x 22 Single Bowl | AS17: ='Materials Costs'!N42 -> 169 | AT17: ='Labor Costs'!$F$32 -> 50 | AU17: 0 | AV17: 0 | AW17: 0 | AX17: 0
C18: Bathtub, Plumbing, Surround | J18: =AW49+AX49+AW52+AX52+AW53+AX53+AW51+AX51 -> 0 | O18: Ceramic Tile | Z18: Double Sliding Shower Doors | AM18: =IF($AM$13=5,TRUE,FALSE) -> FALSE | AN18: General Bath | AO18: General Bath | AP18: ='Materials Costs'!C43 -> 25 x 22 Single Bowl | AS18: ='Materials Costs'!N43 -> 227.22 | AT18: ='Labor Costs'!$F$32 -> 50 | AU18: 0 | AV18: 0 | AW18: 0 | AX18: 0
O19: Vinyl Flooring | Z19: One piece shower enclosure | AM19: =IF($AM$13=6,TRUE,FALSE) -> FALSE | AN19: General Bath | AO19: General Bath | AP19: ='Materials Costs'!C44 -> 18 x 16 Single Bowl | AS19: ='Materials Costs'!N44 -> 57.39 | AT19: ='Labor Costs'!$F$32 -> 50 | AU19: 0 | AV19: 0 | AW19: 0 | AX19: 0
C20: Shower, Plumbing | J20: =AW50+AX50+AW54+AX54+AW55+AX55 -> 0 | O20: Replace and Paint Baseboards | AL20: 20 | AM20: =IF($AM$13=7,TRUE,FALSE) -> TRUE | AN20: General Bath | AO20: General Bath | AP20: No Vanity Top | AU20: 0 | AV20: 0 | AW20: 0 | AX20: 0
AL21: 20 | AM21: FALSE | AN21: Drywall | AO21: Drywall | AP21: Hang & Finish Drywall | AQ21: =(8*$AD$4)*2+(8*$AG$4)*2 -> 0 | AR21: sq ft | AS21: ='Materials Costs'!N5+'Materials Costs'!N6 -> 0.348825 | AT21: ='Labor Costs'!F5+'Labor Costs'!F6 -> 2.45 | AU21: =IF(AM21,AQ21*AS21,0) -> 0 | AV21: =IF(AM21,AQ21*AT21,0) -> 0 | AW21: 0 | AX21: =IF(BA21,0,ROUND(AV21*(COL/100),2)) -> 0 | BA21: FALSE
C22: Shower and Wall Tile | J22: =AW56+AX56 -> 0 | O22: =AP33 -> Replace Rotted Floor | V22: 0 | Z22: =AP56 -> Shower/Wall Tile | AG22: 0 | AL22: 20 | AM22: FALSE | AN22: General Bath | AO22: General Bath | AP22: Remove Wallpaper | AQ22: =(8*$AD$4)*2+(8*$AG$4)*2 -> 0 | AR22: sq ft | AS22: 0 | AT22: ='Labor Costs'!F7 -> 1 | AU22: =IF(AM22,AQ22*AS22,0) -> 0 | AV22: =IF(AM22,AQ22*AT22,0) -> 0 | AW22: 0 | AX22: =IF($BA$22,0,ROUND(AV22*(COL/100),2)) -> 0 | BA22: FALSE
AL23: 20 | AM23: FALSE | AN23: Painter | AO23: Painter | AP23: Prime Walls | AQ23: =(8*$AD$4)*2+(8*$AG$4)*2 -> 0 | AR23: sq ft | AS23: ='Materials Costs'!N9 -> 0.04245 | AT23: ='Labor Costs'!F9 -> 0.4 | AU23: =IF(AM23,AQ23*AS23,0) -> 0 | AV23: =IF(AM23,AQ23*AT23,0) -> 0 | AW23: 0 | AX23: =IF(BA23,0,ROUND(AV23*(COL/100),2)) -> 0 | BA23: FALSE
C24: GFI Circuit, Fan, Light | J24: =AW57+AX57+AW58+AX58+AW59+AX59 -> 0 | AL24: 20 | AM24: FALSE | AN24: Painter | AO24: Painter | AP24: Paint Walls | AQ24: =(8*$AD$4)*2+(8*$AG$4)*2 -> 0 | AR24: sq ft | AS24: ='Materials Costs'!N8 -> 0.11485 | AT24: ='Labor Costs'!F8 -> 0.65 | AU24: =IF(AM24,AQ24*AS24,0) -> 0 | AV24: =IF(AM24,AQ24*AT24,0) -> 0 | AW24: 0 | AX24: 0 | BA24: FALSE
AL25: 20 | AM25: FALSE | AN25: Flooring | AO25: Flooring | AP25: ='Materials Costs'!C13 -> Subfloor (luan) | AQ25: =$AD$4*$AG$4 -> 0 | AR25: sq ft | AS25: ='Materials Costs'!N13 -> 0.436875 | AT25: ='Labor Costs'!F12 -> 0.4 | AU25: =IF(AM25,AQ25*AS25,0) -> 0 | AV25: =IF(AM25,AQ25*AT25,0) -> 0 | AW25: 0 | AX25: 0 | BA25: FALSE
C26: Windows and Doors | J26: =AW60+AX60+AW61+AX61+SUM(AW70:AW75)+SUM(AX70:AX75)+AW67+AX67 -> 0 | N26: DIY | O26: Sink & Toilet | Y26: DIY | Z26: Electrical, Windows & Misc | AL26: 20 | AM26: FALSE | AN26: Flooring | AO26: Flooring | AP26: ='Materials Costs'!C14 -> Ceramic Tile | AQ26: =$AD$4*$AG$4 -> 0 | AR26: sq ft | AS26: ='Materials Costs'!N14 -> 1.86 | AT26: ='Labor Costs'!F13 -> 3.5 | AU26: 0 | AV26: 0 | AW26: 0 | AX26: 0 | BA26: FALSE
O27: =AP34 -> Sink Faucet | Z27: =AP57 -> Install GFI Circuit | AL27: 20 | AM27: FALSE | AN27: Flooring | AO27: Flooring | AP27: ='Materials Costs'!C15 -> Vinyl Flooring | AQ27: =$AD$4*$AG$4 -> 0 | AR27: sq ft | AS27: ='Materials Costs'!N15 -> 1.69 | AT27: ='Labor Costs'!F15 -> 1.25 | AU27: 0 | AV27: 0 | AW27: 0 | AX27: 0 | BA27: FALSE
C28: Door and Moulding | J28: =SUM(AW62:AW65)+SUM(AX62:AX65)+AW66+AX66 -> 0 | O28: =AP35 -> Replumb Sink Supply and Drain | Z28: =AP58 -> Exhaust Fan | AL28: 20 | AM28: FALSE | AN28: General Bath | AO28: General Bath | AP28: Replace and Paint Baseboards | AQ28: =(AD4*2)+(AG4*2) -> 0 | AR28: ln ft | AS28: ='Materials Costs'!N19+'Materials Costs'!N20 -> 0.216175 | AT28: ='Labor Costs'!F17 -> 2.77 | AU28: 0 | AV28: 0 | AW28: 0 | AX28: 0 | BA28: FALSE
O29: =AP38 -> Bath Accessories Kit | Z29: =AP59 -> Bath Light (wall mount) | AL29: 20 | AM29: =Q13 -> 0 | AN29: Flooring | AO29: Flooring | AP29: Engineered Hardwood Flooring | AR29: sq ft | AU29: 0 | AV29: 0 | AW29: 0 | AX29: 0
C30: Demolition | J30: =AX42 -> 0 | O30: =AP39 -> White Cabinet with Glass Doors | Z30: =AP60 -> New Glass Block Window | AL30: 20 | AM30: =Q14 -> 0 | AN30: Flooring | AO30: Flooring | AP30: Carpet | AR30: yards | AU30: 0 | AV30: 0 | AW30: 0 | AX30: 0
O31: =AP36 -> Mirror | Z31: Entry Door | AL31: 20 | AM31: =Q15 -> 0 | AN31: Flooring | AO31: Flooring | AP31: Refinish Hardwood Floor | AR31: sq ft | AU31: =AS31 -> 0 | AV31: =AT31 -> 0 | AW31: 0 | AX31: 0
C32: Contingency Applied to This Room | J32: =AY76 -> 0 | O32: =AP37 -> Replace Toilet | AL32: 20 | AN32: Flooring | AU32: 0 | AV32: 0 | AW32: 0 | AX32: 0
C33: Estimated Total Labor Cost This Room | J33: =AZ3 -> 0 | Z33: =AP66 -> Replace Window & Door Moulding | AL33: 20 | AM33: =IF(AU33>0,TRUE,FALSE) -> FALSE | AN33: Flooring | AO33: Flooring | AP33: Replace Rotted Floor | AQ33: =V22 -> 0 | AR33: sq ft | AS33: ='Materials Costs'!N21 -> 0.7671875 | AT33: ='Labor Costs'!F21 -> 2.5 | AU33: =AQ33*AS33 -> 0 | AV33: =AQ33*AT33 -> 0 | AW33: =ROUND(AU33*(COL/100),2) -> 0 | AX33: 0 | BA33: FALSE
C34: Estimated Total Material Cost This Room | J34: =AY3 -> 0 | Z34: =AP67 -> Interior Door Lockset | AL34: 20 | AM34: FALSE | AN34: Plumber | AO34: Plumber | AP34: ='Materials Costs'!C24 -> Sink Faucet | AS34: ='Materials Costs'!N24 -> 49 | AT34: ='Labor Costs'!F24 -> 95 | AU34: =IF(AM34,AS34,0) -> 0 | AV34: =IF(AM34,AT34,0) -> 0 | AW34: 0 | AX34: 0 | BA34: FALSE
C35: Total Estimated Room Repair Cost | J35: =J32+J33+J34 -> 0 | AB35: Replacement Windows | AG35: # | AL35: 20 | AM35: FALSE | AN35: Plumber | AO35: Plumber | AP35: ='Labor Costs'!D25 -> Replumb Sink Supply and Drain | AT35: ='Labor Costs'!F25 -> 125 | AU35: 0 | AV35: 0 | AW35: 0 | AX35: 0 | BA35: FALSE
O36: =AP42 -> Demolition Hours | V36: 0 | AG36: 0 | AL36: 20 | AM36: FALSE | AN36: General Bath | AO36: General Bath | AP36: ='Materials Costs'!C25 -> Mirror | AS36: ='Materials Costs'!N25 -> 69 | AT36: ='Labor Costs'!F29 -> 35 | AU36: 0 | AV36: 0 | AW36: 0 | AX36: 0 | BA36: FALSE
C37: Total Estimated Costs for Entire House | J37: ='Offer Calculator'!Z20+'Offer Calculator'!Z23 -> 0 | AL37: 20 | AM37: FALSE | AN37: Plumber | AO37: Plumber | AP37: Replace Toilet | AS37: ='Materials Costs'!N26 -> 99 | AT37: ='Labor Costs'!F26 -> 125 | AU37: 0 | AV37: 0 | AW37: 0 | AX37: 0 | BA37: FALSE
AL38: 20 | AM38: FALSE | AN38: General Bath | AO38: General Bath | AP38: ='Materials Costs'!C27 -> Bath Accessories Kit | AS38: ='Materials Costs'!N27 -> 29.98 | AT38: ='Labor Costs'!F27 -> 35 | AU38: 0 | AV38: 0 | AW38: 0 | AX38: 0 | BA38: FALSE
B39: 15 | AL39: 20 | AM39: FALSE | AN39: General Bath | AO39: General Bath | AP39: ='Materials Costs'!C28 -> White Cabinet with Glass Doors | AS39: ='Materials Costs'!N28 -> 69 | AT39: ='Labor Costs'!F28 -> 70 | AU39: 0 | AV39: 0 | AW39: 0 | AX39: 0 | BA39: FALSE
E40: TYPE | J40: MATERIALS | L40: LABOR | AG40: 0 | AL40: 20 | AM40: =Z9 -> 0 | AN40: General Bath | AU40: =AS40*$O$5*$R$5 -> 0 | AV40: =AT40*$O$5*$R$5 -> 0 | AW40: 0 | AX40: 0
E41: DEMOLITION | L41: =AX42 -> 0 | AG41: 1 | AL41: 20 | AM41: =Z10 -> 0 | AN41: General Bath | AU41: =AS41*$O$5*$R$5 -> 0 | AV41: =AT41*$O$5*$R$5 -> 0 | AW41: 0 | AX41: 0
E42: DRYWALL | J42: =AW21 -> 0 | L42: =AX21 -> 0 | AG42: 2 | AL42: 20 | AM42: =IF(AQ42>0,TRUE,FALSE) -> FALSE | AN42: Demolition | AO42: Demolition | AP42: ='Labor Costs'!D114 -> Demolition Hours | AQ42: =V36 -> 0 | AT42: ='Labor Costs'!F114 -> 20 | AU42: 0 | AV42: =AQ42*AT42 -> 0 | AW42: 0 | AX42: 0 | BA42: FALSE
E43: ELECTRICIAN | J43: =SUM(AW57:AW59) -> 0 | L43: =SUM(AX57:AX59) -> 0 | AG43: 3 | AL43: =SUM(B39:AI39) -> 15 | AM43: 5 | AN43: General Bath | BA43: FALSE
E44: FLOORING | J44: =SUM(AW25:AW27)+AW33+AW56 -> 0 | L44: =SUM(AX25:AX27)+AX33+AX56 -> 0 | AG44: 4 | AM44: =IF(AM43=1,TRUE,FALSE) -> FALSE | AN44: General Bath | AO44: General Bath | AP44: ='Materials Costs'!C46 -> 36 in Medicine Cabinet | AS44: ='Materials Costs'!N46 -> 119 | AT44: ='Labor Costs'!$F$33 -> 50 | AU44: =IF(AM44,AS44,0) -> 0 | AV44: =IF(AM44,AT44,0) -> 0 | AW44: =ROUND(AU44*(COL/100),2) -> 0 | AX44: =IF($BA$43,0,ROUND(AV44*(COL/100),2)) -> 0
E45: GENERAL BATH | J45: =AW22+AW28+SUM(AW4:AW20)+AW36+SUM(AW38:AW39)+SUM(AW44:AW51)+AW54+AW55+SUM(AW63:AW67) -> 0 | L45: =AX22+AX28+SUM(AX4:AX20)+AX36+SUM(AX38:AX39)+SUM(AX44:AX51)+AX54+AX55+SUM(AX63:AX67) -> 0 | AG45: 5 | AM45: =IF($AM$43=2,TRUE,FALSE) -> FALSE | AN45: General Bath | AO45: General Bath | AP45: ='Materials Costs'!C47 -> 30 in Medicine Cabinet | AS45: ='Materials Costs'!N47 -> 99 | AT45: ='Labor Costs'!$F$33 -> 50 | AU45: =IF(AM45,AS45,0) -> 0 | AV45: =IF(AM45,AT45,0) -> 0 | AW45: 0 | AX45: =IF($BA$43,0,ROUND(AV45*(COL/100),2)) -> 0
E46: PAINTER | J46: =SUM(AW23:AW24) -> 0 | L46: =SUM(AX23:AX24) -> 0 | AG46: 6 | AM46: =IF($AM$43=3,TRUE,FALSE) -> FALSE | AN46: General Bath | AO46: General Bath | AP46: ='Materials Costs'!C48 -> 24 in Medicine Cabinet | AS46: ='Materials Costs'!N48 -> 99 | AT46: ='Labor Costs'!$F$33 -> 50 | AU46: 0 | AV46: 0 | AW46: 0 | AX46: =IF($BA$43,0,ROUND(AV46*(COL/100),2)) -> 0
E47: PLUMBER | J47: =SUM(AW34:AW35)+AW37+SUM(AW52:AW53) -> 0 | L47: =SUM(AX34:AX35)+AX37+SUM(AX52:AX53) -> 0 | AG47: 7 | AM47: =IF($AM$43=4,TRUE,FALSE) -> FALSE | AN47: General Bath | AO47: General Bath | AP47: ='Materials Costs'!C49 -> 16 in Medicine Cabinet | AS47: ='Materials Costs'!N49 -> 37.97 | AT47: ='Labor Costs'!$F$33 -> 50 | AU47: 0 | AV47: 0 | AW47: 0 | AX47: =IF($BA$43,0,ROUND(AV47*(COL/100),2)) -> 0
E48: WINDOWS & DOORS | J48: =AW60+SUM(AW69:AW75) -> 0 | L48: =AX60+SUM(AX69:AX75) -> 0 | AG48: 8 | AM48: =IF($AM$43=5,TRUE,FALSE) -> TRUE | AN48: General Bath | AO48: General Bath | AP48: No Medicine Cabinet | AS48: 0 | AT48: 0 | AU48: 0 | AV48: 0 | AW48: 0 | AX48: =IF($BA$43,0,ROUND(AV48*(COL/100),2)) -> 0
AG49: 9 | AM49: FALSE | AN49: General Bath | AO49: General Bath | AP49: Replace Bathtub | AS49: ='Materials Costs'!N51 -> 193 | AT49: ='Labor Costs'!F35 -> 225 | AU49: 0 | AV49: 0 | AW49: 0 | AX49: =IF(BA49,0,ROUND(AV49*(COL/100),2)) -> 0 | BA49: FALSE
AG50: 10 | AM50: FALSE | AN50: General Bath | AO50: General Bath | AP50: Replace Shower Pan | AS50: ='Materials Costs'!N52 -> 189 | AT50: ='Labor Costs'!F36 -> 200 | AU50: 0 | AV50: 0 | AW50: 0 | AX50: 0 | BA50: FALSE
AG51: 11 | AM51: FALSE | AN51: General Bath | AO51: General Bath | AP51: Replace Tub Surround | AS51: ='Materials Costs'!N53 -> 95 | AT51: ='Labor Costs'!F37 -> 150 | AU51: 0 | AV51: 0 | AW51: 0 | AX51: 0 | BA51: FALSE
AG52: 12 | AM52: FALSE | AN52: Plumber | AO52: Plumber | AP52: Bathtub Faucet Kit | AS52: ='Materials Costs'!N54 -> 131 | AT52: ='Labor Costs'!F38 -> 80 | AU52: 0 | AV52: 0 | AW52: 0 | AX52: 0 | BA52: FALSE
AM53: FALSE | AN53: Plumber | AO53: Plumber | AP53: ='Labor Costs'!D40 -> Replumb Bathtub Supply and Drain | AS53: 0 | AT53: ='Labor Costs'!F40 -> 210 | AU53: 0 | AV53: 0 | AW53: 0 | AX53: 0 | BA53: FALSE
AM54: FALSE | AN54: General Bath | AO54: General | AP54: ='Materials Costs'!C55 -> Double Sliding Shower Doors | AS54: ='Materials Costs'!N55 -> 129 | AT54: ='Labor Costs'!F41 -> 100 | AU54: 0 | AV54: 0 | AW54: 0 | AX54: 0 | BA54: FALSE
AM55: FALSE | AN55: General Bath | AO55: General | AP55: ='Materials Costs'!C56 -> One piece shower enclosure | AS55: ='Materials Costs'!N56 -> 379 | AT55: ='Labor Costs'!F42 -> 150 | AU55: 0 | AV55: 0 | AW55: 0 | AX55: 0 | BA55: FALSE
AM56: =IF(AU56>0,TRUE,FALSE) -> FALSE | AN56: Flooring | AO56: Flooring | AP56: Shower/Wall Tile | AQ56: =AG22 -> 0 | AR56: sq ft | AS56: ='Materials Costs'!N57+'Materials Costs'!N7 -> 3.491333333 | AT56: =('Labor Costs'!F13+'Labor Costs'!F5) -> 4.45 | AU56: =AS56*AQ56 -> 0 | AV56: =AT56*AQ56 -> 0 | AW56: 0 | AX56: 0 | BA56: FALSE
AM57: FALSE | AN57: Electrician | AO57: Electrician | AP57: Install GFI Circuit | AS57: ='Materials Costs'!N59 -> 15.98 | AT57: ='Labor Costs'!F64 -> 150 | AU57: =IF(AM57,AS57,0) -> 0 | AV57: =IF(AM57,AT57,0) -> 0 | AW57: 0 | AX57: 0 | BA57: FALSE
AM58: FALSE | AN58: Electrician | AO58: Electrician | AP58: Exhaust Fan | AS58: ='Materials Costs'!N60 -> 108 | AT58: ='Labor Costs'!F65 -> 125 | AU58: 0 | AV58: 0 | AW58: 0 | AX58: 0 | BA58: FALSE
AM59: FALSE | AN59: Electrician | AO59: Electrician | AP59: Bath Light (wall mount) | AS59: ='Materials Costs'!N61 -> 59.97 | AT59: ='Labor Costs'!F66 -> 95 | AU59: 0 | AV59: 0 | AW59: 0 | AX59: 0 | BA59: FALSE
AM60: FALSE | AN60: Windows & Doors | AO60: Windows & Doors | AP60: New Glass Block Window | AS60: ='Materials Costs'!N107 -> 124.33 | AT60: ='Labor Costs'!F46 -> 85 | AU60: 0 | AV60: 0 | AW60: 0 | AX60: 0 | BA60: FALSE
AM61: 1 | AN61: General Bath | AW61: 0 | AX61: 0 | BA61: FALSE
AM62: =IF($AM$61=1,TRUE,FALSE) -> TRUE | AN62: General Bath | AO62: General Bath | AP62: No Door | AS62: 0 | AT62: 0 | AU62: 0 | AV62: 0 | AW62: 0 | AX62: 0 | BA62: =IF($BA$61,TRUE,FALSE) -> FALSE
AM63: =IF($AM$61=2,TRUE,FALSE) -> FALSE | AN63: General Bath | AO63: General Bath | AP63: ='Materials Costs'!C70 -> 28 x 80 Prehung Interior Door | AS63: ='Materials Costs'!N70 -> 76.79 | AT63: ='Labor Costs'!$F$52 -> 150 | AU63: 0 | AV63: 0 | AW63: 0 | AX63: 0 | BA63: =IF($BA$61,TRUE,FALSE) -> FALSE
AM64: =IF($AM$61=3,TRUE,FALSE) -> FALSE | AN64: General Bath | AO64: General Bath | AP64: ='Materials Costs'!C71 -> 30 x 80 Prehung Interior Door | AS64: ='Materials Costs'!N71 -> 76.79 | AT64: ='Labor Costs'!$F$52 -> 150 | AU64: 0 | AV64: 0 | AW64: 0 | AX64: 0 | BA64: =IF($BA$61,TRUE,FALSE) -> FALSE
AM65: =IF($AM$61=4,TRUE,FALSE) -> FALSE | AN65: General Bath | AO65: General Bath | AP65: ='Materials Costs'!C72 -> 32 X 80 Prehung Interior Door | AS65: ='Materials Costs'!N72 -> 96.14 | AT65: ='Labor Costs'!$F$52 -> 150 | AU65: 0 | AV65: 0 | AW65: 0 | AX65: 0 | BA65: =IF($BA$61,TRUE,FALSE) -> FALSE
AM66: FALSE | AN66: General Bath | AO66: General Bath | AP66: Replace Window & Door Moulding | AQ66: =36 -> 36 | AR66: ln ft | AS66: ='Materials Costs'!N66 -> 1.29 | AT66: ='Labor Costs'!F58 -> 2.77 | AU66: =IF(AM66,AS66*AQ66,0) -> 0 | AV66: =IF(AM66,AT66*AQ66,0) -> 0 | AW66: 0 | AX66: 0 | BA66: FALSE
AM67: FALSE | AN67: General Bath | AO67: General Bath | AP67: ='Materials Costs'!C73 -> Interior Door Lockset | AS67: ='Materials Costs'!O73 -> 8.97 | AT67: ='Labor Costs'!G51 -> 25 | AU67: =IF(AM67,AS67,0) -> 0 | AV67: =IF(AM67,AT67,0) -> 0 | AW67: 0 | AX67: 0 | BA67: FALSE
AM68: 1 | AN68: Windows & Doors | AQ68: =$AG$36 -> 0 | AU68: =IF(AM68,AS68*AQ68,0) -> 0 | AV68: =IF(AM68,AT68*AQ68,0) -> 0 | AW68: 0 | AX68: 0
AM69: =IF($AM$68=1,TRUE,FALSE) -> TRUE | AN69: Windows & Doors | AO69: Windows & Doors | AP69: No Window | AQ69: 0 | AS69: 0 | AT69: 0 | AU69: 0 | AV69: 0 | AW69: 0 | AX69: 0 | BA69: FALSE
AM70: =IF($AM$68=2,TRUE,FALSE) -> FALSE | AN70: Windows & Doors | AO70: Windows & Doors | AP70: ='Materials Costs'!C100 -> 28 x 38 Double Hung | AQ70: 0 | AS70: ='Materials Costs'!N100 -> 124 | AT70: ='Labor Costs'!$F$44 -> 125 | AU70: 0 | AV70: 0 | AW70: 0 | AX70: 0 | BA70: =IF(BA69,TRUE,FALSE) -> FALSE
AM71: =IF($AM$68=3,TRUE,FALSE) -> FALSE | AN71: Windows & Doors | AO71: Windows & Doors | AP71: ='Materials Costs'!C101 -> 28 x 54 Double Hung | AQ71: 0 | AS71: ='Materials Costs'!N101 -> 134 | AT71: ='Labor Costs'!$F$44 -> 125 | AU71: 0 | AV71: 0 | AW71: 0 | AX71: 0 | BA71: FALSE
AM72: =IF($AM$68=4,TRUE,FALSE) -> FALSE | AN72: Windows & Doors | AO72: Windows & Doors | AP72: ='Materials Costs'!C102 -> 32 x 38 Double Hung | AQ72: 0 | AS72: ='Materials Costs'!N102 -> 147 | AT72: ='Labor Costs'!$F$44 -> 125 | AU72: 0 | AV72: 0 | AW72: 0 | AX72: 0 | BA72: FALSE
AM73: =IF($AM$68=5,TRUE,FALSE) -> FALSE | AN73: Windows & Doors | AO73: Windows & Doors | AP73: ='Materials Costs'!C103 -> 32 x 54 Double Hung | AQ73: 0 | AS73: ='Materials Costs'!N103 -> 155 | AT73: ='Labor Costs'!$F$44 -> 125 | AU73: 0 | AV73: 0 | AW73: 0 | AX73: 0 | BA73: FALSE
AM74: =IF($AM$68=6,TRUE,FALSE) -> FALSE | AN74: Windows & Doors | AO74: Windows & Doors | AP74: ='Materials Costs'!C104 -> 36 x 38 Double Hung | AQ74: 0 | AS74: ='Materials Costs'!N104 -> 134 | AT74: ='Labor Costs'!$F$44 -> 125 | AU74: 0 | AV74: 0 | AW74: 0 | AX74: 0 | BA74: FALSE
AM75: =IF($AM$68=7,TRUE,FALSE) -> FALSE | AN75: Windows & Doors | AO75: Windows & Doors | AP75: ='Materials Costs'!C105 -> 36 x 54 Double Hung | AQ75: 0 | AS75: ='Materials Costs'!N105 -> 167 | AT75: ='Labor Costs'!$F$44 -> 125 | AU75: 0 | AV75: 0 | AW75: 0 | AX75: 0 | BA75: FALSE
AM76: TRUE | AN76: Contingency | AO76: Contingency | AP76: Contingency | AW76: =AY76*0.5 -> 0 | AX76: =AY76*0.5 -> 0 | AY76: =IF(AM77,(AY3+AZ3)*'Offer Calculator'!U23,S4) -> 0
AM77: TRUE | AW77: =ROUND(AU77*(COL/100),2) -> 0 | AX77: =ROUND(AV77*(COL/100),2) -> 0
AW78: 0 | AX78: 0
AW79: 0 | AX79: 0
AW80: 0 | AX80: 0
AW81: 0 | AX81: 0
AW82: 0 | AX82: 0
AW83: 0 | AX83: 0
AW84: 0 | AX84: 0
AW85: 0 | AX85: 0
AW86: 0 | AX86: 0
AW87: 0 | AX87: 0
AS90: FALSE | AT90: enter sq ft | AU90: 400 | AV90: sq ft
AS92: TRUE | AT92: enter square ft | AU92: 210 | AV92: sq ft
AS94: TRUE | AT94: enter square ft | AU94: 164 | AV94: sq ft
AS96: TRUE | AT96: enter room sq ft (not sq yards, the number you enter is converted to sq yds) | AU96: 75 | AV96: sq yd
AS98: FALSE | AT98: enter square ft | AU98: 0 | AV98: sq ft
AS100: 0 | AT100: each
AS102: 0 | AT102: each
AS104: 0 | AT104: each
AS106: 0 | AT106: each
AS108: 252.99 | AT108: linear ft
AS110: 202 | AT110: linear ft
AS112: 53 | AT112: linear ft

Sheet Bathroom 4
N1: Bathroom 4 Repair | AL1: 24 | AS1: Each | AU1: Extended | AW1: Region Adjustment | AY1: Total | BA1: DIY
B2: Estimated Labor & Material Costs | AL2: 24 | AM2: Include? | AN2: Category | AO2: Contractor | AP2: Description | AQ2: Amount | AR2: Measure | AS2: Material | AT2: Labor | AU2: Material | AV2: Labor | AW2: Material | AX2: Labor | AY2: Material | AZ2: Labor
N3: Contingency for This Room | AL3: 20 | AM3: 9 | AN3: General Bath | AY3: =SUM(AW4:AW75) -> 0 | AZ3: =SUM(AX4:AX75) -> 0 | BA3: FALSE
C4: Vanity | J4: =SUM(AW4:AW12)+SUM(AX4:AX12) -> 0 | O4: Standard | Q4: or | R4: $ | S4: 0 | U4: Room dimensions (ft): | AB4: Width | AD4: 0 | AE4: Depth | AG4: 0 | AL4: 20 | AM4: =IF($AM$3=1,TRUE,FALSE) -> FALSE | AN4: General Bath | AO4: General Bath | AP4: ='Materials Costs'!C30 -> Pedestal Sink | AS4: ='Materials Costs'!N30 -> 99 | AT4: ='Labor Costs'!$F$31 -> 100 | AU4: =IF(AM4,AS4,0) -> 0 | AV4: =IF(AM4,AT4,0) -> 0 | AW4: =ROUND(AU4*(COL/100),2) -> 0 | AX4: =IF($BA$3,0,ROUND(AV4*(COL/100),2)) -> 0
AL5: 20 | AM5: =IF($AM$3=2,TRUE,FALSE) -> FALSE | AN5: General Bath | AO5: General Bath | AP5: ='Materials Costs'!C31 -> 60 x 22 x 34 Double Bowl Vanity | AS5: ='Materials Costs'!N31 -> 799 | AT5: ='Labor Costs'!$F$31 -> 100 | AU5: =IF(AM5,AS5,0) -> 0 | AV5: =IF(AM5,AT5,0) -> 0 | AW5: 0 | AX5: 0
C6: Vanity Top | J6: =SUM(AW14:AW20)+SUM(AX14:AX20) -> 0 | N6: DIY | O6: Vanity | AL6: 20 | AM6: =IF($AM$3=3,TRUE,FALSE) -> FALSE | AN6: General Bath | AO6: General Bath | AP6: ='Materials Costs'!C32 -> 48 x 22 x 34 Single Bowl Vanity | AS6: ='Materials Costs'!N32 -> 549 | AT6: ='Labor Costs'!$F$31 -> 100 | AU6: 0 | AV6: 0 | AW6: 0 | AX6: 0
Y7: DIY | Z7: Medicine Cabinet | AL7: 20 | AM7: =IF($AM$3=4,TRUE,FALSE) -> FALSE | AN7: General Bath | AO7: General Bath | AP7: ='Materials Costs'!C33 -> 36 x 22 x 34 Single Bowl Vanity | AS7: ='Materials Costs'!N33 -> 449 | AT7: ='Labor Costs'!$F$31 -> 100 | AU7: 0 | AV7: 0 | AW7: 0 | AX7: 0
C8: Walls | J8: =SUM(AW21:AW24)+SUM(AX21:AX24) -> 0 | AL8: 20 | AM8: =IF($AM$3=5,TRUE,FALSE) -> FALSE | AN8: General Bath | AO8: General Bath | AP8: ='Materials Costs'!C34 -> 30 x 22 x 34 Single Bowl Vanity | AS8: ='Materials Costs'!N34 -> 349 | AT8: ='Labor Costs'!$F$31 -> 100 | AU8: 0 | AV8: 0 | AW8: 0 | AX8: 0
AL9: 20 | AM9: =IF($AM$3=6,TRUE,FALSE) -> FALSE | AN9: General Bath | AO9: General Bath | AP9: ='Materials Costs'!C35 -> 24 x 21 x 34 Single Bowl Vanity | AS9: ='Materials Costs'!N35 -> 499 | AT9: ='Labor Costs'!$F$31 -> 100 | AU9: 0 | AV9: 0 | AW9: 0 | AX9: 0
C10: Floors | J10: =SUM(AW25:AW33)+SUM(AX25:AX33) -> 0 | AL10: 20 | AM10: =IF($AM$3=7,TRUE,FALSE) -> FALSE | AN10: General Bath | AO10: General Bath | AP10: ='Materials Costs'!C36 -> 18 x 21 x 34 Single Bowl Vanity WITH TOP | AS10: ='Materials Costs'!N36 -> 149 | AT10: ='Labor Costs'!$F$31 -> 100 | AU10: 0 | AV10: 0 | AW10: 0 | AX10: 0
AM11: =IF($AM$3=8,TRUE,FALSE) -> FALSE | AN11: General Bath | AO11: General Bath | AP11: ='Materials Costs'!C37 -> 18 x 16 x 34 Single Bowl Vanity | AS11: ='Materials Costs'!N37 -> 90.06 | AT11: ='Labor Costs'!$F$31 -> 100 | AU11: 0 | AV11: 0 | AW11: 0 | AX11: 0
C12: Sink & Toilet | J12: =SUM(AW34:AW35)+SUM(AX34:AX35)+AW37+AX37 -> 0 | N12: DIY | O12: Walls & Floors | Y12: DIY | Z12: Tub & Shower | AL12: 20 | AM12: =IF($AM$3=9,TRUE,FALSE) -> TRUE | AN12: General Bath | AP12: No Vanity | AS12: 0 | AT12: 0 | AU12: 0 | AV12: 0 | AW12: 0 | AX12: 0
O13: =AP21 -> Hang & Finish Drywall | Z13: =AP49 -> Replace Bathtub | AL13: 20 | AM13: 7 | AN13: General Bath | AS13: 0 | AT13: 0 | AU13: 0 | AV13: 0 | AW13: =ROUND(AU13*(COL/100),2) -> 0 | AX13: =ROUND(AV13*(COL/100),2) -> 0 | BA13: FALSE
C14: Mirror, Accessories, Storage Cabinet | J14: =AW36+AW38+AW39+AX36+AX38+AX39 -> 0 | O14: Remove Wallpaper | Z14: Replace Shower Pan | AL14: 20 | AM14: =IF($AM$13=1,TRUE,FALSE) -> FALSE | AN14: General Bath | AO14: General Bath | AP14: ='Materials Costs'!C39 -> 61 x 22 Double Bowl | AS14: ='Materials Costs'!N39 -> 540 | AT14: ='Labor Costs'!$F$32 -> 50 | AU14: 0 | AV14: 0 | AW14: =ROUND(AU14*(COL/100),2) -> 0 | AX14: =IF($BA$13,0,ROUND(AV14*(COL/100),2)) -> 0
O15: Prime Walls | Z15: Replace Tub Surround | AM15: =IF($AM$13=2,TRUE,FALSE) -> FALSE | AN15: General Bath | AO15: General Bath | AP15: ='Materials Costs'!C40 -> 49 x 22 Single Bowl | AS15: ='Materials Costs'!N40 -> 229 | AT15: ='Labor Costs'!$F$32 -> 50 | AU15: 0 | AV15: 0 | AW15: 0 | AX15: 0
C16: Medicine Cabinet | J16: =SUM(AW44:AW48)+SUM(AX44:AX48) -> 0 | O16: Paint Walls | Z16: Bathtub Faucet Kit | AL16: 20 | AM16: =IF($AM$13=3,TRUE,FALSE) -> FALSE | AN16: General Bath | AO16: General Bath | AP16: ='Materials Costs'!C41 -> 37 x 22 Single Bowl | AS16: ='Materials Costs'!N41 -> 317 | AT16: ='Labor Costs'!$F$32 -> 50 | AU16: 0 | AV16: 0 | AW16: 0 | AX16: 0
O17: Subfloor (luan) | Z17: Replumb Bathtub Supply and Drain | AL17: 20 | AM17: =IF($AM$13=4,TRUE,FALSE) -> FALSE | AN17: General Bath | AO17: General Bath | AP17: ='Materials Costs'!C42 -> 31 x 22 Single Bowl | AS17: ='Materials Costs'!N42 -> 169 | AT17: ='Labor Costs'!$F$32 -> 50 | AU17: 0 | AV17: 0 | AW17: 0 | AX17: 0
C18: Bathtub, Plumbing, Surround | J18: =AW49+AX49+AW52+AX52+AW53+AX53+AW51+AX51 -> 0 | O18: Ceramic Tile | Z18: Double Sliding Shower Doors | AM18: =IF($AM$13=5,TRUE,FALSE) -> FALSE | AN18: General Bath | AO18: General Bath | AP18: ='Materials Costs'!C43 -> 25 x 22 Single Bowl | AS18: ='Materials Costs'!N43 -> 227.22 | AT18: ='Labor Costs'!$F$32 -> 50 | AU18: 0 | AV18: 0 | AW18: 0 | AX18: 0
O19: Vinyl Flooring | Z19: One piece shower enclosure | AM19: =IF($AM$13=6,TRUE,FALSE) -> FALSE | AN19: General Bath | AO19: General Bath | AP19: ='Materials Costs'!C44 -> 18 x 16 Single Bowl | AS19: ='Materials Costs'!N44 -> 57.39 | AT19: ='Labor Costs'!$F$32 -> 50 | AU19: 0 | AV19: 0 | AW19: 0 | AX19: 0
C20: Shower, Plumbing | J20: =AW50+AX50+AW54+AX54+AW55+AX55 -> 0 | O20: Replace and Paint Baseboards | AL20: 20 | AM20: =IF($AM$13=7,TRUE,FALSE) -> TRUE | AN20: General Bath | AP20: No Vanity Top | AU20: 0 | AV20: 0 | AW20: 0 | AX20: 0
AL21: 20 | AM21: FALSE | AN21: Drywall | AO21: Drywall | AP21: Hang & Finish Drywall | AQ21: =(8*$AD$4)*2+(8*$AG$4)*2 -> 0 | AR21: sq ft | AS21: ='Materials Costs'!N5+'Materials Costs'!N6 -> 0.348825 | AT21: ='Labor Costs'!F5+'Labor Costs'!F6 -> 2.45 | AU21: =IF(AM21,AQ21*AS21,0) -> 0 | AV21: =IF(AM21,AQ21*AT21,0) -> 0 | AW21: 0 | AX21: =IF(BA21,0,ROUND(AV21*(COL/100),2)) -> 0 | BA21: FALSE
C22: Shower and Wall Tile | J22: =AW56+AX56 -> 0 | O22: =AP33 -> Replace Rotted Floor | V22: 0 | Z22: =AP56 -> Shower/Wall Tile | AG22: 0 | AL22: 20 | AM22: FALSE | AN22: General Bath | AO22: General Bath | AP22: Remove Wallpaper | AQ22: =(8*$AD$4)*2+(8*$AG$4)*2 -> 0 | AR22: sq ft | AS22: 0 | AT22: ='Labor Costs'!F7 -> 1 | AU22: =IF(AM22,AQ22*AS22,0) -> 0 | AV22: =IF(AM22,AQ22*AT22,0) -> 0 | AW22: 0 | AX22: =IF($BA$22,0,ROUND(AV22*(COL/100),2)) -> 0 | BA22: FALSE
AL23: 20 | AM23: FALSE | AN23: Painter | AO23: Painter | AP23: Prime Walls | AQ23: =(8*$AD$4)*2+(8*$AG$4)*2 -> 0 | AR23: sq ft | AS23: ='Materials Costs'!N9 -> 0.04245 | AT23: ='Labor Costs'!F9 -> 0.4 | AU23: =IF(AM23,AQ23*AS23,0) -> 0 | AV23: =IF(AM23,AQ23*AT23,0) -> 0 | AW23: 0 | AX23: =IF(BA23,0,ROUND(AV23*(COL/100),2)) -> 0 | BA23: FALSE
C24: GFI Circuit, Fan, Light | J24: =AW57+AX57+AW58+AX58+AW59+AX59 -> 0 | AL24: 20 | AM24: FALSE | AN24: Painter | AO24: Painter | AP24: Paint Walls | AQ24: =(8*$AD$4)*2+(8*$AG$4)*2 -> 0 | AR24: sq ft | AS24: ='Materials Costs'!N8 -> 0.11485 | AT24: ='Labor Costs'!F8 -> 0.65 | AU24: =IF(AM24,AQ24*AS24,0) -> 0 | AV24: =IF(AM24,AQ24*AT24,0) -> 0 | AW24: 0 | AX24: 0 | BA24: FALSE
AL25: 20 | AM25: FALSE | AN25: Flooring | AO25: Flooring | AP25: ='Materials Costs'!C13 -> Subfloor (luan) | AQ25: =$AD$4*$AG$4 -> 0 | AR25: sq ft | AS25: ='Materials Costs'!N13 -> 0.436875 | AT25: ='Labor Costs'!F12 -> 0.4 | AU25: =IF(AM25,AQ25*AS25,0) -> 0 | AV25: =IF(AM25,AQ25*AT25,0) -> 0 | AW25: 0 | AX25: 0 | BA25: FALSE
C26: Windows and Doors | J26: =AW60+AX60+AW61+AX61+SUM(AW70:AW75)+SUM(AX70:AX75)+AW67+AX67 -> 0 | N26: DIY | O26: Sink & Toilet | Y26: DIY | Z26: Electrical, Windows & Misc | AL26: 20 | AM26: FALSE | AN26: Flooring | AO26: Flooring | AP26: ='Materials Costs'!C14 -> Ceramic Tile | AQ26: =$AD$4*$AG$4 -> 0 | AR26: sq ft | AS26: ='Materials Costs'!N14 -> 1.86 | AT26: ='Labor Costs'!F13 -> 3.5 | AU26: 0 | AV26: 0 | AW26: 0 | AX26: 0 | BA26: FALSE
O27: =AP34 -> Sink Faucet | Z27: =AP57 -> Install GFI Circuit | AL27: 20 | AM27: FALSE | AN27: Flooring | AO27: Flooring | AP27: ='Materials Costs'!C15 -> Vinyl Flooring | AQ27: =$AD$4*$AG$4 -> 0 | AR27: sq ft | AS27: ='Materials Costs'!N15 -> 1.69 | AT27: ='Labor Costs'!F15 -> 1.25 | AU27: 0 | AV27: 0 | AW27: 0 | AX27: 0 | BA27: FALSE
C28: Door and Moulding | J28: =SUM(AW62:AW65)+SUM(AX62:AX65)+AW66+AX66 -> 0 | O28: =AP35 -> Replumb Sink Supply and Drain | Z28: =AP58 -> Exhaust Fan | AL28: 20 | AM28: FALSE | AN28: General Bath | AO28: General Bath | AP28: Replace and Paint Baseboards | AQ28: =(AD4*2)+(AG4*2) -> 0 | AR28: ln ft | AS28: ='Materials Costs'!N19+'Materials Costs'!N20 -> 0.216175 | AT28: ='Labor Costs'!F17 -> 2.77 | AU28: 0 | AV28: 0 | AW28: 0 | AX28: 0 | BA28: FALSE
O29: =AP38 -> Bath Accessories Kit | Z29: =AP59 -> Bath Light (wall mount) | AL29: 20 | AM29: =Q13 -> 0 | AN29: Flooring | AO29: Flooring | AP29: Engineered Hardwood Flooring | AR29: sq ft | AU29: 0 | AV29: 0 | AW29: 0 | AX29: 0
C30: Demolition | J30: =AX42 -> 0 | O30: =AP39 -> White Cabinet with Glass Doors | Z30: =AP60 -> New Glass Block Window | AL30: 20 | AM30: =Q14 -> 0 | AN30: Flooring | AO30: Flooring | AP30: Carpet | AR30: yards | AU30: 0 | AV30: 0 | AW30: 0 | AX30: 0
O31: =AP36 -> Mirror | Z31: Entry Door | AL31: 20 | AM31: =Q15 -> 0 | AN31: Flooring | AO31: Flooring | AP31: Refinish Hardwood Floor | AR31: sq ft | AU31: =AS31 -> 0 | AV31: =AT31 -> 0 | AW31: 0 | AX31: 0
C32: Contingency Applied to This Room | J32: =AY76 -> 0 | O32: =AP37 -> Replace Toilet | AL32: 20 | AN32: Flooring | AU32: 0 | AV32: 0 | AW32: 0 | AX32: 0
C33: Estimated Total Labor Cost This Room | J33: =AZ3 -> 0 | Z33: =AP66 -> Replace Window & Door Moulding | AL33: 20 | AM33: =IF(AU33>0,TRUE,FALSE) -> FALSE | AN33: Flooring | AO33: Flooring | AP33: Replace Rotted Floor | AQ33: =V22 -> 0 | AR33: sq ft | AS33: ='Materials Costs'!N21 -> 0.7671875 | AT33: ='Labor Costs'!F21 -> 2.5 | AU33: =AQ33*AS33 -> 0 | AV33: =AQ33*AT33 -> 0 | AW33: =ROUND(AU33*(COL/100),2) -> 0 | AX33: 0 | BA33: FALSE
C34: Estimated Total Material Cost This Room | J34: =AY3 -> 0 | Z34: =AP67 -> Interior Door Lockset | AL34: 20 | AM34: FALSE | AN34: Plumber | AO34: Plumber | AP34: ='Materials Costs'!C24 -> Sink Faucet | AS34: ='Materials Costs'!N24 -> 49 | AT34: ='Labor Costs'!F24 -> 95 | AU34: =IF(AM34,AS34,0) -> 0 | AV34: =IF(AM34,AT34,0) -> 0 | AW34: 0 | AX34: 0 | BA34: FALSE
C35: Total Estimated Room Repair Cost | J35: =J32+J33+J34 -> 0 | AB35: Replacement Windows | AG35: # | AL35: 20 | AM35: FALSE | AN35: Plumber | AO35: Plumber | AP35: ='Labor Costs'!D25 -> Replumb Sink Supply and Drain | AT35: ='Labor Costs'!F25 -> 125 | AU35: 0 | AV35: 0 | AW35: 0 | AX35: 0 | BA35: FALSE
O36: =AP42 -> Demolition Hours | V36: 0 | AG36: 0 | AL36: 20 | AM36: FALSE | AN36: General Bath | AO36: General Bath | AP36: ='Materials Costs'!C25 -> Mirror | AS36: ='Materials Costs'!N25 -> 69 | AT36: ='Labor Costs'!F29 -> 35 | AU36: 0 | AV36: 0 | AW36: 0 | AX36: 0 | BA36: FALSE
C37: Total Estimated Costs for Entire House | J37: ='Offer Calculator'!Z20+'Offer Calculator'!Z23 -> 0 | AL37: 20 | AM37: FALSE | AN37: Plumber | AO37: Plumber | AP37: Replace Toilet | AS37: ='Materials Costs'!N26 -> 99 | AT37: ='Labor Costs'!F26 -> 125 | AU37: 0 | AV37: 0 | AW37: 0 | AX37: 0 | BA37: FALSE
AL38: 20 | AM38: FALSE | AN38: General Bath | AO38: General Bath | AP38: ='Materials Costs'!C27 -> Bath Accessories Kit | AS38: ='Materials Costs'!N27 -> 29.98 | AT38: ='Labor Costs'!F27 -> 35 | AU38: 0 | AV38: 0 | AW38: 0 | AX38: 0 | BA38: FALSE
AL39: 20 | AM39: FALSE | AN39: General Bath | AO39: General Bath | AP39: ='Materials Costs'!C28 -> White Cabinet with Glass Doors | AS39: ='Materials Costs'!N28 -> 69 | AT39: ='Labor Costs'!F28 -> 70 | AU39: 0 | AV39: 0 | AW39: 0 | AX39: 0 | BA39: FALSE
E40: TYPE | J40: MATERIALS | L40: LABOR | AG40: 0 | AL40: 20 | AM40: =Z9 -> 0 | AN40: General Bath | AU40: =AS40*$O$5*$R$5 -> 0 | AV40: =AT40*$O$5*$R$5 -> 0 | AW40: 0 | AX40: 0
E41: DEMOLITION | L41: =AX42 -> 0 | AG41: 1 | AL41: 20 | AM41: =Z10 -> 0 | AN41: General Bath | AU41: =AS41*$O$5*$R$5 -> 0 | AV41: =AT41*$O$5*$R$5 -> 0 | AW41: 0 | AX41: 0
E42: DRYWALL | J42: =AW21 -> 0 | L42: =AX21 -> 0 | AG42: 2 | AL42: 20 | AM42: =IF(AQ42>0,TRUE,FALSE) -> FALSE | AN42: Demolition | AO42: Demolition | AP42: ='Labor Costs'!D114 -> Demolition Hours | AQ42: =V36 -> 0 | AT42: ='Labor Costs'!F114 -> 20 | AU42: 0 | AV42: =AQ42*AT42 -> 0 | AW42: 0 | AX42: 0 | BA42: FALSE
E43: ELECTRICIAN | J43: =SUM(AW57:AW59) -> 0 | L43: =SUM(AX57:AX59) -> 0 | AG43: 3 | AL43: =SUM(B39:AI39) -> 0 | AM43: 5 | AN43: General Bath | BA43: FALSE
E44: FLOORING | J44: =SUM(AW25:AW27)+AW33+AW56 -> 0 | L44: =SUM(AX25:AX27)+AX33+AX56 -> 0 | AG44: 4 | AM44: =IF(AM43=1,TRUE,FALSE) -> FALSE | AN44: General Bath | AO44: General Bath | AP44: ='Materials Costs'!C46 -> 36 in Medicine Cabinet | AS44: ='Materials Costs'!N46 -> 119 | AT44: ='Labor Costs'!$F$33 -> 50 | AU44: =IF(AM44,AS44,0) -> 0 | AV44: =IF(AM44,AT44,0) -> 0 | AW44: =ROUND(AU44*(COL/100),2) -> 0 | AX44: =IF($BA$43,0,ROUND(AV44*(COL/100),2)) -> 0
E45: GENERAL BATH | J45: =AW22+AW28+SUM(AW4:AW20)+AW36+SUM(AW38:AW39)+SUM(AW44:AW51)+AW54+AW55+SUM(AW63:AW67) -> 0 | L45: =AX22+AX28+SUM(AX4:AX20)+AX36+SUM(AX38:AX39)+SUM(AX44:AX51)+AX54+AX55+SUM(AX63:AX67) -> 0 | AG45: 5 | AM45: =IF($AM$43=2,TRUE,FALSE) -> FALSE | AN45: General Bath | AO45: General Bath | AP45: ='Materials Costs'!C47 -> 30 in Medicine Cabinet | AS45: ='Materials Costs'!N47 -> 99 | AT45: ='Labor Costs'!$F$33 -> 50 | AU45: =IF(AM45,AS45,0) -> 0 | AV45: =IF(AM45,AT45,0) -> 0 | AW45: 0 | AX45: =IF($BA$43,0,ROUND(AV45*(COL/100),2)) -> 0
E46: PAINTER | J46: =SUM(AW23:AW24) -> 0 | L46: =SUM(AX23:AX24) -> 0 | AG46: 6 | AM46: =IF($AM$43=3,TRUE,FALSE) -> FALSE | AN46: General Bath | AO46: General Bath | AP46: ='Materials Costs'!C48 -> 24 in Medicine Cabinet | AS46: ='Materials Costs'!N48 -> 99 | AT46: ='Labor Costs'!$F$33 -> 50 | AU46: 0 | AV46: 0 | AW46: 0 | AX46: =IF($BA$43,0,ROUND(AV46*(COL/100),2)) -> 0
E47: PLUMBER | J47: =SUM(AW34:AW35)+AW37+SUM(AW52:AW53) -> 0 | L47: =SUM(AX34:AX35)+AX37+SUM(AX52:AX53) -> 0 | AG47: 7 | AM47: =IF($AM$43=4,TRUE,FALSE) -> FALSE | AN47: General Bath | AO47: General Bath | AP47: ='Materials Costs'!C49 -> 16 in Medicine Cabinet | AS47: ='Materials Costs'!N49 -> 37.97 | AT47: ='Labor Costs'!$F$33 -> 50 | AU47: 0 | AV47: 0 | AW47: 0 | AX47: =IF($BA$43,0,ROUND(AV47*(COL/100),2)) -> 0
E48: WINDOWS & DOORS | J48: =AW60+SUM(AW69:AW75) -> 0 | L48: =AX60+SUM(AX69:AX75) -> 0 | AG48: 8 | AM48: =IF($AM$43=5,TRUE,FALSE) -> TRUE | AN48: General Bath | AP48: No Medicine Cabinet | AS48: 0 | AT48: 0 | AU48: 0 | AV48: 0 | AW48: 0 | AX48: =IF($BA$43,0,ROUND(AV48*(COL/100),2)) -> 0
AG49: 9 | AM49: FALSE | AN49: General Bath | AO49: General Bath | AP49: Replace Bathtub | AS49: ='Materials Costs'!N51 -> 193 | AT49: ='Labor Costs'!F35 -> 225 | AU49: 0 | AV49: 0 | AW49: 0 | AX49: =IF(BA49,0,ROUND(AV49*(COL/100),2)) -> 0 | BA49: FALSE
AG50: 10 | AM50: FALSE | AN50: General Bath | AO50: General Bath | AP50: Replace Shower Pan | AS50: ='Materials Costs'!N52 -> 189 | AT50: ='Labor Costs'!F36 -> 200 | AU50: 0 | AV50: 0 | AW50: 0 | AX50: 0 | BA50: FALSE
AG51: 11 | AM51: FALSE | AN51: General Bath | AO51: General Bath | AP51: Replace Tub Surround | AS51: ='Materials Costs'!N53 -> 95 | AT51: ='Labor Costs'!F37 -> 150 | AU51: 0 | AV51: 0 | AW51: 0 | AX51: 0 | BA51: FALSE
AG52: 12 | AM52: FALSE | AN52: Plumber | AO52: Plumber | AP52: Bathtub Faucet Kit | AS52: ='Materials Costs'!N54 -> 131 | AT52: ='Labor Costs'!F38 -> 80 | AU52: 0 | AV52: 0 | AW52: 0 | AX52: 0 | BA52: FALSE
AM53: FALSE | AN53: Plumber | AO53: Plumber | AP53: ='Labor Costs'!D40 -> Replumb Bathtub Supply and Drain | AS53: 0 | AT53: ='Labor Costs'!F40 -> 210 | AU53: 0 | AV53: 0 | AW53: 0 | AX53: 0 | BA53: FALSE
AM54: FALSE | AN54: General Bath | AO54: General | AP54: ='Materials Costs'!C55 -> Double Sliding Shower Doors | AS54: ='Materials Costs'!N55 -> 129 | AT54: ='Labor Costs'!F41 -> 100 | AU54: 0 | AV54: 0 | AW54: 0 | AX54: 0 | BA54: FALSE
AM55: FALSE | AN55: General Bath | AO55: General | AP55: ='Materials Costs'!C56 -> One piece shower enclosure | AS55: ='Materials Costs'!N56 -> 379 | AT55: ='Labor Costs'!F42 -> 150 | AU55: 0 | AV55: 0 | AW55: 0 | AX55: 0 | BA55: FALSE
AM56: =IF(AU56>0,TRUE,FALSE) -> FALSE | AN56: Flooring | AO56: Flooring | AP56: Shower/Wall Tile | AQ56: =AG22 -> 0 | AR56: sq ft | AS56: ='Materials Costs'!N57+'Materials Costs'!N7 -> 3.491333333 | AT56: =('Labor Costs'!F13+'Labor Costs'!F5) -> 4.45 | AU56: =AS56*AQ56 -> 0 | AV56: =AT56*AQ56 -> 0 | AW56: 0 | AX56: 0 | BA56: FALSE
AM57: FALSE | AN57: Electrician | AO57: Electrician | AP57: Install GFI Circuit | AS57: ='Materials Costs'!N59 -> 15.98 | AT57: ='Labor Costs'!F64 -> 150 | AU57: =IF(AM57,AS57,0) -> 0 | AV57: =IF(AM57,AT57,0) -> 0 | AW57: 0 | AX57: 0 | BA57: FALSE
AM58: FALSE | AN58: Electrician | AO58: Electrician | AP58: Exhaust Fan | AS58: ='Materials Costs'!N60 -> 108 | AT58: ='Labor Costs'!F65 -> 125 | AU58: 0 | AV58: 0 | AW58: 0 | AX58: 0 | BA58: FALSE
AM59: FALSE | AN59: Electrician | AO59: Electrician | AP59: Bath Light (wall mount) | AS59: ='Materials Costs'!N61 -> 59.97 | AT59: ='Labor Costs'!F66 -> 95 | AU59: 0 | AV59: 0 | AW59: 0 | AX59: 0 | BA59: FALSE
AM60: FALSE | AN60: Windows & Doors | AO60: Windows & Doors | AP60: New Glass Block Window | AS60: ='Materials Costs'!N107 -> 124.33 | AT60: ='Labor Costs'!F46 -> 85 | AU60: 0 | AV60: 0 | AW60: 0 | AX60: 0 | BA60: FALSE
AM61: 1 | AN61: General Bath | AW61: 0 | AX61: 0 | BA61: FALSE
AM62: =IF($AM$61=1,TRUE,FALSE) -> TRUE | AN62: General Bath | AP62: No Door | AS62: 0 | AT62: 0 | AU62: 0 | AV62: 0 | AW62: 0 | AX62: 0 | BA62: =IF($BA$61,TRUE,FALSE) -> FALSE
AM63: =IF($AM$61=2,TRUE,FALSE) -> FALSE | AN63: General Bath | AO63: General Bath | AP63: ='Materials Costs'!C70 -> 28 x 80 Prehung Interior Door | AS63: ='Materials Costs'!N70 -> 76.79 | AT63: ='Labor Costs'!$F$52 -> 150 | AU63: 0 | AV63: 0 | AW63: 0 | AX63: 0 | BA63: =IF($BA$61,TRUE,FALSE) -> FALSE
AM64: =IF($AM$61=3,TRUE,FALSE) -> FALSE | AN64: General Bath | AO64: General Bath | AP64: ='Materials Costs'!C71 -> 30 x 80 Prehung Interior Door | AS64: ='Materials Costs'!N71 -> 76.79 | AT64: ='Labor Costs'!$F$52 -> 150 | AU64: 0 | AV64: 0 | AW64: 0 | AX64: 0 | BA64: =IF($BA$61,TRUE,FALSE) -> FALSE
AM65: =IF($AM$61=4,TRUE,FALSE) -> FALSE | AN65: General Bath | AO65: General Bath | AP65: ='Materials Costs'!C72 -> 32 X 80 Prehung Interior Door | AS65: ='Materials Costs'!N72 -> 96.14 | AT65: ='Labor Costs'!$F$52 -> 150 | AU65: 0 | AV65: 0 | AW65: 0 | AX65: 0 | BA65: =IF($BA$61,TRUE,FALSE) -> FALSE
AM66: FALSE | AN66: General Bath | AO66: General Bath | AP66: Replace Window & Door Moulding | AQ66: =36 -> 36 | AR66: ln ft | AS66: ='Materials Costs'!N66 -> 1.29 | AT66: ='Labor Costs'!F58 -> 2.77 | AU66: =IF(AM66,AS66*AQ66,0) -> 0 | AV66: =IF(AM66,AT66*AQ66,0) -> 0 | AW66: 0 | AX66: 0 | BA66: FALSE
AM67: FALSE | AN67: General Bath | AO67: General Bath | AP67: ='Materials Costs'!C73 -> Interior Door Lockset | AS67: ='Materials Costs'!O73 -> 8.97 | AT67: ='Labor Costs'!G51 -> 25 | AU67: =IF(AM67,AS67,0) -> 0 | AV67: =IF(AM67,AT67,0) -> 0 | AW67: 0 | AX67: 0 | BA67: FALSE
AM68: 1 | AN68: Windows & Doors | AQ68: =$AG$36 -> 0 | AU68: =IF(AM68,AS68*AQ68,0) -> 0 | AV68: =IF(AM68,AT68*AQ68,0) -> 0 | AW68: 0 | AX68: 0
AM69: =IF($AM$68=1,TRUE,FALSE) -> TRUE | AN69: Windows & Doors | AP69: No Window | AQ69: 0 | AS69: 0 | AT69: 0 | AU69: 0 | AV69: 0 | AW69: 0 | AX69: 0 | BA69: FALSE
AM70: =IF($AM$68=2,TRUE,FALSE) -> FALSE | AN70: Windows & Doors | AO70: Windows & Doors | AP70: ='Materials Costs'!C100 -> 28 x 38 Double Hung | AQ70: 0 | AS70: ='Materials Costs'!N100 -> 124 | AT70: ='Labor Costs'!$F$44 -> 125 | AU70: 0 | AV70: 0 | AW70: 0 | AX70: 0 | BA70: =IF(BA69,TRUE,FALSE) -> FALSE
AM71: =IF($AM$68=3,TRUE,FALSE) -> FALSE | AN71: Windows & Doors | AO71: Windows & Doors | AP71: ='Materials Costs'!C101 -> 28 x 54 Double Hung | AQ71: 0 | AS71: ='Materials Costs'!N101 -> 134 | AT71: ='Labor Costs'!$F$44 -> 125 | AU71: 0 | AV71: 0 | AW71: 0 | AX71: 0 | BA71: FALSE
AM72: =IF($AM$68=4,TRUE,FALSE) -> FALSE | AN72: Windows & Doors | AO72: Windows & Doors | AP72: ='Materials Costs'!C102 -> 32 x 38 Double Hung | AQ72: 0 | AS72: ='Materials Costs'!N102 -> 147 | AT72: ='Labor Costs'!$F$44 -> 125 | AU72: 0 | AV72: 0 | AW72: 0 | AX72: 0 | BA72: FALSE
AM73: =IF($AM$68=5,TRUE,FALSE) -> FALSE | AN73: Windows & Doors | AO73: Windows & Doors | AP73: ='Materials Costs'!C103 -> 32 x 54 Double Hung | AQ73: 0 | AS73: ='Materials Costs'!N103 -> 155 | AT73: ='Labor Costs'!$F$44 -> 125 | AU73: 0 | AV73: 0 | AW73: 0 | AX73: 0 | BA73: FALSE
AM74: =IF($AM$68=6,TRUE,FALSE) -> FALSE | AN74: Windows & Doors | AO74: Windows & Doors | AP74: ='Materials Costs'!C104 -> 36 x 38 Double Hung | AQ74: 0 | AS74: ='Materials Costs'!N104 -> 134 | AT74: ='Labor Costs'!$F$44 -> 125 | AU74: 0 | AV74: 0 | AW74: 0 | AX74: 0 | BA74: FALSE
AM75: =IF($AM$68=7,TRUE,FALSE) -> FALSE | AN75: Windows & Doors | AO75: Windows & Doors | AP75: ='Materials Costs'!C105 -> 36 x 54 Double Hung | AQ75: 0 | AS75: ='Materials Costs'!N105 -> 167 | AT75: ='Labor Costs'!$F$44 -> 125 | AU75: 0 | AV75: 0 | AW75: 0 | AX75: 0 | BA75: FALSE
AM76: TRUE | AN76: Contingency | AO76: Contingency | AP76: Contingency | AW76: =AY76*0.5 -> 0 | AX76: =AY76*0.5 -> 0 | AY76: =IF(AM77,(AY3+AZ3)*'Offer Calculator'!U23,S4) -> 0
AM77: TRUE | AW77: =ROUND(AU77*(COL/100),2) -> 0 | AX77: 0
AW78: 0 | AX78: 0
AW79: 0 | AX79: 0
AW80: 0 | AX80: 0
AW81: 0 | AX81: 0
AW82: 0 | AX82: 0
AW83: 0 | AX83: 0
AW84: 0 | AX84: 0
AW85: 0 | AX85: 0
AW86: 0 | AX86: 0
AW87: 0 | AX87: 0
AS90: FALSE | AT90: enter sq ft | AU90: 400 | AV90: sq ft
AS92: TRUE | AT92: enter square ft | AU92: 210 | AV92: sq ft
AS94: TRUE | AT94: enter square ft | AU94: 164 | AV94: sq ft
AS96: TRUE | AT96: enter room sq ft (not sq yards, the number you enter is converted to sq yds) | AU96: 75 | AV96: sq yd
AS98: FALSE | AT98: enter square ft | AU98: 0 | AV98: sq ft
AS100: 0 | AT100: each
AS102: 0 | AT102: each
AS104: 0 | AT104: each
AS106: 0 | AT106: each
AS108: 252.99 | AT108: linear ft
AS110: 202 | AT110: linear ft
AS112: 53 | AT112: linear ft

Sheet Bedroom 1
P1: Bedroom 1 Repair | AS1: Each | AU1: Extended | AW1: Region Adjustment | AY1: Total
D2: Estimated Labor & Material Costs | AM2: Include? | AN2: Category | AO2: Contractor | AP2: Description | AQ2: Amount | AR2: Measure | AS2: Material | AT2: Labor | AU2: Material | AV2: Labor | AW2: Material | AX2: Labor | AY2: Material | AZ2: Labor | BA2: DIY
P3: Contingency for This Room | AY3: =SUM(AW5:AW43) -> 0 | AZ3: =SUM(AX5:AX43) -> 0
E4: Windows | L4: =SUM(AW5:AW11)+SUM(AX5:AX11) -> 0 | Q4: Standard | S4: or | T4: $ | U4: 0 | W4: Room dimensions (ft): | AD4: Width | AF4: 0 | AG4: Depth | AI4: 0 | AM4: 7 | AN4: Windows & Doors | BA4: FALSE
AM5: =IF($AM$4=1,TRUE,FALSE) -> FALSE | AN5: Windows & Doors | AO5: Windows & Doors | AP5: No Windows | AQ5: =$X$8 -> 0 | AS5: 0 | AT5: 0 | AU5: =IF(AM5,AQ5*AS5,0) -> 0 | AW5: =ROUND(AU5*(COL/100),2) -> 0 | AX5: =IF(BA5,0,ROUND(AV5*(COL/100),2)) -> 0 | BA5: =IF($BA$4,TRUE,FALSE) -> FALSE
E6: Blinds | L6: =SUM(AW24:AW26)+SUM(AX24:AX26) -> 0 | Q6: Replace Windows | AB6: Replace Blinds | AM6: =IF($AM$4=2,TRUE,FALSE) -> FALSE | AN6: Windows & Doors | AO6: Windows & Doors | AP6: ='Materials Costs'!C100 -> 28 x 38 Double Hung | AQ6: =$X$8 -> 0 | AS6: ='Materials Costs'!O100 -> 124 | AT6: ='Labor Costs'!$F$44 -> 125 | AU6: 0 | AV6: =IF(AM6,AQ6*AT6,0) -> 0 | AW6: 0 | AX6: 0 | BA6: =IF($BA$4,TRUE,FALSE) -> FALSE
P7: DIY | AA7: DIY | AM7: =IF($AM$4=3,TRUE,FALSE) -> FALSE | AN7: Windows & Doors | AO7: Windows & Doors | AP7: ='Materials Costs'!C101 -> 28 x 54 Double Hung | AQ7: 0 | AS7: ='Materials Costs'!N101 -> 134 | AT7: ='Labor Costs'!$F$44 -> 125 | AU7: 0 | AV7: 0 | AW7: 0 | AX7: 0 | BA7: FALSE
E8: Walls | L8: =SUM(AW12:AW15)+SUM(AX12:AX15) -> 0 | X8: 0 | AI8: 0 | AM8: =IF($AM$4=4,TRUE,FALSE) -> FALSE | AN8: Windows & Doors | AO8: Windows & Doors | AP8: ='Materials Costs'!C102 -> 32 x 38 Double Hung | AQ8: 0 | AS8: ='Materials Costs'!N102 -> 147 | AT8: ='Labor Costs'!$F$44 -> 125 | AU8: 0 | AV8: 0 | AW8: 0 | AX8: 0 | BA8: FALSE
AM9: =IF($AM$4=5,TRUE,FALSE) -> FALSE | AN9: Windows & Doors | AO9: Windows & Doors | AP9: ='Materials Costs'!C103 -> 32 x 54 Double Hung | AQ9: 0 | AS9: ='Materials Costs'!N103 -> 155 | AT9: ='Labor Costs'!$F$44 -> 125 | AU9: 0 | AV9: 0 | AW9: 0 | AX9: 0 | BA9: FALSE
E10: Floors | L10: =SUM(AW16:AW21)+SUM(AX16:AX21) -> 0 | AM10: =IF($AM$4=6,TRUE,FALSE) -> FALSE | AN10: Windows & Doors | AO10: Windows & Doors | AP10: ='Materials Costs'!C104 -> 36 x 38 Double Hung | AQ10: 0 | AS10: ='Materials Costs'!N104 -> 134 | AT10: ='Labor Costs'!$F$44 -> 125 | AU10: 0 | AV10: 0 | AW10: 0 | AX10: 0 | BA10: FALSE
AM11: =IF($AM$4=7,TRUE,FALSE) -> TRUE | AN11: Windows & Doors | AO11: Windows & Doors | AP11: ='Materials Costs'!C105 -> 36 x 54 Double Hung | AQ11: 0 | AS11: ='Materials Costs'!N105 -> 167 | AT11: ='Labor Costs'!$F$44 -> 125 | AU11: 0 | AV11: 0 | AW11: 0 | AX11: 0 | BA11: FALSE
E12: Door | L12: =SUM(AW28:AW31)+SUM(AX28:AX31)+AW32+AX32+AW36+AX36 -> 0 | P12: DIY | Q12: Walls & Floors | AA12: DIY | AB12: Doors & Closet | AM12: FALSE | AN12: Drywall | AO12: Drywall | AP12: Hang & Finish Drywall | AQ12: =(8*$AF$4)*2+(8*$AI$4)*2 -> 0 | AR12: sq ft | AS12: ='Materials Costs'!N5+'Materials Costs'!N6 -> 0.348825 | AT12: ='Labor Costs'!F5+'Labor Costs'!F6 -> 2.45 | AU12: =IF(AM12,AQ12*AS12,0) -> 0 | AV12: =IF(AM12,AQ12*AT12,0) -> 0 | AW12: =ROUND(AU12*(COL/100),2) -> 0 | AX12: 0 | BA12: FALSE
Q13: =AP12 -> Hang & Finish Drywall | AB13: Replace Entry Door | AM13: FALSE | AN13: General | AO13: General | AP13: Remove Wallpaper | AQ13: =(8*$AF$4)*2+(8*$AI$4)*2 -> 0 | AR13: sq ft | AS13: 0 | AT13: ='Labor Costs'!F7 -> 1 | AU13: =IF(AM13,AQ13*AS13,0) -> 0 | AV13: =IF(AM13,AQ13*AT13,0) -> 0 | AW13: =ROUND(AU13*(COL/100),2) -> 0 | AX13: 0 | BA13: FALSE
E14: Closet | L14: =SUM(AW33:AW35)+SUM(AX33:AX35) -> 0 | Q14: =AP13 -> Remove Wallpaper | AM14: FALSE | AN14: Painter | AO14: Painter | AP14: Prime Walls | AQ14: =(8*$AF$4)*2+(8*$AI$4)*2 -> 0 | AR14: sq ft | AS14: ='Materials Costs'!N9 -> 0.04245 | AT14: ='Labor Costs'!F9 -> 0.4 | AU14: =IF(AM14,AQ14*AS14,0) -> 0 | AV14: =IF(AM14,AQ14*AT14,0) -> 0 | AW14: =ROUND(AU14*(COL/100),2) -> 0 | AX14: 0 | BA14: FALSE
Q15: =AP14 -> Prime Walls | AM15: FALSE | AN15: Painter | AO15: Painter | AP15: Paint Walls | AQ15: =(8*$AF$4)*2+(8*$AI$4)*2 -> 0 | AR15: sq ft | AS15: ='Materials Costs'!N8 -> 0.11485 | AT15: ='Labor Costs'!F8 -> 0.65 | AU15: =IF(AM15,AQ15*AS15,0) -> 0 | AV15: =IF(AM15,AQ15*AT15,0) -> 0 | AW15: 0 | AX15: 0 | BA15: FALSE
E16: Add Circuit | L16: =AW37+AX37 -> 0 | Q16: =AP15 -> Paint Walls | AB16: =AP32 -> Interior Door Lockset
Q17: Carpet | AB17: =AP33 -> Single Closet Door | AM17: FALSE | AN17: General | AO17: General | AP17: Replace and Paint Baseboards | AQ17: =(AF4*2)+(AI4*2) -> 0 | AR17: ln ft | AS17: ='Materials Costs'!N19+'Materials Costs'!N20 -> 0.216175 | AT17: ='Labor Costs'!F17 -> 2.77 | AU17: =IF(AM17,AQ17*AS17,0) -> 0 | AV17: =IF(AM17,AQ17*AT17,0) -> 0 | AW17: 0 | AX17: 0 | BA17: FALSE
E18: Ceiling Fan & Light Fixture | L18: =AW38+AX38+AW39+AX39 -> 0 | Q18: Install Engineered Hardwood | AB18: =AP34 -> Double Closet Door | AM18: FALSE | AN18: Flooring | AO18: Flooring | AP18: Engineered Hardwood Flooring | AQ18: =AF4*AI4 -> 0 | AR18: sq ft | AS18: ='Materials Costs'!N16 -> 2.89 | AT18: ='Labor Costs'!F18 -> 3 | AU18: =IF(AM18,AQ18*AS18,0) -> 0 | AV18: =IF(AM18,AQ18*AT18,0) -> 0 | AW18: 0 | AX18: 0 | BA18: FALSE
Q19: Refinish Hardwood | AB19: =AP35 -> Paint Closet | AM19: FALSE | AN19: Flooring | AO19: Flooring | AP19: Carpet | AQ19: =((AF4*AI4)*1.15)/9 -> 0 | AR19: yards | AS19: ='Materials Costs'!N17+'Materials Costs'!N18 -> 18 | AT19: ='Labor Costs'!F19 -> 5 | AU19: =IF(AM19,AQ19*AS19,0) -> 0 | AV19: =IF(AM19,AQ19*AT19,0) -> 0 | AW19: 0 | AX19: 0 | BA19: FALSE
E20: Cable Outlet | L20: =AW40+AX40 -> 0 | Q20: =AP17 -> Replace and Paint Baseboards | AB20: =AP36 -> Replace Window & Door Moulding | AM20: FALSE | AN20: Flooring | AO20: Flooring | AP20: Refinish Hardwood Floor | AQ20: =AF4*AI4 -> 0 | AR20: sq ft | AS20: 0 | AT20: ='Labor Costs'!F20 -> 3.5 | AU20: =IF(AM20,AQ20*AS20,0) -> 0 | AV20: =IF(AM20,AQ20*AT20,0) -> 0 | AW20: 0 | AX20: 0 | BA20: FALSE
AM21: =IF(AU21>0,TRUE,FALSE) -> FALSE | AN21: Flooring | AO21: Flooring | AP21: Replace Rotted Floor | AQ21: =X22 -> 0 | AR21: sq ft | AS21: ='Materials Costs'!N21 -> 0.7671875 | AT21: ='Labor Costs'!F21 -> 2.5 | AU21: =AQ21*AS21 -> 0 | AV21: =AQ21*AT21 -> 0 | AW21: 0 | AX21: 0 | BA21: FALSE
E22: Outlets and Switches | L22: =AW41+AX41+AW42+AX42 -> 0 | Q22: =AP21 -> Replace Rotted Floor | X22: 0 | AM22: 4 | AN22: General | AX22: 0
AM23: =IF($AM$22=1,TRUE,FALSE) -> FALSE | AN23: General | AO23: General | AP23: No Blinds | AQ23: =$AI$8 -> 0 | AX23: 0 | BA23: FALSE
E24: Demolition | L24: =AX43 -> 0 | AM24: =IF($AM$22=2,TRUE,FALSE) -> FALSE | AN24: General | AO24: General | AP24: ='Materials Costs'!C108 -> 28 inch wide blinds | AQ24: =$AI$8 -> 0 | AS24: ='Materials Costs'!N108 -> 6.97 | AT24: ='Labor Costs'!$F$47 -> 45 | AU24: =IF(AM24,AS24*AQ24,0) -> 0 | AV24: =IF(AM24,AT24*AQ24,0) -> 0 | AW24: 0 | AX24: 0 | BA24: =IF(BA23,TRUE,FALSE) -> FALSE
AM25: =IF($AM$22=3,TRUE,FALSE) -> FALSE | AN25: General | AO25: General | AP25: ='Materials Costs'!C109 -> 32 inch wide blinds | AQ25: =$AI$8 -> 0 | AS25: ='Materials Costs'!N109 -> 8.47 | AT25: ='Labor Costs'!$F$47 -> 45 | AU25: =IF(AM25,AS25*AQ25,0) -> 0 | AV25: =IF(AM25,AT25*AQ25,0) -> 0 | AW25: 0 | AX25: 0 | BA25: =IF(BA24,TRUE,FALSE) -> FALSE
AA26: DIY | AB26: Electrical & Misc | AM26: =IF($AM$22=4,TRUE,FALSE) -> TRUE | AN26: General | AO26: General | AP26: ='Materials Costs'!C110 -> 36 inch wide blinds | AQ26: =$AI$8 -> 0 | AS26: ='Materials Costs'!N110 -> 9.97 | AT26: ='Labor Costs'!$F$47 -> 45 | AU26: =IF(AM26,AS26*AQ26,0) -> 0 | AV26: =IF(AM26,AT26*AQ26,0) -> 0 | AW26: 0 | AX26: 0 | BA26: =IF(BA25,TRUE,FALSE) -> FALSE
AB27: =AP37 -> Add Circuit | AM27: 1 | AN27: General | AU27: =IF(AM27,AS27,0) -> 0 | AV27: =IF(AM27,AT27,0) -> 0 | AW27: 0 | AX27: 0
AB28: =AP38 -> Ceiling Fan | AM28: =IF(AM27=1,TRUE,FALSE) -> TRUE | AN28: General | AO28: General | AP28: No Doors | AS28: 0 | AT28: 0 | AU28: 0 | AV28: 0 | AW28: 0 | AX28: 0 | BA28: FALSE
E29: Contingency Applied to This Room | L29: =AY44 -> 0 | AB29: =AP39 -> Lighting Fixture | AM29: =IF(AM27=2,TRUE,FALSE) -> FALSE | AN29: General | AO29: General | AP29: ='Materials Costs'!C70 -> 28 x 80 Prehung Interior Door | AS29: ='Materials Costs'!N70 -> 76.79 | AT29: ='Labor Costs'!$F$52 -> 150 | AU29: 0 | AV29: 0 | AW29: 0 | AX29: 0 | BA29: =IF($BA$28,TRUE,FALSE) -> FALSE
E30: Estimated Total Labor Cost This Room | L30: =AZ3 -> 0 | AB30: =AP40 -> Wire Cable Outlet | AM30: =IF(AM27=3,TRUE,FALSE) -> FALSE | AN30: General | AO30: General | AP30: ='Materials Costs'!C71 -> 30 x 80 Prehung Interior Door | AS30: ='Materials Costs'!N71 -> 76.79 | AT30: ='Labor Costs'!$F$52 -> 150 | AU30: 0 | AV30: 0 | AW30: 0 | AX30: 0 | BA30: =IF($BA$28,TRUE,FALSE) -> FALSE
E31: Estimated Total Material Cost This Room | L31: =AY3 -> 0 | AB31: =AP41 -> Grounded Outlet | AI31: 0 | AM31: =IF(AM27=4,TRUE,FALSE) -> FALSE | AN31: General | AO31: General | AP31: ='Materials Costs'!C72 -> 32 X 80 Prehung Interior Door | AS31: ='Materials Costs'!N72 -> 96.14 | AT31: ='Labor Costs'!$F$52 -> 150 | AU31: 0 | AV31: 0 | AW31: 0 | AX31: 0 | BA31: =IF($BA$28,TRUE,FALSE) -> FALSE
E32: Total Estimated Room Repair Cost | L32: =L29+L30+L31 -> 0 | AM32: FALSE | AN32: General | AO32: General | AP32: ='Materials Costs'!C73 -> Interior Door Lockset | AS32: ='Materials Costs'!N73 -> 8.97 | AT32: ='Labor Costs'!F51 -> 25 | AU32: 0 | AV32: 0 | AW32: 0 | AX32: 0 | BA32: FALSE
AB33: =AP42 -> Wall Switch | AI33: 0 | AM33: FALSE | AN33: General | AO33: General | AP33: ='Materials Costs'!C74 -> Single Closet Door | AS33: ='Materials Costs'!N74 -> 165.2 | AT33: ='Labor Costs'!F54 -> 100 | AU33: 0 | AV33: 0 | AW33: 0 | AX33: 0 | BA33: FALSE
E34: Total Estimated Costs for Entire House | L34: ='Offer Calculator'!Z20+'Offer Calculator'!Z23 -> 0 | AM34: FALSE | AN34: General | AO34: General | AP34: ='Materials Costs'!C75 -> Double Closet Door | AS34: ='Materials Costs'!N75 -> 109 | AT34: ='Labor Costs'!F55 -> 150 | AU34: 0 | AV34: 0 | AW34: 0 | AX34: 0 | BA34: FALSE
AM35: FALSE | AN35: Painter | AO35: Painter | AP35: Paint Closet | AS35: ='Materials Costs'!N76 -> 22.97 | AT35: ='Labor Costs'!F56 -> 125 | AU35: 0 | AV35: 0 | AW35: 0 | AX35: 0 | BA35: FALSE
AB36: =AP43 -> Demolition Hours | AI36: 0 | AM36: FALSE | AN36: General | AO36: General | AP36: Replace Window & Door Moulding | AQ36: =36 -> 36 | AR36: ln ft | AS36: ='Materials Costs'!N77 -> 0.4725 | AT36: ='Labor Costs'!F58 -> 2.77 | AU36: =IF(AM36,AS36*AQ36,0) -> 0 | AV36: =IF(AM36,AT36*AQ36,0) -> 0 | AW36: 0 | AX36: 0 | BA36: FALSE
AM37: FALSE | AN37: Electrician | AO37: Electrician | AP37: ='Labor Costs'!D64 -> Add Circuit | AS37: ='Materials Costs'!N59 -> 15.98 | AT37: ='Labor Costs'!F64 -> 150 | AU37: =IF(AM37,AS37,0) -> 0 | AV37: =IF(AM37,AT37,0) -> 0 | AW37: 0 | AX37: 0 | BA37: FALSE
AM38: FALSE | AN38: Electrician | AO38: Electrician | AP38: ='Materials Costs'!C62 -> Ceiling Fan | AS38: ='Materials Costs'!N62 -> 44.97 | AT38: ='Labor Costs'!F65 -> 125 | AU38: =IF(AM38,AS38,0) -> 0 | AV38: =IF(AM38,AT38,0) -> 0 | AW38: 0 | AX38: 0 | BA38: FALSE
AM39: FALSE | AN39: Electrician | AO39: Electrician | AP39: ='Materials Costs'!C63 -> Lighting Fixture | AS39: ='Materials Costs'!N63 -> 24.97 | AT39: ='Labor Costs'!F66 -> 95 | AU39: =IF(AM39,AS39,0) -> 0 | AV39: =IF(AM39,AT39,0) -> 0 | AW39: 0 | AX39: 0 | BA39: FALSE
E40: TYPE | J40: MATERIALS | L40: LABOR | AM40: FALSE | AN40: Electrician | AO40: Electrician | AP40: ='Materials Costs'!C64 -> Wire Cable Outlet | AS40: ='Materials Costs'!N64 -> 29.97 | AT40: ='Labor Costs'!F67 -> 100 | AU40: =IF(AM40,AS40,0) -> 0 | AV40: =IF(AM40,AT40,0) -> 0 | AW40: 0 | AX40: 0 | BA40: FALSE
E41: DEMOLITION | L41: =AX43 -> 0 | X41: 0 | AM41: =IF(AQ41>0,TRUE,FALSE) -> FALSE | AN41: Electrician | AO41: Electrician | AP41: ='Materials Costs'!C65 -> Grounded Outlet | AQ41: =AI31 -> 0 | AS41: ='Materials Costs'!N65 -> 1.19 | AT41: ='Labor Costs'!F68 -> 50 | AU41: =AQ41*AS41 -> 0 | AV41: =AQ41*AT41 -> 0 | AW41: 0 | AX41: 0 | BA41: FALSE
E42: DRYWALL | J42: =AW12 -> 0 | L42: =AX12 -> 0 | X42: 1 | AM42: =IF(AQ42>0,TRUE,FALSE) -> FALSE | AN42: Electrician | AO42: Electrician | AP42: ='Materials Costs'!C66 -> Wall Switch | AQ42: =AI33 -> 0 | AS42: ='Materials Costs'!N66 -> 1.29 | AT42: ='Labor Costs'!F69 -> 50 | AU42: =AQ42*AS42 -> 0 | AV42: =AQ42*AT42 -> 0 | AW42: 0 | AX42: 0 | BA42: FALSE
E43: ELECTRICIAN | J43: =SUM(AW37:AW42) -> 0 | L43: =SUM(AX37:AX42) -> 0 | X43: 2 | AM43: =IF(AQ43>0,TRUE,FALSE) -> FALSE | AN43: Demolition | AO43: Demolition | AP43: ='Labor Costs'!D114 -> Demolition Hours | AQ43: =AI36 -> 0 | AT43: ='Labor Costs'!F114 -> 20 | AU43: 0 | AV43: =AQ43*AT43 -> 0 | AW43: 0 | AX43: 0 | BA43: FALSE
E44: FLOORING | J44: =SUM(AW18:AW21) -> 0 | L44: =SUM(AX18:AX21) -> 0 | X44: 3 | AM44: TRUE | AN44: Contingency | AO44: Contingency | AP44: Contingency | AW44: =AY44*0.5 -> 0 | AX44: =AY44*0.5 -> 0 | AY44: =IF(AM45,(AY3+AZ3)*'Offer Calculator'!U23,U4) -> 0
E45: GENERAL | J45: =AW13+AW17+SUM(AW23:AW34)+AW36 -> 0 | L45: =AX13+AW17+SUM(AX23:AX34)+AX36 -> 0 | X45: 4 | AM45: TRUE
E46: PAINTER | J46: =SUM(AW14:AW15)+AW35 -> 0 | L46: =SUM(AX14:AX15)+AX35 -> 0 | X46: 5
E47: WINDOWS & DOORS | J47: =SUM(AW5:AW11) -> 0 | L47: =SUM(AX5:AX11) -> 0 | X47: 6
X48: 7
X49: 8
X50: 9
AK65: TRUE

Sheet Bedroom 2
P1: Bedroom 2 Repair | AS1: Each | AU1: Extended | AW1: Region Adjustment | AY1: Total
D2: Estimated Labor & Material Costs | AM2: Include? | AN2: Category | AO2: Contractor | AP2: Description | AQ2: Measure | AR2: Measure | AS2: Material | AT2: Labor | AU2: Material | AV2: Labor | AW2: Material | AX2: Labor | AY2: Material | AZ2: Labor | BA2: DIY
P3: Contingency for This Room | AY3: =SUM(AW5:AW43) -> 0 | AZ3: =SUM(AX5:AX43) -> 0
E4: Windows | L4: =SUM(AW5:AW11)+SUM(AX5:AX11) -> 0 | Q4: Standard | S4: or | T4: $ | U4: 0 | W4: Room dimensions (ft): | AD4: Width | AF4: 0 | AG4: Depth | AI4: 0 | AM4: 1 | AN4: Windows & Doors | BA4: FALSE
AM5: =IF($AM$4=1,TRUE,FALSE) -> TRUE | AN5: Windows & Doors | AO5: Windows & Doors | AP5: No Windows | AQ5: =$X$8 -> 0 | AS5: 0 | AT5: 0 | AU5: =IF(AM5,AQ5*AS5,0) -> 0 | AW5: =ROUND(AU5*(COL/100),2) -> 0 | AX5: =IF(BA5,0,ROUND(AV5*(COL/100),2)) -> 0 | BA5: =IF($BA$4,TRUE,FALSE) -> FALSE
E6: Blinds | L6: =SUM(AW24:AW26)+SUM(AX24:AX26) -> 0 | Q6: Replace Windows | AB6: Replace Blinds | AM6: =IF($AM$4=2,TRUE,FALSE) -> FALSE | AN6: Windows & Doors | AO6: Windows & Doors | AP6: ='Materials Costs'!C100 -> 28 x 38 Double Hung | AQ6: =$X$8 -> 0 | AS6: ='Materials Costs'!O100 -> 124 | AT6: ='Labor Costs'!$F$44 -> 125 | AU6: 0 | AV6: =IF(AM6,AQ6*AT6,0) -> 0 | AW6: 0 | AX6: 0 | BA6: =IF($BA$4,TRUE,FALSE) -> FALSE
P7: DIY | AA7: DIY | AM7: =IF($AM$4=3,TRUE,FALSE) -> FALSE | AN7: Windows & Doors | AO7: Windows & Doors | AP7: ='Materials Costs'!C101 -> 28 x 54 Double Hung | AQ7: 0 | AS7: ='Materials Costs'!N101 -> 134 | AT7: ='Labor Costs'!$F$44 -> 125 | AU7: 0 | AV7: 0 | AW7: 0 | AX7: 0 | BA7: FALSE
E8: Walls | L8: =SUM(AW12:AW15)+SUM(AX12:AX15) -> 0 | X8: 0 | AI8: 0 | AM8: =IF($AM$4=4,TRUE,FALSE) -> FALSE | AN8: Windows & Doors | AO8: Windows & Doors | AP8: ='Materials Costs'!C102 -> 32 x 38 Double Hung | AQ8: 0 | AS8: ='Materials Costs'!N102 -> 147 | AT8: ='Labor Costs'!$F$44 -> 125 | AU8: 0 | AV8: 0 | AW8: 0 | AX8: 0 | BA8: FALSE
AM9: =IF($AM$4=5,TRUE,FALSE) -> FALSE | AN9: Windows & Doors | AO9: Windows & Doors | AP9: ='Materials Costs'!C103 -> 32 x 54 Double Hung | AQ9: 0 | AS9: ='Materials Costs'!N103 -> 155 | AT9: ='Labor Costs'!$F$44 -> 125 | AU9: 0 | AV9: 0 | AW9: 0 | AX9: 0 | BA9: FALSE
E10: Floors | L10: =SUM(AW16:AW21)+SUM(AX16:AX21) -> 0 | AM10: =IF($AM$4=6,TRUE,FALSE) -> FALSE | AN10: Windows & Doors | AO10: Windows & Doors | AP10: ='Materials Costs'!C104 -> 36 x 38 Double Hung | AQ10: 0 | AS10: ='Materials Costs'!N104 -> 134 | AT10: ='Labor Costs'!$F$44 -> 125 | AU10: 0 | AV10: 0 | AW10: 0 | AX10: 0 | BA10: FALSE
AM11: =IF($AM$4=7,TRUE,FALSE) -> FALSE | AN11: Windows & Doors | AO11: Windows & Doors | AP11: ='Materials Costs'!C105 -> 36 x 54 Double Hung | AQ11: 0 | AS11: ='Materials Costs'!N105 -> 167 | AT11: ='Labor Costs'!$F$44 -> 125 | AU11: 0 | AV11: 0 | AW11: 0 | AX11: 0 | BA11: FALSE
E12: Door | L12: =SUM(AW28:AW31)+SUM(AX28:AX31)+AW32+AX32+AW36+AX36 -> 0 | P12: DIY | Q12: Walls & Floors | AA12: DIY | AB12: Doors & Closet | AM12: FALSE | AN12: Drywall | AO12: Drywall | AP12: Hang & Finish Drywall | AQ12: =(8*$AF$4)*2+(8*$AI$4)*2 -> 0 | AR12: sq ft | AS12: ='Materials Costs'!N5+'Materials Costs'!N6 -> 0.348825 | AT12: ='Labor Costs'!F5+'Labor Costs'!F6 -> 2.45 | AU12: =IF(AM12,AQ12*AS12,0) -> 0 | AV12: =IF(AM12,AQ12*AT12,0) -> 0 | AW12: =ROUND(AU12*(COL/100),2) -> 0 | AX12: 0 | BA12: FALSE
Q13: =AP12 -> Hang & Finish Drywall | AB13: Replace Entry Door | AM13: FALSE | AN13: General | AO13: General | AP13: Remove Wallpaper | AQ13: =(8*$AF$4)*2+(8*$AI$4)*2 -> 0 | AR13: sq ft | AS13: 0 | AT13: ='Labor Costs'!F7 -> 1 | AU13: =IF(AM13,AQ13*AS13,0) -> 0 | AV13: =IF(AM13,AQ13*AT13,0) -> 0 | AW13: =ROUND(AU13*(COL/100),2) -> 0 | AX13: 0 | BA13: FALSE
E14: Closet | L14: =SUM(AW33:AW35)+SUM(AX33:AX35) -> 0 | Q14: =AP13 -> Remove Wallpaper | AM14: FALSE | AN14: Painter | AO14: Painter | AP14: Prime Walls | AQ14: =(8*$AF$4)*2+(8*$AI$4)*2 -> 0 | AR14: sq ft | AS14: ='Materials Costs'!N9 -> 0.04245 | AT14: ='Labor Costs'!F9 -> 0.4 | AU14: =IF(AM14,AQ14*AS14,0) -> 0 | AV14: =IF(AM14,AQ14*AT14,0) -> 0 | AW14: =ROUND(AU14*(COL/100),2) -> 0 | AX14: 0 | BA14: FALSE
Q15: =AP14 -> Prime Walls | AM15: FALSE | AN15: Painter | AO15: Painter | AP15: Paint Walls | AQ15: =(8*$AF$4)*2+(8*$AI$4)*2 -> 0 | AR15: sq ft | AS15: ='Materials Costs'!N8 -> 0.11485 | AT15: ='Labor Costs'!F8 -> 0.65 | AU15: =IF(AM15,AQ15*AS15,0) -> 0 | AV15: =IF(AM15,AQ15*AT15,0) -> 0 | AW15: 0 | AX15: 0 | BA15: FALSE
E16: Add Circuit | L16: =AW37+AX37 -> 0 | Q16: =AP15 -> Paint Walls | AB16: =AP32 -> Interior Door Lockset
Q17: Carpet | AB17: =AP33 -> Single Closet Door | AM17: FALSE | AN17: General | AO17: General | AP17: Replace and Paint Baseboards | AQ17: =(AF4*2)+(AI4*2) -> 0 | AR17: ln ft | AS17: ='Materials Costs'!N19+'Materials Costs'!N20 -> 0.216175 | AT17: ='Labor Costs'!F17 -> 2.77 | AU17: =IF(AM17,AQ17*AS17,0) -> 0 | AV17: =IF(AM17,AQ17*AT17,0) -> 0 | AW17: 0 | AX17: 0 | BA17: FALSE
E18: Ceiling Fan & Light Fixture | L18: =AW38+AX38+AW39+AX39 -> 0 | Q18: Install Engineered Hardwood | AB18: =AP34 -> Double Closet Door | AM18: FALSE | AN18: Flooring | AO18: Flooring | AP18: Engineered Hardwood Flooring | AQ18: =AF4*AI4 -> 0 | AR18: sq ft | AS18: ='Materials Costs'!N16 -> 2.89 | AT18: ='Labor Costs'!F18 -> 3 | AU18: =IF(AM18,AQ18*AS18,0) -> 0 | AV18: =IF(AM18,AQ18*AT18,0) -> 0 | AW18: 0 | AX18: 0 | BA18: FALSE
Q19: Refinish Hardwood | AB19: =AP35 -> Paint Closet | AM19: FALSE | AN19: Flooring | AO19: Flooring | AP19: Carpet | AQ19: =((AF4*AI4)*1.15)/9 -> 0 | AR19: yards | AS19: ='Materials Costs'!N17+'Materials Costs'!N18 -> 18 | AT19: ='Labor Costs'!F19 -> 5 | AU19: =IF(AM19,AQ19*AS19,0) -> 0 | AV19: =IF(AM19,AQ19*AT19,0) -> 0 | AW19: 0 | AX19: 0 | BA19: FALSE
E20: Cable Outlet | L20: =AW40+AX40 -> 0 | Q20: =AP17 -> Replace and Paint Baseboards | AB20: =AP36 -> Replace Window & Door Moulding | AM20: FALSE | AN20: Flooring | AO20: Flooring | AP20: Refinish Hardwood Floor | AQ20: =AF4*AI4 -> 0 | AR20: sq ft | AS20: 0 | AT20: ='Labor Costs'!F20 -> 3.5 | AU20: =IF(AM20,AQ20*AS20,0) -> 0 | AV20: =IF(AM20,AQ20*AT20,0) -> 0 | AW20: 0 | AX20: 0 | BA20: FALSE
AM21: =IF(AU21>0,TRUE,FALSE) -> FALSE | AN21: Flooring | AO21: Flooring | AP21: Replace Rotted Floor | AQ21: =X22 -> 0 | AR21: sq ft | AS21: ='Materials Costs'!N21 -> 0.7671875 | AT21: ='Labor Costs'!F21 -> 2.5 | AU21: =AQ21*AS21 -> 0 | AV21: =AQ21*AT21 -> 0 | AW21: 0 | AX21: 0 | BA21: FALSE
E22: Outlets and Switches | L22: =AW41+AX41+AW42+AX42 -> 0 | Q22: =AP21 -> Replace Rotted Floor | X22: 0 | AM22: 1 | AN22: General | AX22: 0
AM23: =IF($AM$22=1,TRUE,FALSE) -> TRUE | AN23: General | AO23: General | AP23: No Blinds | AQ23: =$AI$8 -> 0 | AX23: 0 | BA23: FALSE
E24: Demolition | L24: =AX43 -> 0 | AM24: =IF($AM$22=2,TRUE,FALSE) -> FALSE | AN24: General | AO24: General | AP24: ='Materials Costs'!C108 -> 28 inch wide blinds | AQ24: =$AI$8 -> 0 | AS24: ='Materials Costs'!N108 -> 6.97 | AT24: ='Labor Costs'!$F$47 -> 45 | AU24: =IF(AM24,AS24*AQ24,0) -> 0 | AV24: =IF(AM24,AT24*AQ24,0) -> 0 | AW24: 0 | AX24: 0 | BA24: =IF(BA23,TRUE,FALSE) -> FALSE
AM25: =IF($AM$22=3,TRUE,FALSE) -> FALSE | AN25: General | AO25: General | AP25: ='Materials Costs'!C109 -> 32 inch wide blinds | AQ25: =$AI$8 -> 0 | AS25: ='Materials Costs'!N109 -> 8.47 | AT25: ='Labor Costs'!$F$47 -> 45 | AU25: =IF(AM25,AS25*AQ25,0) -> 0 | AV25: =IF(AM25,AT25*AQ25,0) -> 0 | AW25: 0 | AX25: 0 | BA25: =IF(BA24,TRUE,FALSE) -> FALSE
AA26: DIY | AB26: Electrical & Misc | AM26: =IF($AM$22=4,TRUE,FALSE) -> FALSE | AN26: General | AO26: General | AP26: ='Materials Costs'!C110 -> 36 inch wide blinds | AQ26: =$AI$8 -> 0 | AS26: ='Materials Costs'!N110 -> 9.97 | AT26: ='Labor Costs'!$F$47 -> 45 | AU26: =IF(AM26,AS26*AQ26,0) -> 0 | AV26: =IF(AM26,AT26*AQ26,0) -> 0 | AW26: 0 | AX26: 0 | BA26: =IF(BA25,TRUE,FALSE) -> FALSE
AB27: =AP37 -> Add Circuit | AM27: 1 | AN27: General | AU27: =IF(AM27,AS27,0) -> 0 | AV27: =IF(AM27,AT27,0) -> 0 | AW27: 0 | AX27: 0
AB28: =AP38 -> Ceiling Fan | AM28: =IF(AM27=1,TRUE,FALSE) -> TRUE | AN28: General | AO28: General | AP28: No Doors | AS28: 0 | AT28: 0 | AU28: 0 | AV28: 0 | AW28: 0 | AX28: 0 | BA28: FALSE
E29: Contingency Applied to This Room | L29: =AY44 -> 0 | AB29: =AP39 -> Lighting Fixture | AM29: =IF(AM27=2,TRUE,FALSE) -> FALSE | AN29: General | AO29: General | AP29: ='Materials Costs'!C70 -> 28 x 80 Prehung Interior Door | AS29: ='Materials Costs'!N70 -> 76.79 | AT29: ='Labor Costs'!$F$52 -> 150 | AU29: 0 | AV29: 0 | AW29: 0 | AX29: 0 | BA29: =IF($BA$28,TRUE,FALSE) -> FALSE
E30: Estimated Total Labor Cost This Room | L30: =AZ3 -> 0 | AB30: =AP40 -> Wire Cable Outlet | AM30: =IF(AM27=3,TRUE,FALSE) -> FALSE | AN30: General | AO30: General | AP30: ='Materials Costs'!C71 -> 30 x 80 Prehung Interior Door | AS30: ='Materials Costs'!N71 -> 76.79 | AT30: ='Labor Costs'!$F$52 -> 150 | AU30: 0 | AV30: 0 | AW30: 0 | AX30: 0 | BA30: =IF($BA$28,TRUE,FALSE) -> FALSE
E31: Estimated Total Material Cost This Room | L31: =AY3 -> 0 | AB31: =AP41 -> Grounded Outlet | AI31: 0 | AM31: =IF(AM27=4,TRUE,FALSE) -> FALSE | AN31: General | AO31: General | AP31: ='Materials Costs'!C72 -> 32 X 80 Prehung Interior Door | AS31: ='Materials Costs'!N72 -> 96.14 | AT31: ='Labor Costs'!$F$52 -> 150 | AU31: 0 | AV31: 0 | AW31: 0 | AX31: 0 | BA31: =IF($BA$28,TRUE,FALSE) -> FALSE
E32: Total Estimated Room Repair Cost | L32: =L29+L30+L31 -> 0 | AM32: FALSE | AN32: General | AO32: General | AP32: ='Materials Costs'!C73 -> Interior Door Lockset | AS32: ='Materials Costs'!N73 -> 8.97 | AT32: ='Labor Costs'!F51 -> 25 | AU32: 0 | AV32: 0 | AW32: 0 | AX32: 0 | BA32: FALSE
AB33: =AP42 -> Wall Switch | AI33: 0 | AM33: FALSE | AN33: General | AO33: General | AP33: ='Materials Costs'!C74 -> Single Closet Door | AS33: ='Materials Costs'!N74 -> 165.2 | AT33: ='Labor Costs'!F54 -> 100 | AU33: 0 | AV33: 0 | AW33: 0 | AX33: 0 | BA33: FALSE
E34: Total Estimated Costs for Entire House | L34: ='Offer Calculator'!Z20+'Offer Calculator'!Z23 -> 0 | AM34: FALSE | AN34: General | AO34: General | AP34: ='Materials Costs'!C75 -> Double Closet Door | AS34: ='Materials Costs'!N75 -> 109 | AT34: ='Labor Costs'!F55 -> 150 | AU34: 0 | AV34: 0 | AW34: 0 | AX34: 0 | BA34: FALSE
AM35: FALSE | AN35: Painter | AO35: Painter | AP35: Paint Closet | AS35: ='Materials Costs'!N76 -> 22.97 | AT35: ='Labor Costs'!F56 -> 125 | AU35: 0 | AV35: 0 | AW35: 0 | AX35: 0 | BA35: FALSE
AB36: =AP43 -> Demolition Hours | AI36: 0 | AM36: FALSE | AN36: General | AO36: General | AP36: Replace Window & Door Moulding | AQ36: =36 -> 36 | AR36: ln ft | AS36: ='Materials Costs'!N77 -> 0.4725 | AT36: ='Labor Costs'!F58 -> 2.77 | AU36: =IF(AM36,AS36*AQ36,0) -> 0 | AV36: =IF(AM36,AT36*AQ36,0) -> 0 | AW36: 0 | AX36: 0 | BA36: FALSE
AM37: FALSE | AN37: Electrician | AO37: Electrician | AP37: ='Labor Costs'!D64 -> Add Circuit | AS37: ='Materials Costs'!N59 -> 15.98 | AT37: ='Labor Costs'!F64 -> 150 | AU37: =IF(AM37,AS37,0) -> 0 | AV37: =IF(AM37,AT37,0) -> 0 | AW37: 0 | AX37: 0 | BA37: FALSE
AM38: FALSE | AN38: Electrician | AO38: Electrician | AP38: ='Materials Costs'!C62 -> Ceiling Fan | AS38: ='Materials Costs'!N62 -> 44.97 | AT38: ='Labor Costs'!F65 -> 125 | AU38: =IF(AM38,AS38,0) -> 0 | AV38: =IF(AM38,AT38,0) -> 0 | AW38: 0 | AX38: 0
AM39: FALSE | AN39: Electrician | AO39: Electrician | AP39: ='Materials Costs'!C63 -> Lighting Fixture | AS39: ='Materials Costs'!N63 -> 24.97 | AT39: ='Labor Costs'!F66 -> 95 | AU39: =IF(AM39,AS39,0) -> 0 | AV39: =IF(AM39,AT39,0) -> 0 | AW39: 0 | AX39: 0 | BA39: FALSE
E40: TYPE | J40: MATERIALS | L40: LABOR | AM40: FALSE | AN40: Electrician | AO40: Electrician | AP40: ='Materials Costs'!C64 -> Wire Cable Outlet | AS40: ='Materials Costs'!N64 -> 29.97 | AT40: ='Labor Costs'!F67 -> 100 | AU40: =IF(AM40,AS40,0) -> 0 | AV40: =IF(AM40,AT40,0) -> 0 | AW40: 0 | AX40: 0 | BA40: FALSE
E41: DEMOLITION | L41: =AX43 -> 0 | X41: 0 | AM41: =IF(AQ41>0,TRUE,FALSE) -> FALSE | AN41: Electrician | AO41: Electrician | AP41: ='Materials Costs'!C65 -> Grounded Outlet | AQ41: =AI31 -> 0 | AS41: ='Materials Costs'!N65 -> 1.19 | AT41: ='Labor Costs'!F68 -> 50 | AU41: =AQ41*AS41 -> 0 | AV41: =AQ41*AT41 -> 0 | AW41: 0 | AX41: 0 | BA41: FALSE
E42: DRYWALL | J42: =AW12 -> 0 | L42: =AX12 -> 0 | X42: 1 | AM42: =IF(AQ42>0,TRUE,FALSE) -> FALSE | AN42: Electrician | AO42: Electrician | AP42: ='Materials Costs'!C66 -> Wall Switch | AQ42: =AI33 -> 0 | AS42: ='Materials Costs'!N66 -> 1.29 | AT42: ='Labor Costs'!F69 -> 50 | AU42: =AQ42*AS42 -> 0 | AV42: =AQ42*AT42 -> 0 | AW42: 0 | AX42: 0 | BA42: FALSE
E43: ELECTRICIAN | J43: =SUM(AW37:AW42) -> 0 | L43: =SUM(AX37:AX42) -> 0 | X43: 2 | AM43: =IF(AQ43>0,TRUE,FALSE) -> FALSE | AN43: Demolition | AO43: Demolition | AP43: ='Labor Costs'!D114 -> Demolition Hours | AQ43: =AI36 -> 0 | AT43: ='Labor Costs'!F114 -> 20 | AU43: 0 | AV43: =AQ43*AT43 -> 0 | AW43: 0 | AX43: 0 | BA43: FALSE
E44: FLOORING | J44: =SUM(AW18:AW21) -> 0 | L44: =SUM(AX18:AX21) -> 0 | X44: 3 | AM44: TRUE | AN44: Contingency | AO44: Contingency | AP44: Contingency | AW44: =AY44*0.5 -> 0 | AX44: =AY44*0.5 -> 0 | AY44: =IF(AM45,(AY3+AZ3)*'Offer Calculator'!U23,U4) -> 0
E45: GENERAL | J45: =AW13+AW17+SUM(AW23:AW34)+AW36 -> 0 | L45: =AX13+AW17+SUM(AX23:AX34)+AX36 -> 0 | X45: 4 | AM45: TRUE
E46: PAINTER | J46: =SUM(AW14:AW15)+AW35 -> 0 | L46: =SUM(AX14:AX15)+AX35 -> 0 | X46: 5
E47: WINDOWS & DOORS | J47: =SUM(AW5:AW11) -> 0 | L47: =SUM(AX5:AX11) -> 0 | X47: 6
X48: 7
X49: 8
X50: 9
AK65: TRUE

Sheet Bedroom 3
P1: Bedroom 3 Repair | AS1: Each | AU1: Extended | AW1: Region Adjustment | AY1: Total
D2: Estimated Labor & Material Costs | AM2: Include? | AN2: Category | AO2: Contractor | AP2: Description | AQ2: Measure | AR2: Measure | AS2: Material | AT2: Labor | AU2: Material | AV2: Labor | AW2: Material | AX2: Labor | AY2: Material | AZ2: Labor | BA2: DIY
P3: Contingency for This Room | AY3: =SUM(AW5:AW43) -> 0 | AZ3: =SUM(AX5:AX43) -> 0
E4: Windows | L4: =SUM(AW5:AW11)+SUM(AX5:AX11) -> 0 | Q4: Standard | S4: or | T4: $ | U4: 0 | W4: Room dimensions (ft): | AD4: Width | AF4: 0 | AG4: Depth | AI4: 0 | AM4: 1 | AN4: Windows & Doors | BA4: FALSE
AM5: =IF($AM$4=1,TRUE,FALSE) -> TRUE | AN5: Windows & Doors | AP5: No Windows | AQ5: =$X$8 -> 0 | AS5: 0 | AT5: 0 | AU5: =IF(AM5,AQ5*AS5,0) -> 0 | AW5: =ROUND(AU5*(COL/100),2) -> 0 | AX5: =IF(BA5,0,ROUND(AV5*(COL/100),2)) -> 0 | BA5: =IF($BA$4,TRUE,FALSE) -> FALSE
E6: Blinds | L6: =SUM(AW24:AW26)+SUM(AX24:AX26) -> 0 | Q6: Replace Windows | AB6: Replace Blinds | AM6: =IF($AM$4=2,TRUE,FALSE) -> FALSE | AN6: Windows & Doors | AO6: Windows & Doors | AP6: ='Materials Costs'!C100 -> 28 x 38 Double Hung | AQ6: =$X$8 -> 0 | AS6: ='Materials Costs'!O100 -> 124 | AT6: ='Labor Costs'!$F$44 -> 125 | AU6: 0 | AV6: =IF(AM6,AQ6*AT6,0) -> 0 | AW6: 0 | AX6: 0 | BA6: =IF($BA$4,TRUE,FALSE) -> FALSE
P7: DIY | AA7: DIY | AM7: =IF($AM$4=3,TRUE,FALSE) -> FALSE | AN7: Windows & Doors | AO7: Windows & Doors | AP7: ='Materials Costs'!C101 -> 28 x 54 Double Hung | AQ7: 0 | AS7: ='Materials Costs'!N101 -> 134 | AT7: ='Labor Costs'!$F$44 -> 125 | AU7: 0 | AV7: 0 | AW7: 0 | AX7: 0 | BA7: FALSE
E8: Walls | L8: =SUM(AW12:AW15)+SUM(AX12:AX15) -> 0 | X8: 0 | AI8: 0 | AM8: =IF($AM$4=4,TRUE,FALSE) -> FALSE | AN8: Windows & Doors | AO8: Windows & Doors | AP8: ='Materials Costs'!C102 -> 32 x 38 Double Hung | AQ8: 0 | AS8: ='Materials Costs'!N102 -> 147 | AT8: ='Labor Costs'!$F$44 -> 125 | AU8: 0 | AV8: 0 | AW8: 0 | AX8: 0 | BA8: FALSE
AM9: =IF($AM$4=5,TRUE,FALSE) -> FALSE | AN9: Windows & Doors | AO9: Windows & Doors | AP9: ='Materials Costs'!C103 -> 32 x 54 Double Hung | AQ9: 0 | AS9: ='Materials Costs'!N103 -> 155 | AT9: ='Labor Costs'!$F$44 -> 125 | AU9: 0 | AV9: 0 | AW9: 0 | AX9: 0 | BA9: FALSE
E10: Floors | L10: =SUM(AW16:AW21)+SUM(AX16:AX21) -> 0 | AM10: =IF($AM$4=6,TRUE,FALSE) -> FALSE | AN10: Windows & Doors | AO10: Windows & Doors | AP10: ='Materials Costs'!C104 -> 36 x 38 Double Hung | AQ10: 0 | AS10: ='Materials Costs'!N104 -> 134 | AT10: ='Labor Costs'!$F$44 -> 125 | AU10: 0 | AV10: 0 | AW10: 0 | AX10: 0 | BA10: FALSE
AM11: =IF($AM$4=7,TRUE,FALSE) -> FALSE | AN11: Windows & Doors | AO11: Windows & Doors | AP11: ='Materials Costs'!C105 -> 36 x 54 Double Hung | AQ11: 0 | AS11: ='Materials Costs'!N105 -> 167 | AT11: ='Labor Costs'!$F$44 -> 125 | AU11: 0 | AV11: 0 | AW11: 0 | AX11: 0 | BA11: FALSE
E12: Door | L12: =SUM(AW28:AW31)+SUM(AX28:AX31)+AW32+AX32+AW36+AX36 -> 0 | P12: DIY | Q12: Walls & Floors | AA12: DIY | AB12: Doors & Closet | AM12: FALSE | AN12: Drywall | AO12: Drywall | AP12: Hang & Finish Drywall | AQ12: =(8*$AF$4)*2+(8*$AI$4)*2 -> 0 | AR12: sq ft | AS12: ='Materials Costs'!N5+'Materials Costs'!N6 -> 0.348825 | AT12: ='Labor Costs'!F5+'Labor Costs'!F6 -> 2.45 | AU12: =IF(AM12,AQ12*AS12,0) -> 0 | AV12: =IF(AM12,AQ12*AT12,0) -> 0 | AW12: =ROUND(AU12*(COL/100),2) -> 0 | AX12: 0 | BA12: FALSE
Q13: =AP12 -> Hang & Finish Drywall | AB13: Replace Entry Door | AM13: FALSE | AN13: General | AO13: General | AP13: Remove Wallpaper | AQ13: =(8*$AF$4)*2+(8*$AI$4)*2 -> 0 | AR13: sq ft | AS13: 0 | AT13: ='Labor Costs'!F7 -> 1 | AU13: =IF(AM13,AQ13*AS13,0) -> 0 | AV13: =IF(AM13,AQ13*AT13,0) -> 0 | AW13: =ROUND(AU13*(COL/100),2) -> 0 | AX13: 0 | BA13: FALSE
E14: Closet | L14: =SUM(AW33:AW35)+SUM(AX33:AX35) -> 0 | Q14: =AP13 -> Remove Wallpaper | AM14: FALSE | AN14: Painter | AO14: Painter | AP14: Prime Walls | AQ14: =(8*$AF$4)*2+(8*$AI$4)*2 -> 0 | AR14: sq ft | AS14: ='Materials Costs'!N9 -> 0.04245 | AT14: ='Labor Costs'!F9 -> 0.4 | AU14: =IF(AM14,AQ14*AS14,0) -> 0 | AV14: =IF(AM14,AQ14*AT14,0) -> 0 | AW14: =ROUND(AU14*(COL/100),2) -> 0 | AX14: 0 | BA14: FALSE
Q15: =AP14 -> Prime Walls | AM15: FALSE | AN15: Painter | AO15: Painter | AP15: Paint Walls | AQ15: =(8*$AF$4)*2+(8*$AI$4)*2 -> 0 | AR15: sq ft | AS15: ='Materials Costs'!N8 -> 0.11485 | AT15: ='Labor Costs'!F8 -> 0.65 | AU15: =IF(AM15,AQ15*AS15,0) -> 0 | AV15: =IF(AM15,AQ15*AT15,0) -> 0 | AW15: 0 | AX15: 0 | BA15: FALSE
E16: Add Circuit | L16: =AW37+AX37 -> 0 | Q16: =AP15 -> Paint Walls | AB16: =AP32 -> Interior Door Lockset
Q17: Carpet | AB17: =AP33 -> Single Closet Door | AM17: FALSE | AN17: General | AO17: General | AP17: Replace and Paint Baseboards | AQ17: =(AF4*2)+(AI4*2) -> 0 | AR17: ln ft | AS17: ='Materials Costs'!N19+'Materials Costs'!N20 -> 0.216175 | AT17: ='Labor Costs'!F17 -> 2.77 | AU17: =IF(AM17,AQ17*AS17,0) -> 0 | AV17: =IF(AM17,AQ17*AT17,0) -> 0 | AW17: 0 | AX17: 0 | BA17: FALSE
E18: Ceiling Fan & Light Fixture | L18: =AW38+AX38+AW39+AX39 -> 0 | Q18: Install Engineered Hardwood | AB18: =AP34 -> Double Closet Door | AM18: FALSE | AN18: Flooring | AO18: Flooring | AP18: Engineered Hardwood Flooring | AQ18: =AF4*AI4 -> 0 | AR18: sq ft | AS18: ='Materials Costs'!N16 -> 2.89 | AT18: ='Labor Costs'!F18 -> 3 | AU18: =IF(AM18,AQ18*AS18,0) -> 0 | AV18: =IF(AM18,AQ18*AT18,0) -> 0 | AW18: 0 | AX18: 0 | BA18: FALSE
Q19: Refinish Hardwood | AB19: =AP35 -> Paint Closet | AM19: FALSE | AN19: Flooring | AO19: Flooring | AP19: Carpet | AQ19: =((AF4*AI4)*1.15)/9 -> 0 | AR19: yards | AS19: ='Materials Costs'!N17+'Materials Costs'!N18 -> 18 | AT19: ='Labor Costs'!F19 -> 5 | AU19: =IF(AM19,AQ19*AS19,0) -> 0 | AV19: =IF(AM19,AQ19*AT19,0) -> 0 | AW19: 0 | AX19: 0 | BA19: FALSE
E20: Cable Outlet | L20: =AW40+AX40 -> 0 | Q20: =AP17 -> Replace and Paint Baseboards | AB20: =AP36 -> Replace Window & Door Moulding | AM20: FALSE | AN20: Flooring | AO20: Flooring | AP20: Refinish Hardwood Floor | AQ20: =AF4*AI4 -> 0 | AR20: sq ft | AS20: 0 | AT20: ='Labor Costs'!F20 -> 3.5 | AU20: =IF(AM20,AQ20*AS20,0) -> 0 | AV20: =IF(AM20,AQ20*AT20,0) -> 0 | AW20: 0 | AX20: 0 | BA20: FALSE
AM21: =IF(AU21>0,TRUE,FALSE) -> FALSE | AN21: Flooring | AO21: Flooring | AP21: Replace Rotted Floor | AQ21: =X22 -> 0 | AR21: sq ft | AS21: ='Materials Costs'!N21 -> 0.7671875 | AT21: ='Labor Costs'!F21 -> 2.5 | AU21: =AQ21*AS21 -> 0 | AV21: =AQ21*AT21 -> 0 | AW21: 0 | AX21: 0 | BA21: FALSE
E22: Outlets and Switches | L22: =AW41+AX41+AW42+AX42 -> 0 | Q22: =AP21 -> Replace Rotted Floor | X22: 0 | AM22: 1 | AN22: General | AX22: 0
AM23: =IF($AM$22=1,TRUE,FALSE) -> TRUE | AN23: General | AP23: No Blinds | AQ23: =$AI$8 -> 0 | AX23: 0 | BA23: FALSE
E24: Demolition | L24: =AX43 -> 0 | AM24: =IF($AM$22=2,TRUE,FALSE) -> FALSE | AN24: General | AO24: General | AP24: ='Materials Costs'!C108 -> 28 inch wide blinds | AQ24: =$AI$8 -> 0 | AS24: ='Materials Costs'!N108 -> 6.97 | AT24: ='Labor Costs'!$F$47 -> 45 | AU24: =IF(AM24,AS24*AQ24,0) -> 0 | AV24: =IF(AM24,AT24*AQ24,0) -> 0 | AW24: 0 | AX24: 0 | BA24: =IF(BA23,TRUE,FALSE) -> FALSE
AM25: =IF($AM$22=3,TRUE,FALSE) -> FALSE | AN25: General | AO25: General | AP25: ='Materials Costs'!C109 -> 32 inch wide blinds | AQ25: =$AI$8 -> 0 | AS25: ='Materials Costs'!N109 -> 8.47 | AT25: ='Labor Costs'!$F$47 -> 45 | AU25: =IF(AM25,AS25*AQ25,0) -> 0 | AV25: =IF(AM25,AT25*AQ25,0) -> 0 | AW25: 0 | AX25: 0 | BA25: =IF(BA24,TRUE,FALSE) -> FALSE
AA26: DIY | AB26: Electrical & Misc | AM26: =IF($AM$22=4,TRUE,FALSE) -> FALSE | AN26: General | AO26: General | AP26: ='Materials Costs'!C110 -> 36 inch wide blinds | AQ26: =$AI$8 -> 0 | AS26: ='Materials Costs'!N110 -> 9.97 | AT26: ='Labor Costs'!$F$47 -> 45 | AU26: =IF(AM26,AS26*AQ26,0) -> 0 | AV26: =IF(AM26,AT26*AQ26,0) -> 0 | AW26: 0 | AX26: 0 | BA26: =IF(BA25,TRUE,FALSE) -> FALSE
AB27: =AP37 -> Add Circuit | AM27: 1 | AN27: General | AU27: =IF(AM27,AS27,0) -> 0 | AV27: =IF(AM27,AT27,0) -> 0 | AW27: 0 | AX27: 0
AB28: =AP38 -> Ceiling Fan | AM28: =IF(AM27=1,TRUE,FALSE) -> TRUE | AN28: General | AO28: General | AP28: No Doors | AS28: 0 | AT28: 0 | AU28: 0 | AV28: 0 | AW28: 0 | AX28: 0 | BA28: FALSE
E29: Contingency Applied to This Room | L29: =AY44 -> 0 | AB29: =AP39 -> Lighting Fixture | AM29: =IF(AM27=2,TRUE,FALSE) -> FALSE | AN29: General | AO29: General | AP29: ='Materials Costs'!C70 -> 28 x 80 Prehung Interior Door | AS29: ='Materials Costs'!N70 -> 76.79 | AT29: ='Labor Costs'!$F$52 -> 150 | AU29: 0 | AV29: 0 | AW29: 0 | AX29: 0 | BA29: =IF($BA$28,TRUE,FALSE) -> FALSE
E30: Estimated Total Labor Cost This Room | L30: =AZ3 -> 0 | AB30: =AP40 -> Wire Cable Outlet | AM30: =IF(AM27=3,TRUE,FALSE) -> FALSE | AN30: General | AO30: General | AP30: ='Materials Costs'!C71 -> 30 x 80 Prehung Interior Door | AS30: ='Materials Costs'!N71 -> 76.79 | AT30: ='Labor Costs'!$F$52 -> 150 | AU30: 0 | AV30: 0 | AW30: 0 | AX30: 0 | BA30: =IF($BA$28,TRUE,FALSE) -> FALSE
E31: Estimated Total Material Cost This Room | L31: =AY3 -> 0 | AB31: =AP41 -> Grounded Outlet | AI31: 0 | AM31: =IF(AM27=4,TRUE,FALSE) -> FALSE | AN31: General | AO31: General | AP31: ='Materials Costs'!C72 -> 32 X 80 Prehung Interior Door | AS31: ='Materials Costs'!N72 -> 96.14 | AT31: ='Labor Costs'!$F$52 -> 150 | AU31: 0 | AV31: 0 | AW31: 0 | AX31: 0 | BA31: =IF($BA$28,TRUE,FALSE) -> FALSE
E32: Total Estimated Room Repair Cost | L32: =L29+L30+L31 -> 0 | AM32: FALSE | AN32: General | AO32: General | AP32: ='Materials Costs'!C73 -> Interior Door Lockset | AS32: ='Materials Costs'!N73 -> 8.97 | AT32: ='Labor Costs'!F51 -> 25 | AU32: 0 | AV32: 0 | AW32: 0 | AX32: 0 | BA32: FALSE
AB33: =AP42 -> Wall Switch | AI33: 0 | AM33: FALSE | AN33: General | AO33: General | AP33: ='Materials Costs'!C74 -> Single Closet Door | AS33: ='Materials Costs'!N74 -> 165.2 | AT33: ='Labor Costs'!F54 -> 100 | AU33: 0 | AV33: 0 | AW33: 0 | AX33: 0 | BA33: FALSE
E34: Total Estimated Costs for Entire House | L34: ='Offer Calculator'!Z20+'Offer Calculator'!Z23 -> 0 | AM34: FALSE | AN34: General | AO34: General | AP34: ='Materials Costs'!C75 -> Double Closet Door | AS34: ='Materials Costs'!N75 -> 109 | AT34: ='Labor Costs'!F55 -> 150 | AU34: 0 | AV34: 0 | AW34: 0 | AX34: 0 | BA34: FALSE
AM35: FALSE | AN35: Painter | AO35: Painter | AP35: Paint Closet | AS35: ='Materials Costs'!N76 -> 22.97 | AT35: ='Labor Costs'!F56 -> 125 | AU35: 0 | AV35: 0 | AW35: 0 | AX35: 0 | BA35: FALSE
AB36: =AP43 -> Demolition Hours | AI36: 0 | AM36: FALSE | AN36: General | AO36: General | AP36: Replace Window & Door Moulding | AQ36: =36 -> 36 | AR36: ln ft | AS36: ='Materials Costs'!N77 -> 0.4725 | AT36: ='Labor Costs'!F58 -> 2.77 | AU36: =IF(AM36,AS36*AQ36,0) -> 0 | AV36: =IF(AM36,AT36*AQ36,0) -> 0 | AW36: 0 | AX36: 0 | BA36: FALSE
AM37: FALSE | AN37: Electrician | AO37: Electrician | AP37: ='Labor Costs'!D64 -> Add Circuit | AS37: ='Materials Costs'!N59 -> 15.98 | AT37: ='Labor Costs'!F64 -> 150 | AU37: =IF(AM37,AS37,0) -> 0 | AV37: =IF(AM37,AT37,0) -> 0 | AW37: 0 | AX37: 0 | BA37: FALSE
AM38: FALSE | AN38: Electrician | AO38: Electrician | AP38: ='Materials Costs'!C62 -> Ceiling Fan | AS38: ='Materials Costs'!N62 -> 44.97 | AT38: ='Labor Costs'!F65 -> 125 | AU38: =IF(AM38,AS38,0) -> 0 | AV38: =IF(AM38,AT38,0) -> 0 | AW38: 0 | AX38: 0
AM39: FALSE | AN39: Electrician | AO39: Electrician | AP39: ='Materials Costs'!C63 -> Lighting Fixture | AS39: ='Materials Costs'!N63 -> 24.97 | AT39: ='Labor Costs'!F66 -> 95 | AU39: =IF(AM39,AS39,0) -> 0 | AV39: =IF(AM39,AT39,0) -> 0 | AW39: 0 | AX39: 0 | BA39: FALSE
E40: TYPE | J40: MATERIALS | L40: LABOR | AM40: FALSE | AN40: Electrician | AO40: Electrician | AP40: ='Materials Costs'!C64 -> Wire Cable Outlet | AS40: ='Materials Costs'!N64 -> 29.97 | AT40: ='Labor Costs'!F67 -> 100 | AU40: =IF(AM40,AS40,0) -> 0 | AV40: =IF(AM40,AT40,0) -> 0 | AW40: 0 | AX40: 0 | BA40: FALSE
E41: DEMOLITION | L41: =AX43 -> 0 | X41: 0 | AM41: =IF(AQ41>0,TRUE,FALSE) -> FALSE | AN41: Electrician | AO41: Electrician | AP41: ='Materials Costs'!C65 -> Grounded Outlet | AQ41: =AI31 -> 0 | AS41: ='Materials Costs'!N65 -> 1.19 | AT41: ='Labor Costs'!F68 -> 50 | AU41: =AQ41*AS41 -> 0 | AV41: =AQ41*AT41 -> 0 | AW41: 0 | AX41: 0 | BA41: FALSE
E42: DRYWALL | J42: =AW12 -> 0 | L42: =AX12 -> 0 | X42: 1 | AM42: =IF(AQ42>0,TRUE,FALSE) -> FALSE | AN42: Electrician | AO42: Electrician | AP42: ='Materials Costs'!C66 -> Wall Switch | AQ42: =AI33 -> 0 | AS42: ='Materials Costs'!N66 -> 1.29 | AT42: ='Labor Costs'!F69 -> 50 | AU42: =AQ42*AS42 -> 0 | AV42: =AQ42*AT42 -> 0 | AW42: 0 | AX42: 0 | BA42: FALSE
E43: ELECTRICIAN | J43: =SUM(AW37:AW42) -> 0 | L43: =SUM(AX37:AX42) -> 0 | X43: 2 | AM43: =IF(AQ43>0,TRUE,FALSE) -> FALSE | AN43: Demolition | AO43: Demolition | AP43: ='Labor Costs'!D114 -> Demolition Hours | AQ43: =AI36 -> 0 | AT43: ='Labor Costs'!F114 -> 20 | AU43: 0 | AV43: =AQ43*AT43 -> 0 | AW43: 0 | AX43: 0 | BA43: FALSE
E44: FLOORING | J44: =SUM(AW18:AW21) -> 0 | L44: =SUM(AX18:AX21) -> 0 | X44: 3 | AM44: TRUE | AN44: Contingency | AO44: Contingency | AP44: Contingency | AW44: =AY44*0.5 -> 0 | AX44: =AY44*0.5 -> 0 | AY44: =IF(AM45,(AY3+AZ3)*'Offer Calculator'!U23,U4) -> 0
E45: GENERAL | J45: =AW13+AW17+SUM(AW23:AW34)+AW36 -> 0 | L45: =AX13+AW17+SUM(AX23:AX34)+AX36 -> 0 | X45: 4 | AM45: TRUE
E46: PAINTER | J46: =SUM(AW14:AW15)+AW35 -> 0 | L46: =SUM(AX14:AX15)+AX35 -> 0 | X46: 5
E47: WINDOWS & DOORS | J47: =SUM(AW5:AW11) -> 0 | L47: =SUM(AX5:AX11) -> 0 | X47: 6
X48: 7
X49: 8
X50: 9
AK65: TRUE

Sheet Bedroom 4
P1: Bedroom 4 Repair | AS1: Each | AU1: Extended | AW1: Region Adjustment | AY1: Total
D2: Estimated Labor & Material Costs | AM2: Include? | AN2: Category | AO2: Contractor | AP2: Description | AQ2: Measure | AR2: Measure | AS2: Material | AT2: Labor | AU2: Material | AV2: Labor | AW2: Material | AX2: Labor | AY2: Material | AZ2: Labor | BA2: DIY
P3: Contingency for This Room | AY3: =SUM(AW5:AW43) -> 0 | AZ3: =SUM(AX5:AX43) -> 0
E4: Windows | L4: =SUM(AW5:AW11)+SUM(AX5:AX11) -> 0 | Q4: Standard | S4: or | T4: $ | U4: 0 | W4: Room dimensions (ft): | AD4: Width | AF4: 0 | AG4: Depth | AI4: 0 | AM4: 1 | AN4: Windows & Doors | BA4: FALSE
AM5: =IF($AM$4=1,TRUE,FALSE) -> TRUE | AN5: Windows & Doors | AP5: No Windows | AQ5: =$X$8 -> 0 | AS5: 0 | AT5: 0 | AU5: =IF(AM5,AQ5*AS5,0) -> 0 | AW5: =ROUND(AU5*(COL/100),2) -> 0 | AX5: =IF(BA5,0,ROUND(AV5*(COL/100),2)) -> 0 | BA5: =IF($BA$4,TRUE,FALSE) -> FALSE
E6: Blinds | L6: =SUM(AW24:AW26)+SUM(AX24:AX26) -> 0 | Q6: Replace Windows | AB6: Replace Blinds | AM6: =IF($AM$4=2,TRUE,FALSE) -> FALSE | AN6: Windows & Doors | AO6: Windows & Doors | AP6: ='Materials Costs'!C100 -> 28 x 38 Double Hung | AQ6: =$X$8 -> 0 | AS6: ='Materials Costs'!O100 -> 124 | AT6: ='Labor Costs'!$F$44 -> 125 | AU6: 0 | AV6: =IF(AM6,AQ6*AT6,0) -> 0 | AW6: 0 | AX6: 0 | BA6: =IF($BA$4,TRUE,FALSE) -> FALSE
P7: DIY | AA7: DIY | AM7: =IF($AM$4=3,TRUE,FALSE) -> FALSE | AN7: Windows & Doors | AO7: Windows & Doors | AP7: ='Materials Costs'!C101 -> 28 x 54 Double Hung | AQ7: 0 | AS7: ='Materials Costs'!N101 -> 134 | AT7: ='Labor Costs'!$F$44 -> 125 | AU7: 0 | AV7: 0 | AW7: 0 | AX7: 0 | BA7: FALSE
E8: Walls | L8: =SUM(AW12:AW15)+SUM(AX12:AX15) -> 0 | X8: 0 | AI8: 0 | AM8: =IF($AM$4=4,TRUE,FALSE) -> FALSE | AN8: Windows & Doors | AO8: Windows & Doors | AP8: ='Materials Costs'!C102 -> 32 x 38 Double Hung | AQ8: 0 | AS8: ='Materials Costs'!N102 -> 147 | AT8: ='Labor Costs'!$F$44 -> 125 | AU8: 0 | AV8: 0 | AW8: 0 | AX8: 0 | BA8: FALSE
AM9: =IF($AM$4=5,TRUE,FALSE) -> FALSE | AN9: Windows & Doors | AO9: Windows & Doors | AP9: ='Materials Costs'!C103 -> 32 x 54 Double Hung | AQ9: 0 | AS9: ='Materials Costs'!N103 -> 155 | AT9: ='Labor Costs'!$F$44 -> 125 | AU9: 0 | AV9: 0 | AW9: 0 | AX9: 0 | BA9: FALSE
E10: Floors | L10: =SUM(AW16:AW21)+SUM(AX16:AX21) -> 0 | AM10: =IF($AM$4=6,TRUE,FALSE) -> FALSE | AN10: Windows & Doors | AO10: Windows & Doors | AP10: ='Materials Costs'!C104 -> 36 x 38 Double Hung | AQ10: 0 | AS10: ='Materials Costs'!N104 -> 134 | AT10: ='Labor Costs'!$F$44 -> 125 | AU10: 0 | AV10: 0 | AW10: 0 | AX10: 0 | BA10: FALSE
AM11: =IF($AM$4=7,TRUE,FALSE) -> FALSE | AN11: Windows & Doors | AO11: Windows & Doors | AP11: ='Materials Costs'!C105 -> 36 x 54 Double Hung | AQ11: 0 | AS11: ='Materials Costs'!N105 -> 167 | AT11: ='Labor Costs'!$F$44 -> 125 | AU11: 0 | AV11: 0 | AW11: 0 | AX11: 0 | BA11: FALSE
E12: Door | L12: =SUM(AW28:AW31)+SUM(AX28:AX31)+AW32+AX32+AW36+AX36 -> 0 | P12: DIY | Q12: Walls & Floors | AA12: DIY | AB12: Doors & Closet | AM12: FALSE | AN12: Drywall | AO12: Drywall | AP12: Hang & Finish Drywall | AQ12: =(8*$AF$4)*2+(8*$AI$4)*2 -> 0 | AR12: sq ft | AS12: ='Materials Costs'!N5+'Materials Costs'!N6 -> 0.348825 | AT12: ='Labor Costs'!F5+'Labor Costs'!F6 -> 2.45 | AU12: =IF(AM12,AQ12*AS12,0) -> 0 | AV12: =IF(AM12,AQ12*AT12,0) -> 0 | AW12: =ROUND(AU12*(COL/100),2) -> 0 | AX12: 0 | BA12: FALSE
Q13: =AP12 -> Hang & Finish Drywall | AB13: Replace Entry Door | AM13: FALSE | AN13: General | AO13: General | AP13: Remove Wallpaper | AQ13: =(8*$AF$4)*2+(8*$AI$4)*2 -> 0 | AR13: sq ft | AS13: 0 | AT13: ='Labor Costs'!F7 -> 1 | AU13: =IF(AM13,AQ13*AS13,0) -> 0 | AV13: =IF(AM13,AQ13*AT13,0) -> 0 | AW13: =ROUND(AU13*(COL/100),2) -> 0 | AX13: 0 | BA13: FALSE
E14: Closet | L14: =SUM(AW33:AW35)+SUM(AX33:AX35) -> 0 | Q14: =AP13 -> Remove Wallpaper | AM14: FALSE | AN14: Painter | AO14: Painter | AP14: Prime Walls | AQ14: =(8*$AF$4)*2+(8*$AI$4)*2 -> 0 | AR14: sq ft | AS14: ='Materials Costs'!N9 -> 0.04245 | AT14: ='Labor Costs'!F9 -> 0.4 | AU14: =IF(AM14,AQ14*AS14,0) -> 0 | AV14: =IF(AM14,AQ14*AT14,0) -> 0 | AW14: =ROUND(AU14*(COL/100),2) -> 0 | AX14: 0 | BA14: FALSE
Q15: =AP14 -> Prime Walls | AM15: FALSE | AN15: Painter | AO15: Painter | AP15: Paint Walls | AQ15: =(8*$AF$4)*2+(8*$AI$4)*2 -> 0 | AR15: sq ft | AS15: ='Materials Costs'!N8 -> 0.11485 | AT15: ='Labor Costs'!F8 -> 0.65 | AU15: =IF(AM15,AQ15*AS15,0) -> 0 | AV15: =IF(AM15,AQ15*AT15,0) -> 0 | AW15: 0 | AX15: 0 | BA15: FALSE
E16: Add Circuit | L16: =AW37+AX37 -> 0 | Q16: =AP15 -> Paint Walls | AB16: =AP32 -> Interior Door Lockset
Q17: Carpet | AB17: =AP33 -> Single Closet Door | AM17: FALSE | AN17: General | AO17: General | AP17: Replace and Paint Baseboards | AQ17: =(AF4*2)+(AI4*2) -> 0 | AR17: ln ft | AS17: ='Materials Costs'!N19+'Materials Costs'!N20 -> 0.216175 | AT17: ='Labor Costs'!F17 -> 2.77 | AU17: =IF(AM17,AQ17*AS17,0) -> 0 | AV17: =IF(AM17,AQ17*AT17,0) -> 0 | AW17: 0 | AX17: 0 | BA17: FALSE
E18: Ceiling Fan & Light Fixture | L18: =AW38+AX38+AW39+AX39 -> 0 | Q18: Install Engineered Hardwood | AB18: =AP34 -> Double Closet Door | AM18: FALSE | AN18: Flooring | AO18: Flooring | AP18: Engineered Hardwood Flooring | AQ18: =AF4*AI4 -> 0 | AR18: sq ft | AS18: ='Materials Costs'!N16 -> 2.89 | AT18: ='Labor Costs'!F18 -> 3 | AU18: =IF(AM18,AQ18*AS18,0) -> 0 | AV18: =IF(AM18,AQ18*AT18,0) -> 0 | AW18: 0 | AX18: 0 | BA18: FALSE
Q19: Refinish Hardwood | AB19: =AP35 -> Paint Closet | AM19: FALSE | AN19: Flooring | AO19: Flooring | AP19: Carpet | AQ19: =((AF4*AI4)*1.15)/9 -> 0 | AR19: yards | AS19: ='Materials Costs'!N17+'Materials Costs'!N18 -> 18 | AT19: ='Labor Costs'!F19 -> 5 | AU19: =IF(AM19,AQ19*AS19,0) -> 0 | AV19: =IF(AM19,AQ19*AT19,0) -> 0 | AW19: 0 | AX19: 0 | BA19: FALSE
E20: Cable Outlet | L20: =AW40+AX40 -> 0 | Q20: =AP17 -> Replace and Paint Baseboards | AB20: =AP36 -> Replace Window & Door Moulding | AM20: FALSE | AN20: Flooring | AO20: Flooring | AP20: Refinish Hardwood Floor | AQ20: =AF4*AI4 -> 0 | AR20: sq ft | AS20: 0 | AT20: ='Labor Costs'!F20 -> 3.5 | AU20: =IF(AM20,AQ20*AS20,0) -> 0 | AV20: =IF(AM20,AQ20*AT20,0) -> 0 | AW20: 0 | AX20: 0 | BA20: FALSE
AM21: =IF(AU21>0,TRUE,FALSE) -> FALSE | AN21: Flooring | AO21: Flooring | AP21: Replace Rotted Floor | AQ21: =X22 -> 0 | AR21: sq ft | AS21: ='Materials Costs'!N21 -> 0.7671875 | AT21: ='Labor Costs'!F21 -> 2.5 | AU21: =AQ21*AS21 -> 0 | AV21: =AQ21*AT21 -> 0 | AW21: 0 | AX21: 0 | BA21: FALSE
E22: Outlets and Switches | L22: =AW41+AX41+AW42+AX42 -> 0 | Q22: =AP21 -> Replace Rotted Floor | X22: 0 | AM22: 1 | AN22: General | AX22: 0
AM23: =IF($AM$22=1,TRUE,FALSE) -> TRUE | AN23: General | AP23: No Blinds | AQ23: =$AI$8 -> 0 | AX23: 0 | BA23: FALSE
E24: Demolition | L24: =AX43 -> 0 | AM24: =IF($AM$22=2,TRUE,FALSE) -> FALSE | AN24: General | AO24: Windows & Doors | AP24: ='Materials Costs'!C108 -> 28 inch wide blinds | AQ24: =$AI$8 -> 0 | AS24: ='Materials Costs'!N108 -> 6.97 | AT24: ='Labor Costs'!$F$47 -> 45 | AU24: =IF(AM24,AS24*AQ24,0) -> 0 | AV24: =IF(AM24,AT24*AQ24,0) -> 0 | AW24: 0 | AX24: 0 | BA24: =IF(BA23,TRUE,FALSE) -> FALSE
AM25: =IF($AM$22=3,TRUE,FALSE) -> FALSE | AN25: General | AO25: Windows & Doors | AP25: ='Materials Costs'!C109 -> 32 inch wide blinds | AQ25: =$AI$8 -> 0 | AS25: ='Materials Costs'!N109 -> 8.47 | AT25: ='Labor Costs'!$F$47 -> 45 | AU25: =IF(AM25,AS25*AQ25,0) -> 0 | AV25: =IF(AM25,AT25*AQ25,0) -> 0 | AW25: 0 | AX25: 0 | BA25: =IF(BA24,TRUE,FALSE) -> FALSE
AA26: DIY | AB26: Electrical & Misc | AM26: =IF($AM$22=4,TRUE,FALSE) -> FALSE | AN26: General | AO26: Windows & Doors | AP26: ='Materials Costs'!C110 -> 36 inch wide blinds | AQ26: =$AI$8 -> 0 | AS26: ='Materials Costs'!N110 -> 9.97 | AT26: ='Labor Costs'!$F$47 -> 45 | AU26: =IF(AM26,AS26*AQ26,0) -> 0 | AV26: =IF(AM26,AT26*AQ26,0) -> 0 | AW26: 0 | AX26: 0 | BA26: =IF(BA25,TRUE,FALSE) -> FALSE
AB27: =AP37 -> Add Circuit | AM27: 1 | AN27: General | AU27: =IF(AM27,AS27,0) -> 0 | AV27: =IF(AM27,AT27,0) -> 0 | AW27: 0 | AX27: 0
AB28: =AP38 -> Ceiling Fan | AM28: =IF(AM27=1,TRUE,FALSE) -> TRUE | AN28: General | AP28: No Doors | AS28: 0 | AT28: 0 | AU28: 0 | AV28: 0 | AW28: 0 | AX28: 0 | BA28: FALSE
E29: Contingency Applied to This Room | L29: =AY44 -> 0 | AB29: =AP39 -> Lighting Fixture | AM29: =IF(AM27=2,TRUE,FALSE) -> FALSE | AN29: General | AO29: Windows & Doors | AP29: ='Materials Costs'!C70 -> 28 x 80 Prehung Interior Door | AS29: ='Materials Costs'!N70 -> 76.79 | AT29: ='Labor Costs'!$F$52 -> 150 | AU29: 0 | AV29: 0 | AW29: 0 | AX29: 0 | BA29: =IF($BA$28,TRUE,FALSE) -> FALSE
E30: Estimated Total Labor Cost This Room | L30: =AZ3 -> 0 | AB30: =AP40 -> Wire Cable Outlet | AM30: =IF(AM27=3,TRUE,FALSE) -> FALSE | AN30: General | AO30: Windows & Doors | AP30: ='Materials Costs'!C71 -> 30 x 80 Prehung Interior Door | AS30: ='Materials Costs'!N71 -> 76.79 | AT30: ='Labor Costs'!$F$52 -> 150 | AU30: 0 | AV30: 0 | AW30: 0 | AX30: 0 | BA30: =IF($BA$28,TRUE,FALSE) -> FALSE
E31: Estimated Total Material Cost This Room | L31: =AY3 -> 0 | AB31: =AP41 -> Grounded Outlet | AI31: 0 | AM31: =IF(AM27=4,TRUE,FALSE) -> FALSE | AN31: General | AO31: Windows & Doors | AP31: ='Materials Costs'!C72 -> 32 X 80 Prehung Interior Door | AS31: ='Materials Costs'!N72 -> 96.14 | AT31: ='Labor Costs'!$F$52 -> 150 | AU31: 0 | AV31: 0 | AW31: 0 | AX31: 0 | BA31: =IF($BA$28,TRUE,FALSE) -> FALSE
E32: Total Estimated Room Repair Cost | L32: =L29+L30+L31 -> 0 | AM32: FALSE | AN32: General | AO32: General | AP32: ='Materials Costs'!C73 -> Interior Door Lockset | AS32: ='Materials Costs'!N73 -> 8.97 | AT32: ='Labor Costs'!F51 -> 25 | AU32: 0 | AV32: 0 | AW32: 0 | AX32: 0 | BA32: FALSE
AB33: =AP42 -> Wall Switch | AI33: 0 | AM33: FALSE | AN33: General | AO33: General | AP33: ='Materials Costs'!C74 -> Single Closet Door | AS33: ='Materials Costs'!N74 -> 165.2 | AT33: ='Labor Costs'!F54 -> 100 | AU33: 0 | AV33: 0 | AW33: 0 | AX33: 0 | BA33: FALSE
E34: Total Estimated Costs for Entire House | L34: ='Offer Calculator'!Z20+'Offer Calculator'!Z23 -> 0 | AM34: FALSE | AN34: General | AO34: General | AP34: ='Materials Costs'!C75 -> Double Closet Door | AS34: ='Materials Costs'!N75 -> 109 | AT34: ='Labor Costs'!F55 -> 150 | AU34: 0 | AV34: 0 | AW34: 0 | AX34: 0 | BA34: FALSE
AM35: FALSE | AN35: Painter | AO35: Painter | AP35: Paint Closet | AS35: ='Materials Costs'!N76 -> 22.97 | AT35: ='Labor Costs'!F56 -> 125 | AU35: 0 | AV35: 0 | AW35: 0 | AX35: 0 | BA35: FALSE
AB36: =AP43 -> Demolition Hours | AI36: 0 | AM36: FALSE | AN36: General | AO36: General | AP36: Replace Window & Door Moulding | AQ36: =36 -> 36 | AR36: ln ft | AS36: ='Materials Costs'!N77 -> 0.4725 | AT36: ='Labor Costs'!F58 -> 2.77 | AU36: =IF(AM36,AS36*AQ36,0) -> 0 | AV36: =IF(AM36,AT36*AQ36,0) -> 0 | AW36: 0 | AX36: 0 | BA36: FALSE
AM37: FALSE | AN37: Electrician | AO37: Electrician | AP37: ='Labor Costs'!D64 -> Add Circuit | AS37: ='Materials Costs'!N59 -> 15.98 | AT37: ='Labor Costs'!F64 -> 150 | AU37: =IF(AM37,AS37,0) -> 0 | AV37: =IF(AM37,AT37,0) -> 0 | AW37: 0 | AX37: 0 | BA37: FALSE
AM38: FALSE | AN38: Electrician | AO38: Electrician | AP38: ='Materials Costs'!C62 -> Ceiling Fan | AS38: ='Materials Costs'!N62 -> 44.97 | AT38: ='Labor Costs'!F65 -> 125 | AU38: =IF(AM38,AS38,0) -> 0 | AV38: =IF(AM38,AT38,0) -> 0 | AW38: 0 | AX38: 0
AM39: FALSE | AN39: Electrician | AO39: Electrician | AP39: ='Materials Costs'!C63 -> Lighting Fixture | AS39: ='Materials Costs'!N63 -> 24.97 | AT39: ='Labor Costs'!F66 -> 95 | AU39: =IF(AM39,AS39,0) -> 0 | AV39: =IF(AM39,AT39,0) -> 0 | AW39: 0 | AX39: 0 | BA39: FALSE
E40: TYPE | J40: MATERIALS | L40: LABOR | AM40: FALSE | AN40: Electrician | AO40: Electrician | AP40: ='Materials Costs'!C64 -> Wire Cable Outlet | AS40: ='Materials Costs'!N64 -> 29.97 | AT40: ='Labor Costs'!F67 -> 100 | AU40: =IF(AM40,AS40,0) -> 0 | AV40: =IF(AM40,AT40,0) -> 0 | AW40: 0 | AX40: 0 | BA40: FALSE
E41: DEMOLITION | L41: =AX43 -> 0 | X41: 0 | AM41: =IF(AQ41>0,TRUE,FALSE) -> FALSE | AN41: Electrician | AO41: Electrician | AP41: ='Materials Costs'!C65 -> Grounded Outlet | AQ41: =AI31 -> 0 | AS41: ='Materials Costs'!N65 -> 1.19 | AT41: ='Labor Costs'!F68 -> 50 | AU41: =AQ41*AS41 -> 0 | AV41: =AQ41*AT41 -> 0 | AW41: 0 | AX41: 0 | BA41: FALSE
E42: DRYWALL | J42: =AW12 -> 0 | L42: =AX12 -> 0 | X42: 1 | AM42: =IF(AQ42>0,TRUE,FALSE) -> FALSE | AN42: Electrician | AO42: Electrician | AP42: ='Materials Costs'!C66 -> Wall Switch | AQ42: =AI33 -> 0 | AS42: ='Materials Costs'!N66 -> 1.29 | AT42: ='Labor Costs'!F69 -> 50 | AU42: =AQ42*AS42 -> 0 | AV42: =AQ42*AT42 -> 0 | AW42: 0 | AX42: 0 | BA42: FALSE
E43: ELECTRICIAN | J43: =SUM(AW37:AW42) -> 0 | L43: =SUM(AX37:AX42) -> 0 | X43: 2 | AM43: =IF(AQ43>0,TRUE,FALSE) -> FALSE | AN43: Demolition | AO43: Demolition | AP43: ='Labor Costs'!D114 -> Demolition Hours | AQ43: =AI36 -> 0 | AT43: ='Labor Costs'!F114 -> 20 | AU43: 0 | AV43: =AQ43*AT43 -> 0 | AW43: 0 | AX43: 0 | BA43: FALSE
E44: FLOORING | J44: =SUM(AW18:AW21) -> 0 | L44: =SUM(AX18:AX21) -> 0 | X44: 3 | AM44: TRUE | AN44: Contingency | AO44: Contingency | AP44: Contingency | AW44: =AY44*0.5 -> 0 | AX44: =AY44*0.5 -> 0 | AY44: =IF(AM45,(AY3+AZ3)*'Offer Calculator'!U23,U4) -> 0
E45: GENERAL | J45: =AW13+AW17+SUM(AW23:AW34)+AW36 -> 0 | L45: =AX13+AW17+SUM(AX23:AX34)+AX36 -> 0 | X45: 4 | AM45: TRUE
E46: PAINTER | J46: =SUM(AW14:AW15)+AW35 -> 0 | L46: =SUM(AX14:AX15)+AX35 -> 0 | X46: 5
E47: WINDOWS & DOORS | J47: =SUM(AW5:AW11) -> 0 | L47: =SUM(AX5:AX11) -> 0 | X47: 6
X48: 7
X49: 8
X50: 9
AK65: TRUE

Sheet Bedroom 5
P1: Bedroom 5 Repair | AS1: Each | AU1: Extended | AW1: Region Adjustment | AY1: Total
D2: Estimated Labor & Material Costs | AM2: Include? | AN2: Category | AO2: Contractor | AP2: Description | AQ2: Measure | AR2: Measure | AS2: Material | AT2: Labor | AU2: Material | AV2: Labor | AW2: Material | AX2: Labor | AY2: Material | AZ2: Labor | BA2: DIY
P3: Contingency for This Room | AY3: =SUM(AW5:AW43) -> 0 | AZ3: =SUM(AX5:AX43) -> 0
E4: Windows | L4: =SUM(AW5:AW11)+SUM(AX5:AX11) -> 0 | Q4: Standard | S4: or | T4: $ | U4: 0 | W4: Room dimensions (ft): | AD4: Width | AF4: 0 | AG4: Depth | AI4: 0 | AM4: 1 | AN4: Windows & Doors | BA4: FALSE
AM5: =IF($AM$4=1,TRUE,FALSE) -> TRUE | AN5: Windows & Doors | AP5: No Windows | AQ5: =$X$8 -> 0 | AS5: 0 | AT5: 0 | AU5: =IF(AM5,AQ5*AS5,0) -> 0 | AW5: =ROUND(AU5*(COL/100),2) -> 0 | AX5: =IF(BA5,0,ROUND(AV5*(COL/100),2)) -> 0 | BA5: =IF($BA$4,TRUE,FALSE) -> FALSE
E6: Blinds | L6: =SUM(AW24:AW26)+SUM(AX24:AX26) -> 0 | Q6: Replace Windows | AB6: Replace Blinds | AM6: =IF($AM$4=2,TRUE,FALSE) -> FALSE | AN6: Windows & Doors | AO6: Windows & Doors | AP6: ='Materials Costs'!C100 -> 28 x 38 Double Hung | AQ6: =$X$8 -> 0 | AS6: ='Materials Costs'!O100 -> 124 | AT6: ='Labor Costs'!$F$44 -> 125 | AU6: 0 | AV6: =IF(AM6,AQ6*AT6,0) -> 0 | AW6: 0 | AX6: 0 | BA6: =IF($BA$4,TRUE,FALSE) -> FALSE
P7: DIY | AA7: DIY | AM7: =IF($AM$4=3,TRUE,FALSE) -> FALSE | AN7: Windows & Doors | AO7: Windows & Doors | AP7: ='Materials Costs'!C101 -> 28 x 54 Double Hung | AQ7: 0 | AS7: ='Materials Costs'!N101 -> 134 | AT7: ='Labor Costs'!$F$44 -> 125 | AU7: 0 | AV7: 0 | AW7: 0 | AX7: 0 | BA7: FALSE
E8: Walls | L8: =SUM(AW12:AW15)+SUM(AX12:AX15) -> 0 | X8: 0 | AI8: 0 | AM8: =IF($AM$4=4,TRUE,FALSE) -> FALSE | AN8: Windows & Doors | AO8: Windows & Doors | AP8: ='Materials Costs'!C102 -> 32 x 38 Double Hung | AQ8: 0 | AS8: ='Materials Costs'!N102 -> 147 | AT8: ='Labor Costs'!$F$44 -> 125 | AU8: 0 | AV8: 0 | AW8: 0 | AX8: 0 | BA8: FALSE
AM9: =IF($AM$4=5,TRUE,FALSE) -> FALSE | AN9: Windows & Doors | AO9: Windows & Doors | AP9: ='Materials Costs'!C103 -> 32 x 54 Double Hung | AQ9: 0 | AS9: ='Materials Costs'!N103 -> 155 | AT9: ='Labor Costs'!$F$44 -> 125 | AU9: 0 | AV9: 0 | AW9: 0 | AX9: 0 | BA9: FALSE
E10: Floors | L10: =SUM(AW16:AW21)+SUM(AX16:AX21) -> 0 | AM10: =IF($AM$4=6,TRUE,FALSE) -> FALSE | AN10: Windows & Doors | AO10: Windows & Doors | AP10: ='Materials Costs'!C104 -> 36 x 38 Double Hung | AQ10: 0 | AS10: ='Materials Costs'!N104 -> 134 | AT10: ='Labor Costs'!$F$44 -> 125 | AU10: 0 | AV10: 0 | AW10: 0 | AX10: 0 | BA10: FALSE
AM11: =IF($AM$4=7,TRUE,FALSE) -> FALSE | AN11: Windows & Doors | AO11: Windows & Doors | AP11: ='Materials Costs'!C105 -> 36 x 54 Double Hung | AQ11: 0 | AS11: ='Materials Costs'!N105 -> 167 | AT11: ='Labor Costs'!$F$44 -> 125 | AU11: 0 | AV11: 0 | AW11: 0 | AX11: 0 | BA11: FALSE
E12: Door | L12: =SUM(AW28:AW31)+SUM(AX28:AX31)+AW32+AX32+AW36+AX36 -> 0 | P12: DIY | Q12: Walls & Floors | AA12: DIY | AB12: Doors & Closet | AM12: FALSE | AN12: Drywall | AO12: Drywall | AP12: Hang & Finish Drywall | AQ12: =(8*$AF$4)*2+(8*$AI$4)*2 -> 0 | AR12: sq ft | AS12: ='Materials Costs'!N5+'Materials Costs'!N6 -> 0.348825 | AT12: ='Labor Costs'!F5+'Labor Costs'!F6 -> 2.45 | AU12: =IF(AM12,AQ12*AS12,0) -> 0 | AV12: =IF(AM12,AQ12*AT12,0) -> 0 | AW12: =ROUND(AU12*(COL/100),2) -> 0 | AX12: 0 | BA12: FALSE
Q13: =AP12 -> Hang & Finish Drywall | AB13: Replace Entry Door | AM13: FALSE | AN13: General | AO13: General | AP13: Remove Wallpaper | AQ13: =(8*$AF$4)*2+(8*$AI$4)*2 -> 0 | AR13: sq ft | AS13: 0 | AT13: ='Labor Costs'!F7 -> 1 | AU13: =IF(AM13,AQ13*AS13,0) -> 0 | AV13: =IF(AM13,AQ13*AT13,0) -> 0 | AW13: =ROUND(AU13*(COL/100),2) -> 0 | AX13: 0 | BA13: FALSE
E14: Closet | L14: =SUM(AW33:AW35)+SUM(AX33:AX35) -> 0 | Q14: =AP13 -> Remove Wallpaper | AM14: FALSE | AN14: Painter | AO14: Painter | AP14: Prime Walls | AQ14: =(8*$AF$4)*2+(8*$AI$4)*2 -> 0 | AR14: sq ft | AS14: ='Materials Costs'!N9 -> 0.04245 | AT14: ='Labor Costs'!F9 -> 0.4 | AU14: =IF(AM14,AQ14*AS14,0) -> 0 | AV14: =IF(AM14,AQ14*AT14,0) -> 0 | AW14: =ROUND(AU14*(COL/100),2) -> 0 | AX14: 0 | BA14: FALSE
Q15: =AP14 -> Prime Walls | AM15: FALSE | AN15: Painter | AO15: Painter | AP15: Paint Walls | AQ15: =(8*$AF$4)*2+(8*$AI$4)*2 -> 0 | AR15: sq ft | AS15: ='Materials Costs'!N8 -> 0.11485 | AT15: ='Labor Costs'!F8 -> 0.65 | AU15: =IF(AM15,AQ15*AS15,0) -> 0 | AV15: =IF(AM15,AQ15*AT15,0) -> 0 | AW15: 0 | AX15: 0 | BA15: FALSE
E16: Add Circuit | L16: =AW37+AX37 -> 0 | Q16: =AP15 -> Paint Walls | AB16: =AP32 -> Interior Door Lockset
Q17: Carpet | AB17: =AP33 -> Single Closet Door | AM17: FALSE | AN17: General | AO17: General | AP17: Replace and Paint Baseboards | AQ17: =(AF4*2)+(AI4*2) -> 0 | AR17: ln ft | AS17: ='Materials Costs'!N19+'Materials Costs'!N20 -> 0.216175 | AT17: ='Labor Costs'!F17 -> 2.77 | AU17: =IF(AM17,AQ17*AS17,0) -> 0 | AV17: =IF(AM17,AQ17*AT17,0) -> 0 | AW17: 0 | AX17: 0 | BA17: FALSE
E18: Ceiling Fan & Light Fixture | L18: =AW38+AX38+AW39+AX39 -> 0 | Q18: Install Engineered Hardwood | AB18: =AP34 -> Double Closet Door | AM18: FALSE | AN18: Flooring | AO18: Flooring | AP18: Engineered Hardwood Flooring | AQ18: =AF4*AI4 -> 0 | AR18: sq ft | AS18: ='Materials Costs'!N16 -> 2.89 | AT18: ='Labor Costs'!F18 -> 3 | AU18: =IF(AM18,AQ18*AS18,0) -> 0 | AV18: =IF(AM18,AQ18*AT18,0) -> 0 | AW18: 0 | AX18: 0 | BA18: FALSE
Q19: Refinish Hardwood | AB19: =AP35 -> Paint Closet | AM19: FALSE | AN19: Flooring | AO19: Flooring | AP19: Carpet | AQ19: =((AF4*AI4)*1.15)/9 -> 0 | AR19: yards | AS19: ='Materials Costs'!N17+'Materials Costs'!N18 -> 18 | AT19: ='Labor Costs'!F19 -> 5 | AU19: =IF(AM19,AQ19*AS19,0) -> 0 | AV19: =IF(AM19,AQ19*AT19,0) -> 0 | AW19: 0 | AX19: 0 | BA19: FALSE
E20: Cable Outlet | L20: =AW40+AX40 -> 0 | Q20: =AP17 -> Replace and Paint Baseboards | AB20: =AP36 -> Replace Window & Door Moulding | AM20: FALSE | AN20: Flooring | AO20: Flooring | AP20: Refinish Hardwood Floor | AQ20: =AF4*AI4 -> 0 | AR20: sq ft | AS20: 0 | AT20: ='Labor Costs'!F20 -> 3.5 | AU20: =IF(AM20,AQ20*AS20,0) -> 0 | AV20: =IF(AM20,AQ20*AT20,0) -> 0 | AW20: 0 | AX20: 0 | BA20: FALSE
AM21: =IF(AU21>0,TRUE,FALSE) -> FALSE | AN21: Flooring | AO21: Flooring | AP21: Replace Rotted Floor | AQ21: =X22 -> 0 | AR21: sq ft | AS21: ='Materials Costs'!N21 -> 0.7671875 | AT21: ='Labor Costs'!F21 -> 2.5 | AU21: =AQ21*AS21 -> 0 | AV21: =AQ21*AT21 -> 0 | AW21: 0 | AX21: 0 | BA21: FALSE
E22: Outlets and Switches | L22: =AW41+AX41+AW42+AX42 -> 0 | Q22: =AP21 -> Replace Rotted Floor | X22: 0 | AM22: 1 | AN22: General | AX22: 0
AM23: =IF($AM$22=1,TRUE,FALSE) -> TRUE | AN23: General | AP23: No Blinds | AQ23: =$AI$8 -> 0 | AX23: 0 | BA23: FALSE
E24: Demolition | L24: =AX43 -> 0 | AM24: =IF($AM$22=2,TRUE,FALSE) -> FALSE | AN24: General | AO24: General | AP24: ='Materials Costs'!C108 -> 28 inch wide blinds | AQ24: =$AI$8 -> 0 | AS24: ='Materials Costs'!N108 -> 6.97 | AT24: ='Labor Costs'!$F$47 -> 45 | AU24: =IF(AM24,AS24*AQ24,0) -> 0 | AV24: =IF(AM24,AT24*AQ24,0) -> 0 | AW24: 0 | AX24: 0 | BA24: =IF(BA23,TRUE,FALSE) -> FALSE
AM25: =IF($AM$22=3,TRUE,FALSE) -> FALSE | AN25: General | AO25: General | AP25: ='Materials Costs'!C109 -> 32 inch wide blinds | AQ25: =$AI$8 -> 0 | AS25: ='Materials Costs'!N109 -> 8.47 | AT25: ='Labor Costs'!$F$47 -> 45 | AU25: =IF(AM25,AS25*AQ25,0) -> 0 | AV25: =IF(AM25,AT25*AQ25,0) -> 0 | AW25: 0 | AX25: 0 | BA25: =IF(BA24,TRUE,FALSE) -> FALSE
AA26: DIY | AB26: Electrical & Misc | AM26: =IF($AM$22=4,TRUE,FALSE) -> FALSE | AN26: General | AO26: General | AP26: ='Materials Costs'!C110 -> 36 inch wide blinds | AQ26: =$AI$8 -> 0 | AS26: ='Materials Costs'!N110 -> 9.97 | AT26: ='Labor Costs'!$F$47 -> 45 | AU26: =IF(AM26,AS26*AQ26,0) -> 0 | AV26: =IF(AM26,AT26*AQ26,0) -> 0 | AW26: 0 | AX26: 0 | BA26: =IF(BA25,TRUE,FALSE) -> FALSE
AB27: =AP37 -> Add Circuit | AM27: 1 | AN27: General | AU27: =IF(AM27,AS27,0) -> 0 | AV27: =IF(AM27,AT27,0) -> 0 | AW27: 0 | AX27: 0
AB28: =AP38 -> Ceiling Fan | AM28: =IF(AM27=1,TRUE,FALSE) -> TRUE | AN28: General | AP28: No Doors | AS28: 0 | AT28: 0 | AU28: 0 | AV28: 0 | AW28: 0 | AX28: 0 | BA28: FALSE
E29: Contingency Applied to This Room | L29: =AY44 -> 0 | AB29: =AP39 -> Lighting Fixture | AM29: =IF(AM27=2,TRUE,FALSE) -> FALSE | AN29: General | AO29: Windows & Doors | AP29: ='Materials Costs'!C70 -> 28 x 80 Prehung Interior Door | AS29: ='Materials Costs'!N70 -> 76.79 | AT29: ='Labor Costs'!$F$52 -> 150 | AU29: 0 | AV29: 0 | AW29: 0 | AX29: 0 | BA29: =IF($BA$28,TRUE,FALSE) -> FALSE
E30: Estimated Total Labor Cost This Room | L30: =AZ3 -> 0 | AB30: =AP40 -> Wire Cable Outlet | AM30: =IF(AM27=3,TRUE,FALSE) -> FALSE | AN30: General | AO30: Windows & Doors | AP30: ='Materials Costs'!C71 -> 30 x 80 Prehung Interior Door | AS30: ='Materials Costs'!N71 -> 76.79 | AT30: ='Labor Costs'!$F$52 -> 150 | AU30: 0 | AV30: 0 | AW30: 0 | AX30: 0 | BA30: =IF($BA$28,TRUE,FALSE) -> FALSE
E31: Estimated Total Material Cost This Room | L31: =AY3 -> 0 | AB31: =AP41 -> Grounded Outlet | AI31: 0 | AM31: =IF(AM27=4,TRUE,FALSE) -> FALSE | AN31: General | AO31: Windows & Doors | AP31: ='Materials Costs'!C72 -> 32 X 80 Prehung Interior Door | AS31: ='Materials Costs'!N72 -> 96.14 | AT31: ='Labor Costs'!$F$52 -> 150 | AU31: 0 | AV31: 0 | AW31: 0 | AX31: 0 | BA31: =IF($BA$28,TRUE,FALSE) -> FALSE
E32: Total Estimated Room Repair Cost | L32: =L29+L30+L31 -> 0 | AM32: FALSE | AN32: General | AO32: General | AP32: ='Materials Costs'!C73 -> Interior Door Lockset | AS32: ='Materials Costs'!N73 -> 8.97 | AT32: ='Labor Costs'!F51 -> 25 | AU32: 0 | AV32: 0 | AW32: 0 | AX32: 0 | BA32: FALSE
AB33: =AP42 -> Wall Switch | AI33: 0 | AM33: FALSE | AN33: General | AO33: General | AP33: ='Materials Costs'!C74 -> Single Closet Door | AS33: ='Materials Costs'!N74 -> 165.2 | AT33: ='Labor Costs'!F54 -> 100 | AU33: 0 | AV33: 0 | AW33: 0 | AX33: 0 | BA33: FALSE
E34: Total Estimated Costs for Entire House | L34: ='Offer Calculator'!Z20+'Offer Calculator'!Z23 -> 0 | AM34: FALSE | AN34: General | AO34: General | AP34: ='Materials Costs'!C75 -> Double Closet Door | AS34: ='Materials Costs'!N75 -> 109 | AT34: ='Labor Costs'!F55 -> 150 | AU34: 0 | AV34: 0 | AW34: 0 | AX34: 0 | BA34: FALSE
AM35: FALSE | AN35: Painter | AO35: Painter | AP35: Paint Closet | AS35: ='Materials Costs'!N76 -> 22.97 | AT35: ='Labor Costs'!F56 -> 125 | AU35: 0 | AV35: 0 | AW35: 0 | AX35: 0 | BA35: FALSE
AB36: =AP43 -> Demolition Hours | AI36: 0 | AM36: FALSE | AN36: General | AO36: General | AP36: Replace Window & Door Moulding | AQ36: =36 -> 36 | AR36: ln ft | AS36: ='Materials Costs'!N77 -> 0.4725 | AT36: ='Labor Costs'!F58 -> 2.77 | AU36: =IF(AM36,AS36*AQ36,0) -> 0 | AV36: =IF(AM36,AT36*AQ36,0) -> 0 | AW36: 0 | AX36: 0 | BA36: FALSE
AM37: FALSE | AN37: Electrician | AO37: Electrician | AP37: ='Labor Costs'!D64 -> Add Circuit | AS37: ='Materials Costs'!N59 -> 15.98 | AT37: ='Labor Costs'!F64 -> 150 | AU37: =IF(AM37,AS37,0) -> 0 | AV37: =IF(AM37,AT37,0) -> 0 | AW37: 0 | AX37: 0 | BA37: FALSE
AM38: FALSE | AN38: Electrician | AO38: Electrician | AP38: ='Materials Costs'!C62 -> Ceiling Fan | AS38: ='Materials Costs'!N62 -> 44.97 | AT38: ='Labor Costs'!F65 -> 125 | AU38: =IF(AM38,AS38,0) -> 0 | AV38: =IF(AM38,AT38,0) -> 0 | AW38: 0 | AX38: 0
AM39: FALSE | AN39: Electrician | AO39: Electrician | AP39: ='Materials Costs'!C63 -> Lighting Fixture | AS39: ='Materials Costs'!N63 -> 24.97 | AT39: ='Labor Costs'!F66 -> 95 | AU39: =IF(AM39,AS39,0) -> 0 | AV39: =IF(AM39,AT39,0) -> 0 | AW39: 0 | AX39: 0 | BA39: FALSE
E40: TYPE | J40: MATERIALS | L40: LABOR | AM40: FALSE | AN40: Electrician | AO40: Electrician | AP40: ='Materials Costs'!C64 -> Wire Cable Outlet | AS40: ='Materials Costs'!N64 -> 29.97 | AT40: ='Labor Costs'!F67 -> 100 | AU40: =IF(AM40,AS40,0) -> 0 | AV40: =IF(AM40,AT40,0) -> 0 | AW40: 0 | AX40: 0 | BA40: FALSE
E41: DEMOLITION | L41: =AX43 -> 0 | X41: 0 | AM41: =IF(AQ41>0,TRUE,FALSE) -> FALSE | AN41: Electrician | AO41: Electrician | AP41: ='Materials Costs'!C65 -> Grounded Outlet | AQ41: =AI31 -> 0 | AS41: ='Materials Costs'!N65 -> 1.19 | AT41: ='Labor Costs'!F68 -> 50 | AU41: =AQ41*AS41 -> 0 | AV41: =AQ41*AT41 -> 0 | AW41: 0 | AX41: 0 | BA41: FALSE
E42: DRYWALL | J42: =AW12 -> 0 | L42: =AX12 -> 0 | X42: 1 | AM42: =IF(AQ42>0,TRUE,FALSE) -> FALSE | AN42: Electrician | AO42: Electrician | AP42: ='Materials Costs'!C66 -> Wall Switch | AQ42: =AI33 -> 0 | AS42: ='Materials Costs'!N66 -> 1.29 | AT42: ='Labor Costs'!F69 -> 50 | AU42: =AQ42*AS42 -> 0 | AV42: =AQ42*AT42 -> 0 | AW42: 0 | AX42: 0 | BA42: FALSE
E43: ELECTRICIAN | J43: =SUM(AW37:AW42) -> 0 | L43: =SUM(AX37:AX42) -> 0 | X43: 2 | AM43: =IF(AQ43>0,TRUE,FALSE) -> FALSE | AN43: Demolition | AO43: Demolition | AP43: ='Labor Costs'!D114 -> Demolition Hours | AQ43: =AI36 -> 0 | AT43: ='Labor Costs'!F114 -> 20 | AU43: 0 | AV43: =AQ43*AT43 -> 0 | AW43: 0 | AX43: 0 | BA43: FALSE
E44: FLOORING | J44: =SUM(AW18:AW21) -> 0 | L44: =SUM(AX18:AX21) -> 0 | X44: 3 | AM44: TRUE | AN44: Contingency | AO44: Contingency | AP44: Contingency | AW44: =AY44*0.5 -> 0 | AX44: =AY44*0.5 -> 0 | AY44: =IF(AM45,(AY3+AZ3)*'Offer Calculator'!U23,U4) -> 0
E45: GENERAL | J45: =AW13+AW17+SUM(AW23:AW34)+AW36 -> 0 | L45: =AX13+AW17+SUM(AX23:AX34)+AX36 -> 0 | X45: 4 | AM45: TRUE
E46: PAINTER | J46: =SUM(AW14:AW15)+AW35 -> 0 | L46: =SUM(AX14:AX15)+AX35 -> 0 | X46: 5
E47: WINDOWS & DOORS | J47: =SUM(AW5:AW11) -> 0 | L47: =SUM(AX5:AX11) -> 0 | X47: 6
X48: 7
X49: 8
X50: 9
AK65: TRUE

Sheet Basement Utility
P1: Basement and Utility Room | AS1: Each | AU1: Extended | AW1: Region Adjustment | AY1: Total
D2: Estimated Labor & Material Costs | AM2: Include? | AN2: Category | AO2: Contractor | AP2: Description | AQ2: Amount | AR2: Measure | AS2: Material | AT2: Labor | AU2: Material | AV2: Labor | AW2: Material | AX2: Labor | AY2: Material | AZ2: Labor | BA2: DIY
P3: Contingency for This Room | AY3: =SUM(AW5:AW53) -> 0 | AZ3: =SUM(AX5:AX53) -> 0
E4: Windows | L4: =SUM(AW5:AW12)+SUM(AX5:AX12)+AW13+AX13 -> 0 | Q4: Standard | S4: or | T4: $ | U4: 0 | W4: Room dimensions (ft): | AD4: Width | AF4: 0 | AG4: Depth | AI4: 0 | AM4: 1 | AN4: Windows & Doors | BA4: FALSE
AM5: =IF($AM$4=1,TRUE,FALSE) -> TRUE | AN5: Windows & Doors | AP5: No Windows | AQ5: =$X$8 -> 0 | AS5: 0 | AT5: 0 | AU5: =IF(AM5,AQ5*AS5,0) -> 0 | AW5: =ROUND(AU5*(COL/100),2) -> 0 | AX5: =IF(BA5,0,ROUND(AV5*(COL/100),2)) -> 0 | BA5: =IF($BA$4,TRUE,FALSE) -> FALSE
E6: Blinds | L6: =SUM(AW32:AW34)+SUM(AX32:AX34)+AW35+AX35 -> 0 | Q6: Replace Windows | AA6: DIY | AB6: Replace Blinds | AM6: =IF($AM$4=2,TRUE,FALSE) -> FALSE | AN6: Windows & Doors | AO6: Windows & Doors | AP6: ='Materials Costs'!C107 -> Glass Block | AQ6: =X8 -> 0 | AS6: ='Materials Costs'!N107 -> 124.33 | AT6: ='Labor Costs'!$F$44 -> 125 | AU6: 0 | AV6: =IF(AM6,AQ6*AT6,0) -> 0 | AW6: 0 | AX6: 0 | BA6: FALSE
P7: DIY | AM7: =IF($AM$4=3,TRUE,FALSE) -> FALSE | AN7: Windows & Doors | AO7: Windows & Doors | AP7: ='Materials Costs'!C100 -> 28 x 38 Double Hung | AQ7: =$X$8 -> 0 | AS7: ='Materials Costs'!O100 -> 124 | AT7: ='Labor Costs'!$F$44 -> 125 | AU7: 0 | AV7: 0 | AW7: 0 | AX7: 0 | BA7: =IF($BA$4,TRUE,FALSE) -> FALSE
E8: Finish Existing Walls | L8: =SUM(AW14:AW17)+SUM(AX14:AX17) -> 0 | X8: 0 | AI8: 0 | AM8: =IF($AM$4=4,TRUE,FALSE) -> FALSE | AN8: Windows & Doors | AO8: Windows & Doors | AP8: ='Materials Costs'!C101 -> 28 x 54 Double Hung | AQ8: 0 | AS8: ='Materials Costs'!N101 -> 134 | AT8: ='Labor Costs'!$F$44 -> 125 | AU8: 0 | AV8: 0 | AW8: 0 | AX8: 0 | BA8: FALSE
AB9: (choose closet size) | AM9: =IF($AM$4=5,TRUE,FALSE) -> FALSE | AN9: Windows & Doors | AO9: Windows & Doors | AP9: ='Materials Costs'!C102 -> 32 x 38 Double Hung | AQ9: 0 | AS9: ='Materials Costs'!N102 -> 147 | AT9: ='Labor Costs'!$F$44 -> 125 | AU9: 0 | AV9: 0 | AW9: 0 | AX9: 0 | BA9: FALSE
E10: Add New Walls | L10: =SUM(AW38:AW39)+SUM(AX38:AX39) -> 0 | AM10: =IF($AM$4=6,TRUE,FALSE) -> FALSE | AN10: Windows & Doors | AO10: Windows & Doors | AP10: ='Materials Costs'!C103 -> 32 x 54 Double Hung | AQ10: 0 | AS10: ='Materials Costs'!N103 -> 155 | AT10: ='Labor Costs'!$F$44 -> 125 | AU10: 0 | AV10: 0 | AW10: 0 | AX10: 0 | BA10: FALSE
AM11: =IF($AM$4=7,TRUE,FALSE) -> FALSE | AN11: Windows & Doors | AO11: Windows & Doors | AP11: ='Materials Costs'!C104 -> 36 x 38 Double Hung | AQ11: 0 | AS11: ='Materials Costs'!N104 -> 134 | AT11: ='Labor Costs'!$F$44 -> 125 | AU11: 0 | AV11: 0 | AW11: 0 | AX11: 0 | BA11: FALSE
E12: Floors | L12: =SUM(AW18:AW24)+SUM(AX18:AX24) -> 0 | P12: DIY | Q12: Walls & Floors | AA12: DIY | AB12: Add Wall, Laundry, Sump Pump | AM12: =IF($AM$4=8,TRUE,FALSE) -> FALSE | AN12: Windows & Doors | AO12: Windows & Doors | AP12: ='Materials Costs'!C105 -> 36 x 54 Double Hung | AQ12: 0 | AS12: ='Materials Costs'!N105 -> 167 | AT12: ='Labor Costs'!$F$44 -> 125 | AU12: 0 | AV12: 0 | AW12: 0 | AX12: 0 | BA12: FALSE
Q13: =AP14 -> Hang & Finish Drywall | AB13: Rebuild Basement Walls | AI13: 0 | AM13: FALSE | AN13: Windows & Doors | AO13: Windows & Doors | AP13: ='Materials Costs'!C106 -> Picture Window | AQ13: 1 | AS13: ='Materials Costs'!N106 -> 790.7 | AT13: ='Labor Costs'!F45 -> 200 | AU13: 0 | AV13: 0 | AW13: 0 | AX13: 0 | BA13: FALSE
E14: Rebuild Basement Walls Sump Pump | L14: =AW37+AX37+SUM(AW44:AW45)+SUM(AX44:AX45) -> 0 | Q14: Install Furring Strips | AM14: FALSE | AN14: Drywall | AO14: Drywall | AP14: Hang & Finish Drywall | AQ14: =(8*$AF$4)*2+(8*$AI$4)*2 -> 0 | AR14: sq ft | AS14: ='Materials Costs'!N5+'Materials Costs'!N6 -> 0.348825 | AT14: ='Labor Costs'!F5+'Labor Costs'!F6 -> 2.45 | AU14: =IF(AM14,AQ14*AS14,0) -> 0 | AV14: =IF(AM14,AQ14*AT14,0) -> 0 | AW14: 0 | AX14: 0 | BA14: FALSE
Q15: =AP16 -> Prime Walls | AB15: Frame and Drywall New Rooms | AI15: 0 | AM15: FALSE | AN15: General | AO15: General | AP15: Install Furring Strips | AQ15: =(8*$AF$4)*2+(8*$AI$4)*2 -> 0 | AR15: sq ft | AS15: ='Materials Costs'!N10 -> 0.23375 | AT15: ='Labor Costs'!F10 -> 0.36 | AU15: =IF(AM15,AQ15*AS15,0) -> 0 | AV15: =IF(AM15,AQ15*AT15,0) -> 0 | AW15: =ROUND(AU15*(COL/100),2) -> 0 | AX15: 0 | BA15: FALSE
E16: Closet, Cabinet | L16: =SUM(AW40:AW43)+SUM(AX40:AX43) -> 0 | Q16: =AP17 -> Paint Walls | AB16: Add Interior Doors | AI16: 0 | AM16: FALSE | AN16: Painter | AO16: Painter | AP16: Prime Walls | AQ16: =(8*$AF$4)*2+(8*$AI$4)*2 -> 0 | AR16: sq ft | AS16: ='Materials Costs'!N9 -> 0.04245 | AT16: ='Labor Costs'!F9 -> 0.4 | AU16: =IF(AM16,AQ16*AS16,0) -> 0 | AV16: =IF(AM16,AQ16*AT16,0) -> 0 | AW16: =ROUND(AU16*(COL/100),2) -> 0 | AX16: 0 | BA16: FALSE
Q17: Carpet | AM17: FALSE | AN17: Painter | AO17: Painter | AP17: Paint Walls | AQ17: =(8*$AF$4)*2+(8*$AI$4)*2 -> 0 | AR17: sq ft | AS17: ='Materials Costs'!N8 -> 0.11485 | AT17: ='Labor Costs'!F8 -> 0.65 | AU17: =IF(AM17,AQ17*AS17,0) -> 0 | AV17: =IF(AM17,AQ17*AT17,0) -> 0 | AW17: 0 | AX17: 0 | BA17: FALSE
E18: Ceiling Fan & Light Fixture | L18: =SUM(AW47:AW48)+SUM(AX47:AX48) -> 0 | Q18: Install Engineered Hardwood | AB18: Add Laundry Wall Cabinet
Q19: Ceramic Tile | AB19: Double Closet Door | AM19: FALSE | AN19: General | AO19: General | AP19: Replace and Paint Baseboards | AQ19: =(AF4*2)+(AI4*2) -> 0 | AR19: ln ft | AS19: ='Materials Costs'!N19+'Materials Costs'!N20 -> 0.216175 | AT19: ='Labor Costs'!F17 -> 2.77 | AU19: =IF(AM19,AQ19*AS19,0) -> 0 | AV19: =IF(AM19,AQ19*AT19,0) -> 0 | AW19: 0 | AX19: 0 | BA19: FALSE
E20: Circuits Outlets Switches | L20: =AW46+SUM(AW49:AW51)+AX46+SUM(AX49:AX51) -> 0 | Q20: =AP19 -> Replace and Paint Baseboards | AB20: =AP41 -> Single Closet Door | AM20: FALSE | AN20: Flooring | AO20: Flooring | AP20: Engineered Hardwood Flooring | AQ20: =AF4*AI4 -> 0 | AR20: sq ft | AS20: ='Materials Costs'!N16 -> 2.89 | AT20: ='Labor Costs'!F18 -> 3 | AU20: =IF(AM20,AQ20*AS20,0) -> 0 | AV20: =IF(AM20,AQ20*AT20,0) -> 0 | AW20: 0 | AX20: 0 | BA20: FALSE
Q21: =AP23 -> Replace Window & Door Moulding | AB21: =AP43 -> Paint Closet | AM21: FALSE | AN21: Flooring | AO21: Flooring | AP21: Carpet | AQ21: =((AF4*AI4)*1.15)/9 -> 0 | AR21: yards | AS21: ='Materials Costs'!N17+'Materials Costs'!N18 -> 18 | AT21: ='Labor Costs'!F19 -> 5 | AU21: =IF(AM21,AQ21*AS21,0) -> 0 | AV21: =IF(AM21,AQ21*AT21,0) -> 0 | AW21: 0 | AX21: 0 | BA21: FALSE
E22: Flush Mount Can Lighting | L22: =AW52+AX52 -> 0 | Q22: =AP24 -> Floor Decorative Coating | AB22: Replace Sump Pump | AM22: FALSE | AN22: Flooring | AO22: Flooring | AP22: ='Materials Costs'!C14 -> Ceramic Tile | AQ22: =AF4*AI4 -> 0 | AR22: sq ft | AS22: ='Materials Costs'!N14 -> 1.86 | AT22: ='Labor Costs'!F13 -> 3.5 | AU22: =IF(AM22,AQ22*AS22,0) -> 0 | AV22: =IF(AM22,AQ22*AT22,0) -> 0 | AW22: 0 | AX22: 0 | BA22: FALSE
AB23: Add Sump Pump | AM23: FALSE | AN23: General | AO23: General | AP23: Replace Window & Door Moulding | AQ23: =36 -> 36 | AR23: ln ft | AS23: ='Materials Costs'!N77 -> 0.4725 | AT23: ='Labor Costs'!F58 -> 2.77 | AU23: =IF(AM23,AS23*AQ23,0) -> 0 | AV23: =IF(AM23,AT23*AQ23,0) -> 0 | AW23: =ROUND(AU23*(COL/100),2) -> 0 | AX23: =IF(BA23,0,ROUND(AV23*(COL/100),2)) -> 0 | BA23: FALSE
E24: Demolition | L24: =AX53 -> 0 | AM24: FALSE | AN24: Flooring | AO24: Flooring | AP24: Floor Decorative Coating | AQ24: =AF4*AI4 -> 0 | AR24: sq ft | AS24: ='Materials Costs'!N22 -> 0.7017333333 | AT24: ='Labor Costs'!F22 -> 0.25 | AU24: =IF(AM24,AQ24*AS24,0) -> 0 | AV24: =IF(AM24,AQ24*AT24,0) -> 0 | AW24: 0 | AX24: 0 | BA24: FALSE
AM25: FALSE | AN25: Fireplace | AO25: Fireplace | AP25: ='Labor Costs'!D60 -> Inspect and Clean Chimney | AQ25: 1 | AS25: 0 | AT25: ='Labor Costs'!F60 -> 150 | AU25: =IF(AM25,AS25*AQ25,0) -> 0 | AV25: =IF(AM25,AT25*AQ25,0) -> 0 | AW25: 0 | AX25: 0 | BA25: FALSE
E26: Fireplace | L26: =SUM(AW25:AW29)+SUM(AX25:AX29) -> 0 | Q26: Fireplace | AA26: DIY | AB26: Electrical & Demolition | AM26: FALSE | AN26: Fireplace | AO26: Fireplace | AP26: Gas Insert and Logs | AQ26: 1 | AS26: ='Materials Costs'!N94+'Materials Costs'!N95 -> 552.78 | AT26: ='Labor Costs'!F61 -> 85 | AU26: 0 | AV26: 0 | AW26: 0 | AX26: 0 | BA26: FALSE
P27: DIY | AB27: =AP46 -> Add Circuit | AI27: 0 | AM27: FALSE | AN27: Fireplace | AO27: Fireplace | AP27: ='Materials Costs'!C96 -> Fireplace Screen | AQ27: 1 | AS27: ='Materials Costs'!N96 -> 77.25 | AT27: 0 | AU27: 0 | AV27: 0 | AW27: 0 | AX27: 0 | BA27: FALSE
Q28: =AP25 -> Inspect and Clean Chimney | AB28: Ceiling Fan | AM28: FALSE | AN28: Fireplace | AO28: Fireplace | AP28: ='Materials Costs'!C97 -> Fireplace Mantel | AQ28: 1 | AS28: ='Materials Costs'!N97 -> 281.31 | AT28: ='Labor Costs'!F62 -> 175 | AU28: 0 | AV28: 0 | AW28: 0 | AX28: 0 | BA28: FALSE
E29: Contingency Applied to This Room | L29: =AY54 -> 0 | Q29: =AP26 -> Gas Insert and Logs | AB29: Lighting Fixture | AM29: FALSE | AN29: Fireplace | AO29: Fireplace | AP29: Electric Fireplace | AQ29: 1 | AS29: ='Materials Costs'!N98 -> 569.05 | AU29: 0 | AV29: 0 | AW29: 0 | AX29: 0
E30: Estimated Total Labor Cost This Room | L30: =AZ3 -> 0 | Q30: =AP27 -> Fireplace Screen | AB30: Wire Cable Outlet | AM30: 4 | AN30: General | AU30: 0 | AV30: 0 | AW30: 0 | AX30: 0
E31: Estimated Total Material Cost This Room | L31: =AY3 -> 0 | Q31: =AP28 -> Fireplace Mantel | AB31: Grounded Outlet | AI31: 0 | AM31: =IF($AM$30=1,TRUE,FALSE) -> FALSE | AN31: General | AP31: No Blinds | AQ31: =$AI$8 -> 0 | AU31: 0 | AV31: 0 | AW31: 0 | AX31: 0 | BA31: FALSE
E32: Total Estimated Room Repair Cost | L32: =SUM(L29:M31) -> 0 | Q32: =AP29 -> Electric Fireplace | AB32: Wall Switch | AI32: 0 | AM32: =IF($AM$30=2,TRUE,FALSE) -> FALSE | AN32: General | AO32: General | AP32: ='Materials Costs'!C108 -> 28 inch wide blinds | AQ32: =$AI$8 -> 0 | AS32: ='Materials Costs'!N108 -> 6.97 | AT32: ='Labor Costs'!$F$47 -> 45 | AU32: =IF(AM32,AS32*AQ32,0) -> 0 | AV32: =IF(AM32,AT32*AQ32,0) -> 0 | AW32: 0 | AX32: 0 | BA32: =IF(BA31,TRUE,FALSE) -> FALSE
AM33: =IF($AM$30=3,TRUE,FALSE) -> FALSE | AN33: General | AO33: General | AP33: ='Materials Costs'!C109 -> 32 inch wide blinds | AQ33: =$AI$8 -> 0 | AS33: ='Materials Costs'!N109 -> 8.47 | AT33: ='Labor Costs'!$F$47 -> 45 | AU33: =IF(AM33,AS33*AQ33,0) -> 0 | AV33: =IF(AM33,AT33*AQ33,0) -> 0 | AW33: 0 | AX33: 0 | BA33: =IF(BA32,TRUE,FALSE) -> FALSE
AB34: Flush Mount Can Lighting | AI34: 0 | AM34: =IF($AM$30=4,TRUE,FALSE) -> TRUE | AN34: General | AO34: General | AP34: ='Materials Costs'!C110 -> 36 inch wide blinds | AQ34: =$AI$8 -> 0 | AS34: ='Materials Costs'!N110 -> 9.97 | AT34: ='Labor Costs'!$F$47 -> 45 | AU34: =IF(AM34,AS34*AQ34,0) -> 0 | AV34: =IF(AM34,AT34*AQ34,0) -> 0 | AW34: 0 | AX34: 0 | BA34: =IF(BA33,TRUE,FALSE) -> FALSE
E35: Total Estimated Costs for Entire House | L35: ='Offer Calculator'!Z20+'Offer Calculator'!Z23 -> 0 | AM35: FALSE | AN35: General | AO35: General | AP35: ='Materials Costs'!C111 -> Picture Window Blinds | AQ35: 1 | AS35: ='Materials Costs'!N111 -> 53.97 | AT35: ='Labor Costs'!F48 -> 50 | AU35: =IF(AM35,AS35*AQ35,0) -> 0 | AV35: =IF(AM35,AT35*AQ35,0) -> 0 | AW35: 0 | AX35: 0 | BA35: FALSE
AB36: =AP53 -> Demolition Hours | AI36: 0 | AM36: 1 | AU36: =IF(AM36,AS36,0) -> 0 | AV36: =IF(AM36,AT36,0) -> 0 | AW36: 0 | AX36: 0
AM37: =IF(AQ37>0,TRUE,FALSE) -> FALSE | AN37: Excavator | AO37: Excavator | AP37: Rebuild Basement Walls | AQ37: =AI13 -> 0 | AR37: ln ft | AS37: 0 | AT37: ='Labor Costs'!F86 -> 100 | AU37: 0 | AV37: =IF(AM37,AT37*AQ37,0) -> 0 | AW37: 0 | AX37: 0 | BA37: FALSE
AM38: =IF(AQ38>0,TRUE,FALSE) -> FALSE | AN38: General | AO38: General | AP38: Frame and Drywall New Rooms | AQ38: =AI15 -> 0 | AR38: sq ft | AS38: =('Materials Costs'!N5+'Materials Costs'!N6+'Materials Costs'!N11) -> 0.897825 | AT38: ='Labor Costs'!F5+'Labor Costs'!F6+'Labor Costs'!F87 -> 3.2 | AU38: =IF(AM38,AS38*AQ38,0) -> 0 | AV38: =IF(AM38,AT38*AQ38,0) -> 0 | AW38: 0 | AX38: 0 | BA38: FALSE
AM39: =IF(AQ39>0,TRUE,FALSE) -> FALSE | AN39: General | AO39: General | AP39: Add Interior Doors | AQ39: =AI16 -> 0 | AS39: ='Materials Costs'!N70 -> 76.79 | AT39: ='Labor Costs'!F52 -> 150 | AU39: =IF(AM39,AS39*AQ39,0) -> 0 | AV39: =IF(AM39,AT39*AQ39,0) -> 0 | AW39: 0 | AX39: 0 | BA39: FALSE
E40: TYPE | J40: MATERIALS | L40: LABOR | AM40: FALSE | AN40: General | AO40: General | AP40: Add Laundry Wall Cabinet | AS40: ='Materials Costs'!N138 -> 116.79 | AT40: ='Labor Costs'!F77 -> 50 | AU40: 0 | AV40: 0 | AW40: 0 | AX40: 0 | BA40: FALSE
E41: DEMOLITION | L41: =AX53 -> 0 | X41: 0 | AM41: FALSE | AN41: General | AO41: General | AP41: ='Materials Costs'!C74 -> Single Closet Door | AS41: ='Materials Costs'!N74 -> 165.2 | AT41: ='Labor Costs'!F54 -> 100 | AU41: 0 | AV41: 0 | AW41: 0 | AX41: 0 | BA41: FALSE
E42: DRYWALL | J42: =AW14 -> 0 | L42: =AX14 -> 0 | X42: 1 | AM42: FALSE | AN42: General | AO42: General | AP42: ='Materials Costs'!C75 -> Double Closet Door | AS42: ='Materials Costs'!N75 -> 109 | AT42: ='Labor Costs'!F55 -> 150 | AU42: 0 | AV42: 0 | AW42: 0 | AX42: 0 | BA42: FALSE
E43: ELECTRICIAN | J43: =SUM(AW46:AW52) -> 0 | L43: =SUM(AX46:AX52) -> 0 | X43: 2 | AM43: FALSE | AN43: Painter | AO43: Painter | AP43: Paint Closet | AS43: ='Materials Costs'!N76 -> 22.97 | AT43: ='Labor Costs'!F56 -> 125 | AU43: 0 | AV43: 0 | AW43: 0 | AX43: 0 | BA43: FALSE
E44: EXCAVATOR | L44: =AX37 -> 0 | X44: 3 | AM44: FALSE | AN44: Plumber | AO44: Plumber | AP44: Replace Sump Pump | AS44: ='Materials Costs'!N139 -> 746 | AT44: ='Labor Costs'!F88 -> 200 | AU44: 0 | AV44: 0 | AW44: 0 | AX44: 0 | BA44: FALSE
E45: FIREPLACE | J45: =SUM(AW25:AW29) -> 0 | L45: =SUM(AX25:AX29) -> 0 | X45: 4 | AM45: FALSE | AN45: Plumber | AO45: Plumber | AP45: Add Sump Pump | AS45: ='Materials Costs'!N139 -> 746 | AT45: ='Labor Costs'!F89 -> 750 | AU45: 0 | AV45: 0 | AW45: 0 | AX45: 0 | BA45: FALSE
E46: FLOORING | J46: =SUM(AW20:AW22)+AW24 -> 0 | L46: =SUM(AX20:AX22)+AX24 -> 0 | X46: 5 | AM46: =IF(AQ46>0,TRUE,FALSE) -> FALSE | AN46: Electrician | AO46: Electrician | AP46: ='Labor Costs'!D64 -> Add Circuit | AQ46: =AI27 -> 0 | AS46: ='Materials Costs'!N59 -> 15.98 | AT46: ='Labor Costs'!F64 -> 150 | AU46: =AS46*AQ46 -> 0 | AV46: =AT46*AQ46 -> 0 | AW46: 0 | AX46: 0 | BA46: FALSE
E47: GENERAL | J47: =AW15+AW19+AW23+SUM(AW31:AW35)+SUM(AW38:AW42) -> 0 | L47: =AX15+AX19+AX23+SUM(AX31:AX35)+SUM(AX38:AX42) -> 0 | X47: 6 | AM47: FALSE | AN47: Electrician | AO47: Electrician | AP47: ='Materials Costs'!C62 -> Ceiling Fan | AS47: ='Materials Costs'!N62 -> 44.97 | AT47: ='Labor Costs'!F65 -> 125 | AU47: =IF(AM47,AS47,0) -> 0 | AV47: =IF(AM47,AT47,0) -> 0 | AW47: 0 | AX47: 0 | BA47: FALSE
E48: PAINTER | J48: =SUM(AW16:AW17)+AW43 -> 0 | L48: =SUM(AX16:AX17)+AX43 -> 0 | X48: 7 | AM48: FALSE | AN48: Electrician | AO48: Electrician | AP48: ='Materials Costs'!C63 -> Lighting Fixture | AS48: ='Materials Costs'!N63 -> 24.97 | AT48: ='Labor Costs'!F66 -> 95 | AU48: =IF(AM48,AS48,0) -> 0 | AV48: =IF(AM48,AT48,0) -> 0 | AW48: 0 | AX48: 0 | BA48: FALSE
E49: PLUMBER | J49: =SUM(AW44:AW45) -> 0 | L49: =SUM(AX44:AX45) -> 0 | X49: 8 | AM49: FALSE | AN49: Electrician | AO49: Electrician | AP49: ='Materials Costs'!C64 -> Wire Cable Outlet | AS49: ='Materials Costs'!N64 -> 29.97 | AT49: ='Labor Costs'!F67 -> 100 | AU49: =IF(AM49,AS49,0) -> 0 | AV49: =IF(AM49,AT49,0) -> 0 | AW49: 0 | AX49: 0 | BA49: FALSE
E50: WINDOWS & DOORS | J50: =SUM(AW5:AW13) -> 0 | L50: =SUM(AX5:AX13) -> 0 | X50: 9 | AM50: =IF(AQ50>0,TRUE,FALSE) -> FALSE | AN50: Electrician | AO50: Electrician | AP50: ='Materials Costs'!C65 -> Grounded Outlet | AQ50: =AI31 -> 0 | AS50: ='Materials Costs'!N65 -> 1.19 | AT50: ='Labor Costs'!F68 -> 50 | AU50: =AQ50*AS50 -> 0 | AV50: =AQ50*AT50 -> 0 | AW50: 0 | AX50: 0 | BA50: FALSE
AM51: =IF(AQ51>0,TRUE,FALSE) -> FALSE | AN51: Electrician | AO51: Electrician | AP51: ='Materials Costs'!C66 -> Wall Switch | AQ51: =AI32 -> 0 | AS51: ='Materials Costs'!N66 -> 1.29 | AT51: ='Labor Costs'!F69 -> 50 | AU51: =AQ51*AS51 -> 0 | AV51: =AQ51*AT51 -> 0 | AW51: 0 | AX51: 0 | BA51: FALSE
AM52: =IF(AQ52>0,TRUE,FALSE) -> FALSE | AN52: Electrician | AO52: Electrician | AP52: Flush Mount Can Lighting | AQ52: =AI34 -> 0 | AS52: ='Materials Costs'!N140 -> 10.41166667 | AT52: ='Labor Costs'!F70 -> 95 | AU52: =AQ52*AS52 -> 0 | AV52: =AQ52*AT52 -> 0 | AW52: 0 | AX52: 0 | BA52: FALSE
AM53: =IF(AQ53>0,TRUE,FALSE) -> FALSE | AN53: Demolition | AO53: Demolition | AP53: ='Labor Costs'!D114 -> Demolition Hours | AQ53: =AI36 -> 0 | AT53: ='Labor Costs'!F114 -> 20 | AU53: 0 | AV53: =AQ53*AT53 -> 0 | AW53: 0 | AX53: 0 | BA53: FALSE
AM54: TRUE | AN54: Contingency | AO54: Contingency | AP54: Contingency | AW54: =AY54*0.5 -> 0 | AX54: =AY54*0.5 -> 0 | AY54: =IF(AM55,(AY3+AZ3)*'Offer Calculator'!U23,U4) -> 0
AM55: TRUE
AK65: TRUE

Sheet Exterior Mechanicals
P1: Exterior & Mechanicals | AS1: Each | AU1: Extended | AW1: Region Adjustment | AY1: Total
D2: Estimated Labor & Material Costs | AM2: Include? | AN2: Category | AO2: Contractor | AP2: Description | AQ2: Amount | AR2: Measure | AS2: Material | AT2: Labor | AU2: Material | AV2: Labor | AW2: Material | AX2: Labor | AY2: Material | AZ2: Labor | BA2: DIY
P3: Contingency for This Set of Estimates | AM3: FALSE | AP3: 2-story? | AY3: =SUM(AW4:AW52) -> 0 | AZ3: =SUM(AX4:AX52) -> 0
E4: Hot Water Tank, HVAC | L4: =SUM(AW4:AX6) -> 0 | Q4: Standard | S4: or | T4: $ | U4: 0 | W4: House Dimensions (ft): | AD4: Front | AF4: 0 | AG4: Side | AI4: 0 | AM4: FALSE | AN4: Plumber | AO4: Plumber | AP4: Replace Hot Water Tank | AS4: ='Materials Costs'!N142 -> 424 | AT4: ='Labor Costs'!F91 -> 275 | AU4: =IF(AM4,AS4,0) -> 0 | AV4: =IF(AM4,AT4,0) -> 0 | AW4: =ROUND(AU4*(COL/100),2) -> 0 | AX4: =IF(BA4,0,ROUND(AV4*(COL/100),2)) -> 0 | BA4: FALSE
AM5: FALSE | AN5: HVAC | AO5: HVAC | AP5: Replace Furnace | AQ5: =W7 -> 0 | AR5: sq ft | AS5: ='Materials Costs'!N143 -> 0.5 | AT5: ='Labor Costs'!F92 -> 1.25 | AU5: =IF(AM5,AQ5*AS5,0) -> 0 | AV5: =IF(AM5,AQ5*AT5,0) -> 0 | AW5: =ROUND(AU5*(COL/100),2) -> 0 | AX5: 0 | BA5: FALSE
E6: Electric Upgrades | L6: =SUM(AW7:AX8)+AW9+AX9 -> 0 | AM6: FALSE | AN6: HVAC | AO6: HVAC | AP6: Replace Central Air | AQ6: =W7 -> 0 | AR6: sq ft | AS6: ='Materials Costs'!N144 -> 1 | AT6: ='Labor Costs'!F93 -> 1.25 | AU6: 0 | AV6: 0 | AW6: =ROUND(AU6*(COL/100),2) -> 0 | AX6: 0 | BA6: FALSE
Q7: Enter House Sq Footage | W7: 0 | AM7: FALSE | AN7: Electrician | AO7: Electrician | AP7: Replace/Upgrade Electric Panel | AQ7: 1 | AS7: ='Materials Costs'!N145 -> 362.2 | AT7: ='Labor Costs'!F94 -> 1000 | AU7: 0 | AV7: 0 | AW7: 0 | AX7: 0 | BA7: FALSE
E8: Snake Sanitary Line to Street | L8: =SUM(AW10:AX10) -> 0 | AM8: FALSE | AN8: Electrician | AO8: Electrician | AP8: Replace Meter Socket | AQ8: 1 | AS8: ='Materials Costs'!N146 -> 54 | AT8: ='Labor Costs'!F95 -> 250 | AU8: 0 | AV8: 0 | AW8: 0 | AX8: 0 | BA8: FALSE
Q9: Check Box if House is a 2-story | AM9: FALSE | AN9: Electrician | AO9: Electrician | AP9: Add/Replace Dryer Outlet | AQ9: 1 | AS9: ='Materials Costs'!N147 -> 6.48 | AT9: ='Labor Costs'!F96 -> 135 | AU9: 0 | AV9: 0 | AW9: 0 | AX9: 0 | BA9: FALSE
E10: Exterior Painting | L10: =SUM(AW11:AX14) -> 0 | AM10: FALSE | AN10: Plumber | AO10: Plumber | AP10: Snake Sanitary Line to Street | AQ10: 1 | AS10: 0 | AT10: ='Labor Costs'!F97 -> 180 | AU10: 0 | AV10: 0 | AW10: 0 | AX10: 0 | BA10: FALSE
Q11: Mechanical Systems | AA11: DIY | AB11: Exterior Work | AM11: FALSE | AN11: Painter | AO11: Painter | AP11: Exterior Painting Siding | AQ11: =($AF$4*10)+($AF$4*10)+($AI$4*10)+($AI$4*10)+IF(AM3,($AF$4*10)+($AF$4*10)+($AI$4*10)+($AI$4*10),0) -> 0 | AR11: sq ft | AS11: ='Materials Costs'!N159 -> 0.2798666667 | AT11: ='Labor Costs'!F110 -> 1.51 | AU11: 0 | AV11: 0 | AW11: 0 | AX11: 0 | BA11: FALSE
E12: Fence | L12: =SUM(AW15:AX15) -> 0 | P12: DIY | AB12: Replace Exterior Door (Side or Back Door) | AM12: FALSE | AN12: Painter | AO12: Painter | AP12: Exterior Painting Soffitts | AQ12: =($AF$4*2)+($AI$4*2)+IF($AM$3,($AF$4*2)+($AI$4*2),0) -> 0 | AR12: ln ft | AS12: ='Materials Costs'!N160 -> 0.2798666667 | AT12: ='Labor Costs'!F112 -> 0.86 | AU12: 0 | AV12: 0 | AW12: 0 | AX12: 0 | BA12: FALSE
Q13: Replace Hot Water Tank | AI13: 0 | AM13: FALSE | AN13: Painter | AO13: Painter | AP13: Exterior Painting Facia | AQ13: =($AF$4*2)+($AI$4*2)+IF($AM$3,($AF$4*2)+($AI$4*2),0) -> 0 | AR13: ln ft | AS13: ='Materials Costs'!N160 -> 0.2798666667 | AT13: ='Labor Costs'!F111 -> 0.77 | AU13: 0 | AV13: 0 | AW13: 0 | AX13: 0 | BA13: FALSE
E14: Landscaping Budget | L14: =SUM(AW16:AX16) -> 0 | Q14: Replace Furnace | AB14: Replace Storm Door (Side or Back Door) | AM14: =IF(AU14>0,TRUE,FALSE) -> FALSE | AN14: Painter | AO14: Painter | AP14: Exterior Painting Window Trim | AQ14: =X31 -> 0 | AS14: 3 | AT14: ='Labor Costs'!F113 -> 17.1 | AU14: =AQ14*AS14 -> 0 | AV14: =AQ14*AT14 -> 0 | AW14: 0 | AX14: 0 | BA14: FALSE
Q15: Replace Central Air | AI15: 0 | AM15: =IF(AQ15>0,TRUE,FALSE) -> FALSE | AN15: Landscaper | AO15: Fence | AP15: Add or Replace Fence | AQ15: =X33 -> 0 | AR15: ln ft | AS15: ='Materials Costs'!N149 -> 6.4 | AT15: ='Labor Costs'!F99 -> 12 | AU15: =IF(AM15,AS15*AQ15,0) -> 0 | AV15: =IF(AM15,AT15*AQ15,0) -> 0 | AW15: 0 | AX15: 0 | BA15: FALSE
E16: Exterior Doors | L16: =SUM(AW24:AX33) -> 0 | Q16: Replace/Upgrade Electric Panel | AM16: =IF(AQ16>0,TRUE,FALSE) -> FALSE | AN16: Landscaper | AO16: Landscaper | AP16: Landscaping Budget | AQ16: =X36 -> 0 | AR16: dollars | AW16: =AQ16*0.5 -> 0 | AX16: =AQ16*0.5 -> 0
Q17: Replace Meter Socket | AB17: =AP33 -> Exterior Door Lockset | AI17: 0 | AM17: 1 | AU17: =IF(AM17,AS17*AQ17,0) -> 0 | AV17: =IF(AM17,AT17*AQ17,0) -> 0 | AW17: 0 | AX17: 0
E18: Roof and Gutters | L18: =SUM(AW34:AX36) -> 0 | Q18: Add/Replace Dryer Outlet | AB18: Roof Tear Off and Replace
Q19: Snake Sanitary Line to Street | AB19: Roof Overlay Existing Shingles | AO19: General | AP19: ='Materials Costs'!C108 -> 28 inch wide blinds | AQ19: =$AI$7 -> 0 | AS19: ='Materials Costs'!N108 -> 6.97 | AT19: ='Labor Costs'!$F$47 -> 45 | AU19: 0 | AV19: 0 | AW19: 0 | AX19: 0 | BA19: =IF(BA18,TRUE,FALSE) -> FALSE
E20: Siding | L20: =AW37+AX37+AW38+AX38 -> 0 | AB20: Gutters and Downspouts | AO20: General | AP20: ='Materials Costs'!C109 -> 32 inch wide blinds | AQ20: =$AI$7 -> 0 | AS20: ='Materials Costs'!N109 -> 8.47 | AT20: ='Labor Costs'!$F$47 -> 45 | AU20: 0 | AV20: 0 | AW20: 0 | AX20: 0 | BA20: =IF(BA19,TRUE,FALSE) -> FALSE
AB21: Vinyl Siding | AO21: General | AP21: ='Materials Costs'!C110 -> 36 inch wide blinds | AQ21: =$AI$7 -> 0 | AS21: ='Materials Costs'!N110 -> 9.97 | AT21: ='Labor Costs'!$F$47 -> 45 | AU21: 0 | AV21: 0 | AW21: 0 | AX21: 0 | BA21: =IF(BA20,TRUE,FALSE) -> FALSE
E22: Garage and Concrete | L22: =SUM(AW43:AX46) -> 0 | AB22: Cap Windows with Aluminum | AI22: 0 | AO22: General | AP22: ='Materials Costs'!C111 -> Picture Window Blinds | AQ22: 1 | AS22: ='Materials Costs'!N111 -> 53.97 | AT22: ='Labor Costs'!F48 -> 50 | AU22: 0 | AV22: 0 | AW22: 0 | AX22: 0 | BA22: FALSE
AM23: 1 | AN23: Windows & Doors | AU23: =IF(AM23,AS23,0) -> 0 | AV23: =IF(AM23,AT23,0) -> 0 | AW23: 0 | AX23: 0
E24: Demolition | L24: =AX52 -> 0 | AM24: =IF(AM23=1,TRUE,FALSE) -> TRUE | AN24: Windows & Doors | AP24: No Doors | AS24: 0 | AT24: 0 | AU24: =IF(AM24,AS24,0) -> 0 | AV24: =IF(AM24,AT24,0) -> 0 | AW24: 0 | AX24: 0 | BA24: FALSE
Q25: Painting & Landscaping | AB25: Garage & Demolition | AM25: =IF(AM23=2,TRUE,FALSE) -> FALSE | AN25: Windows & Doors | AO25: Windows & Doors | AP25: ='Materials Costs'!C85 -> 30 inch Side or Back Entry Door | AQ25: =$AI$13 -> 0 | AS25: ='Materials Costs'!N85 -> 225 | AT25: ='Labor Costs'!$F$49 -> 200 | AU25: =IF(AM25,AS25*AQ25,0) -> 0 | AV25: =IF(AM25,AT25*AQ25,0) -> 0 | AW25: 0 | AX25: 0 | BA25: =IF($BA$24,TRUE,FALSE) -> FALSE
E26: Dumpster | L26: =SUM(AW49:AX51) -> 0 | P26: DIY | AB26: 1 car garage | AF26: 2 car garage | AM26: =IF(AM23=3,TRUE,FALSE) -> FALSE | AN26: Windows & Doors | AO26: Windows & Doors | AP26: ='Materials Costs'!C86 -> 32 inch Side or Back Entry Door | AQ26: =$AI$13 -> 0 | AS26: ='Materials Costs'!N86 -> 225 | AT26: ='Labor Costs'!$F$49 -> 200 | AU26: =IF(AM26,AS26*AQ26,0) -> 0 | AV26: =IF(AM26,AT26*AQ26,0) -> 0 | AW26: 0 | AX26: 0 | BA26: =IF($BA$24,TRUE,FALSE) -> FALSE
Q27: Exterior Painting Siding | AB27: flat roof | AF27: gable roof | AM27: =IF(AM23=4,TRUE,FALSE) -> FALSE | AN27: Windows & Doors | AO27: Windows & Doors | AP27: ='Materials Costs'!C87 -> 36 inch Side or Back Entry Door | AQ27: =$AI$13 -> 0 | AS27: ='Materials Costs'!N87 -> 219 | AT27: ='Labor Costs'!$F$49 -> 200 | AU27: =IF(AM27,AS27*AQ27,0) -> 0 | AV27: =IF(AM27,AT27*AQ27,0) -> 0 | AW27: 0 | AX27: 0 | BA27: =IF($BA$24,TRUE,FALSE) -> FALSE
Q28: Exterior Painting Soffitts | AA28: DIY | AM28: 1 | AN28: Windows & Doors | AU28: =IF(AM28,AS28,0) -> 0 | AV28: =IF(AM28,AT28,0) -> 0 | AW28: =ROUND(AU28*(COL/100),2) -> 0 | AX28: =IF(BA28,0,ROUND(AV28*(COL/100),2)) -> 0 | BA28: FALSE
E29: Contingency Applied to These Repairs | L29: =AY53 -> 0 | AB29: Replace Garage Doors | AM29: =IF(AM28=1,TRUE,FALSE) -> TRUE | AN29: Windows & Doors | AP29: No Doors | AS29: 0 | AT29: 0 | AU29: =IF(AM29,AS29,0) -> 0 | AV29: =IF(AM29,AT29,0) -> 0 | AW29: =ROUND(AU29*(COL/100),2) -> 0 | AX29: =IF(BA29,0,ROUND(AV29*(COL/100),2)) -> 0 | BA29: =IF($BA$28,TRUE,FALSE) -> FALSE
E30: Estimated Total Labor Cost These Repairs | L30: =AZ3 -> 0 | Q30: Exterior Painting Facia | AB30: Replace Garage Roof | AM30: =IF(AM28=2,TRUE,FALSE) -> FALSE | AN30: Windows & Doors | AO30: Windows & Doors | AP30: ='Materials Costs'!C82 -> 30 inch Storm Door | AQ30: =$AI$15 -> 0 | AS30: ='Materials Costs'!N82 -> 318.99 | AT30: ='Labor Costs'!$F$53 -> 100 | AU30: =IF(AM30,AS30*AQ30,0) -> 0 | AV30: =IF(AM30,AT30*AQ30,0) -> 0 | AW30: =ROUND(AU30*(COL/100),2) -> 0 | AX30: =IF(BA30,0,ROUND(AV30*(COL/100),2)) -> 0 | BA30: =IF($BA$28,TRUE,FALSE) -> FALSE
E31: Estimated Total Material Cost These Repairs | L31: =AY3 -> 0 | Q31: Exterior Painting Window Trim | X31: 0 | AB31: =AP45 -> Garage Door Opener | AM31: =IF(AM28=3,TRUE,FALSE) -> FALSE | AN31: Windows & Doors | AO31: Windows & Doors | AP31: ='Materials Costs'!C83 -> 32 inch Storm Door | AQ31: =$AI$15 -> 0 | AS31: ='Materials Costs'!N83 -> 99.98 | AT31: ='Labor Costs'!$F$53 -> 100 | AU31: 0 | AV31: 0 | AW31: =ROUND(AU31*(COL/100),2) -> 0 | AX31: =IF(BA31,0,ROUND(AV31*(COL/100),2)) -> 0 | BA31: =IF($BA$28,TRUE,FALSE) -> FALSE
E32: Total Estimated Room Repair Cost | L32: =SUM(L29:M31) -> 0 | AB32: Concrete | AI32: 0 | AM32: =IF(AM28=4,TRUE,FALSE) -> FALSE | AN32: Windows & Doors | AO32: Windows & Doors | AP32: ='Materials Costs'!C84 -> 36 inch Storm Door | AQ32: =$AI$15 -> 0 | AS32: ='Materials Costs'!N84 -> 154 | AT32: ='Labor Costs'!$F$53 -> 100 | AU32: 0 | AV32: 0 | AW32: =ROUND(AU32*(COL/100),2) -> 0 | AX32: =IF(BA32,0,ROUND(AV32*(COL/100),2)) -> 0 | BA32: =IF($BA$28,TRUE,FALSE) -> FALSE
Q33: Add or Replace Fence | X33: 0 | AM33: =IF(AI17,"TRUE","FALSE") -> FALSE | AN33: Windows & Doors | AO33: Windows & Doors | AP33: ='Materials Costs'!C88 -> Exterior Door Lockset | AQ33: =AI17 -> 0 | AS33: ='Materials Costs'!O88 -> 82 | AT33: ='Labor Costs'!G51 -> 25 | AU33: 0 | AV33: 0 | AW33: 0 | AX33: 0 | BA33: FALSE
AB34: Dumpster | AM34: FALSE | AN34: Roofer | AO34: Roofer | AP34: Roof Tear Off and Replace | AQ34: =W7/75 -> 0 | AR34: square | AS34: ='Materials Costs'!N151 -> 84 | AT34: ='Labor Costs'!F101 -> 125 | AU34: 0 | AV34: 0 | AW34: 0 | AX34: 0 | BA34: FALSE
E35: Total Estimated Costs for Entire House | L35: ='Offer Calculator'!Z20+'Offer Calculator'!Z23 -> 0 | AM35: FALSE | AN35: Roofer | AO35: Roofer | AP35: Roof Overlay Existing Shingles | AQ35: =W7/75 -> 0 | AR35: square | AS35: ='Materials Costs'!N151 -> 84 | AT35: ='Labor Costs'!F102 -> 75 | AU35: 0 | AV35: 0 | AW35: 0 | AX35: 0 | BA35: FALSE
Q36: Landscaping Budget | X36: 0 | AM36: FALSE | AN36: Gutters | AO36: Gutters | AP36: Gutters and Downspouts | AQ36: =(AF4*2)+(AI4*2) -> 0 | AR36: ln ft | AS36: ='Materials Costs'!N150 -> 1.078 | AT36: ='Labor Costs'!F100 -> 3.5 | AU36: 0 | AV36: 0 | AW36: 0 | AX36: 0 | BA36: FALSE
AB37: =AP52 -> Demolition Hours | AI37: 0 | AM37: FALSE | AN37: Windows & Doors | AO37: Windows & Doors | AP37: Vinyl Siding | AQ37: =((AF4*10)+(AF4*10)+(AI4*10)+(AI4*10)+IF(AM3,(AF4*10)+(AF4*10)+(AI4*10)+(AI4*10),0))/100 -> 0 | AR37: square | AS37: ='Materials Costs'!N153 -> 125 | AT37: ='Labor Costs'!F104 -> 150 | AU37: 0 | AV37: 0 | AW37: 0 | AX37: 0 | BA37: FALSE
AM38: =IF(AQ38>0,TRUE,FALSE) -> FALSE | AN38: Windows & Doors | AO38: Windows & Doors | AP38: Cap Windows with Aluminum | AQ38: =AI22 -> 0 | AS38: ='Materials Costs'!N154 -> 1.047 | AT38: ='Labor Costs'!F105 -> 45 | AU38: 0 | AV38: 0 | AW38: 0 | AX38: 0 | BA38: FALSE
AM39: FALSE | AP39: One Car Garage | AQ39: 1 | AS39: ='Materials Costs'!N156 -> 411 | AT39: ='Labor Costs'!F107 -> 250
E40: TYPE | J40: MATERIALS | L40: LABOR | AM40: FALSE | AP40: Two Car Garage | AQ40: 1 | AS40: ='Materials Costs'!N157 -> 617 | AT40: ='Labor Costs'!F108 -> 350
E41: CONCRETE | J41: =AW46 -> 0 | L41: =AX46 -> 0 | X41: 0 | AM41: FALSE | AP41: Flat Roof | AS41: ='Materials Costs'!N152 -> 37 | AT41: ='Labor Costs'!F103 -> 75
E42: DEMOLITION | J42: =SUM(AW49:AW51) -> 0 | L42: =AX52 -> 0 | X42: 1 | AM42: FALSE | AP42: Gable Roof | AS42: ='Materials Costs'!N151 -> 84 | AT42: ='Labor Costs'!F101 -> 125
E43: ELECTRICIAN | J43: =SUM(AW7:AW9) -> 0 | L43: =SUM(AX7:AX9) -> 0 | X43: 2 | AM43: FALSE | AN43: Garage Door | AO43: Garage Door | AP43: Replace Garage Doors | AQ43: 1 | AS43: =IF(AM39,'Materials Costs'!N156,'Materials Costs'!N157) -> 617 | AT43: =IF('Exterior Mechanicals'!AM39,'Labor Costs'!F107,'Labor Costs'!F108) -> 350 | AU43: =IF(AM43,AS43,0) -> 0 | AV43: =IF(AM43,AT43,0) -> 0 | AW43: 0 | AX43: 0 | BA43: FALSE
E44: GARAGE DOOR | J44: =AW43+AW45 -> 0 | L44: =AX43+AX45 -> 0 | X44: 3 | AM44: FALSE | AN44: Roofer | AO44: Roofer | AP44: Replace Garage Roof | AQ44: =IF(AM39,250/75,500/75) -> 6.666666667 | AR44: square | AS44: =IF(AM41,'Materials Costs'!N152,'Materials Costs'!N151) -> 84 | AT44: =IF(AM41,'Labor Costs'!F103,'Labor Costs'!F101)+125 -> 250 | AU44: =IF(AM44,AS44*AQ44,0) -> 0 | AV44: =IF(AM44,AT44*AQ44,0) -> 0 | AW44: 0 | AX44: 0 | BA44: FALSE
E45: GUTTERS | J45: =AW36 -> 0 | L45: =AX36 -> 0 | X45: 4 | AM45: FALSE | AN45: Garage Door | AO45: Garage Door | AP45: Garage Door Opener | AQ45: 1 | AS45: ='Materials Costs'!N158 -> 168 | AT45: ='Labor Costs'!F109 -> 150 | AU45: =IF(AM45,AS45*AQ45,0) -> 0 | AV45: =IF(AM45,AT45*AQ45,0) -> 0 | AW45: 0 | AX45: 0 | BA45: FALSE
E46: HVAC | J46: =SUM(AW5:AW6) -> 0 | L46: =SUM(AX5:AX6) -> 0 | X46: 5 | AM46: =IF(AQ46>0,TRUE,FALSE) -> FALSE | AN46: Concrete | AO46: Concrete | AP46: Concrete | AQ46: =AI32 -> 0 | AR46: sq ft | AS46: ='Materials Costs'!N155 -> 1.79 | AT46: ='Labor Costs'!F106 -> 7 | AU46: 0 | AV46: 0 | AW46: 0 | AX46: 0 | BA46: FALSE
E47: LANDSCAPER | J47: =SUM(AW15:AW16) -> 0 | L47: =AX15+AX16 -> 0 | X47: 6 | AM47: 1 | AN47: Demolition | AU47: 0 | AV47: 0 | AW47: 0 | AX47: 0
E48: PAINTER | J48: =SUM(AW11:AW14) -> 0 | L48: =SUM(AX11:AX14) -> 0 | X48: 7 | AM48: =IF($AM$47=1,TRUE,FALSE) -> TRUE | AN48: Demolition | AP48: No Dumpster | AU48: 0 | AV48: 0 | AW48: 0 | AX48: 0
E49: PLUMBER | J49: =AW4+AW10 -> 0 | L49: =AX4+AX10 -> 0 | X49: 8 | AM49: =IF($AM$47=2,TRUE,FALSE) -> FALSE | AN49: Demolition | AO49: Demolition | AP49: ='Materials Costs'!C163 -> 10 yd - 14ft long x 7 ft wide x 3 ft high (7 days) | AQ49: 1 | AS49: ='Materials Costs'!N163 -> 320 | AU49: 0 | AV49: 0 | AW49: 0 | AX49: 0
E50: ROOFER | J50: =SUM(AW34:AW35)+AW44 -> 0 | L50: =AX34+AX35+AX44 -> 0 | X50: 9 | AM50: =IF($AM$47=3,TRUE,FALSE) -> FALSE | AN50: Demolition | AO50: Demolition | AP50: ='Materials Costs'!C162 -> 20 yd - 22ft long x 7 ft wide x 4 ft high (7 days) | AQ50: 1 | AS50: ='Materials Costs'!N162 -> 365 | AU50: 0 | AV50: 0 | AW50: 0 | AX50: 0
E51: WINDOWS & DOORS | J51: =SUM(AW24:AW33)+SUM(AW37:AW38) -> 0 | L51: =SUM(AX24:AX33)+SUM(AX37:AX38) -> 0 | X51: 10 | AM51: =IF($AM$47=4,TRUE,FALSE) -> FALSE | AN51: Demolition | AO51: Demolition | AP51: ='Materials Costs'!C161 -> 40 yd - 22ft long x 7 ft wide x 8 ft high (7 days) | AQ51: 1 | AS51: ='Materials Costs'!N161 -> 550 | AU51: 0 | AV51: 0 | AW51: 0 | AX51: 0
X52: 11 | AM52: =IF(AQ52>0,TRUE,FALSE) -> FALSE | AN52: Demolition | AO52: Demolition | AP52: ='Labor Costs'!D114 -> Demolition Hours | AQ52: =AI37 -> 0 | AT52: ='Labor Costs'!F114 -> 20 | AU52: 0 | AV52: =AQ52*AT52 -> 0 | AW52: 0 | AX52: 0 | BA52: FALSE
X53: 12 | AM53: TRUE | AN53: Contingency | AO53: Contingency | AP53: Contingency | AW53: =AY53*0.5 -> 0 | AX53: =AY53*0.5 -> 0 | AY53: =IF(AM54,(AY3+AZ3)*'Offer Calculator'!U23,U4) -> 0
X54: 13 | AM54: TRUE
X55: 14
X56: 15
X57: 16
X58: 17
X59: 18
X60: 19
X61: 20
X62: 21
X63: 22
X64: 23
X65: 24 | AK65: TRUE
X66: 25

Sheet Budget by Room
I1: Budget By Room (without contingency) | AD1: =LOOKUP(#REF!,AB2:AB101,AD2:AD101) ->  | AE1: 0 | AF1: 1 yr | AH1: 1
AB2: Alabama | AC2: -0.05 | AD2: 95 | AE2: 0.005 | AF2: 2 yr | AH2: 0.95
X3: BATHROOM MATERIALS | AB3: Alaska | AC3: 0.3 | AD3: 130 | AE3: 0.01 | AF3: 3 yr | AH3: 0.9 | AJ3: 1
C4: BATHROOM 1 | H4: BATHROOM 2 | M4: BATHROOM 3 | R4: BATHROOM 4 | X4: =C6+H6+M6+R6 -> 0 | AB4: Boston | AC4: 0.25 | AD4: 125 | AE4: 0.015 | AF4: 4 yr | AH4: 0.85 | AJ4: 2
C5: MATERIALS | H5: MATERIALS | M5: MATERIALS | R5: MATERIALS | X5: BATHROOM LABOR | AB5: Cleveland | AC5: 0 | AD5: 100 | AE5: 0.02 | AF5: 5 yr | AH5: 0.8 | AJ5: 3
C6: ='Bathroom 1'!AY3 -> 0 | H6: ='Bathroom 2'!AY3 -> 0 | M6: ='Bathroom 3'!AY3 -> 0 | R6: ='Bathroom 4'!AY3 -> 0 | X6: =C8+H8+M8+R8 -> 0 | AB6: Columbus | AC6: 0.1 | AD6: 110 | AE6: 0.025 | AF6: 6 yr | AH6: 0.75 | AJ6: 4
C7: LABOR | H7: LABOR | M7: LABOR | R7: LABOR | X7: BATHROOM TOTAL | AE7: 0.03 | AF7: 7 yr | AH7: 0.7 | AJ7: 5
C8: ='Bathroom 1'!AZ3 -> 0 | H8: ='Bathroom 2'!AZ3 -> 0 | M8: ='Bathroom 3'!AZ3 -> 0 | R8: ='Bathroom 4'!AZ3 -> 0 | X8: =X4+X6 -> 0 | AE8: 0.035 | AF8: 8 yr | AH8: 0.65 | AJ8: 6
AE9: 0.04 | AF9: 9 yr | AH9: 0.6 | AJ9: 7
AE10: 0.045 | AF10: 10 yr | AH10: 0.55 | AJ10: 8
X11: BEDROOM MATERIALS | AE11: 0.05 | AF11: 15 yr | AH11: 0.5 | AJ11: 9
C12: BEDROOM 1 | G12: BEDROOM 2 | K12: BEDROOM 3 | O12: BEDROOM 4 | S12: BEDROOM 5 | X12: =C14+G14+K14+O14+S14 -> 0 | AE12: 0.055 | AF12: 20 yr | AH12: 0.45 | AJ12: 10
C13: MATERIALS | G13: MATERIALS | K13: MATERIALS | O13: MATERIALS | S13: MATERIALS | X13: BEDROOM LABOR | AE13: 0.06 | AF13: 25 yr | AH13: 0.4 | AJ13: 11
C14: ='Bedroom 1'!AY3 -> 0 | G14: ='Bedroom 2'!AY3 -> 0 | K14: ='Bedroom 3'!AY3 -> 0 | O14: ='Bedroom 4'!AY3 -> 0 | S14: ='Bedroom 5'!AY3 -> 0 | X14: =C16+G16+K16+O16+S16 -> 0 | AE14: 0.065 | AF14: 30 yr | AH14: 0.35 | AJ14: 12
C15: LABOR | G15: LABOR | K15: LABOR | O15: LABOR | S15: LABOR | X15: BEDROOM TOTAL | AE15: 0.07 | AF15: 35 yr | AH15: 0.3 | AJ15: 13
C16: ='Bedroom 1'!AZ3 -> 0 | G16: ='Bedroom 2'!AZ3 -> 0 | K16: ='Bedroom 3'!AZ3 -> 0 | O16: ='Bedroom 4'!AZ3 -> 0 | S16: ='Bedroom 5'!AZ3 -> 0 | X16: =X12+X14 -> 0 | AE16: 0.075 | AF16: 40 yr | AJ16: 14
AE17: 0.08 | AJ17: 15
AE18: 0.085 | AJ18: 16
C19: FAMILY ROOM MATERIALS | J19: LIVING ROOM MATERIALS | Q19: DINING ROOM MATERIALS | X19: KITCHEN MATERIALS | AE19: 0.09 | AJ19: 17
C20: ='Family Room'!AY3 -> 0 | J20: ='Living Room'!AY3 -> 0 | Q20: ='Dining Room'!AY3 -> 0 | X20: =Kitchen!AY3 -> 0 | AE20: 0.095 | AJ20: 18
C21: FAMILY ROOM LABOR | J21: LIVING ROOM LABOR | Q21: DINING ROOM LABOR | X21: KITCHEN LABOR | AE21: 0.1
C22: ='Family Room'!AZ3 -> 0 | J22: ='Living Room'!AZ3 -> 0 | Q22: ='Dining Room'!AZ3 -> 0 | X22: =Kitchen!AZ3 -> 0 | AE22: 0.105
C23: FAMILY ROOM TOTAL | J23: LIVING ROOM TOTAL | Q23: DINING ROOM TOTAL | X23: KITCHEN TOTAL | AE23: 0.11
C24: =C20+C22 -> 0 | J24: =J20+J22 -> 0 | Q24: =Q20+Q22 -> 0 | X24: =X20+X22 -> 0 | AE24: 0.115
AE25: 0.12
AE26: 0.125
AE27: 0.13
C28: BASEMENT/UTILITY MATERIALS | J28: EXTERIOR/MECHANICAL MATERIALS | R28: TOTAL MATERIALS | X28: TOTAL REPAIRS COST | AE28: 0.135
C29: ='Basement Utility'!AY3 -> 0 | J29: ='Exterior Mechanicals'!AY3 -> 0 | R29: =X4+X12+C20+J20+Q20+X20+C29+J29 -> 0 | AE29: 0.14
C30: BASEMENT/UTILITY LABOR | J30: EXTERIOR/MECHANICALS LABOR | AE30: 0.145
C31: ='Basement Utility'!AZ3 -> 0 | J31: ='Exterior Mechanicals'!AZ3 -> 0 | R31: TOTAL LABOR | X31: =R29+R32 -> 0 | AE31: 0.15
C32: BASEMENT/UTILITY TOTAL | J32: EXTERIOR/MECHANICALS TOTAL | R32: =X6+X14+C22+J22+Q22+X22+C31+J31 -> 0 | AE32: 0.2
C33: =C29+C31 -> 0 | J33: =J29+J31 -> 0 | AE33: 0.25
AE34: 0.3
AE35: 0.35
AE36: 0.4
AE37: 0.45
AE38: 0.5

Sheet Budget by Contractor
F1: Budget By Contractor (without contingency) | AC1: =LOOKUP(#REF!,AA2:AA101,AC2:AC101) ->  | AD1: 0 | AE1: 1 yr | AG1: 1
AA2: Alabama | AB2: -0.05 | AC2: 95 | AD2: 0.005 | AE2: 2 yr | AG2: 0.95
AA3: Alaska | AB3: 0.3 | AC3: 130 | AD3: 0.01 | AE3: 3 yr | AG3: 0.9 | AI3: 1 | AP3: BUDGET | AQ3: ACTUAL
B4: APPLIANCES | F4: CONCRETE | J4: DEMOLITION | N4: DRYWALL | R4: ELECTRICIAN | V4: EXCAVATOR | AA4: Boston | AB4: 0.25 | AC4: 125 | AD4: 0.015 | AE4: 4 yr | AG4: 0.85 | AI4: 2 | AN4: APPLIANCES | AP4: =B9 -> 0 | AQ4: 0 | AR4: =AQ4-AP4 -> 0
B5: MATERIALS | F5: MATERIALS | J5: MATERIALS | N5: MATERIALS | R5: MATERIALS | V5: MATERIALS | AA5: Cleveland | AB5: 0 | AC5: 100 | AD5: 0.02 | AE5: 5 yr | AG5: 0.8 | AI5: 3 | AN5: CONCRETE | AP5: =F9 -> 0 | AR5: =AQ5-AP5 -> 0
B6: =Kitchen!J41 -> 0 | F6: ='Exterior Mechanicals'!J41 -> 0 | J6: ='Exterior Mechanicals'!J42 -> 0 | N6: ='Living Room'!J42+'Dining Room'!J42+Kitchen!J43+'Family Room'!J42+'Bathroom 1'!J42+'Bathroom 2'!J42+'Bathroom 3'!J42+'Bathroom 4'!J42+'Bedroom 1'!J42+'Bedroom 2'!J42+'Bedroom 3'!J42+'Bedroom 4'!J42+'Bedroom 5'!J42+'Basement Utility'!J42 -> 0 | R6: ='Living Room'!J43+'Dining Room'!J43+Kitchen!J44+'Family Room'!J43+'Bathroom 1'!J43+'Bathroom 2'!J43+'Bathroom 3'!J43+'Bathroom 4'!J43+'Bedroom 1'!J43+'Bedroom 2'!J43+'Bedroom 3'!J43+'Bedroom 4'!J43+'Bedroom 5'!J43+'Basement Utility'!J43+'Exterior Mechanicals'!J43 -> 0 | V6: ='Basement Utility'!K44 -> 0 | AA6: Columbus | AB6: 0.1 | AC6: 110 | AD6: 0.025 | AE6: 6 yr | AG6: 0.75 | AI6: 4 | AN6: DEMOLITION | AP6: =J9 -> 0 | AR6: 0
B7: LABOR | F7: LABOR | J7: LABOR | N7: LABOR | R7: LABOR | V7: LABOR | AD7: 0.03 | AE7: 7 yr | AG7: 0.7 | AI7: 5 | AN7: DRYWALL | AP7: =N9 -> 0 | AR7: 0
F8: ='Exterior Mechanicals'!L41 -> 0 | J8: ='Exterior Mechanicals'!L42 -> 0 | N8: ='Living Room'!L42+'Dining Room'!L42+Kitchen!L43+'Family Room'!L42+'Bathroom 1'!L42+'Bathroom 2'!L42+'Bathroom 3'!L42+'Bathroom 4'!L42+'Bedroom 1'!L42+'Bedroom 2'!L42+'Bedroom 3'!L42+'Bedroom 4'!L42+'Bedroom 5'!L42+'Basement Utility'!L42 -> 0 | R8: ='Living Room'!L43+'Dining Room'!L43+Kitchen!L44+'Family Room'!L43+'Bathroom 1'!L43+'Bathroom 2'!L43+'Bathroom 3'!L43+'Bathroom 4'!L43+'Bedroom 1'!L43+'Bedroom 2'!L43+'Bedroom 3'!L43+'Bedroom 4'!L43+'Bedroom 5'!L43+'Basement Utility'!L43+'Exterior Mechanicals'!L43 -> 0 | V8: ='Basement Utility'!L44 -> 0 | AD8: 0.035 | AE8: 8 yr | AG8: 0.65 | AI8: 6 | AN8: ELECTRICIAN | AP8: =R9 -> 0 | AR8: 0
B9: =B6+B8 -> 0 | F9: =F6+F8 -> 0 | J9: =J6+J8 -> 0 | N9: =N6+N8 -> 0 | R9: =R6+R8 -> 0 | V9: =V6+V8 -> 0 | AD9: 0.04 | AE9: 9 yr | AG9: 0.6 | AI9: 7 | AN9: EXCAVATOR | AP9: =V9 -> 0 | AR9: 0
AD10: 0.045 | AE10: 10 yr | AG10: 0.55 | AI10: 8 | AN10: FIREPLACE | AP10: =B17 -> 0 | AR10: 0
AD11: 0.05 | AE11: 15 yr | AG11: 0.5 | AI11: 9 | AN11: FLOORING | AP11: =F17 -> 0 | AR11: 0
B12: FIREPLACE | F12: FLOORING | J12: GARAGE DOOR | N12: GENERAL | R12: GENERAL BATH | V12: GENERAL KITCHEN | AD12: 0.055 | AE12: 20 yr | AG12: 0.45 | AI12: 10 | AN12: GARAGE DOOR | AP12: =J17 -> 0 | AR12: 0
B13: MATERIALS | F13: MATERIALS | J13: MATERIALS | N13: MATERIALS | R13: MATERIALS | V13: MATERIALS | AD13: 0.06 | AE13: 25 yr | AG13: 0.4 | AI13: 11 | AN13: GENERAL | AP13: =N17 -> 0 | AR13: 0
B14: ='Living Room'!J44+'Dining Room'!J44+'Family Room'!J44+'Basement Utility'!J45 -> 0 | F14: ='Living Room'!J45+'Dining Room'!J45+Kitchen!J45+'Family Room'!J45+'Bathroom 1'!J44+'Bathroom 2'!J44+'Bathroom 3'!J44+'Bathroom 4'!J44+'Bedroom 1'!J44+'Bedroom 2'!J44+'Bedroom 3'!J44+'Bedroom 4'!J44+'Bedroom 5'!J44+'Basement Utility'!J46 -> 0 | J14: ='Exterior Mechanicals'!J44 -> 0 | N14: ='Living Room'!J46+'Dining Room'!J46+'Family Room'!J46+'Bedroom 1'!J45+'Bedroom 2'!J45+'Bedroom 3'!J45+'Bedroom 4'!J45+'Bedroom 5'!J45+'Basement Utility'!J47 -> 0 | R14: ='Bathroom 1'!J45+'Bathroom 2'!J45+'Bathroom 3'!J45+'Bathroom 4'!J45 -> 0 | V14: =Kitchen!J46 -> 0 | AD14: 0.065 | AE14: 30 yr | AG14: 0.35 | AI14: 12 | AN14: GENERAL BATH | AP14: =R17 -> 0 | AR14: 0
B15: LABOR | F15: LABOR | J15: LABOR | N15: LABOR | R15: LABOR | V15: LABOR | AD15: 0.07 | AE15: 35 yr | AG15: 0.3 | AI15: 13 | AN15: GENERAL KITCHEN | AP15: =V17 -> 0 | AR15: 0
B16: ='Living Room'!L44+'Dining Room'!L44+'Family Room'!J44+'Basement Utility'!L45 -> 0 | F16: ='Living Room'!L45+'Dining Room'!L45+Kitchen!L45+'Family Room'!L45+'Bathroom 1'!L44+'Bathroom 2'!L44+'Bathroom 3'!L44+'Bathroom 4'!L44+'Bedroom 1'!L44+'Bedroom 2'!L44+'Bedroom 3'!L44+'Bedroom 4'!L44+'Bedroom 5'!L44+'Basement Utility'!L46 -> 0 | J16: ='Exterior Mechanicals'!L44 -> 0 | N16: ='Living Room'!L46+'Dining Room'!L46+'Family Room'!L46+'Bedroom 1'!L45+'Bedroom 2'!L45+'Bedroom 3'!L45+'Bedroom 4'!L45+'Bedroom 5'!L45+'Basement Utility'!L47 -> 0 | R16: ='Bathroom 1'!L45+'Bathroom 2'!L45+'Bathroom 3'!L45+'Bathroom 4'!L45 -> 0 | V16: =Kitchen!L46 -> 0 | AD16: 0.075 | AE16: 40 yr | AI16: 14 | AN16: GUTTERS | AP16: =B25 -> 0 | AR16: 0
B17: =B14+B16 -> 0 | F17: =F14+F16 -> 0 | J17: =J14+J16 -> 0 | N17: =N14+N16 -> 0 | R17: =R14+R16 -> 0 | V17: =V14+V16 -> 0 | AD17: 0.08 | AI17: 15 | AN17: HVAC | AP17: =F25 -> 0 | AR17: 0
AD18: 0.085 | AI18: 16 | AN18: LANDSCAPER | AP18: =J25 -> 0 | AR18: 0
AD19: 0.09 | AI19: 17 | AN19: PAINTER | AP19: =N25 -> 0 | AQ19: 0 | AR19: 0
B20: GUTTERS | F20: HVAC | J20: LANDSCAPER | N20: PAINTER | R20: PLUMBER | V20: ROOFER | AD20: 0.095 | AI20: 18 | AN20: PLUMBER | AP20: =R25 -> 0 | AR20: 0
B21: MATERIALS | F21: MATERIALS | J21: MATERIALS | N21: MATERIALS | R21: MATERIALS | V21: MATERIALS | AD21: 0.1 | AN21: ROOFER | AP21: =V25 -> 0 | AR21: 0
B22: ='Exterior Mechanicals'!J45 -> 0 | F22: ='Exterior Mechanicals'!J46 -> 0 | J22: ='Exterior Mechanicals'!J47 -> 0 | N22: ='Living Room'!J47+'Dining Room'!J47+Kitchen!J47+'Family Room'!J47+'Bathroom 1'!J46+'Bathroom 2'!J46+'Bathroom 3'!J46+'Bathroom 4'!J46+'Bedroom 1'!J46+'Bedroom 2'!J46+'Bedroom 3'!J46+'Bedroom 4'!J46+'Bedroom 5'!J46+'Basement Utility'!J48+'Exterior Mechanicals'!J48 -> 0 | R22: =Kitchen!J48+'Bathroom 1'!J47+'Bathroom 2'!J47+'Bathroom 3'!J47+'Bathroom 4'!J47+'Basement Utility'!J49+'Exterior Mechanicals'!J49 -> 0 | V22: ='Exterior Mechanicals'!J50 -> 0 | AD22: 0.105 | AN22: WINDOWS DOORS | AP22: =B33 -> 0 | AQ22: 0 | AR22: 0
B23: LABOR | F23: LABOR | J23: LABOR | N23: LABOR | R23: LABOR | V23: LABOR | AD23: 0.11
B24: ='Exterior Mechanicals'!L45 -> 0 | F24: ='Exterior Mechanicals'!L46 -> 0 | J24: ='Exterior Mechanicals'!L47 -> 0 | N24: ='Living Room'!L47+'Dining Room'!L47+Kitchen!L46+'Family Room'!L47+'Bathroom 1'!L46+'Bathroom 2'!L46+'Bathroom 3'!L46+'Bathroom 4'!L46+'Bedroom 1'!L46+'Bedroom 2'!L46+'Bedroom 3'!L46+'Bedroom 4'!L46+'Bedroom 5'!L46+'Basement Utility'!L48+'Exterior Mechanicals'!L48 -> 0 | R24: =Kitchen!L48+'Bathroom 1'!L47+'Bathroom 2'!L47+'Bathroom 3'!L47+'Bathroom 4'!L47+'Basement Utility'!L49+'Exterior Mechanicals'!L49 -> 0 | V24: ='Exterior Mechanicals'!L50 -> 0 | AD24: 0.115 | AO24: TOTAL | AP24: =SUM(AP4:AP23) -> 0 | AQ24: =SUM(AQ4:AQ22) -> 0 | AR24: =SUM(AR4:AR22) -> 0
B25: =B22+B24 -> 0 | F25: =F22+F24 -> 0 | J25: =J22+J24 -> 0 | N25: =N22+N24 -> 0 | R25: =R22+R24 -> 0 | V25: =V22+V24 -> 0 | AD25: 0.12
AD26: 0.125
AD27: 0.13
B28: WINDOWS & DOORS | Q28: TOTAL MATERIALS | W28: TOTAL REPAIRS COST | AD28: 0.135
B29: MATERIALS | Q29: =B6+F6+J6+N6+R6+V6+B14+F14+J14+N14+R14+V14+B22+F22+J22+N22+R22+V22+B30 -> 0 | AD29: 0.14
B30: ='Living Room'!J48+'Dining Room'!J48+Kitchen!J49+'Family Room'!J48+'Bathroom 1'!J48+'Bathroom 2'!J48+'Bathroom 3'!J48+'Bathroom 4'!J48+'Bedroom 1'!J47+'Bedroom 2'!J47+'Bedroom 3'!J47+'Bedroom 4'!J47+'Bedroom 5'!J47+'Basement Utility'!J50+'Exterior Mechanicals'!J51 -> 0 | AD30: 0.145
B31: LABOR | Q31: TOTAL LABOR | W31: =Q29+Q32 -> 0 | AD31: 0.15
B32: ='Living Room'!L48+'Dining Room'!L48+Kitchen!L49+'Family Room'!L48+'Bathroom 1'!L48+'Bathroom 2'!L48+'Bathroom 3'!L48+'Bathroom 4'!L48+'Bedroom 1'!L47+'Bedroom 2'!L47+'Bedroom 3'!L47+'Bedroom 4'!L47+'Bedroom 5'!L47+'Basement Utility'!L50+'Exterior Mechanicals'!L51 -> 0 | Q32: =B8+F8+J8+N8+R8+V8+B16+F16+J16+N16+R16+V16+B24+F24+J24+N24+R24+V24+B32 -> 0 | AD32: 0.2
B33: =B30+B32 -> 0 | AD33: 0.25
AD34: 0.3
AD35: 0.35
AD36: 0.4
AD37: 0.45
AD38: 0.5

Sheet Materials Costs
B1: change description | D1: Premium Grade | H1: Builder Grade | L1: Last Cost Update | N1: 2018-10-25
L2: 2
C3: Description | D3: Supplier | E3: SKU | F3: Description | G3: Price | H3: Supplier | I3: SKU | J3: Description | K3: Price | L3: Units | M3: Cost Based on Standard Measure | N3: Cost Used for Estimates (converted to units) | O3: Adj Cost
C4: Walls
B5: X | C5: Drywall Material 1/2" sheetrock | D5: Home Depot | E5: =HYPERLINK("http://www.homedepot.com/p/SHEETROCK-Brand-UltraLight-48-in-x-8-ft-x-1-2-in-Gypsum-Panel-14113411708/202530243?N=Zbb52#.Un_Wb-KahDo","893749 ") -> 893749 | F5: SHEETROCK Brand UltraLight 48 in. x 8 ft. x 1/2 in. Gypsum Panel | G5: 9.98 | H5: Home Depot | I5: =HYPERLINK("http://www.homedepot.com/p/SHEETROCK-Brand-UltraLight-48-in-x-8-ft-x-1-2-in-Gypsum-Panel-14113411708/202530243?N=Zbb52#.Un_Wb-KahDo","893749 ") -> 893749 | J5: SHEETROCK Brand UltraLight 48 in. x 8 ft. x 1/2 in. Gypsum Panel | K5: 9.98 | L5: sq ft | M5: =IF($L$2=2,K5,G5) -> 9.98 | N5: =M5/32 -> 0.311875 | O5: =N5*ROUND(COL/100,2) -> 0.311875
